Workbook

Sheet Inhaltsverzeichnis
F1: =Codierung!I184 -> Eidgenössisches Departement für Wirtschaft, Bildung und Forschung WBF
F2: =Codierung!I185 -> Bundesamt für Landwirtschaft BLW
F3: =Codierung!I186 -> Fachbereich Marktanalysen
A6: =Codierung!$I$168 -> Marktbericht Eier
A7: =Codierung!$I$125 -> Inhaltsverzeichnis
B9: =Codierung!$I$124 -> Marktbericht:
C10: =Codierung!$I$125 -> Inhaltsverzeichnis
C11: =Codierung!$I$127 -> 1. Produktion, Aussenhandel und Verbrauch (Prod + AH + Verbrauch)
C12: =Codierung!$I$128 -> 2.1 Import nach Herkunft (Imp.n.H.)
C13: =Codierung!$I$129 -> 2.2 Auslastung der Importkontingente (Imp.n.Kont.)
C14: =Codierung!$I$130 -> 2.3 Aktiver Veredelungsverkehr (aVV)
C15: =Codierung!$I$131 -> 2.4 "Versteckte" Eierimporte in Lebensmittelzubereitungen (Imp. LM): Inoffizielle Schätzung
C16: =Codierung!$I$132 -> 3. Marktentlastungsmassnahmen (MEM)
C17: =Codierung!$I$133 -> 4. Produzenten- und Importpreise (PP)
C18: =Codierung!$I$134 -> 5. Preise im Liefer- und Abholgrosshandel (GHP)
C19: =Codierung!$I$135 -> 6. Konsumentenpreise (KP)
C20: =Codierung!$I$136 -> 7. Marktstruktur (MS)
C21: =Codierung!$I$137 -> 8. Bruttowertschöpfung (BWS)
C22: =Codierung!$I$138 -> 9. International (Int.)
B24: =Codierung!$I$139 -> Datenreihen:
C25: =Codierung!$I$140 -> D.1 Prod + AH + Verbrauch
C26: =Codierung!$I$141 -> D.2.1 Imp.n.H.
C27: =Codierung!$I$142 -> D.2.2 Imp.n.Kont.
C28: =Codierung!$I$143 -> D.2.3 aVV
C29: =Codierung!$I$144 -> D.2.4 Imp. LM
C30: =Codierung!$I$145 -> D.3 MEM
C31: =Codierung!$I$146 -> D.4 PP
C32: =Codierung!$I$147 -> D.5 GHP Gastro
C33: =Codierung!$I$148 -> D.6 KP
C34: =Codierung!$I$149 -> D.7 MS
C35: =Codierung!$I$150 -> D.8 BWS
C36: =Codierung!$I$151 -> D.9 Int.
C38: =Codierung!$I$152 -> 10. Methoden
C40: =Codierung!$I$153 -> Codierung
B42: =Codierung!$I$156 -> Bestellformular für Abonnemente:
C43: Deutsch
C44: Français
C45: Italiano
B47: =Codierung!$I$241 -> Zu Haftung, Datenschutz, Copyright und Weiterem siehe:
B48: www.disclaimer.admin.ch
B50: Schwarzenburgstrasse 165, 3003 Bern
B51: Tel. +41 58 462 25 11, Fax +41 58 462 26 34
B52: marktanalysen@blw.admin.ch
B53: www.marktbeobachtung.admin.ch

Sheet 1. Prod + AH + Verbrauch
F1: =Codierung!I184 -> Eidgenössisches Departement für Wirtschaft, Bildung und Forschung WBF
F2: =Codierung!I185 -> Bundesamt für Landwirtschaft BLW
F3: =Codierung!I186 -> Fachbereich Marktanalysen
A6: =Codierung!$I$170 -> Produktion, Aussenhandel und Verbrauch | F6: =Codierung!I242 -> Anmerkungen:
A7: =Codierung!$I$222 -> in Mio. Stück | F7: (2) | G7: =Codierung!I244 -> Schätzung Agristat (SBV)
A8: =Codierung!$I$224 -> in % | F8: (3) | G8: =Codierung!I245 -> Bis 2015: Berechnung/Schätzung Aviforum; ab 2016: Erhebung BLW
A9: =Codierung!$I$223 -> in Stück / Kopf | F9: (5) | G9: =Codierung!I251 -> Umrechnungsfaktoren: Eiprodukte getrocknet 80 Eier / kg; Eiprodukte flüssig 20.58 Eier / kg; Schaleneier 16.6 Eier / kg
A10: =Codierung!I210 -> Quellen: BLW, Fachbereich Marktanalysen; SBV; EZV; Aviforum | F10: (6) | G10: =Codierung!I260 -> 2017: Erweiterung Erhebung Kükenstatistik aufgrund angepasster Marktverhältnisse (Erhöhung Inlandproduktion um ca. 17 Mio. Eier bzw. ca. + 2 Eier / Kopf)
A11: =Codierung!I215 -> Publikationsrecht: Weiterverarbeitung und Publikation unter Quellenangabe gestattet. | G11: =Codierung!$I$238 -> Daten Import
G12: =Codierung!$I$256 -> Aufbereitete Grafiken unterhalb der Datentabellen
A13: =Codierung!$I$154 -> Zurück zum Inhaltsverzeichnis
A14: =Codierung!$I$253 -> Informationen zur Methodik | E14: =Codierung!$I$252&'D.1 Prod + AH + Verbrauch'!$A$29&"-"&'D.1 Prod + AH + Verbrauch'!$A$33 -> Ø 2001-2005 | F14: =Codierung!$I$252&'D.1 Prod + AH + Verbrauch'!$A$34&"-"&'D.1 Prod + AH + Verbrauch'!$A$38 -> Ø 2006-2010 | G14: ='D.1 Prod + AH + Verbrauch'!$A$49 -> 2021 | H14: ='D.1 Prod + AH + Verbrauch'!$A$50 -> 2022 | I14: =Codierung!$I$237&" "&E14 -> %-∆ Ø 2001-2005 | J14: =Codierung!$I$237&" "&F14 -> %-∆ Ø 2006-2010 | K14: =Codierung!$I$233 -> %-∆ Vorjahr
A16: =Codierung!$I$27 -> Bevölkerung | C16: =Codierung!$I$38 -> Ø-Bevölkerung inkl. Tourismus und Grenzgänger (2) | D16: =Codierung!$I$225 -> in Anz. Personen | E16: =AVERAGE('D.1 Prod + AH + Verbrauch'!$B$29:$B$33) -> 7508000 | F16: =AVERAGE('D.1 Prod + AH + Verbrauch'!$B$34:$B$38) -> 7812000 | G16: ='D.1 Prod + AH + Verbrauch'!$B$49 -> 8800000 | H16: ='D.1 Prod + AH + Verbrauch'!$B$50 -> 8910000 | I16: =IFERROR((H16-E16)/E16*100,"-") -> 18.67341502 | J16: =IFERROR((H16-F16)/F16*100,"-") -> 14.05529954 | K16: =IFERROR((H16-G16)/G16*100,"-") -> 1.25
J17: =IFERROR((H17-F17)/F17*100,"-") -> -
A18: =Codierung!$I$28 -> Schaleneier | B18: =Codierung!$I$32 -> Inland | C18: =Codierung!$I$39 -> Produktion Total | D18: =Codierung!$I$222 -> in Mio. Stück | E18: =AVERAGE('D.1 Prod + AH + Verbrauch'!$C$29:$C$33) -> 676.4392 | F18: =AVERAGE('D.1 Prod + AH + Verbrauch'!$C$34:$C$38) -> 698.945 | G18: ='D.1 Prod + AH + Verbrauch'!$C$49 -> 1145.384 | H18: ='D.1 Prod + AH + Verbrauch'!$C$50 -> 1134.735 | I18: =IFERROR((H18-E18)/E18*100,"-") -> 67.75121844 | J18: 62.34968417 | K18: =IFERROR((H18-G18)/G18*100,"-") -> -0.9297318629
B19: =Codierung!$I$33 -> Import (abzügl. Exporte und Rückwaren) | C19: =Codierung!$I$40 -> Konsumeier | D19: In Mio. Stück | E19: =AVERAGE('D.1 Prod + AH + Verbrauch'!$D$29:$D$33) -> 228.8168038 | F19: =AVERAGE('D.1 Prod + AH + Verbrauch'!$D$34:$D$38) -> 247.377008 | G19: ='D.1 Prod + AH + Verbrauch'!$D$49 -> 284.6370672 | H19: ='D.1 Prod + AH + Verbrauch'!$D$50 -> 256.2070189 | I19: =IFERROR((H19-E19)/E19*100,"-") -> 11.97036869 | J19: 3.569454943 | K19: =IFERROR((H19-G19)/G19*100,"-") -> -9.988174975
C20: =Codierung!$I$41 -> Verarbeitungseier | D20: =Codierung!$I$222 -> in Mio. Stück | E20: =AVERAGE('D.1 Prod + AH + Verbrauch'!$E$29:$E$33) -> 198.183928 | F20: =AVERAGE('D.1 Prod + AH + Verbrauch'!$E$34:$E$38) -> 254.4168556 | G20: ='D.1 Prod + AH + Verbrauch'!$E$49 -> 126.4489395 | H20: ='D.1 Prod + AH + Verbrauch'!$E$50 -> 94.1639492 | I20: =IFERROR((H20-E20)/E20*100,"-") -> -52.48658651 | J20: -62.98832128 | K20: =IFERROR((H20-G20)/G20*100,"-") -> -25.53203724
C21: =Codierung!$I$36 -> Total | D21: =Codierung!$I$222 -> in Mio. Stück | E21: =AVERAGE('D.1 Prod + AH + Verbrauch'!$F$29:$F$33) -> 427.0007319 | F21: =AVERAGE('D.1 Prod + AH + Verbrauch'!$F$34:$F$38) -> 501.7938636 | G21: ='D.1 Prod + AH + Verbrauch'!$F$49 -> 411.0860067 | H21: ='D.1 Prod + AH + Verbrauch'!$F$50 -> 350.3709681 | I21: =IFERROR((H21-E21)/E21*100,"-") -> -17.94604976 | J21: -30.17631472 | K21: =IFERROR((H21-G21)/G21*100,"-") -> -14.76942481
A23: =Codierung!$I$29 -> Eiprodukte (5) | B23: =Codierung!$I$32 -> Inland | C23: =Codierung!$I$42 -> Verarbeitung CH-Eier zu Eiprodukten (3) | D23: =Codierung!$I$222 -> in Mio. Stück | E23: =AVERAGE('D.1 Prod + AH + Verbrauch'!$G$29:$G$33) -> 23 | F23: =AVERAGE('D.1 Prod + AH + Verbrauch'!$G$34:$G$38) -> 32 | G23: ='D.1 Prod + AH + Verbrauch'!$G$49 -> 134.7139964 | H23: ='D.1 Prod + AH + Verbrauch'!$G$50 -> 161.8772216 | I23: =IFERROR((H23-E23)/E23*100,"-") -> 603.814007 | J23: =IFERROR((H23-F23)/F23*100,"-") -> 405.8663176 | K23: =IFERROR((H23-G23)/G23*100,"-") -> 20.16362516
B24: =Codierung!$I$33 -> Import (abzügl. Exporte und Rückwaren) | C24: =Codierung!$I$43 -> Eiprodukte flüssig | D24: =Codierung!$I$222 -> in Mio. Stück | E24: =AVERAGE('D.1 Prod + AH + Verbrauch'!$H$29:$H$33) -> 170.4832183 | F24: =AVERAGE('D.1 Prod + AH + Verbrauch'!$H$34:$H$38) -> 106.6172543 | G24: ='D.1 Prod + AH + Verbrauch'!$H$49 -> 124.0530572 | H24: ='D.1 Prod + AH + Verbrauch'!$H$50 -> 129.4145274 | I24: =IFERROR((H24-E24)/E24*100,"-") -> -24.08957977 | J24: =IFERROR((H24-F24)/F24*100,"-") -> 21.38234876 | K24: =IFERROR((H24-G24)/G24*100,"-") -> 4.321917021
C25: =Codierung!$I$44 -> Eiprodukte getrocknet | D25: =Codierung!$I$222 -> in Mio. Stück | E25: =AVERAGE('D.1 Prod + AH + Verbrauch'!$I$29:$I$33) -> 57.607528 | F25: =AVERAGE('D.1 Prod + AH + Verbrauch'!$I$34:$I$38) -> 59.931632 | G25: ='D.1 Prod + AH + Verbrauch'!$I$49 -> 36.92581912 | H25: ='D.1 Prod + AH + Verbrauch'!$I$50 -> 39.50150304 | I25: =IFERROR((H25-E25)/E25*100,"-") -> -31.42996339 | J25: =IFERROR((H25-F25)/F25*100,"-") -> -34.08905828 | K25: =IFERROR((H25-G25)/G25*100,"-") -> 6.975292577
C26: =Codierung!$I$41 -> Verarbeitungseier | D26: =Codierung!$I$222 -> in Mio. Stück | E26: =AVERAGE('D.1 Prod + AH + Verbrauch'!$J$29:$J$33) -> 198.183928 | F26: =AVERAGE('D.1 Prod + AH + Verbrauch'!$J$34:$J$38) -> 254.4168556 | G26: ='D.1 Prod + AH + Verbrauch'!$J$49 -> 126.4489395 | H26: ='D.1 Prod + AH + Verbrauch'!$J$50 -> 94.1639492 | I26: =IFERROR((H26-E26)/E26*100,"-") -> -52.48658651 | J26: =IFERROR((H26-F26)/F26*100,"-") -> -62.98832128 | K26: =IFERROR((H26-G26)/G26*100,"-") -> -25.53203724
A28: =Codierung!$I$30 -> Verbrauch Inland | B28: =Codierung!$I$34 -> Schaleneier (exkl. Verarbeitungseier) | C28: =Codierung!$I$32 -> Inland | D28: =Codierung!$I$222 -> in Mio. Stück | E28: =AVERAGE('D.1 Prod + AH + Verbrauch'!$K$29:$K$33) -> 653.4392 | F28: =AVERAGE('D.1 Prod + AH + Verbrauch'!$K$34:$K$38) -> 666.945 | G28: ='D.1 Prod + AH + Verbrauch'!$K$49 -> 1010.670004 | H28: ='D.1 Prod + AH + Verbrauch'!$K$50 -> 972.8577784 | I28: =IFERROR((H28-E28)/E28*100,"-") -> 48.88267774 | J28: =IFERROR((H28-F28)/F28*100,"-") -> 45.86776696 | K28: =IFERROR((H28-G28)/G28*100,"-") -> -3.741302811
C29: =Codierung!$I$45 -> Import | D29: =Codierung!$I$222 -> in Mio. Stück | E29: =AVERAGE('D.1 Prod + AH + Verbrauch'!$L$29:$L$33) -> 228.8168038 | F29: =AVERAGE('D.1 Prod + AH + Verbrauch'!$L$34:$L$38) -> 247.377008 | G29: ='D.1 Prod + AH + Verbrauch'!$L$49 -> 284.6370672 | H29: ='D.1 Prod + AH + Verbrauch'!$L$50 -> 256.2070189 | I29: 11.97036869 | J29: 3.569454943 | K29: -9.988174975
C30: =Codierung!$I$36 -> Total | D30: =Codierung!$I$222 -> in Mio. Stück | E30: =AVERAGE('D.1 Prod + AH + Verbrauch'!$M$29:$M$33) -> 882.2560038 | F30: =AVERAGE('D.1 Prod + AH + Verbrauch'!$M$34:$M$38) -> 914.322008 | G30: ='D.1 Prod + AH + Verbrauch'!$M$49 -> 1295.307071 | H30: ='D.1 Prod + AH + Verbrauch'!$M$50 -> 1229.064797 | I30: 39.3093152 | J30: 34.42362608 | K30: -5.114020842
C31: =Codierung!$I$46 -> Anteil Inland | D31: =Codierung!$I$224 -> in % | E31: =AVERAGE('D.1 Prod + AH + Verbrauch'!$N$29:$N$33) -> 0.7404920686 | F31: =AVERAGE('D.1 Prod + AH + Verbrauch'!$N$34:$N$38) -> 0.7294113333 | G31: ='D.1 Prod + AH + Verbrauch'!$N$49 -> 0.7802551429 | H31: ='D.1 Prod + AH + Verbrauch'!$N$50 -> 0.7915431152 | I31: 6.894205718 | J31: 8.518071903 | K31: 1.446702709
C32: =Codierung!$I$47 -> Anteil Import | D32: =Codierung!$I$224 -> in % | E32: =AVERAGE('D.1 Prod + AH + Verbrauch'!$O$29:$O$33) -> 0.2595079314 | F32: =AVERAGE('D.1 Prod + AH + Verbrauch'!$O$34:$O$38) -> 0.2705886667 | G32: ='D.1 Prod + AH + Verbrauch'!$O$49 -> 0.2197448571 | H32: ='D.1 Prod + AH + Verbrauch'!$O$50 -> 0.2084568848 | I32: -19.67224904 | J32: -22.96170886 | K32: -5.136853912
B33: =Codierung!$I$35 -> Eiprodukte (inkl. Verarbeitungseier) | C33: =Codierung!$I$48 -> Inland (3) | D33: =Codierung!$I$222 -> in Mio. Stück | E33: =AVERAGE('D.1 Prod + AH + Verbrauch'!$P$29:$P$33) -> 23 | F33: =AVERAGE('D.1 Prod + AH + Verbrauch'!$P$34:$P$38) -> 32 | G33: ='D.1 Prod + AH + Verbrauch'!$P$49 -> 134.7139964 | H33: ='D.1 Prod + AH + Verbrauch'!$P$50 -> 161.8772216 | I33: 603.814007 | J33: 405.8663176 | K33: 20.16362516
C34: =Codierung!$I$45 -> Import | D34: =Codierung!$I$222 -> in Mio. Stück | E34: =AVERAGE('D.1 Prod + AH + Verbrauch'!$Q$29:$Q$33) -> 426.2746743 | F34: =AVERAGE('D.1 Prod + AH + Verbrauch'!$Q$34:$Q$38) -> 420.9657418 | G34: ='D.1 Prod + AH + Verbrauch'!$Q$49 -> 287.4278159 | H34: ='D.1 Prod + AH + Verbrauch'!$Q$50 -> 263.0799797 | I34: -38.28392923 | J34: -37.50560829 | K34: -8.470939442
C35: =Codierung!$I$36 -> Total | D35: =Codierung!$I$222 -> in Mio. Stück | E35: =AVERAGE('D.1 Prod + AH + Verbrauch'!$R$29:$R$33) -> 449.2746743 | F35: =AVERAGE('D.1 Prod + AH + Verbrauch'!$R$34:$R$38) -> 452.9657418 | G35: ='D.1 Prod + AH + Verbrauch'!$R$49 -> 422.1418122 | H35: ='D.1 Prod + AH + Verbrauch'!$R$50 -> 424.9572013 | I35: -5.412607126 | J35: -6.183368403 | K35: 0.66692968
C36: =Codierung!$I$46 -> Anteil Inland | D36: =Codierung!$I$224 -> in % | E36: =AVERAGE('D.1 Prod + AH + Verbrauch'!$S$29:$S$33) -> 0.05167833113 | F36: =AVERAGE('D.1 Prod + AH + Verbrauch'!$S$34:$S$38) -> 0.07053938319 | G36: ='D.1 Prod + AH + Verbrauch'!$S$49 -> 0.3191202398 | H36: ='D.1 Prod + AH + Verbrauch'!$S$50 -> 0.3809259406 | I36: 637.1096014 | J36: 440.0188142 | K36: 19.36752769
C37: =Codierung!$I$47 -> Anteil Import | D37: =Codierung!$I$224 -> in % | E37: =AVERAGE('D.1 Prod + AH + Verbrauch'!$T$29:$T$33) -> 0.9483216689 | F37: =AVERAGE('D.1 Prod + AH + Verbrauch'!$T$34:$T$38) -> 0.9294606168 | G37: ='D.1 Prod + AH + Verbrauch'!$T$49 -> 0.6808797602 | H37: ='D.1 Prod + AH + Verbrauch'!$T$50 -> 0.6190740594 | I37: -34.71897989 | J37: -33.39426672 | K37: -9.077329716
B38: =Codierung!$I$36 -> Total | D38: =Codierung!$I$222 -> in Mio. Stück | E38: =AVERAGE('D.1 Prod + AH + Verbrauch'!$U$29:$U$33) -> 1331.530678 | F38: =AVERAGE('D.1 Prod + AH + Verbrauch'!$U$34:$U$38) -> 1367.28775 | G38: ='D.1 Prod + AH + Verbrauch'!$U$49 -> 1717.448883 | H38: ='D.1 Prod + AH + Verbrauch'!$U$50 -> 1654.021999 | I38: 24.21959371 | J38: 20.97102447 | K38: -3.693087181
C39: =Codierung!$I$46 -> Anteil Inland | D39: =Codierung!$I$224 -> in % | E39: =AVERAGE('D.1 Prod + AH + Verbrauch'!$V$29:$V$33) -> 0.5082035752 | F39: =AVERAGE('D.1 Prod + AH + Verbrauch'!$V$34:$V$38) -> 0.5110712775 | G39: ='D.1 Prod + AH + Verbrauch'!$V$49 -> 0.6669100963 | H39: ='D.1 Prod + AH + Verbrauch'!$V$50 -> 0.6860458936 | I39: 34.99430683 | J39: 34.23683227 | K39: 2.869321876
C40: =Codierung!$I$47 -> Anteil Import | D40: =Codierung!$I$224 -> in % | E40: =AVERAGE('D.1 Prod + AH + Verbrauch'!$W$29:$W$33) -> 0.4917964248 | F40: =AVERAGE('D.1 Prod + AH + Verbrauch'!$W$34:$W$38) -> 0.4889287225 | G40: ='D.1 Prod + AH + Verbrauch'!$W$49 -> 0.3330899037 | H40: ='D.1 Prod + AH + Verbrauch'!$W$50 -> 0.3139541064 | I40: -36.16177537 | J40: -35.7873465 | K40: -5.744934649
A42: =Codierung!$I$31 -> Pro-Kopf-Verbrauch | B42: =Codierung!$I$36 -> Total | C42: =Codierung!$I$32 -> Inland | D42: =Codierung!$I$223 -> in Stück / Kopf | E42: =AVERAGE('D.1 Prod + AH + Verbrauch'!$X$29:$X$33) -> 90.12005256 | F42: =AVERAGE('D.1 Prod + AH + Verbrauch'!$X$34:$X$38) -> 89.43087879 | G42: ='D.1 Prod + AH + Verbrauch'!$X$49 -> 130.1572727 | H42: ='D.1 Prod + AH + Verbrauch'!$X$50 -> 127.3552189 | I42: =IFERROR((H42-E42)/E42*100,"-") -> 41.31729314 | J42: =IFERROR((H42-F42)/F42*100,"-") -> 42.40631488 | K42: =IFERROR((H42-G42)/G42*100,"-") -> -2.152821593
C43: =Codierung!$I$45 -> Import | D43: =Codierung!$I$223 -> in Stück / Kopf | E43: =AVERAGE('D.1 Prod + AH + Verbrauch'!$Y$29:$Y$33) -> 87.29191496 | F43: =AVERAGE('D.1 Prod + AH + Verbrauch'!$Y$34:$Y$38) -> 85.53433436 | G43: ='D.1 Prod + AH + Verbrauch'!$Y$49 -> 65.00737308 | H43: ='D.1 Prod + AH + Verbrauch'!$Y$50 -> 58.28136908 | I43: -33.23394371 | J43: -31.86201831 | K43: -10.34652482
C44: =Codierung!$I$36 -> Total | D44: =Codierung!$I$223 -> in Stück / Kopf | E44: =AVERAGE('D.1 Prod + AH + Verbrauch'!$Z$29:$Z$33) -> 177.4119675 | F44: =AVERAGE('D.1 Prod + AH + Verbrauch'!$Z$34:$Z$38) -> 174.9652131 | G44: ='D.1 Prod + AH + Verbrauch'!$Z$49 -> 195.1646458 | H44: ='D.1 Prod + AH + Verbrauch'!$Z$50 -> 185.6365879 | I44: 4.635888173 | J44: 6.09914085 | K44: -4.882061413
B45: =Codierung!$I$28 -> Schaleneier | C45: =Codierung!$I$32 -> Inland | D45: =Codierung!$I$223 -> in Stück / Kopf | E45: =AVERAGE('D.1 Prod + AH + Verbrauch'!$AA$29:$AA$33) -> 87.06072413 | F45: =AVERAGE('D.1 Prod + AH + Verbrauch'!$AA$34:$AA$38) -> 85.33884178 | G45: ='D.1 Prod + AH + Verbrauch'!$AA$49 -> 114.8488641 | H45: ='D.1 Prod + AH + Verbrauch'!$AA$50 -> 109.1871805 | I45: 25.41496939 | J45: 27.94546801 | K45: -4.929681789
C46: =Codierung!$I$45 -> Import | D46: =Codierung!$I$223 -> in Stück / Kopf | E46: =AVERAGE('D.1 Prod + AH + Verbrauch'!$AB$29:$AB$33) -> 30.4786576 | F46: =AVERAGE('D.1 Prod + AH + Verbrauch'!$AB$34:$AB$38) -> 31.65448645 | G46: ='D.1 Prod + AH + Verbrauch'!$AB$49 -> 32.34512127 | H46: ='D.1 Prod + AH + Verbrauch'!$AB$50 -> 28.75499651 | I46: -5.655305152 | J46: -9.159807236 | K46: -11.09943207
C47: =Codierung!$I$36 -> Total | D47: =Codierung!$I$223 -> in Stück / Kopf | E47: =AVERAGE('D.1 Prod + AH + Verbrauch'!$AC$29:$AC$33) -> 117.5393817 | F47: =AVERAGE('D.1 Prod + AH + Verbrauch'!$AC$34:$AC$38) -> 116.9933282 | G47: ='D.1 Prod + AH + Verbrauch'!$AC$49 -> 147.1939853 | H47: ='D.1 Prod + AH + Verbrauch'!$AC$50 -> 137.942177 | I47: 17.35826324 | J47: 17.90602003 | K47: -6.285452684
B48: =Codierung!$I$37 -> Eiprodukte | C48: =Codierung!$I$32 -> Inland | D48: =Codierung!$I$223 -> in Stück / Kopf | E48: =AVERAGE('D.1 Prod + AH + Verbrauch'!$AD$29:$AD$33) -> 3.059328429 | F48: =AVERAGE('D.1 Prod + AH + Verbrauch'!$AD$34:$AD$38) -> 4.092037011 | G48: ='D.1 Prod + AH + Verbrauch'!$AD$49 -> 15.30840868 | H48: ='D.1 Prod + AH + Verbrauch'!$AD$50 -> 18.16803834 | I48: 493.8570755 | J48: 343.985191 | K48: 18.68012361
C49: =Codierung!$I$45 -> Import | D49: =Codierung!$I$223 -> in Stück / Kopf | E49: =AVERAGE('D.1 Prod + AH + Verbrauch'!$AE$29:$AE$33) -> 56.81325736 | F49: =AVERAGE('D.1 Prod + AH + Verbrauch'!$AE$34:$AE$38) -> 53.87984791 | G49: ='D.1 Prod + AH + Verbrauch'!$AE$49 -> 32.6622518 | H49: ='D.1 Prod + AH + Verbrauch'!$AE$50 -> 29.52637258 | I49: -48.02907992 | J49: -45.19959925 | K49: -9.600927844
C50: =Codierung!$I$36 -> Total | D50: =Codierung!$I$223 -> in Stück / Kopf | E50: =AVERAGE('D.1 Prod + AH + Verbrauch'!$AF$29:$AF$33) -> 59.87258579 | F50: =AVERAGE('D.1 Prod + AH + Verbrauch'!$AF$34:$AF$38) -> 57.97188492 | G50: ='D.1 Prod + AH + Verbrauch'!$AF$49 -> 47.97066048 | H50: ='D.1 Prod + AH + Verbrauch'!$AF$50 -> 47.69441092 | I50: -20.34015186 | J50: -17.72837646 | K50: -0.575871921

Sheet 2.1 Imp.n.H.
F1: =Codierung!I184 -> Eidgenössisches Departement für Wirtschaft, Bildung und Forschung WBF
F2: =Codierung!I185 -> Bundesamt für Landwirtschaft BLW
F3: =Codierung!I186 -> Fachbereich Marktanalysen
F5: =Codierung!I242 -> Anmerkungen:
A6: =Codierung!$I$171 -> Importe nach Herkunft | F6: =Codierung!I251 -> Umrechnungsfaktoren: Eiprodukte getrocknet 80 Eier / kg; Eiprodukte flüssig 20.58 Eier / kg; Schaleneier 16.6 Eier / kg
A7: =Codierung!$I$222 -> in Mio. Stück | F7: =Codierung!I258 -> Importe ohne Veredelungsverkehr, inklusive Rückwaren
A8: =Codierung!$I$206 -> Quellen: BLW, Fachbereich Marktanalysen; EZV | F8: =Codierung!$I$256 -> Aufbereitete Grafiken unterhalb der Datentabellen
A9: =Codierung!I215 -> Publikationsrecht: Weiterverarbeitung und Publikation unter Quellenangabe gestattet.
A11: =Codierung!$I$154 -> Zurück zum Inhaltsverzeichnis
C13: =Codierung!$I$252&'D.2.1 Imp.n.H.'!$A$16&"-"&'D.2.1 Imp.n.H.'!$A$19 -> Ø 2002-2005 | D13: =Codierung!$I$252&'D.2.1 Imp.n.H.'!$A$20&"-"&'D.2.1 Imp.n.H.'!$A$24 -> Ø 2006-2010 | E13: ='D.2.1 Imp.n.H.'!$A$35 -> 2021 | F13: ='D.2.1 Imp.n.H.'!$A$36 -> 2022 | G13: =Codierung!$I$237&" "&C13 -> %-∆ Ø 2002-2005 | H13: =Codierung!$I$237&" "&D13 -> %-∆ Ø 2006-2010 | I13: =Codierung!$I$234 -> %-∆ VM
A15: =Codierung!$I$40 -> Konsumeier | B15: =Codierung!$I$198 -> Niederlande | C15: =IFERROR(AVERAGE('D.2.1 Imp.n.H.'!$B$16:$B$19),"-") -> 53.9334415 | D15: =IFERROR(AVERAGE('D.2.1 Imp.n.H.'!$B$20:$B$24),"-") -> 115.1207875 | E15: =IFERROR('D.2.1 Imp.n.H.'!$B$35,"-") -> 173.2358811 | F15: =IFERROR('D.2.1 Imp.n.H.'!$B$36,"-") -> 209.7513348 | G15: =IFERROR((F15-C15)/C15*100,"-") -> 288.9077518 | H15: =IFERROR((F15-D15)/D15*100,"-") -> 82.20109447 | I15: =IFERROR((F15-E15)/E15*100,"-") -> 21.07845877
B16: =Codierung!$I$188 -> Deutschland | C16: =IFERROR(AVERAGE('D.2.1 Imp.n.H.'!$C$16:$C$19),"-") -> 83.89203835 | D16: =IFERROR(AVERAGE('D.2.1 Imp.n.H.'!$C$20:$C$24),"-") -> 46.52616792 | E16: =IFERROR('D.2.1 Imp.n.H.'!$C$35,"-") -> 67.609912 | F16: =IFERROR('D.2.1 Imp.n.H.'!$C$36,"-") -> 17.48590722 | G16: =IFERROR((F16-C16)/C16*100,"-") -> -79.15665471 | H16: =IFERROR((F16-D16)/D16*100,"-") -> -62.41704829 | I16: =IFERROR((F16-E16)/E16*100,"-") -> -74.13706555
B17: =Codierung!$I$189 -> Frankreich | C17: =IFERROR(AVERAGE('D.2.1 Imp.n.H.'!$D$16:$D$19),"-") -> 78.396488 | D17: =IFERROR(AVERAGE('D.2.1 Imp.n.H.'!$D$20:$D$24),"-") -> 73.33253184 | E17: =IFERROR('D.2.1 Imp.n.H.'!$D$35,"-") -> 21.46993524 | F17: =IFERROR('D.2.1 Imp.n.H.'!$D$36,"-") -> 21.14231872 | G17: -73.03154865 | H17: -71.16925027 | I17: -1.525931575
B18: =Codierung!$I$200 -> Polen | C18: =IFERROR(AVERAGE('D.2.1 Imp.n.H.'!$E$16:$E$19),"-") -> 1.67719345 | D18: =IFERROR(AVERAGE('D.2.1 Imp.n.H.'!$E$20:$E$24),"-") -> 0 | E18: =IFERROR('D.2.1 Imp.n.H.'!$E$35,"-") -> 7.12186148 | F18: =IFERROR('D.2.1 Imp.n.H.'!$E$36,"-") -> 2.520947712 | G18: 50.30750997 | H18: - | I18: -64.60268542
B19: =Codierung!$I$191 -> Italien | C19: =IFERROR(AVERAGE('D.2.1 Imp.n.H.'!$F$16:$F$19),"-") -> 1.97943795 | D19: =IFERROR(AVERAGE('D.2.1 Imp.n.H.'!$F$20:$F$24),"-") -> 7.70445508 | E19: =IFERROR('D.2.1 Imp.n.H.'!$F$35,"-") -> 1.665371793 | F19: =IFERROR('D.2.1 Imp.n.H.'!$F$36,"-") -> 1.510184618 | G19: =IFERROR((F19-C19)/C19*100,"-") -> -23.70639261 | H19: =IFERROR((F19-D19)/D19*100,"-") -> -80.39855379 | I19: =IFERROR((F19-E19)/E19*100,"-") -> -9.318470244
B20: =Codierung!$I$202 -> Rest | C20: =IFERROR(AVERAGE('D.2.1 Imp.n.H.'!$G$16:$G$19),"-") -> 8.30700105 | D20: =IFERROR(AVERAGE('D.2.1 Imp.n.H.'!$G$20:$G$24),"-") -> 1.45501656 | E20: =IFERROR('D.2.1 Imp.n.H.'!$G$35,"-") -> 15.28606951 | F20: =IFERROR('D.2.1 Imp.n.H.'!$G$36,"-") -> 12.490065 | G20: 50.35588561 | H20: 758.4139411 | I20: -18.29119326
A22: =Codierung!$I$41 -> Verarbeitungseier | B22: =Codierung!$I$198 -> Niederlande | C22: =IFERROR(AVERAGE('D.2.1 Imp.n.H.'!$H$16:$H$19),"-") -> 41.44492535 | D22: =IFERROR(AVERAGE('D.2.1 Imp.n.H.'!$H$20:$H$24),"-") -> 75.5078722 | E22: =IFERROR('D.2.1 Imp.n.H.'!$H$35,"-") -> 68.59445194 | F22: =IFERROR('D.2.1 Imp.n.H.'!$H$36,"-") -> 52.8228932 | G22: =IFERROR((F22-C22)/C22*100,"-") -> 27.45322317 | H22: =IFERROR((F22-D22)/D22*100,"-") -> -30.04319727 | I22: =IFERROR((F22-E22)/E22*100,"-") -> -22.99246994
B23: =Codierung!$I$188 -> Deutschland | C23: =IFERROR(AVERAGE('D.2.1 Imp.n.H.'!$I$16:$I$19),"-") -> 70.86271495 | D23: =IFERROR(AVERAGE('D.2.1 Imp.n.H.'!$I$20:$I$24),"-") -> 113.0195529 | E23: =IFERROR('D.2.1 Imp.n.H.'!$I$35,"-") -> 21.2982062 | F23: =IFERROR('D.2.1 Imp.n.H.'!$I$36,"-") -> 17.2842266 | G23: -75.60885634 | H23: -84.70687048 | I23: =IFERROR((F23-E23)/E23*100,"-") -> -18.84656183
B24: =Codierung!$I$201 -> Bulgarien | C24: =IFERROR(AVERAGE('D.2.1 Imp.n.H.'!$J$16:$J$19),"-") -> 36.77065585 | D24: =IFERROR(AVERAGE('D.2.1 Imp.n.H.'!$J$20:$J$24),"-") -> 20.98259588 | E24: =IFERROR('D.2.1 Imp.n.H.'!$J$35,"-") -> 20.37773995 | F24: =IFERROR('D.2.1 Imp.n.H.'!$J$36,"-") -> 5.781680732 | G24: -84.27637311 | H24: -72.44535059 | I24: =IFERROR((F24-E24)/E24*100,"-") -> -71.62746828
B25: =Codierung!$I$189 -> Frankreich | C25: =IFERROR(AVERAGE('D.2.1 Imp.n.H.'!$K$16:$K$19),"-") -> 10.1117489 | D25: =IFERROR(AVERAGE('D.2.1 Imp.n.H.'!$K$20:$K$24),"-") -> 20.82492576 | E25: =IFERROR('D.2.1 Imp.n.H.'!$K$35,"-") -> 0.1297456 | F25: =IFERROR('D.2.1 Imp.n.H.'!$K$36,"-") -> 0 | G25: -100 | H25: -100 | I25: =IFERROR((F25-E25)/E25*100,"-") -> -100
B26: =Codierung!$I$200 -> Polen | C26: =IFERROR(AVERAGE('D.2.1 Imp.n.H.'!$L$16:$L$19),"-") -> 10.03740027 | D26: =IFERROR(AVERAGE('D.2.1 Imp.n.H.'!$L$20:$L$24),"-") -> 9.563630733 | E26: =IFERROR('D.2.1 Imp.n.H.'!$L$35,"-") -> 0 | F26: =IFERROR('D.2.1 Imp.n.H.'!$L$36,"-") -> 0.3331288 | G26: -96.68112468 | H26: -96.51671202 | I26: =IFERROR((F26-E26)/E26*100,"-") -> -
B27: =Codierung!$I$202 -> Rest | C27: =IFERROR(AVERAGE('D.2.1 Imp.n.H.'!$M$16:$M$19),"-") -> 33.9225648 | D27: =IFERROR(AVERAGE('D.2.1 Imp.n.H.'!$M$20:$M$24),"-") -> 18.3437304 | E27: =IFERROR('D.2.1 Imp.n.H.'!$M$35,"-") -> 16.04879584 | F27: =IFERROR('D.2.1 Imp.n.H.'!$M$36,"-") -> 17.94201986 | G27: -47.10889354 | H27: -2.189906465 | I27: 11.79667336
A29: =Codierung!$I$37 -> Eiprodukte | B29: =Codierung!$I$198 -> Niederlande | C29: =IFERROR(AVERAGE('D.2.1 Imp.n.H.'!$N$16:$N$19),"-") -> 94.46394376 | D29: =IFERROR(AVERAGE('D.2.1 Imp.n.H.'!$N$20:$N$24),"-") -> 94.38961918 | E29: =IFERROR('D.2.1 Imp.n.H.'!$N$35,"-") -> 83.42701766 | F29: =IFERROR('D.2.1 Imp.n.H.'!$N$36,"-") -> 89.1961055 | G29: =IFERROR((F29-C29)/C29*100,"-") -> -5.576559743 | H29: =IFERROR((F29-D29)/D29*100,"-") -> -5.502208531 | I29: =IFERROR((F29-E29)/E29*100,"-") -> 6.915131333
B30: =Codierung!$I$188 -> Deutschland | C30: =IFERROR(AVERAGE('D.2.1 Imp.n.H.'!$O$16:$O$19),"-") -> 54.05226279 | D30: =IFERROR(AVERAGE('D.2.1 Imp.n.H.'!$O$20:$O$24),"-") -> 27.75026073 | E30: =IFERROR('D.2.1 Imp.n.H.'!$O$35,"-") -> 44.041593 | F30: =IFERROR('D.2.1 Imp.n.H.'!$O$36,"-") -> 48.63949535 | G30: -10.01395162 | H30: 75.27581386 | I30: 10.43990927
B31: =Codierung!$I$191 -> Italien | C31: =IFERROR(AVERAGE('D.2.1 Imp.n.H.'!$P$16:$P$19),"-") -> 17.87956688 | D31: =IFERROR(AVERAGE('D.2.1 Imp.n.H.'!$P$20:$P$24),"-") -> 15.18418079 | E31: =IFERROR('D.2.1 Imp.n.H.'!$P$35,"-") -> 10.05407829 | F31: =IFERROR('D.2.1 Imp.n.H.'!$P$36,"-") -> 6.27988397 | G31: -64.8767556 | H31: -58.64193099 | I31: -37.53893903
B32: =Codierung!$I$199 -> Belgien | C32: =IFERROR(AVERAGE('D.2.1 Imp.n.H.'!$Q$16:$Q$19),"-") -> 4.73966924 | D32: =IFERROR(AVERAGE('D.2.1 Imp.n.H.'!$Q$20:$Q$24),"-") -> 7.188484036 | E32: =IFERROR('D.2.1 Imp.n.H.'!$Q$35,"-") -> 7.093583178 | F32: =IFERROR('D.2.1 Imp.n.H.'!$Q$36,"-") -> 8.289448247 | G32: 74.89507869 | H32: 15.31566607 | I32: 16.85840623
B33: =Codierung!$I$189 -> Frankreich | C33: =IFERROR(AVERAGE('D.2.1 Imp.n.H.'!$R$16:$R$19),"-") -> 26.83724453 | D33: =IFERROR(AVERAGE('D.2.1 Imp.n.H.'!$R$20:$R$24),"-") -> 8.626057184 | E33: =IFERROR('D.2.1 Imp.n.H.'!$R$35,"-") -> 12.30479053 | F33: =IFERROR('D.2.1 Imp.n.H.'!$R$36,"-") -> 12.89757237 | G33: =IFERROR((F34-C34)/C34*100,"-") -> -62.46373027 | H33: =IFERROR((F34-D34)/D34*100,"-") -> -60.45577923 | I33: =IFERROR((F34-E34)/E34*100,"-") -> -6.374559967
B34: =Codierung!$I$202 -> Rest | C34: =IFERROR(AVERAGE('D.2.1 Imp.n.H.'!$S$16:$S$19),"-") -> 14.25923497 | D34: =IFERROR(AVERAGE('D.2.1 Imp.n.H.'!$S$20:$S$24),"-") -> 13.53518869 | E34: =IFERROR('D.2.1 Imp.n.H.'!$S$35,"-") -> 5.716806133 | F34: =IFERROR('D.2.1 Imp.n.H.'!$S$36,"-") -> 5.352384898 | G34: -62.46373027 | H34: -60.45577923 | I34: -6.374559967
A36: =Codierung!$I$49 -> Bruteier | B36: =Codierung!$I$189 -> Frankreich | C36: =IFERROR(AVERAGE('D.2.1 Imp.n.H.'!$T$16:$T$19),"-") -> 5.55565065 | D36: =IFERROR(AVERAGE('D.2.1 Imp.n.H.'!$T$20:$T$24),"-") -> 13.61428084 | E36: =IFERROR('D.2.1 Imp.n.H.'!$T$35,"-") -> 14.34691918 | F36: =IFERROR('D.2.1 Imp.n.H.'!$T$36,"-") -> 14.2677664 | G36: =IFERROR((F36-C36)/C36*100,"-") -> 156.8153993 | H36: =IFERROR((F36-D36)/D36*100,"-") -> 4.800000585 | I36: =IFERROR((F36-E36)/E36*100,"-") -> -0.5517057912
B37: =Codierung!$I$188 -> Deutschland | C37: =IFERROR(AVERAGE('D.2.1 Imp.n.H.'!$U$16:$U$19),"-") -> 1.2037822 | D37: =IFERROR(AVERAGE('D.2.1 Imp.n.H.'!$U$20:$U$24),"-") -> 0.7096832 | E37: =IFERROR('D.2.1 Imp.n.H.'!$U$35,"-") -> 13.7313618 | F37: =IFERROR('D.2.1 Imp.n.H.'!$U$36,"-") -> 13.96567678 | G37: 1060.149799 | H37: 1867.874789 | I37: 1.70642198
B38: =Codierung!$I$192 -> Dänemark | C38: =IFERROR(AVERAGE('D.2.1 Imp.n.H.'!$V$16:$V$19),"-") -> - | D38: =IFERROR(AVERAGE('D.2.1 Imp.n.H.'!$V$20:$V$24),"-") -> 2.244331067 | E38: =IFERROR('D.2.1 Imp.n.H.'!$V$35,"-") -> 13.4965968 | F38: =IFERROR('D.2.1 Imp.n.H.'!$V$36,"-") -> 13.6295296 | G38: - | H38: 507.2869463 | I38: 0.9849356988
B39: =Codierung!$I$198 -> Niederlande | C39: =IFERROR(AVERAGE('D.2.1 Imp.n.H.'!$W$16:$W$19),"-") -> 0.4571695333 | D39: =IFERROR(AVERAGE('D.2.1 Imp.n.H.'!$W$20:$W$24),"-") -> 8.35024156 | E39: =IFERROR('D.2.1 Imp.n.H.'!$W$35,"-") -> 5.0290945 | F39: =IFERROR('D.2.1 Imp.n.H.'!$W$36,"-") -> 6.2320716 | G39: 1263.186115 | H39: -25.36657107 | I39: 23.92035186
B40: =Codierung!$I$190 -> Österreich | C40: =IFERROR(AVERAGE('D.2.1 Imp.n.H.'!$X$16:$X$19),"-") -> - | D40: =IFERROR(AVERAGE('D.2.1 Imp.n.H.'!$X$20:$X$24),"-") -> - | E40: =IFERROR('D.2.1 Imp.n.H.'!$X$35,"-") ->  | F40: =IFERROR('D.2.1 Imp.n.H.'!$X$36,"-") -> 0.4961906 | G40: - | H40: - | I40: -
B41: =Codierung!$I$202 -> Rest | C41: =IFERROR(AVERAGE('D.2.1 Imp.n.H.'!$Y$16:$Y$19),"-") -> 0.0656364 | D41: =IFERROR(AVERAGE('D.2.1 Imp.n.H.'!$Y$20:$Y$24),"-") -> 0.1025658667 | E41: =IFERROR('D.2.1 Imp.n.H.'!$Y$35,"-") -> 0.12781336 | F41: =IFERROR('D.2.1 Imp.n.H.'!$Y$36,"-") -> 0.129435678 | G41: =IFERROR((F41-C41)/C41*100,"-") -> 97.20106222 | H41: =IFERROR((F41-D41)/D41*100,"-") -> 26.19761545 | I41: =IFERROR((F41-E41)/E41*100,"-") -> 1.269286716

Sheet 2.2 Imp.n.Kont.
F1: =Codierung!I184 -> Eidgenössisches Departement für Wirtschaft, Bildung und Forschung WBF
F2: =Codierung!I185 -> Bundesamt für Landwirtschaft BLW
F3: =Codierung!I186 -> Fachbereich Marktanalysen
F5: =Codierung!I242 -> Anmerkungen:
A6: =Codierung!$I$172 -> Auslastung der Importkontingente | F6: =Codierung!I259 -> Die Zollkontingente beziehen sich auf Brutto-Mengen
A7: =Codierung!$I$219 -> in Tonnen | E7: (2) | F7: =Codierung!I380 -> Das BLW hat auf Anträgen der Branche das Kontingent für Konsumeierimporte um insgesamt 3'500 Tonnen erhöht infolge der hohen Nachfrage nach Schaleneiern wegen des vermehrten pandemiebedingten Konsums zu Hause
A8: =Codierung!$I$224 -> in % | E8: (3) | F8: =Codierung!I381 -> Die Überschreitung der Kontingentsmenge ist möglich.
A9: =Codierung!$I$206 -> Quellen: BLW, Fachbereich Marktanalysen; EZV
A10: =Codierung!I215 -> Publikationsrecht: Weiterverarbeitung und Publikation unter Quellenangabe gestattet. | F10: =Codierung!$I$256 -> Aufbereitete Grafiken unterhalb der Datentabellen
A12: =Codierung!$I$154 -> Zurück zum Inhaltsverzeichnis
C14: =Codierung!$I$252&'D.2.2 Imp.n.Kont.'!$A$16&"-"&'D.2.2 Imp.n.Kont.'!$A$19 -> Ø 2002-2005 | D14: =Codierung!$I$252&'D.2.2 Imp.n.Kont.'!$A$20&"-"&'D.2.2 Imp.n.Kont.'!$A$24 -> Ø 2006-2010 | E14: ='D.2.2 Imp.n.Kont.'!$A$35 -> (2) 2021 | F14: ='D.2.2 Imp.n.Kont.'!$A$36 -> 2022 | G14: =Codierung!$I$237&" "&C14 -> %-∆ Ø 2002-2005 | H14: =Codierung!$I$237&" "&D14 -> %-∆ Ø 2006-2010 | I14: =Codierung!$I$233 -> %-∆ Vorjahr
A16: =Codierung!$I$40 -> Konsumeier | B16: =Codierung!$I$50 -> Kontingentsmenge | C16: =IFERROR(AVERAGE('D.2.2 Imp.n.Kont.'!$B$16:$B$19),"-") -> 18678 | D16: =IFERROR(AVERAGE('D.2.2 Imp.n.Kont.'!$B$20:$B$24),"-") -> 16628 | E16: =IFERROR('D.2.2 Imp.n.Kont.'!$B$35,"-") -> 20928 | F16: =IFERROR('D.2.2 Imp.n.Kont.'!$B$36,"-") -> 17428 | G16: =IFERROR((F16-C16)/C16*100,"-") -> -6.69236535 | H16: =IFERROR((F16-D16)/D16*100,"-") -> 4.811161896 | I16: =IFERROR((F16-E16)/E16*100,"-") -> -16.72400612
B17: =Codierung!$I$51 -> Zugeteilte / Eingeführte Menge | C17: =IFERROR(AVERAGE('D.2.2 Imp.n.Kont.'!$C$16:$C$19),"-") -> 14687.38925 | D17: =IFERROR(AVERAGE('D.2.2 Imp.n.Kont.'!$C$20:$C$24),"-") -> 16055.21609 | E17: =IFERROR('D.2.2 Imp.n.Kont.'!$C$35,"-") -> 19057.52 | F17: =IFERROR('D.2.2 Imp.n.Kont.'!$C$36,"-") -> 17428 | G17: =IFERROR((F17-C17)/C17*100,"-") -> 18.65961815 | H17: =IFERROR((F17-D17)/D17*100,"-") -> 8.550391973 | I17: =IFERROR((F17-E17)/E17*100,"-") -> -8.550535432
B18: =Codierung!$I$52 -> Auslastung | C18: =IFERROR(AVERAGE('D.2.2 Imp.n.Kont.'!$D$16:$D$19),"-") -> 0.7912128623 | D18: =IFERROR(AVERAGE('D.2.2 Imp.n.Kont.'!$D$20:$D$24),"-") -> 0.9658952984 | E18: =IFERROR('D.2.2 Imp.n.Kont.'!$D$35,"-") -> 0.9106230887 | F18: =IFERROR('D.2.2 Imp.n.Kont.'!$D$36,"-") -> 1 | G18: =IFERROR((F18-C18)/C18*100,"-") -> 26.38823857 | H18: =IFERROR((F18-D18)/D18*100,"-") -> 3.530890111 | I18: =IFERROR((F18-E18)/E18*100,"-") -> 9.814918206
A20: =Codierung!$I$41 -> Verarbeitungseier | B20: =Codierung!$I$50 -> Kontingentsmenge | C20: =IFERROR(AVERAGE('D.2.2 Imp.n.Kont.'!$E$16:$E$19),"-") -> 15057 | D20: =IFERROR(AVERAGE('D.2.2 Imp.n.Kont.'!$E$20:$E$24),"-") -> 17907 | E20: =IFERROR('D.2.2 Imp.n.Kont.'!$E$35,"-") -> 16307 | F20: =IFERROR('D.2.2 Imp.n.Kont.'!$E$36,"-") -> 16307 | G20: =IFERROR((F20-C20)/C20*100,"-") -> 8.301786544 | H20: =IFERROR((F20-D20)/D20*100,"-") -> -8.935053331 | I20: =IFERROR((F20-E20)/E20*100,"-") -> 0
B21: =Codierung!$I$51 -> Zugeteilte / Eingeführte Menge | C21: =IFERROR(AVERAGE('D.2.2 Imp.n.Kont.'!$F$16:$F$19),"-") -> 12674.56925 | D21: =IFERROR(AVERAGE('D.2.2 Imp.n.Kont.'!$F$20:$F$24),"-") -> 16213.1266 | E21: =IFERROR('D.2.2 Imp.n.Kont.'!$F$35,"-") -> 8906.09 | F21: =IFERROR('D.2.2 Imp.n.Kont.'!$F$36,"-") -> 6345.2159 | G21: =IFERROR((F21-C21)/C21*100,"-") -> -49.93742371 | H21: =IFERROR((F21-D21)/D21*100,"-") -> -60.86371212 | I21: =IFERROR((F21-E21)/E21*100,"-") -> -28.75419067
B22: =Codierung!$I$52 -> Auslastung | C22: =IFERROR(AVERAGE('D.2.2 Imp.n.Kont.'!$G$16:$G$19),"-") -> 0.8442906839 | D22: =IFERROR(AVERAGE('D.2.2 Imp.n.Kont.'!$G$20:$G$24),"-") -> 0.9062624578 | E22: =IFERROR('D.2.2 Imp.n.Kont.'!$G$35,"-") -> 0.546151346 | F22: =IFERROR('D.2.2 Imp.n.Kont.'!$G$36,"-") -> 0.3891099466 | G22: =IFERROR((F22-C22)/C22*100,"-") -> -53.91279875 | H22: =IFERROR((F22-D22)/D22*100,"-") -> -57.06432024 | I22: =IFERROR((F22-E22)/E22*100,"-") -> -28.75419067
A24: =Codierung!$I$44 -> Eiprodukte getrocknet | B24: =Codierung!$I$50 -> Kontingentsmenge | C24: =IFERROR(AVERAGE('D.2.2 Imp.n.Kont.'!$H$16:$H$19),"-") -> 977 | D24: =IFERROR(AVERAGE('D.2.2 Imp.n.Kont.'!$H$20:$H$24),"-") -> 977 | E24: =IFERROR('D.2.2 Imp.n.Kont.'!$H$35,"-") -> 977 | F24: =IFERROR('D.2.2 Imp.n.Kont.'!$H$36,"-") -> 977 | G24: =IFERROR((F24-C24)/C24*100,"-") -> 0 | H24: =IFERROR((F24-D24)/D24*100,"-") -> 0 | I24: =IFERROR((F24-E24)/E24*100,"-") -> 0
B25: =Codierung!$I$51 -> Zugeteilte / Eingeführte Menge | C25: =IFERROR(AVERAGE('D.2.2 Imp.n.Kont.'!$I$16:$I$19),"-") -> 738.964 | D25: =IFERROR(AVERAGE('D.2.2 Imp.n.Kont.'!$I$20:$I$24),"-") -> 761.2124 | E25: =IFERROR('D.2.2 Imp.n.Kont.'!$I$35,"-") -> 481.666 | F25: =IFERROR('D.2.2 Imp.n.Kont.'!$I$36,"-") -> 680.23 | G25: =IFERROR((F25-C25)/C25*100,"-") -> -7.948154443 | H25: =IFERROR((F25-D25)/D25*100,"-") -> -10.63860757 | I25: =IFERROR((F25-E25)/E25*100,"-") -> 41.22441692
B26: =Codierung!$I$52 -> Auslastung | C26: =IFERROR(AVERAGE('D.2.2 Imp.n.Kont.'!$J$16:$J$19),"-") -> 0.7563602866 | D26: =IFERROR(AVERAGE('D.2.2 Imp.n.Kont.'!$J$20:$J$24),"-") -> 0.7791324463 | E26: =IFERROR('D.2.2 Imp.n.Kont.'!$J$35,"-") -> 0.4930051177 | F26: =IFERROR('D.2.2 Imp.n.Kont.'!$J$36,"-") -> 0.6962436029 | G26: =IFERROR((F26-C26)/C26*100,"-") -> -7.948154443 | H26: =IFERROR((F26-D26)/D26*100,"-") -> -10.63860757 | I26: =IFERROR((F26-E26)/E26*100,"-") -> 41.22441692
A28: =Codierung!$I$43 -> Eiprodukte flüssig | B28: =Codierung!$I$50 -> Kontingentsmenge | C28: =IFERROR(AVERAGE('D.2.2 Imp.n.Kont.'!$K$16:$K$19),"-") -> 6866 | D28: =IFERROR(AVERAGE('D.2.2 Imp.n.Kont.'!$K$20:$K$24),"-") -> 6866 | E28: =IFERROR('D.2.2 Imp.n.Kont.'!$K$35,"-") -> 6866 | F28: =IFERROR('D.2.2 Imp.n.Kont.'!$K$36,"-") -> 6866 | G28: =IFERROR((F28-C28)/C28*100,"-") -> 0 | H28: =IFERROR((F28-D28)/D28*100,"-") -> 0 | I28: =IFERROR((F28-E28)/E28*100,"-") -> 0
B29: =Codierung!$I$51 -> Zugeteilte / Eingeführte Menge | C29: =IFERROR(AVERAGE('D.2.2 Imp.n.Kont.'!$L$16:$L$19),"-") -> 7960.76275 | D29: =IFERROR(AVERAGE('D.2.2 Imp.n.Kont.'!$L$20:$L$24),"-") -> 5484.6172 | E29: =IFERROR('D.2.2 Imp.n.Kont.'!$L$35,"-") -> 6625.422 | F29: =IFERROR('D.2.2 Imp.n.Kont.'!$L$36,"-") -> 10294.4752 | G29: =IFERROR((F29-C29)/C29*100,"-") -> 29.31518654 | H29: =IFERROR((F29-D29)/D29*100,"-") -> 87.69724166 | I29: =IFERROR((F29-E29)/E29*100,"-") -> 55.37840759
B30: =Codierung!$I$52 -> Auslastung | C30: =IFERROR(AVERAGE('D.2.2 Imp.n.Kont.'!$M$16:$M$19),"-") -> 1.159446949 | D30: =IFERROR(AVERAGE('D.2.2 Imp.n.Kont.'!$M$20:$M$24),"-") -> 0.7988082144 | E30: =IFERROR('D.2.2 Imp.n.Kont.'!$M$35,"-") -> 0.9649609671 | F30: =IFERROR('D.2.2 Imp.n.Kont.'!$M$36,"-") -> 1.499340985 | G30: =IFERROR((F30-C30)/C30*100,"-") -> 29.31518654 | H30: =IFERROR((F30-D30)/D30*100,"-") -> 87.69724166 | I30: 55.37840759

Sheet 2.3 aVV
F1: =Codierung!I184 -> Eidgenössisches Departement für Wirtschaft, Bildung und Forschung WBF
F2: =Codierung!I185 -> Bundesamt für Landwirtschaft BLW
F3: =Codierung!I186 -> Fachbereich Marktanalysen
F5: =Codierung!I242 -> Anmerkungen:
A6: =Codierung!$I$174 -> Aktiver Veredelungsverkehr (ohne Produkte für technische Zwecke) | F6: =Codierung!I251 -> Umrechnungsfaktoren: Eiprodukte getrocknet 80 Eier / kg; Eiprodukte flüssig 20.58 Eier / kg; Schaleneier 16.6 Eier / kg
A7: =Codierung!$I$222 -> in Mio. Stück
A8: =Codierung!$I$206 -> Quellen: BLW, Fachbereich Marktanalysen; EZV
A9: =Codierung!I215 -> Publikationsrecht: Weiterverarbeitung und Publikation unter Quellenangabe gestattet.
A11: =Codierung!$I$154 -> Zurück zum Inhaltsverzeichnis
A12: =Codierung!$I$253 -> Informationen zur Methodik | D12: =Codierung!$I$252&'D.2.3 aVV'!$A$16&"-"&'D.2.3 aVV'!$A$19 -> Ø 2002-2005 | E12: =Codierung!$I$252&'D.2.3 aVV'!$A$20&"-"&'D.2.3 aVV'!$A$24 -> Ø 2006-2010 | F12: ='D.2.3 aVV'!$A$35 -> 2021 | G12: ='D.2.3 aVV'!$A$36 -> 2022 | H12: =Codierung!$I$237&" "&D12 -> %-∆ Ø 2002-2005 | I12: =Codierung!$I$237&" "&E12 -> %-∆ Ø 2006-2010 | J12: =Codierung!$I$233 -> %-∆ Vorjahr
A14: =Codierung!$I$45 -> Import | B14: =Codierung!$I$28 -> Schaleneier | C14: =Codierung!$I$40 -> Konsumeier | D14: =IFERROR(AVERAGE('D.2.3 aVV'!$B$16:$B$19),"-") -> - | E14: =IFERROR(AVERAGE('D.2.3 aVV'!$B$20:$B$24),"-") -> - | F14: =IFERROR('D.2.3 aVV'!$B$35,"-") -> 8.9673864 | G14: =IFERROR('D.2.3 aVV'!$B$36,"-") -> 3.261402 | H14: =IFERROR((G14-D14)/D14*100,"-") -> - | I14: =IFERROR((G14-E14)/E14*100,"-") -> - | J14: =IFERROR((G14-F14)/F14*100,"-") -> -63.63040629
C15: =Codierung!$I$41 -> Verarbeitungseier | D15: =IFERROR(AVERAGE('D.2.3 aVV'!$C$16:$C$19),"-") -> 3.34982605 | E15: =IFERROR(AVERAGE('D.2.3 aVV'!$C$20:$C$24),"-") -> 17.33704996 | F15: =IFERROR('D.2.3 aVV'!$C$35,"-") -> - | G15: =IFERROR('D.2.3 aVV'!$C$36,"-") -> - | H15: - | I15: =IFERROR((G15-E15)/E15*100,"-") -> - | J15: =IFERROR((G15-F15)/F15*100,"-") -> -
C16: =Codierung!$I$36 -> Total | D16: =IFERROR(AVERAGE('D.2.3 aVV'!$D$16:$D$19),"-") -> 3.34982605 | E16: =IFERROR(AVERAGE('D.2.3 aVV'!$D$20:$D$24),"-") -> 17.33704996 | F16: =IFERROR('D.2.3 aVV'!$D$35,"-") -> 8.9673864 | G16: =IFERROR('D.2.3 aVV'!$D$36,"-") -> 3.261402 | H16: -2.639660946 | I16: -81.18825286 | J16: -63.63040629
B17: =Codierung!$I$37 -> Eiprodukte | C17: =Codierung!$I$43 -> Eiprodukte flüssig | D17: =IFERROR(AVERAGE('D.2.3 aVV'!$E$16:$E$19),"-") -> 53.07274329 | E17: =IFERROR(AVERAGE('D.2.3 aVV'!$E$20:$E$24),"-") -> 34.71286224 | F17: =IFERROR('D.2.3 aVV'!$E$35,"-") -> 42.42593754 | G17: =IFERROR('D.2.3 aVV'!$E$36,"-") -> 39.81415032 | H17: -24.98192509 | I17: 14.69567115 | J17: -6.156109615
C18: =Codierung!$I$44 -> Eiprodukte getrocknet | D18: =IFERROR(AVERAGE('D.2.3 aVV'!$F$16:$F$19),"-") -> 45.10338 | E18: =IFERROR(AVERAGE('D.2.3 aVV'!$F$20:$F$24),"-") -> 53.479024 | F18: =IFERROR('D.2.3 aVV'!$F$35,"-") -> 10.066 | G18: =IFERROR('D.2.3 aVV'!$F$36,"-") -> 8.256 | H18: -81.69538514 | I18: -84.56217152 | J18: -17.98132327
C19: =Codierung!$I$36 -> Total | D19: =IFERROR(AVERAGE('D.2.3 aVV'!$G$16:$G$19),"-") -> 98.17612329 | E19: =IFERROR(AVERAGE('D.2.3 aVV'!$G$20:$G$24),"-") -> 88.19188624 | F19: =IFERROR('D.2.3 aVV'!$G$35,"-") -> 52.49193754 | G19: =IFERROR('D.2.3 aVV'!$G$36,"-") -> 48.07015032 | H19: -51.03682167 | I19: -45.4936816 | J19: -8.423745488
B20: =Codierung!$I$36 -> Total | D20: =IFERROR(AVERAGE('D.2.3 aVV'!$H$16:$H$19),"-") -> 101.5259493 | E20: =IFERROR(AVERAGE('D.2.3 aVV'!$H$20:$H$24),"-") -> 105.5289362 | F20: =IFERROR('D.2.3 aVV'!$H$35,"-") -> 61.45932394 | G20: =IFERROR('D.2.3 aVV'!$H$36,"-") -> 51.33155232 | H20: -49.43996815 | I20: -51.35784159 | J20: -16.47882041
A21: =Codierung!$I$54 -> Re-Export | B21: =Codierung!$I$28 -> Schaleneier | C21: =Codierung!$I$40 -> Konsumeier | D21: =IFERROR(AVERAGE('D.2.3 aVV'!$I$16:$I$19),"-") -> - | E21: =IFERROR(AVERAGE('D.2.3 aVV'!$I$20:$I$24),"-") -> 0.1075348 | F21: =IFERROR('D.2.3 aVV'!$I$35,"-") -> 0.015189 | G21: =IFERROR('D.2.3 aVV'!$I$36,"-") -> - | H21: - | I21: - | J21: -
C22: =Codierung!$I$41 -> Verarbeitungseier | D22: =IFERROR(AVERAGE('D.2.3 aVV'!$J$16:$J$19),"-") -> - | E22: =IFERROR(AVERAGE('D.2.3 aVV'!$J$20:$J$24),"-") -> - | F22: =IFERROR('D.2.3 aVV'!$J$35,"-") -> - | G22: =IFERROR('D.2.3 aVV'!$J$36,"-") -> - | H22: - | I22: - | J22: -
C23: =Codierung!$I$36 -> Total | D23: =IFERROR(AVERAGE('D.2.3 aVV'!$K$16:$K$19),"-") -> - | E23: =IFERROR(AVERAGE('D.2.3 aVV'!$K$20:$K$24),"-") -> 0.1075348 | F23: =IFERROR('D.2.3 aVV'!$K$35,"-") -> 0.015189 | G23: =IFERROR('D.2.3 aVV'!$K$36,"-") -> - | H23: - | I23: - | J23: -
B24: =Codierung!$I$37 -> Eiprodukte | C24: =Codierung!$I$43 -> Eiprodukte flüssig | D24: =IFERROR(AVERAGE('D.2.3 aVV'!$L$16:$L$19),"-") -> 0.21716016 | E24: =IFERROR(AVERAGE('D.2.3 aVV'!$L$20:$L$24),"-") -> 1.851364452 | F24: =IFERROR('D.2.3 aVV'!$L$35,"-") -> 3.64635411 | G24: =IFERROR('D.2.3 aVV'!$L$36,"-") -> 5.02166406 | H24: 2212.424185 | I24: 171.2412488 | J24: 37.71739959
C25: =Codierung!$I$44 -> Eiprodukte getrocknet | D25: =IFERROR(AVERAGE('D.2.3 aVV'!$M$16:$M$19),"-") -> - | E25: =IFERROR(AVERAGE('D.2.3 aVV'!$M$20:$M$24),"-") -> 0.326432 | F25: =IFERROR('D.2.3 aVV'!$M$35,"-") -> - | G25: =IFERROR('D.2.3 aVV'!$M$36,"-") -> - | H25: - | I25: - | J25: -
C26: =Codierung!$I$36 -> Total | D26: =IFERROR(AVERAGE('D.2.3 aVV'!$N$16:$N$19),"-") -> 0.21716016 | E26: =IFERROR(AVERAGE('D.2.3 aVV'!$N$20:$N$24),"-") -> 2.177796452 | F26: =IFERROR('D.2.3 aVV'!$N$35,"-") -> 3.64635411 | G26: =IFERROR('D.2.3 aVV'!$N$36,"-") -> 5.02166406 | H26: 2212.424185 | I26: 130.5846378 | J26: 37.71739959
B27: =Codierung!$I$36 -> Total | D27: =IFERROR(AVERAGE('D.2.3 aVV'!$O$16:$O$19),"-") -> 0.21716016 | E27: =IFERROR(AVERAGE('D.2.3 aVV'!$O$20:$O$24),"-") -> 2.220810372 | F27: =IFERROR('D.2.3 aVV'!$O$35,"-") -> 3.66154311 | G27: =IFERROR('D.2.3 aVV'!$O$36,"-") -> 5.02166406 | H27: 2212.424185 | I27: 126.1185432 | J27: 37.14611324

Sheet 2.4 Imp. LM (hidden)
F1: =Codierung!I184 -> Eidgenössisches Departement für Wirtschaft, Bildung und Forschung WBF
F2: =Codierung!I185 -> Bundesamt für Landwirtschaft BLW
F3: =Codierung!I186 -> Fachbereich Marktanalysen
A5: =Codierung!$I$157 -> "Versteckte" Eierimporte in Lebensmittelzubereitungen
A6: =Codierung!$I$222 -> in Mio. Stück
A7: =Codierung!$I$224 -> in %
A8: =Codierung!$I$223 -> in Stück / Kopf
A9: =Codierung!$I$210 -> Quellen: BLW, Fachbereich Marktanalysen; SBV; EZV; Aviforum
A10: =Codierung!$I$215 -> Publikationsrecht: Weiterverarbeitung und Publikation unter Quellenangabe gestattet.
A11: =Codierung!$I$154 -> Zurück zum Inhaltsverzeichnis

Sheet 3. MEM
F1: =Codierung!I184 -> Eidgenössisches Departement für Wirtschaft, Bildung und Forschung WBF
F2: =Codierung!I185 -> Bundesamt für Landwirtschaft BLW
F3: =Codierung!I186 -> Fachbereich Marktanalysen
A6: =Codierung!I173 -> Marktentlastungsmassnahmen | F6: =Codierung!I242 -> Anmerkungen:
A7: =Codierung!$I$220 -> in Stück | F7: =Codierung!I256 -> Aufbereitete Grafiken unterhalb der Datentabellen
A8: =Codierung!$I$221 -> in CHF | E8: (1) | F8: =Codierung!I247 -> Deckelung der ausbezahlten Mittel (rot markiert); Kürzung der Beiträge je Ei
A9: =Codierung!$I$217 -> in CHF / Ei
A10: =Codierung!I205 -> Quellen: BLW, Fachbereich Marktanalysen
A11: =Codierung!I215 -> Publikationsrecht: Weiterverarbeitung und Publikation unter Quellenangabe gestattet.
A13: =Codierung!$I$154 -> Zurück zum Inhaltsverzeichnis
A14: =Codierung!$I$253 -> Informationen zur Methodik | D14: =Codierung!$I$252&'D.3 MEM'!$A$18&"-"&'D.3 MEM'!$A$22 -> Ø 2001-2005 | E14: =Codierung!$I$252&'D.3 MEM'!$A$23&"-"&'D.3 MEM'!$A$27 -> Ø 2006-2010 | F14: ='D.3 MEM'!$A$38 -> (1) 2021 | G14: ='D.3 MEM'!$A$39 -> (1) 2022 | H14: =Codierung!$I$237&" "&D14 -> %-∆ Ø 2001-2005 | I14: =Codierung!$I$237&" "&E14 -> %-∆ Ø 2006-2010 | J14: =Codierung!$I$233 -> %-∆ Vorjahr
A16: =Codierung!$I$55 -> Aufschlagsaktion | B16: =Codierung!$I$60 -> Beitrag | C16: =Codierung!$I$217 -> in CHF / Ei | D16: =IFERROR(AVERAGE('D.3 MEM'!$B$18:$B$22),"-") -> 0.089 | E16: =IFERROR(AVERAGE('D.3 MEM'!$B$23:$B$27),"-") -> 0.08896029651 | F16: =IFERROR('D.3 MEM'!$B$38,"-") -> 0.05395226023 | G16: =IFERROR('D.3 MEM'!$B$39,"-") -> 0.03434353388 | H16: =IFERROR((G16-D16)/D16*100,"-") -> -61.41175968 | I16: =IFERROR((G16-E16)/E16*100,"-") -> -61.39453753 | J16: =IFERROR((G16-F16)/F16*100,"-") -> -36.34458736
C17: =Codierung!$I$220 -> in Stück | D17: =IFERROR(AVERAGE('D.3 MEM'!$C$18:$C$22),"-") -> 15469106.8 | E17: =IFERROR(AVERAGE('D.3 MEM'!$C$23:$C$27),"-") -> 12038883.6 | F17: =IFERROR('D.3 MEM'!$C$38,"-") -> 27802357 | G17: =IFERROR('D.3 MEM'!$C$39,"-") -> 43676344 | H17: =IFERROR((G17-D17)/D17*100,"-") -> 182.3456103 | I17: =IFERROR((G17-E17)/E17*100,"-") -> 262.793972 | J17: =IFERROR((G17-F17)/F17*100,"-") -> 57.09583184
A19: =Codierung!$I$56 -> Verbilligungsaktion | B19: =Codierung!$I$60 -> Beitrag | C19: =Codierung!$I$217 -> in CHF / Ei | D19: =IFERROR(AVERAGE('D.3 MEM'!$D$18:$D$22),"-") -> 0.05 | E19: =IFERROR(AVERAGE('D.3 MEM'!$D$23:$D$27),"-") -> 0.04870335654 | F19: =IFERROR('D.3 MEM'!$D$38,"-") -> 0.03975175822 | G19: =IFERROR('D.3 MEM'!$D$39,"-") -> 0.04153124711 | H19: =IFERROR((G19-D19)/D19*100,"-") -> -16.93750577 | I19: =IFERROR((G19-E19)/E19*100,"-") -> -14.72610911 | J19: 4.476503614
C20: =Codierung!$I$220 -> in Stück | D20: =IFERROR(AVERAGE('D.3 MEM'!$E$18:$E$22),"-") -> 11547350.4 | E20: =IFERROR(AVERAGE('D.3 MEM'!$E$23:$E$27),"-") -> 13906887.2 | F20: =IFERROR('D.3 MEM'!$E$38,"-") -> 12578060 | G20: =IFERROR('D.3 MEM'!$E$39,"-") -> 12039128 | H20: =IFERROR((G20-D20)/D20*100,"-") -> 4.258791696 | I20: -13.43046199 | J20: -4.284698912
A22: =Codierung!$I$57 -> Eingesetzte Mittel | B22: =Codierung!$I$55 -> Aufschlagsaktion | C22: =Codierung!$I$221 -> in CHF | D22: =IFERROR(AVERAGE('D.3 MEM'!$F$18:$F$22),"-") -> 1384366.568 | E22: =IFERROR(AVERAGE('D.3 MEM'!$F$23:$F$27),"-") -> 1065108.864 | F22: =IFERROR('D.3 MEM'!$F$38,"-") -> 1500000 | G22: =IFERROR('D.3 MEM'!$F$39,"-") -> 1500000 | H22: =IFERROR((G22-D22)/D22*100,"-") -> 8.352804429 | I22: 40.83067475 | J22: -6.208817164e-14
B23: =Codierung!$I$56 -> Verbilligungsaktion | C23: =Codierung!$I$221 -> in CHF | D23: =IFERROR(AVERAGE('D.3 MEM'!$G$18:$G$22),"-") -> 577367.52 | E23: =IFERROR(AVERAGE('D.3 MEM'!$G$23:$G$27),"-") -> 680446.16 | F23: =IFERROR('D.3 MEM'!$G$38,"-") -> 500000 | G23: =IFERROR('D.3 MEM'!$G$39,"-") -> 500000 | H23: =IFERROR((G23-D23)/D23*100,"-") -> -13.40004717 | I23: -26.51880055 | J23: -4.656612873e-14
B24: =Codierung!$I$36 -> Total | C24: =Codierung!$I$221 -> in CHF | D24: =IFERROR(AVERAGE('D.3 MEM'!$H$18:$H$22),"-") -> 1961734.088 | E24: =IFERROR(AVERAGE('D.3 MEM'!$H$23:$H$27),"-") -> 1745555.024 | F24: =IFERROR('D.3 MEM'!$H$38,"-") -> 2000000 | G24: =IFERROR('D.3 MEM'!$H$39,"-") -> 2000000 | H24: =IFERROR((G24-D24)/D24*100,"-") -> 1.950616663 | I24: 14.57673763 | J24: -5.820766091e-14
A26: =Codierung!$I$58 -> Maximal zur Verfügung stehende Bundesmittel | B26: =Codierung!$I$55 -> Aufschlagsaktion | C26: =Codierung!$I$221 -> in CHF | D26: =IFERROR(AVERAGE('D.3 MEM'!$I$18:$I$22),"-") -> - | E26: - | F26: =IFERROR('D.3 MEM'!$I$38,"-") -> 1500000 | G26: =IFERROR('D.3 MEM'!$I$39,"-") -> 1500000 | H26: =IFERROR((G26-D26)/D26*100,"-") -> - | I26: - | J26: =IFERROR((G26-F26)/F26*100,"-") -> 0
B27: =Codierung!$I$56 -> Verbilligungsaktion | C27: =Codierung!$I$221 -> in CHF | D27: =IFERROR(AVERAGE('D.3 MEM'!$J$18:$J$22),"-") -> - | E27: - | F27: =IFERROR('D.3 MEM'!$J$38,"-") -> 500000 | G27: =IFERROR('D.3 MEM'!$J$39,"-") -> 500000 | H27: =IFERROR((G27-D27)/D27*100,"-") -> - | I27: - | J27: =IFERROR((G27-F27)/F27*100,"-") -> 0
B28: =Codierung!$I$36 -> Total | C28: =Codierung!$I$221 -> in CHF | D28: =IFERROR(AVERAGE('D.3 MEM'!$K$18:$K$22),"-") -> 2900000 | E28: =IFERROR(AVERAGE('D.3 MEM'!$K$23:$K$27),"-") -> 2463000 | F28: =IFERROR('D.3 MEM'!$K$38,"-") -> 2000000 | G28: =IFERROR('D.3 MEM'!$K$39,"-") -> 2000000 | H28: =IFERROR((G28-D28)/D28*100,"-") -> -31.03448276 | I28: -18.79821356 | J28: 0
A30: =Codierung!$I$59 -> Auslastung Mittel | D30: =IFERROR(AVERAGE('D.3 MEM'!$L$18:$L$22),"-") -> 0.6684821125 | E30: =IFERROR(AVERAGE('D.3 MEM'!$L$23:$L$27),"-") -> 0.7301877995 | F30: =IFERROR('D.3 MEM'!$L$38,"-") -> 1 | G30: =IFERROR('D.3 MEM'!$L$39,"-") -> 1 | H30: =IFERROR((G30-D30)/D30*100,"-") -> 49.59263401 | I30: 36.9510694 | J30: -6.661338148e-14
A32: =Codierung!$I$61 -> Anteil betroffene Eier an Inlandproduktion | D32: =IFERROR(AVERAGE('D.3 MEM'!$M$18:$M$22),"-") -> 0.03996842481 | E32: =IFERROR(AVERAGE('D.3 MEM'!$M$23:$M$27),"-") -> 0.03708140493 | F32: =IFERROR('D.3 MEM'!$M$38,"-") -> 0.03525491626 | G32: =IFERROR('D.3 MEM'!$M$39,"-") -> 0.04909998546 | H32: =IFERROR((G32-D32)/D32*100,"-") -> 22.84693654 | I32: =IFERROR((G32-E32)/E32*100,"-") -> 32.41134081 | J32: =IFERROR((G32-F32)/F32*100,"-") -> 39.27131497

Sheet 4. PP
G1: =Codierung!I184 -> Eidgenössisches Departement für Wirtschaft, Bildung und Forschung WBF
G2: =Codierung!I185 -> Bundesamt für Landwirtschaft BLW
G3: =Codierung!I186 -> Fachbereich Marktanalysen
A6: =Codierung!I175 -> Produzenten- und Importpreise | G6: =Codierung!$I$242 -> Anmerkungen:
A7: =Codierung!I217 -> in CHF / Ei | G7: (1) | H7: =Codierung!I248 -> Erweiterung der Datenerhebungen bei den Sammelstellen
A8: =Codierung!$I$206 -> Quellen: BLW, Fachbereich Marktanalysen; EZV | H8: =Codierung!$I$238 -> Daten Import
A9: =Codierung!I215 -> Publikationsrecht: Weiterverarbeitung und Publikation unter Quellenangabe gestattet. | H9: =Codierung!$I$256 -> Aufbereitete Grafiken unterhalb der Datentabellen
A11: =Codierung!$I$154 -> Zurück zum Inhaltsverzeichnis
A12: =Codierung!$I$253 -> Informationen zur Methodik | C12: =Codierung!$I$252&'D.4 PP'!$A$15&"-"&'D.4 PP'!$A$19 -> Ø 2001-2005 | D12: =Codierung!$I$252&'D.4 PP'!$A$20&"-"&'D.4 PP'!$A$24 -> Ø 2006-2010 | E12: ='D.4 PP'!$A$35 -> 2021 | F12: ='D.4 PP'!$A$36 -> 2022 | G12: =Codierung!$I$237&" "&C12 -> %-∆ Ø 2001-2005 | H12: =Codierung!$I$237&" "&D12 -> %-∆ Ø 2006-2010 | I12: =Codierung!$I$233 -> %-∆ Vorjahr
A14: =Codierung!$I$9 -> Bio | B14: < 50 g | C14: =IFERROR(AVERAGE('D.4 PP'!$B$15:$B$19),"-") -> - | D14: =IFERROR(AVERAGE('D.4 PP'!$B$20:$B$24),"-") -> - | E14: =IFERROR('D.4 PP'!$B$35,"-") -> 0.1067586086 | F14: =IFERROR('D.4 PP'!$B$36,"-") -> 0.1075676102 | G14: =IFERROR((F14-C14)/C14*100,"-") -> - | H14: =IFERROR((F14-D14)/D14*100,"-") -> - | I14: =IFERROR((F14-E14)/E14*100,"-") -> 0.7577857834
B15: 50 - 53 g | C15: =IFERROR(AVERAGE('D.4 PP'!$C$15:$C$19),"-") -> - | D15: =IFERROR(AVERAGE('D.4 PP'!$C$20:$C$24),"-") -> - | E15: =IFERROR('D.4 PP'!$C$35,"-") -> 0.1944471778 | F15: =IFERROR('D.4 PP'!$C$36,"-") -> 0.198895671 | G15: =IFERROR((F15-C15)/C15*100,"-") -> - | H15: =IFERROR((F15-D15)/D15*100,"-") -> - | I15: 2.28776433
B16: > 53 g | C16: =IFERROR(AVERAGE('D.4 PP'!$D$15:$D$19),"-") -> - | D16: =IFERROR(AVERAGE('D.4 PP'!$D$20:$D$24),"-") -> - | E16: =IFERROR('D.4 PP'!$D$35,"-") -> 0.46891314 | F16: =IFERROR('D.4 PP'!$D$36,"-") -> 0.4784892938 | G16: =IFERROR((F16-C16)/C16*100,"-") -> - | H16: - | I16: =IFERROR((F16-E16)/E16*100,"-") -> 2.042202059
B17: =Codierung!$I$65 -> 2. Klasse | C17: =IFERROR(AVERAGE('D.4 PP'!$E$15:$E$19),"-") -> 0.2007512738 | D17: =IFERROR(AVERAGE('D.4 PP'!$E$20:$E$24),"-") -> 0.1444687488 | E17: =IFERROR('D.4 PP'!$E$35,"-") -> 0.0903320627 | F17: =IFERROR('D.4 PP'!$E$36,"-") -> 0.1057355878 | G17: =IFERROR((F17-C17)/C17*100,"-") -> -47.33005384 | H17: -26.81075406 | I17: 17.05211271
B18: =Codierung!$I$64 -> Gewichteter Mittelwert | C18: =IFERROR(AVERAGE('D.4 PP'!$F$15:$F$19),"-") -> 0.3962590747 | D18: =IFERROR(AVERAGE('D.4 PP'!$F$20:$F$24),"-") -> 0.3980156857 | E18: =IFERROR('D.4 PP'!$F$35,"-") -> 0.4312070782 | F18: =IFERROR('D.4 PP'!$F$36,"-") -> 0.4418980808 | G18: =IFERROR((F18-C18)/C18*100,"-") -> 11.51746647 | H18: 11.02529289 | I18: 2.479319825
A20: =Codierung!$I$10 -> Bodenhaltung | B20: < 50 g | C20: =IFERROR(AVERAGE('D.4 PP'!$G$15:$G$19),"-") -> - | D20: =IFERROR(AVERAGE('D.4 PP'!$G$20:$G$24),"-") -> - | E20: =IFERROR('D.4 PP'!$G$35,"-") -> 0.05026301711 | F20: =IFERROR('D.4 PP'!$G$36,"-") -> 0.05292402268 | G20: =IFERROR((F20-C20)/C20*100,"-") -> - | H20: - | I20: 5.294162042
B21: 50 - 53 g | C21: =IFERROR(AVERAGE('D.4 PP'!$H$15:$H$19),"-") -> - | D21: =IFERROR(AVERAGE('D.4 PP'!$H$20:$H$24),"-") -> - | E21: =IFERROR('D.4 PP'!$H$35,"-") -> 0.1509118372 | F21: =IFERROR('D.4 PP'!$H$36,"-") -> 0.1523719887 | G21: =IFERROR((F21-C21)/C21*100,"-") -> - | H21: - | I21: 0.9675526881
B22: > 53 g | C22: =IFERROR(AVERAGE('D.4 PP'!$I$15:$I$19),"-") -> - | D22: =IFERROR(AVERAGE('D.4 PP'!$I$20:$I$24),"-") -> - | E22: =IFERROR('D.4 PP'!$I$35,"-") -> 0.23082339 | F22: =IFERROR('D.4 PP'!$I$36,"-") -> 0.2348260017 | G22: =IFERROR((F22-C22)/C22*100,"-") -> - | H22: - | I22: 1.734058138
B23: =Codierung!$I$65 -> 2. Klasse | C23: =IFERROR(AVERAGE('D.4 PP'!$J$15:$J$19),"-") -> 0.0836850485 | D23: =IFERROR(AVERAGE('D.4 PP'!$J$20:$J$24),"-") -> 0.120643172 | E23: =IFERROR('D.4 PP'!$J$35,"-") -> 0.03741191815 | F23: =IFERROR('D.4 PP'!$J$36,"-") -> 0.03789781167 | G23: =IFERROR((F23-C23)/C23*100,"-") -> -54.71376028 | H23: -68.58685739 | I23: 1.298766674
B24: =Codierung!$I$64 -> Gewichteter Mittelwert | C24: =IFERROR(AVERAGE('D.4 PP'!$K$15:$K$19),"-") -> 0.2268374122 | D24: =IFERROR(AVERAGE('D.4 PP'!$K$20:$K$24),"-") -> 0.2230477256 | E24: =IFERROR('D.4 PP'!$K$35,"-") -> 0.2059363429 | F24: =IFERROR('D.4 PP'!$K$36,"-") -> 0.2112911647 | G24: =IFERROR((F24-C24)/C24*100,"-") -> -6.853475974 | H24: -5.270872367 | I24: 2.600231541
A26: =Codierung!$I$11 -> Freilandhaltung | B26: < 50 g | C26: =IFERROR(AVERAGE('D.4 PP'!$L$15:$L$19),"-") -> - | D26: =IFERROR(AVERAGE('D.4 PP'!$L$20:$L$24),"-") -> - | E26: =IFERROR('D.4 PP'!$L$35,"-") -> 0.04999869637 | F26: =IFERROR('D.4 PP'!$L$36,"-") -> 0.04969366209 | G26: =IFERROR((F26-C26)/C26*100,"-") -> - | H26: - | I26: -0.6100844668
B27: 50 - 53 g | C27: =IFERROR(AVERAGE('D.4 PP'!$M$15:$M$19),"-") -> - | D27: =IFERROR(AVERAGE('D.4 PP'!$M$20:$M$24),"-") -> - | E27: =IFERROR('D.4 PP'!$M$35,"-") -> 0.1478531758 | F27: =IFERROR('D.4 PP'!$M$36,"-") -> 0.1482545996 | G27: =IFERROR((F27-C27)/C27*100,"-") -> - | H27: - | I27: 0.2715016467
B28: > 53 g | C28: =IFERROR(AVERAGE('D.4 PP'!$N$15:$N$19),"-") -> - | D28: =IFERROR(AVERAGE('D.4 PP'!$N$20:$N$24),"-") -> - | E28: =IFERROR('D.4 PP'!$N$35,"-") -> 0.2408918136 | F28: =IFERROR('D.4 PP'!$N$36,"-") -> 0.2503443363 | G28: =IFERROR((F28-C28)/C28*100,"-") -> - | H28: - | I28: 3.923970113
B29: =Codierung!$I$65 -> 2. Klasse | C29: =IFERROR(AVERAGE('D.4 PP'!$O$15:$O$19),"-") -> 0.06634352948 | D29: =IFERROR(AVERAGE('D.4 PP'!$O$20:$O$24),"-") -> 0.08864949061 | E29: =IFERROR('D.4 PP'!$O$35,"-") -> 0.05012453416 | F29: =IFERROR('D.4 PP'!$O$36,"-") -> 0.05229615017 | G29: =IFERROR((F29-C29)/C29*100,"-") -> -21.17369911 | H29: -41.00795187 | I29: 4.332441276
B30: =Codierung!$I$64 -> Gewichteter Mittelwert | C30: =IFERROR(AVERAGE('D.4 PP'!$P$15:$P$19),"-") -> 0.2508949702 | D30: =IFERROR(AVERAGE('D.4 PP'!$P$20:$P$24),"-") -> 0.2324273734 | E30: =IFERROR('D.4 PP'!$P$35,"-") -> 0.2206757461 | F30: =IFERROR('D.4 PP'!$P$36,"-") -> 0.2294225659 | G30: =IFERROR((F30-C30)/C30*100,"-") -> -8.558323951 | H30: -1.292794171 | I30: 3.963652506
A32: =Codierung!$I$66 -> CH gesamt | B32: =Codierung!$I$64 -> Gewichteter Mittelwert | C32: =IFERROR(AVERAGE('D.4 PP'!$Q$15:$Q$19),"-") -> 0.2575942545 | D32: =IFERROR(AVERAGE('D.4 PP'!$Q$20:$Q$24),"-") -> 0.2568138688 | E32: =IFERROR('D.4 PP'!$Q$35,"-") -> 0.2675479368 | F32: =IFERROR('D.4 PP'!$Q$36,"-") -> 0.2808430219 | G32: =IFERROR((F32-C32)/C32*100,"-") -> 9.02534393 | H32: 9.356641514 | I32: 4.969234751
A33: =Codierung!$I$67 -> Verarbeitungseier Import | B33: =Codierung!$I$64 -> Gewichteter Mittelwert | C33: =IFERROR(AVERAGE('D.4 PP'!$R$15:$R$19),"-") -> 0.1115164367 | D33: =IFERROR(AVERAGE('D.4 PP'!$R$20:$R$24),"-") -> 0.1200674975 | E33: =IFERROR('D.4 PP'!$R$35,"-") -> 0.1186264753 | F33: =IFERROR('D.4 PP'!$R$36,"-") -> 0.1458239776 | G33: =IFERROR((F33-C33)/C33*100,"-") -> 30.76455985 | H33: 21.45166735 | I33: 22.92700872
A34: =Codierung!$I$68 -> Konsumeier Import | B34: =Codierung!$I$64 -> Gewichteter Mittelwert | C34: =IFERROR(AVERAGE('D.4 PP'!$S$15:$S$19),"-") -> 0.1472473991 | D34: =IFERROR(AVERAGE('D.4 PP'!$S$20:$S$24),"-") -> 0.1609477405 | E34: =IFERROR('D.4 PP'!$S$35,"-") -> 0.1385772466 | F34: =IFERROR('D.4 PP'!$S$36,"-") -> 0.1518492428 | G34: =IFERROR((F34-C34)/C34*100,"-") -> 3.125246202 | H34: -5.65307575 | I34: 9.57732712
A35: =Codierung!$I$69 -> CH und Import | B35: =Codierung!$I$64 -> Gewichteter Mittelwert | C35: =IFERROR(AVERAGE('D.4 PP'!$T$15:$T$19),"-") -> 0.2059616564 | D35: =IFERROR(AVERAGE('D.4 PP'!$T$20:$T$24),"-") -> 0.2062034027 | E35: =IFERROR('D.4 PP'!$T$35,"-") -> 0.2263966045 | F35: =IFERROR('D.4 PP'!$T$36,"-") -> 0.2429991563 | G35: =IFERROR((F35-C35)/C35*100,"-") -> 17.9827161 | H35: 17.84439691 | I35: 7.333392612

Sheet 5. GHP
G1: =Codierung!I184 -> Eidgenössisches Departement für Wirtschaft, Bildung und Forschung WBF
G2: =Codierung!I185 -> Bundesamt für Landwirtschaft BLW
G3: =Codierung!I186 -> Fachbereich Marktanalysen
A6: =Codierung!I176 -> Preise im Liefer- und Abholgrosshandel | G6: =Codierung!$I$242 -> Anmerkungen:
A7: =Codierung!I217 -> in CHF / Ei | G7: =Codierung!$I$238 -> Daten Import
A8: =Codierung!$I$207 -> Quellen: BLW, Fachbereich Marktanalysen; Grossopanel AG, Stans | G8: =Codierung!$I$256 -> Aufbereitete Grafiken unterhalb der Datentabellen
A9: =Codierung!I215 -> Publikationsrecht: Weiterverarbeitung und Publikation unter Quellenangabe gestattet. | F9: (1) | G9: =Codierung!$I$263 -> Erweiterung des Datenpanels von Grossopanel
A11: =Codierung!$I$154 -> Zurück zum Inhaltsverzeichnis
A12: =Codierung!$I$253 -> Informationen zur Methodik | C12: ='D.5 GHP Gastro'!$A$21 -> 2019 | D12: ='D.5 GHP Gastro'!$A$22 -> 2020 | E12: ='D.5 GHP Gastro'!$A$23 -> 2021 | F12: ='D.5 GHP Gastro'!$A$24 -> 2022 | G12: =Codierung!$I$237&" "&C12 -> %-∆ 2019 | H12: =Codierung!$I$237&" "&D12 -> %-∆ 2020 | I12: =Codierung!$I$233 -> %-∆ Vorjahr
A14: =Codierung!$I$78 -> Eier frisch | B14: =Codierung!$I$9 -> Bio | C14: =IFERROR('D.5 GHP Gastro'!$B$21,"-") -> 0.7253631687 | D14: =IFERROR('D.5 GHP Gastro'!$B$22,"-") -> 0.7138324022 | E14: =IFERROR('D.5 GHP Gastro'!$B$23,"-") -> 0.7061907662 | F14: =IFERROR('D.5 GHP Gastro'!$B$24,"-") -> 0.7268873473 | G14: =IFERROR((F14-C14)/C14*100,"-") -> 0.2101262703 | H14: =IFERROR((F14-D14)/D14*100,"-") -> 1.828852975 | I14: =IFERROR((F14-E14)/E14*100,"-") -> 2.930735166
B15: =Codierung!$I$10 -> Bodenhaltung | C15: =IFERROR('D.5 GHP Gastro'!$C$21,"-") -> 0.3946920455 | D15: =IFERROR('D.5 GHP Gastro'!$C$22,"-") -> 0.3847064788 | E15: =IFERROR('D.5 GHP Gastro'!$C$23,"-") -> 0.3668494319 | F15: =IFERROR('D.5 GHP Gastro'!$C$24,"-") -> 0.3880767164 | G15: =IFERROR((F15-C15)/C15*100,"-") -> -1.676073599 | H15: =IFERROR((F15-D15)/D15*100,"-") -> 0.8760542815 | I15: =IFERROR((F15-E15)/E15*100,"-") -> 5.786375185
B16: =Codierung!$I$11 -> Freilandhaltung | C16: =IFERROR('D.5 GHP Gastro'!$D$21,"-") -> 0.563591113 | D16: =IFERROR('D.5 GHP Gastro'!$D$22,"-") -> 0.4940306369 | E16: =IFERROR('D.5 GHP Gastro'!$D$23,"-") -> 0.4880375094 | F16: =IFERROR('D.5 GHP Gastro'!$D$24,"-") -> 0.4928715522 | G16: -12.54802625 | H16: -0.2346179601 | I16: 0.990506417
B17: =Codierung!$I$81 -> alle Produktionsformen CH | C17: =IFERROR('D.5 GHP Gastro'!$E$21,"-") -> 0.5092339969 | D17: =IFERROR('D.5 GHP Gastro'!$E$22,"-") -> 0.4835109596 | E17: =IFERROR('D.5 GHP Gastro'!$E$23,"-") -> 0.4744224298 | F17: =IFERROR('D.5 GHP Gastro'!$E$24,"-") -> 0.4773465958 | G17: -6.261836668 | H17: -1.274917085 | I17: 0.6163633624
B18: =Codierung!$I$80 -> Bodenhaltung Import | C18: =IFERROR('D.5 GHP Gastro'!$F$21,"-") -> 0.3394074272 | D18: =IFERROR('D.5 GHP Gastro'!$F$22,"-") -> 0.3362693073 | E18: =IFERROR('D.5 GHP Gastro'!$F$23,"-") -> 0.3261765765 | F18: =IFERROR('D.5 GHP Gastro'!$F$24,"-") -> 0.3516271428 | G18: 3.600308844 | H18: 4.567123763 | I18: 7.802695889
A20: =Codierung!$I$79 -> Eier gekocht | B20: =Codierung!$I$9 -> Bio | C20: =IFERROR('D.5 GHP Gastro'!$G$21,"-") -> - | D20: =IFERROR('D.5 GHP Gastro'!$G$22,"-") -> - | E20: =IFERROR('D.5 GHP Gastro'!$G$23,"-") -> - | F20: =IFERROR('D.5 GHP Gastro'!$G$24,"-") -> - | G20: - | H20: - | I20: -
B21: =Codierung!$I$10 -> Bodenhaltung | C21: =IFERROR('D.5 GHP Gastro'!$H$21,"-") -> 0.4723466216 | D21: =IFERROR('D.5 GHP Gastro'!$H$22,"-") -> 0.4818981032 | E21: =IFERROR('D.5 GHP Gastro'!$H$23,"-") -> 0.4880803308 | F21: =IFERROR('D.5 GHP Gastro'!$H$24,"-") -> 0.5020097253 | G21: 6.279944094 | H21: 4.173417998 | I21: 2.853914333
B22: =Codierung!$I$11 -> Freilandhaltung | C22: =IFERROR('D.5 GHP Gastro'!$I$21,"-") -> 0.620079131 | D22: =IFERROR('D.5 GHP Gastro'!$I$22,"-") -> 0.6764585546 | E22: =IFERROR('D.5 GHP Gastro'!$I$23,"-") -> 0.6844503723 | F22: =IFERROR('D.5 GHP Gastro'!$I$24,"-") -> 0.6790459091 | G22: 9.509556941 | H22: 0.3824852895 | I22: -0.7896062901
B23: =Codierung!$I$81 -> alle Produktionsformen CH | C23: =IFERROR('D.5 GHP Gastro'!$J$21,"-") -> 0.5709506008 | D23: =IFERROR('D.5 GHP Gastro'!$J$22,"-") -> 0.6296217841 | E23: =IFERROR('D.5 GHP Gastro'!$J$23,"-") -> 0.6350975154 | F23: =IFERROR('D.5 GHP Gastro'!$J$24,"-") -> 0.6326499644 | G23: 10.80642765 | H23: 0.4809522674 | I23: -0.3853819211
B24: =Codierung!$I$80 -> Bodenhaltung Import | C24: =IFERROR('D.5 GHP Gastro'!$K$21,"-") -> 0.4859685905 | D24: =IFERROR('D.5 GHP Gastro'!$K$22,"-") -> 0.5221478985 | E24: =IFERROR('D.5 GHP Gastro'!$K$23,"-") -> 0.5264852183 | F24: =IFERROR('D.5 GHP Gastro'!$K$24,"-") -> 0.5287341928 | G24: 8.800075398 | H24: 1.261384816 | I24: 0.4271676565

Sheet 6. KP
G1: =Codierung!I184 -> Eidgenössisches Departement für Wirtschaft, Bildung und Forschung WBF
G2: =Codierung!I185 -> Bundesamt für Landwirtschaft BLW
G3: =Codierung!I186 -> Fachbereich Marktanalysen
A6: =Codierung!I82 -> Konsumentenpreise | F6: =Codierung!$I$242 -> Anmerkungen:
A7: =Codierung!I217 -> in CHF / Ei | F7: (1) | G7: =Codierung!$I$257 -> Ab 2016 wurde die Konsumentenpreiserhebung erweitert. Der Discountmarkt ist nun mit drei Akteuren in der Erhebung vertreten. Dadurch sind die Preise leicht gesunken.
A8: =Codierung!$I$205 -> Quellen: BLW, Fachbereich Marktanalysen | F8: (2) | G8: =Codierung!$I$262 -> Ab 2019 wurde die Konsumentenpreiserhebung erweitert. Der Verbrauchermarkt ist nun mit zwei Akteuren in der Erhebung vertreten. Die Preise blieben konstant.
A9: =Codierung!I215 -> Publikationsrecht: Weiterverarbeitung und Publikation unter Quellenangabe gestattet. | G9: =Codierung!$I$238 -> Daten Import
G10: =Codierung!$I$256 -> Aufbereitete Grafiken unterhalb der Datentabellen
A11: =Codierung!$I$154 -> Zurück zum Inhaltsverzeichnis
A12: =Codierung!$I$253 -> Informationen zur Methodik | C12: =Codierung!$I$252&'D.6 KP'!$A$15&"-"&'D.6 KP'!$A$19 -> Ø 2001-2005 | D12: =Codierung!$I$252&'D.6 KP'!$A$20&"-"&'D.6 KP'!$A$24 -> Ø 2006-2010 | E12: ='D.6 KP'!$A$35 -> 2021 | F12: ='D.6 KP'!$A$36 -> 2022 | G12: =Codierung!$J$237&" "&C12 -> %-∆ Ø 2001-2005 | H12: =Codierung!$J$237&" "&D12 -> %-∆ Ø 2006-2010 | I12: =Codierung!$I$233 -> %-∆ Vorjahr
A14: =Codierung!$I$78 -> Eier frisch | B14: =Codierung!$I$9 -> Bio | C14: =IFERROR(AVERAGE('D.6 KP'!$B$15:$B$19),"-") -> 0.8042747229 | D14: =IFERROR(AVERAGE('D.6 KP'!$B$20:$B$24),"-") -> 0.8190099497 | E14: =IFERROR('D.6 KP'!$B$35,"-") -> 0.8241245561 | F14: =IFERROR('D.6 KP'!$B$36,"-") -> 0.8308060513 | G14: =IFERROR((F14-C14)/C14*100,"-") -> 3.298789288 | H14: =IFERROR((F14-D14)/D14*100,"-") -> 1.44028795 | I14: =IFERROR((F14-E14)/E14*100,"-") -> 0.810738518
B15: =Codierung!$I$10 -> Bodenhaltung | C15: =IFERROR(AVERAGE('D.6 KP'!$C$15:$C$19),"-") -> 0.475616142 | D15: =IFERROR(AVERAGE('D.6 KP'!$C$20:$C$24),"-") -> 0.4795059041 | E15: =IFERROR('D.6 KP'!$C$35,"-") -> 0.4207815037 | F15: =IFERROR('D.6 KP'!$C$36,"-") -> 0.3932239462 | G15: =IFERROR((F15-C15)/C15*100,"-") -> -17.32325472 | H15: =IFERROR((F15-D15)/D15*100,"-") -> -17.99393024 | I15: -6.54913708
B16: =Codierung!$I$11 -> Freilandhaltung | C16: =IFERROR(AVERAGE('D.6 KP'!$D$15:$D$19),"-") -> 0.6170202389 | D16: =IFERROR(AVERAGE('D.6 KP'!$D$20:$D$24),"-") -> 0.6226614343 | E16: =IFERROR('D.6 KP'!$D$35,"-") -> 0.5837809006 | F16: =IFERROR('D.6 KP'!$D$36,"-") -> 0.5811289531 | G16: =IFERROR((F16-C16)/C16*100,"-") -> -5.816873338 | H16: =IFERROR((F16-D16)/D16*100,"-") -> -6.670154731 | I16: =IFERROR((F16-E16)/E16*100,"-") -> -0.4542710238
B17: =Codierung!$I$81 -> alle Produktionsformen CH | C17: =IFERROR(AVERAGE('D.6 KP'!$E$15:$E$19),"-") -> 0.5665216814 | D17: =IFERROR(AVERAGE('D.6 KP'!$E$20:$E$24),"-") -> 0.5880042944 | E17: =IFERROR('D.6 KP'!$E$35,"-") -> 0.6105193963 | F17: =IFERROR('D.6 KP'!$E$36,"-") -> 0.6181954138 | G17: =IFERROR((F17-C17)/C17*100,"-") -> 9.121227666 | H17: =IFERROR((F17-D17)/D17*100,"-") -> 5.134506607 | I17: 1.257292978
B18: =Codierung!$I$80 -> Bodenhaltung Import | C18: =IFERROR(AVERAGE('D.6 KP'!$F$15:$F$19),"-") -> 0.3106422536 | D18: =IFERROR(AVERAGE('D.6 KP'!$F$20:$F$24),"-") -> 0.324795422 | E18: =IFERROR('D.6 KP'!$F$35,"-") -> 0.2182316036 | F18: =IFERROR('D.6 KP'!$F$36,"-") -> 0.2267140476 | G18: =IFERROR((F18-C18)/C18*100,"-") -> -27.01764009 | H18: =IFERROR((F18-D18)/D18*100,"-") -> -30.19789313 | I18: 3.88689989
A20: =Codierung!$I$79 -> Eier gekocht | B20: =Codierung!$I$9 -> Bio | C20: =IFERROR(AVERAGE('D.6 KP'!$G$15:$G$19),"-") -> 0.9259944097 | D20: =IFERROR(AVERAGE('D.6 KP'!$G$20:$G$24),"-") -> 0.9509085059 | E20: =IFERROR('D.6 KP'!$G$35,"-") -> 0.9509264922 | F20: =IFERROR('D.6 KP'!$G$36,"-") -> 0.9229861653 | G20: =IFERROR((F20-C20)/C20*100,"-") -> -0.3248663586 | H20: =IFERROR((F20-D20)/D20*100,"-") -> -2.936385617 | I20: -2.938221521
B21: =Codierung!$I$10 -> Bodenhaltung | C21: =IFERROR(AVERAGE('D.6 KP'!$H$15:$H$19),"-") -> 0.5742523979 | D21: =IFERROR(AVERAGE('D.6 KP'!$H$20:$H$24),"-") -> 0.628745257 | E21: =IFERROR('D.6 KP'!$H$35,"-") -> 0.6033606336 | F21: =IFERROR('D.6 KP'!$H$36,"-") -> 0.5937235727 | G21: =IFERROR((F21-C21)/C21*100,"-") -> 3.390699783 | H21: =IFERROR((F21-D21)/D21*100,"-") -> -5.570091222 | I21: -1.597230642
B22: =Codierung!$I$11 -> Freilandhaltung | C22: =IFERROR(AVERAGE('D.6 KP'!$I$15:$I$19),"-") -> 0.7532113248 | D22: =IFERROR(AVERAGE('D.6 KP'!$I$20:$I$24),"-") -> 0.8033161674 | E22: =IFERROR('D.6 KP'!$I$35,"-") -> 0.6935987746 | F22: =IFERROR('D.6 KP'!$I$36,"-") -> 0.6728608708 | G22: =IFERROR((F22-C22)/C22*100,"-") -> -10.6677172 | H22: =IFERROR((F22-D22)/D22*100,"-") -> -16.23959556 | I22: -2.989899147
B23: =Codierung!$I$81 -> alle Produktionsformen CH | C23: =IFERROR(AVERAGE('D.6 KP'!$J$15:$J$19),"-") -> 0.6804194537 | D23: =IFERROR(AVERAGE('D.6 KP'!$J$20:$J$24),"-") -> 0.7290733894 | E23: =IFERROR('D.6 KP'!$J$35,"-") -> 0.7164956433 | F23: =IFERROR('D.6 KP'!$J$36,"-") -> 0.6955390455 | G23: =IFERROR((F23-C23)/C23*100,"-") -> 2.222098708 | H23: =IFERROR((F23-D23)/D23*100,"-") -> -4.599584118 | I23: -2.92487441
B24: =Codierung!$I$80 -> Bodenhaltung Import | C24: =IFERROR(AVERAGE('D.6 KP'!$K$15:$K$19),"-") -> 0.3927427023 | D24: =IFERROR(AVERAGE('D.6 KP'!$K$20:$K$24),"-") -> 0.3472112849 | E24: =IFERROR('D.6 KP'!$K$35,"-") -> 0.3078344262 | F24: =IFERROR('D.6 KP'!$K$36,"-") -> 0.3121598892 | G24: =IFERROR((F24-C24)/C24*100,"-") -> -20.51796576 | H24: =IFERROR((F24-D24)/D24*100,"-") -> -10.09511998 | I24: 1.405126461
A26: =Codierung!$I$83 -> 4er Packung frisch | B26: =Codierung!$I$9 -> Bio | C26: =IFERROR(AVERAGE('D.6 KP'!$L$15:$L$19),"-") -> 0.8095751757 | D26: =IFERROR(AVERAGE('D.6 KP'!$L$20:$L$24),"-") -> 0.8302968203 | E26: =IFERROR('D.6 KP'!$L$35,"-") -> 0.8477469232 | F26: =IFERROR('D.6 KP'!$L$36,"-") -> 0.8679869485 | G26: =IFERROR((F26-C26)/C26*100,"-") -> 7.215114114 | H26: =IFERROR((F26-D26)/D26*100,"-") -> 4.539355955 | I26: 2.387507968
B27: =Codierung!$I$10 -> Bodenhaltung | C27: =IFERROR(AVERAGE('D.6 KP'!$M$15:$M$19),"-") -> 0.6326304509 | D27: =IFERROR(AVERAGE('D.6 KP'!$M$20:$M$24),"-") -> 0.6279117594 | E27: =IFERROR('D.6 KP'!$M$35,"-") -> 0.495561784 | F27: =IFERROR('D.6 KP'!$M$36,"-") -> 0.539188994 | G27: =IFERROR((F27-C27)/C27*100,"-") -> -14.77030655 | H27: =IFERROR((F27-D27)/D27*100,"-") -> -14.12981428 | I27: 8.803586432
B28: =Codierung!$I$11 -> Freilandhaltung | C28: =IFERROR(AVERAGE('D.6 KP'!$N$15:$N$19),"-") -> 0.6708122598 | D28: =IFERROR(AVERAGE('D.6 KP'!$N$20:$N$24),"-") -> 0.6984378748 | E28: =IFERROR('D.6 KP'!$N$35,"-") -> 0.6930655477 | F28: =IFERROR('D.6 KP'!$N$36,"-") -> 0.7096980498 | G28: =IFERROR((F28-C28)/C28*100,"-") -> 5.796821616 | H28: =IFERROR((F28-D28)/D28*100,"-") -> 1.612194219 | I28: 2.399845469
B29: =Codierung!$I$81 -> alle Produktionsformen CH | C29: =IFERROR(AVERAGE('D.6 KP'!$O$15:$O$19),"-") -> 0.7302114496 | D29: =IFERROR(AVERAGE('D.6 KP'!$O$20:$O$24),"-") -> 0.7464147266 | E29: =IFERROR('D.6 KP'!$O$35,"-") -> 0.7535581871 | F29: =IFERROR('D.6 KP'!$O$36,"-") -> 0.7884054131 | G29: =IFERROR((F29-C29)/C29*100,"-") -> 7.969467414 | H29: =IFERROR((F29-D29)/D29*100,"-") -> 5.625650859 | I29: 4.624357686
A31: =Codierung!$I$84 -> 6er Packung frisch | B31: =Codierung!$I$9 -> Bio | C31: =IFERROR(AVERAGE('D.6 KP'!$P$15:$P$19),"-") -> 0.7956460732 | D31: =IFERROR(AVERAGE('D.6 KP'!$P$20:$P$24),"-") -> 0.811523128 | E31: =IFERROR('D.6 KP'!$P$35,"-") -> 0.8360241539 | F31: =IFERROR('D.6 KP'!$P$36,"-") -> 0.8492281339 | G31: =IFERROR((F31-C31)/C31*100,"-") -> 6.734408992 | H31: =IFERROR((F31-D31)/D31*100,"-") -> 4.646202255 | I31: 1.579377807
B32: =Codierung!$I$10 -> Bodenhaltung | C32: =IFERROR(AVERAGE('D.6 KP'!$Q$15:$Q$19),"-") -> 0.5121173861 | D32: =IFERROR(AVERAGE('D.6 KP'!$Q$20:$Q$24),"-") -> 0.5130171663 | E32: =IFERROR('D.6 KP'!$Q$35,"-") -> 0.544135616 | F32: =IFERROR('D.6 KP'!$Q$36,"-") -> 0.5548965385 | G32: =IFERROR((F32-C32)/C32*100,"-") -> 8.353388035 | H32: =IFERROR((F32-D32)/D32*100,"-") -> 8.163347159 | I32: 1.977617743
B33: =Codierung!$I$11 -> Freilandhaltung | C33: =IFERROR(AVERAGE('D.6 KP'!$R$15:$R$19),"-") -> 0.6083742329 | D33: =IFERROR(AVERAGE('D.6 KP'!$R$20:$R$24),"-") -> 0.622154023 | E33: =IFERROR('D.6 KP'!$R$35,"-") -> 0.604263798 | F33: =IFERROR('D.6 KP'!$R$36,"-") -> 0.6169158703 | G33: =IFERROR((F33-C33)/C33*100,"-") -> 1.404010395 | H33: =IFERROR((F33-D33)/D33*100,"-") -> -0.8419382365 | I33: 2.093799488
B34: =Codierung!$I$81 -> alle Produktionsformen CH | C34: =IFERROR(AVERAGE('D.6 KP'!$S$15:$S$19),"-") -> 0.5741033341 | D34: =IFERROR(AVERAGE('D.6 KP'!$S$20:$S$24),"-") -> 0.6070835619 | E34: =IFERROR('D.6 KP'!$S$35,"-") -> 0.6766341225 | F34: =IFERROR('D.6 KP'!$S$36,"-") -> 0.6974959796 | G34: =IFERROR((F34-C34)/C34*100,"-") -> 21.49310727 | H34: =IFERROR((F34-D34)/D34*100,"-") -> 14.89291151 | I34: 3.083181349
A36: =Codierung!$I$85 -> 10er Packung frisch | B36: =Codierung!$I$9 -> Bio | C36: =IFERROR(AVERAGE('D.6 KP'!$T$15:$T$19),"-") -> - | D36: =IFERROR(AVERAGE('D.6 KP'!$T$20:$T$24),"-") -> - | E36: =IFERROR('D.6 KP'!$T$35,"-") -> 0.7792541815 | F36: =IFERROR('D.6 KP'!$T$36,"-") -> 0.7741685273 | G36: =IFERROR((F36-C36)/C36*100,"-") -> - | H36: =IFERROR((F36-D36)/D36*100,"-") -> - | I36: -0.6526309694
B37: =Codierung!$I$10 -> Bodenhaltung | C37: =IFERROR(AVERAGE('D.6 KP'!$U$15:$U$19),"-") -> 0.4420685174 | D37: =IFERROR(AVERAGE('D.6 KP'!$U$20:$U$24),"-") -> 0.4431267372 | E37: =IFERROR('D.6 KP'!$U$35,"-") -> 0.3573635586 | F37: =IFERROR('D.6 KP'!$U$36,"-") -> 0.3647320192 | G37: =IFERROR((F37-C37)/C37*100,"-") -> -17.49423339 | H37: =IFERROR((F37-D37)/D37*100,"-") -> -17.69126333 | I37: 2.061894808
B38: =Codierung!$I$11 -> Freilandhaltung | C38: =IFERROR(AVERAGE('D.6 KP'!$V$15:$V$19),"-") -> 0.5645444592 | D38: =IFERROR(AVERAGE('D.6 KP'!$V$20:$V$24),"-") -> 0.5656355165 | E38: =IFERROR('D.6 KP'!$V$35,"-") -> 0.5440876403 | F38: =IFERROR('D.6 KP'!$V$36,"-") -> 0.5540333337 | G38: =IFERROR((F38-C38)/C38*100,"-") -> -1.861877371 | H38: =IFERROR((F38-D38)/D38*100,"-") -> -2.051176504 | I38: 1.827957961
B39: =Codierung!$I$81 -> alle Produktionsformen CH | C39: =IFERROR(AVERAGE('D.6 KP'!$W$15:$W$19),"-") -> 0.4656655952 | D39: =IFERROR(AVERAGE('D.6 KP'!$W$20:$W$24),"-") -> 0.4796338471 | E39: =IFERROR('D.6 KP'!$W$35,"-") -> 0.5159619024 | F39: =IFERROR('D.6 KP'!$W$36,"-") -> 0.53151006 | G39: =IFERROR((F39-C39)/C39*100,"-") -> 14.13986033 | H39: =IFERROR((F39-D39)/D39*100,"-") -> 10.81579485 | I39: 3.013431332

Sheet 7. MS
I1: =Codierung!I184 -> Eidgenössisches Departement für Wirtschaft, Bildung und Forschung WBF
I2: =Codierung!I185 -> Bundesamt für Landwirtschaft BLW
I3: =Codierung!I186 -> Fachbereich Marktanalysen
A6: =Codierung!$I$177 -> Marktstruktur | I6: =Codierung!$I$242 -> Anmerkungen:
A7: =Codierung!$I$224 -> in % | I7: (1) | J7: =Codierung!$I$248 -> Erweiterung der Datenerhebungen bei den Sammelstellen
A8: =Codierung!$I$222 -> in Mio. Stück | I8: (2) | J8: =Codierung!$I$255 -> Verarbeitungseier (oft aus Bodenhaltung) direkt für die Industrie werden in der Erhebung Sammelstellen tendenziell unterproportional einbezogen
I9: (3) | J9: =Codierung!$I$90 -> Anteile anhand des linearen Angebots im Verkaufsregal. Die Anteile zeigen nicht die effektiven Absatzanteile (z.B. Importeier werden überschätzt). Effektive Absatzanteile lassen sich mit Absatzzahlen von NielsenIQ Switzerland berechnen.
A10: =Codierung!$I$211 -> Quellen: BLW, Fachbereich Marktanalysen; Aviforum; NielsenIQ Switzerland, Total Market Consumer/Retail Panel; Grossopanel AG, Stans | I10: (4) | J10: =Codierung!$I$100 -> Absätze anhand NielsenIQ Switzerland, Total Market Consumer/Retail Panel; Kalkulation Fachbereich Marktanalysen BLW
A11: =Codierung!I215 -> Publikationsrecht: Weiterverarbeitung und Publikation unter Quellenangabe gestattet. | I11: (5) | J11: =Codierung!$I$251 -> Umrechnungsfaktoren: Eiprodukte getrocknet 80 Eier / kg; Eiprodukte flüssig 20.58 Eier / kg; Schaleneier 16.6 Eier / kg
I12: (6) | J12: =Codierung!$I$262 -> Ab 2019 wurde die Konsumentenpreiserhebung erweitert. Der Verbrauchermarkt ist nun mit zwei Akteuren in der Erhebung vertreten. Die Preise blieben konstant.
J13: =Codierung!$I$238 -> Daten Import
I14: =Codierung!$I$256 -> Aufbereitete Grafiken unterhalb der Datentabellen
A15: =Codierung!$I$154 -> Zurück zum Inhaltsverzeichnis
E16: =Codierung!$I$252&'D.7 MS'!$A$18&"-"&'D.7 MS'!$A$22 -> Ø 2001-2005 | F16: =Codierung!$I$252&'D.7 MS'!$A$23&"-"&'D.7 MS'!$A$27 -> Ø 2006-2010 | G16: ='D.7 MS'!A$38 -> 2021 | H16: ='D.7 MS'!A$39 -> 2022 | I16: =Codierung!$J$237&" "&E16 -> %-∆ Ø 2001-2005 | J16: =Codierung!$J$237&" "&F16 -> %-∆ Ø 2006-2010 | K16: =Codierung!$I$233 -> %-∆ Vorjahr
A18: =Codierung!$I$70 -> Produktion Inland | B18: =Codierung!$I$91 -> Erhebung Sammelstellen | C18: =Codierung!$I$9 -> Bio | D18: =Codierung!$I$224 -> in % | E18: =IFERROR(AVERAGE('D.7 MS'!$B$18:$B$22),"-") -> 0.1367591187 | F18: =IFERROR(AVERAGE('D.7 MS'!$B$23:$B$27),"-") -> 0.1746073451 | G18: =IFERROR('D.7 MS'!$B$38,"-") -> 0.2691096361 | H18: =IFERROR('D.7 MS'!$B$39,"-") -> 0.2575847808 | I18: =IFERROR((H18-E18)/E18*100,"-") -> 88.34925469 | J18: =IFERROR((H18-F18)/F18*100,"-") -> 47.52230539 | K18: =IFERROR((H18-G18)/G18*100,"-") -> -4.28258736
C19: =Codierung!$I$10 -> Bodenhaltung | D19: =Codierung!$I$224 -> in % | E19: =IFERROR(AVERAGE('D.7 MS'!$C$18:$C$22),"-") -> 0.4127155519 | F19: =IFERROR(AVERAGE('D.7 MS'!$C$23:$C$27),"-") -> 0.2909658759 | G19: =IFERROR('D.7 MS'!$C$38,"-") -> 0.102900884 | H19: =IFERROR('D.7 MS'!$C$39,"-") -> 0.09226867037 | I19: -77.64351987 | J19: -68.28883453 | K19: -10.33248033
C20: =Codierung!$I$11 -> Freilandhaltung | D20: =Codierung!$I$224 -> in % | E20: =IFERROR(AVERAGE('D.7 MS'!$D$18:$D$22),"-") -> 0.4505253294 | F20: =IFERROR(AVERAGE('D.7 MS'!$D$23:$D$27),"-") -> 0.534426779 | G20: =IFERROR('D.7 MS'!$D$38,"-") -> 0.62798948 | H20: =IFERROR('D.7 MS'!$D$39,"-") -> 0.6501465488 | I20: 44.30854526 | J20: 21.65306349 | K20: =IFERROR((H20-G20)/G20*100,"-") -> 3.528254782
C21: =Codierung!$I$93 -> Abdeckung durch Erhebung (2) | D21: =Codierung!$I$224 -> in % | E21: =IFERROR(AVERAGE('D.7 MS'!$E$18:$E$22),"-") -> 0.4444049491 | F21: =IFERROR(AVERAGE('D.7 MS'!$E$23:$E$27),"-") -> 0.5101203352 | G21: =IFERROR('D.7 MS'!$E$38,"-") -> 0.6183558352 | H21: =IFERROR('D.7 MS'!$E$39,"-") -> 0.6002773414 | I21: 35.07440515 | J21: 17.67367422 | K21: -2.92363924
B22: =Codierung!$I$92 -> Produktion Total (aus Kükenstatistik) | C22: =Codierung!$I$9 -> Bio | D22: =Codierung!$I$224 -> in % | E22: =IFERROR(AVERAGE('D.7 MS'!$F$18:$F$22),"-") -> - | F22: =IFERROR(AVERAGE('D.7 MS'!$F$23:$F$27),"-") -> - | G22: =IFERROR('D.7 MS'!$F$38,"-") -> 0.1908067513 | H22: =IFERROR('D.7 MS'!$F$39,"-") -> 0.1975906269 | I22: - | J22: - | K22: 3.55536456
C23: =Codierung!$I$94 -> Boden- und Freilandhaltung | D23: =Codierung!$I$224 -> in % | E23: =IFERROR(AVERAGE('D.7 MS'!$G$18:$G$22),"-") -> - | F23: =IFERROR(AVERAGE('D.7 MS'!$G$23:$G$27),"-") -> - | G23: =IFERROR('D.7 MS'!$G$38,"-") -> 0.8091932487 | H23: =IFERROR('D.7 MS'!$G$39,"-") -> 0.8024093731 | I23: - | J23: - | K23: -0.8383504959
A25: =Codierung!$I$86 -> Liefer- und Abholgrosshandel | B25: =Codierung!$I$28 -> Schaleneier | C25: =Codierung!$I$9 -> Bio | D25: =Codierung!$I$224 -> in % | E25: =IFERROR(AVERAGE('D.7 MS'!$H$18:$H$22),"-") -> - | F25: =IFERROR(AVERAGE('D.7 MS'!$H$23:$H$27),"-") -> - | G25: =IFERROR('D.7 MS'!$H$38,"-") -> 0.03251292655 | H25: =IFERROR('D.7 MS'!$H$39,"-") -> 0.02630919528 | I25: =IFERROR((H25-E25)/E25*100,"-") -> - | J25: =IFERROR((H25-F25)/F25*100,"-") -> - | K25: -19.08081471
C26: =Codierung!$I$10 -> Bodenhaltung | D26: =Codierung!$I$224 -> in % | E26: =IFERROR(AVERAGE('D.7 MS'!$I$18:$I$22),"-") -> - | F26: =IFERROR(AVERAGE('D.7 MS'!$I$23:$I$27),"-") -> - | G26: =IFERROR('D.7 MS'!$I$38,"-") -> 0.5991878989 | H26: =IFERROR('D.7 MS'!$I$39,"-") -> 0.617461753 | I26: - | J26: - | K26: =IFERROR((H26-G26)/G26*100,"-") -> 3.049770232
C27: =Codierung!$I$11 -> Freilandhaltung | D27: =Codierung!$I$224 -> in % | E27: =IFERROR(AVERAGE('D.7 MS'!$J$18:$J$22),"-") -> - | F27: =IFERROR(AVERAGE('D.7 MS'!$J$23:$J$27),"-") -> - | G27: =IFERROR('D.7 MS'!$J$38,"-") -> 0.3682991746 | H27: =IFERROR('D.7 MS'!$J$39,"-") -> 0.3562290517 | I27: - | J27: - | K27: -3.277260372
C28: =Codierung!$I$98 -> Anteil Inland | D28: =Codierung!$I$224 -> in % | E28: =IFERROR(AVERAGE('D.7 MS'!$K$18:$K$22),"-") -> - | F28: =IFERROR(AVERAGE('D.7 MS'!$K$23:$K$27),"-") -> - | G28: =IFERROR('D.7 MS'!$K$38,"-") -> 0.5193037043 | H28: =IFERROR('D.7 MS'!$K$39,"-") -> 0.5145661708 | I28: - | J28: - | K28: -0.9122857241
C29: =Codierung!$I$99 -> Anteil Import | D29: =Codierung!$I$224 -> in % | E29: =IFERROR(AVERAGE('D.7 MS'!$L$18:$L$22),"-") -> - | F29: =IFERROR(AVERAGE('D.7 MS'!$L$23:$L$27),"-") -> - | G29: =IFERROR('D.7 MS'!$L$38,"-") -> 0.4786053587 | H29: =IFERROR('D.7 MS'!$L$39,"-") -> 0.4823628415 | I29: - | J29: =IFERROR((H29-F29)/F29*100,"-") -> - | K29: =IFERROR((H29-G29)/G29*100,"-") -> 0.7850899907
C30: =Codierung!$I$95 -> ohne Angabe | D30: =Codierung!$I$224 -> in % | E30: =IFERROR(AVERAGE('D.7 MS'!$M$18:$M$22),"-") -> - | F30: =IFERROR(AVERAGE('D.7 MS'!$M$23:$M$27),"-") -> - | G30: =IFERROR('D.7 MS'!$M$38,"-") -> 0.002090936911 | H30: =IFERROR('D.7 MS'!$M$39,"-") -> 0.003070987704 | I30: - | J30: - | K30: 46.87137082
B31: =Codierung!$I$29 -> Eiprodukte (5) | C31: =Codierung!$I$98 -> Anteil Inland | D31: =Codierung!$I$224 -> in % | E31: =IFERROR(AVERAGE('D.7 MS'!$N$18:$N$22),"-") -> - | F31: =IFERROR(AVERAGE('D.7 MS'!$N$23:$N$27),"-") -> - | G31: =IFERROR('D.7 MS'!$N$38,"-") -> 0.2795828508 | H31: =IFERROR('D.7 MS'!$N$39,"-") -> 0.2826623436 | I31: - | J31: - | K31: 1.101459804
C32: =Codierung!$I$99 -> Anteil Import | D32: =Codierung!$I$224 -> in % | E32: =IFERROR(AVERAGE('D.7 MS'!$O$18:$O$22),"-") -> - | F32: =IFERROR(AVERAGE('D.7 MS'!$O$23:$O$27),"-") -> - | G32: =IFERROR('D.7 MS'!$O$38,"-") -> 0.4580817808 | H32: =IFERROR('D.7 MS'!$O$39,"-") -> 0.4422195777 | I32: - | J32: - | K32: -3.462744812
C33: =Codierung!$I$95 -> ohne Angabe | D33: =Codierung!$I$224 -> in % | E33: =IFERROR(AVERAGE('D.7 MS'!$P$18:$P$22),"-") -> - | F33: =IFERROR(AVERAGE('D.7 MS'!$P$23:$P$27),"-") -> - | G33: =IFERROR('D.7 MS'!$P$38,"-") -> 0.2623353684 | H33: =IFERROR('D.7 MS'!$P$39,"-") -> 0.2751180787 | I33: - | J33: - | K33: 4.87265993
B34: =Codierung!$I$36 -> Total | C34: =Codierung!$I$98 -> Anteil Inland | D34: =Codierung!$I$224 -> in % | E34: =IFERROR(AVERAGE('D.7 MS'!$Q$18:$Q$22),"-") -> - | F34: =IFERROR(AVERAGE('D.7 MS'!$Q$23:$Q$27),"-") -> - | G34: =IFERROR('D.7 MS'!$Q$38,"-") -> 0.3835173925 | H34: =IFERROR('D.7 MS'!$Q$39,"-") -> 0.3818179962 | I34: - | J34: - | K34: -0.4431080117
C35: =Codierung!$I$99 -> Anteil Import | D35: =Codierung!$I$224 -> in % | E35: =IFERROR(AVERAGE('D.7 MS'!$R$18:$R$22),"-") -> - | F35: =IFERROR(AVERAGE('D.7 MS'!$R$23:$R$27),"-") -> - | G35: =IFERROR('D.7 MS'!$R$38,"-") -> 0.4669800833 | H35: =IFERROR('D.7 MS'!$R$39,"-") -> 0.4593837253 | I35: - | J35: - | K35: -1.626698492
C36: =Codierung!$I$95 -> ohne Angabe | D36: =Codierung!$I$224 -> in % | E36: =IFERROR(AVERAGE('D.7 MS'!$S$18:$S$22),"-") -> - | F36: =IFERROR(AVERAGE('D.7 MS'!$S$23:$S$27),"-") -> - | G36: =IFERROR('D.7 MS'!$S$38,"-") -> 0.1495025242 | H36: =IFERROR('D.7 MS'!$S$39,"-") -> 0.1587982785 | I36: - | J36: - | K36: 6.217790846
C37: =Codierung!$I$28 -> Schaleneier | D37: =Codierung!$I$224 -> in % | E37: =IFERROR(AVERAGE('D.7 MS'!$T$18:$T$22),"-") -> - | F37: =IFERROR(AVERAGE('D.7 MS'!$T$23:$T$27),"-") -> - | G37: =IFERROR('D.7 MS'!$T$38,"-") -> 0.4335648741 | H37: =IFERROR('D.7 MS'!$T$39,"-") -> 0.4275722994 | I37: - | J37: - | K37: -1.382163321
C38: =Codierung!$I$29 -> Eiprodukte (5) | D38: =Codierung!$I$224 -> in % | E38: =IFERROR(AVERAGE('D.7 MS'!$U$18:$U$22),"-") -> - | F38: =IFERROR(AVERAGE('D.7 MS'!$U$23:$U$27),"-") -> - | G38: =IFERROR('D.7 MS'!$U$38,"-") -> 0.5664351259 | H38: =IFERROR('D.7 MS'!$U$39,"-") -> 0.5724277006 | I38: - | J38: - | K38: 1.057945454
A40: =Codierung!$I$88 -> Detailhandel (3) | B40: =Codierung!$I$28 -> Schaleneier | C40: =Codierung!$I$9 -> Bio | D40: =Codierung!$I$224 -> in % | E40: =IFERROR(AVERAGE('D.7 MS'!$V$18:$V$22),"-") -> 0.1320309582 | F40: =IFERROR(AVERAGE('D.7 MS'!$V$23:$V$27),"-") -> 0.1753609489 | G40: =IFERROR('D.7 MS'!$V$38,"-") -> 0.2371864197 | H40: =IFERROR('D.7 MS'!$V$39,"-") -> 0.2574894313 | I40: =IFERROR((H40-E40)/E40*100,"-") -> 95.02201207 | J40: =IFERROR((H40-F40)/F40*100,"-") -> 46.83396332 | K40: 8.559938473
C41: =Codierung!$I$10 -> Bodenhaltung | D41: =Codierung!$I$224 -> in % | E41: =IFERROR(AVERAGE('D.7 MS'!$W$18:$W$22),"-") -> 0.5054940486 | F41: =IFERROR(AVERAGE('D.7 MS'!$W$23:$W$27),"-") -> 0.4935813822 | G41: =IFERROR('D.7 MS'!$W$38,"-") -> 0.2078091066 | H41: =IFERROR('D.7 MS'!$W$39,"-") -> 0.1814390115 | I41: -64.1065979 | J41: -63.24030483 | K41: -12.68957627
C42: =Codierung!$I$11 -> Freilandhaltung | D42: =Codierung!$I$224 -> in % | E42: =IFERROR(AVERAGE('D.7 MS'!$X$18:$X$22),"-") -> 0.3169224008 | F42: =IFERROR(AVERAGE('D.7 MS'!$X$23:$X$27),"-") -> 0.3247413523 | G42: =IFERROR('D.7 MS'!$X$38,"-") -> 0.5550044737 | H42: =IFERROR('D.7 MS'!$X$39,"-") -> 0.5610715572 | I42: 77.03751952 | J42: 72.77490323 | K42: 1.093159384
C43: =Codierung!$I$80 -> Bodenhaltung Import | D43: =Codierung!$I$224 -> in % | E43: =IFERROR(AVERAGE('D.7 MS'!$Y$18:$Y$22),"-") -> 0.1988522537 | F43: =IFERROR(AVERAGE('D.7 MS'!$Y$23:$Y$27),"-") -> 0.2086181433 | G43: =IFERROR('D.7 MS'!$Y$38,"-") -> 0.3316844255 | H43: =IFERROR('D.7 MS'!$Y$39,"-") -> 0.2916744521 | I43: 46.6789773 | J43: 39.81260091 | K43: -12.06266267
C44: =Codierung!$I$98 -> Anteil Inland | D44: =Codierung!$I$224 -> in % | E44: =IFERROR(AVERAGE('D.7 MS'!$Z$18:$Z$22),"-") -> 0.8011477463 | F44: =IFERROR(AVERAGE('D.7 MS'!$Z$23:$Z$27),"-") -> 0.7913818567 | G44: =IFERROR('D.7 MS'!$Z$38,"-") -> 0.6683155745 | H44: =IFERROR('D.7 MS'!$Z$39,"-") -> 0.7083255479 | I44: -11.58615234 | J44: -10.49509893 | K44: 5.986688762
C45: =Codierung!$I$99 -> Anteil Import | D45: =Codierung!$I$224 -> in % | E45: =IFERROR(AVERAGE('D.7 MS'!$AA$18:$AA$22),"-") -> 0.1988522537 | F45: =IFERROR(AVERAGE('D.7 MS'!$AA$23:$AA$27),"-") -> 0.2086181433 | G45: =IFERROR('D.7 MS'!$AA$38,"-") -> 0.3316844255 | H45: =IFERROR('D.7 MS'!$AA$39,"-") -> 0.2916744521 | I45: 46.6789773 | J45: 39.81260091 | K45: -12.06266267
A47: =Codierung!$I$89 -> Detailhandel (4) | B47: =Codierung!$I$28 -> Schaleneier | C47: =Codierung!$I$36 -> Total | D47: =Codierung!$I$222 -> in Mio. Stück | E47: =IFERROR(AVERAGE('D.7 MS'!$AB$18:$AB$22),"-") -> - | F47: =IFERROR(AVERAGE('D.7 MS'!$AB$23:$AB$27),"-") -> - | G47: =IFERROR('D.7 MS'!$AB$38,"-") -> 907.4110565 | H47: =IFERROR('D.7 MS'!$AB$39,"-") -> 856.8204956 | I47: =IFERROR((H47-E47)/E47*100,"-") -> - | J47: =IFERROR((H47-F47)/F47*100,"-") -> - | K47: =IFERROR((H47-G47)/G47*100,"-") -> -5.575263876
C48: =Codierung!$I$9 -> Bio | D48: =Codierung!$I$222 -> in Mio. Stück | E48: =IFERROR(AVERAGE('D.7 MS'!$AC$18:$AC$22),"-") -> - | F48: =IFERROR(AVERAGE('D.7 MS'!$AC$23:$AC$27),"-") -> - | G48: =IFERROR('D.7 MS'!$AC$38,"-") -> 158.5512476 | H48: =IFERROR('D.7 MS'!$AC$39,"-") -> 156.2940847 | I48: =IFERROR((H48-E48)/E48*100,"-") -> - | J48: =IFERROR((H48-F48)/F48*100,"-") -> - | K48: -1.423617243
C49: =Codierung!$I$10 -> Bodenhaltung | D49: =Codierung!$I$222 -> in Mio. Stück | E49: =IFERROR(AVERAGE('D.7 MS'!$AD$18:$AD$22),"-") -> - | F49: =IFERROR(AVERAGE('D.7 MS'!$AD$23:$AD$27),"-") -> - | G49: =IFERROR('D.7 MS'!$AD$38,"-") -> 218.5480245 | H49: =IFERROR('D.7 MS'!$AD$39,"-") -> 201.6625352 | I49: =IFERROR((H49-E49)/E49*100,"-") -> - | J49: =IFERROR((H49-F49)/F49*100,"-") -> - | K49: -7.726214565
C50: =Codierung!$I$11 -> Freilandhaltung | D50: =Codierung!$I$222 -> in Mio. Stück | E50: =IFERROR(AVERAGE('D.7 MS'!$AE$18:$AE$22),"-") -> - | F50: =IFERROR(AVERAGE('D.7 MS'!$AE$23:$AE$27),"-") -> - | G50: =IFERROR('D.7 MS'!$AE$38,"-") -> 281.1345823 | H50: =IFERROR('D.7 MS'!$AE$39,"-") -> 271.1315093 | I50: =IFERROR((H50-E50)/E50*100,"-") -> - | J50: =IFERROR((H50-F50)/F50*100,"-") -> - | K50: -3.55810831
C51: =Codierung!$I$45 -> Import | D51: =Codierung!$I$222 -> in Mio. Stück | E51: =IFERROR(AVERAGE('D.7 MS'!$AF$18:$AF$22),"-") -> - | F51: =IFERROR(AVERAGE('D.7 MS'!$AF$23:$AF$27),"-") -> - | G51: =IFERROR('D.7 MS'!$AF$38,"-") -> 249.1772021 | H51: =IFERROR('D.7 MS'!$AF$39,"-") -> 227.7323664 | I51: =IFERROR((H51-E51)/E51*100,"-") -> - | J51: =IFERROR((H51-F51)/F51*100,"-") -> - | K51: -8.606259128

Sheet 8. BWS
E1: =Codierung!I184 -> Eidgenössisches Departement für Wirtschaft, Bildung und Forschung WBF
E2: =Codierung!I185 -> Bundesamt für Landwirtschaft BLW
E3: =Codierung!I186 -> Fachbereich Marktanalysen
A6: =Codierung!I180 -> Bruttowertschöpfung | E6: =Codierung!$I$242 -> Anmerkungen:
A7: =Codierung!I217 -> in CHF / Ei | E7: (1) | F7: =Codierung!$I$248 -> Erweiterung der Datenerhebungen bei den Sammelstellen
A8: =Codierung!I224 -> in % | F8: =Codierung!$I$238 -> Daten Import
A9: =Codierung!I207 -> Quellen: BLW, Fachbereich Marktanalysen; Grossopanel AG, Stans | F9: =Codierung!$I$256 -> Aufbereitete Grafiken unterhalb der Datentabellen
A10: =Codierung!I215 -> Publikationsrecht: Weiterverarbeitung und Publikation unter Quellenangabe gestattet.
A12: =Codierung!$I$154 -> Zurück zum Inhaltsverzeichnis
A13: =Codierung!$I$253 -> Informationen zur Methodik | D13: =Codierung!$I$252&'D.8 BWS'!$A$17&"-"&'D.8 BWS'!$A$21 -> Ø 2001-2005 | E13: =Codierung!$I$252&'D.8 BWS'!$A$22&"-"&'D.8 BWS'!$A$26 -> Ø 2006-2010 | F13: ='D.8 BWS'!$A$37 -> 2021 | G13: ='D.8 BWS'!$A$38 -> 2022 | H13: =Codierung!$J$237&" "&D13 -> %-∆ Ø 2001-2005 | I13: =Codierung!$J$237&" "&E13 -> %-∆ Ø 2006-2010 | J13: =Codierung!$I$233 -> %-∆ Vorjahr
A15: =Codierung!$I$14 -> Verarbeitung und Verteilung | B15: =Codierung!$I$9 -> Bio | C15: =Codierung!$I$2 -> Einstandspreis | D15: =IFERROR(AVERAGE('D.8 BWS'!$B$17:$B$21),"-") -> 0.4225773724 | E15: =IFERROR(AVERAGE('D.8 BWS'!$B$22:$B$26),"-") -> 0.4118930037 | F15: =IFERROR('D.8 BWS'!$B$37,"-") -> 0.4430500783 | G15: =IFERROR('D.8 BWS'!$B$38,"-") -> 0.4391783384 | H15: =IFERROR((G15-D15)/D15*100,"-") -> 3.928503278 | I15: =IFERROR((G15-E15)/E15*100,"-") -> 6.624374389 | J15: =IFERROR((G15-F15)/F15*100,"-") -> -0.8738831346
C16: =Codierung!$I$3 -> Nettoeinnahmen | D16: =IFERROR(AVERAGE('D.8 BWS'!$C$17:$C$21),"-") -> 0.8259788396 | E16: =IFERROR(AVERAGE('D.8 BWS'!$C$22:$C$26),"-") -> 0.8410140084 | F16: =IFERROR('D.8 BWS'!$C$37,"-") -> 0.8291927668 | G16: =IFERROR('D.8 BWS'!$C$38,"-") -> 0.8093160656 | H16: -2.017336667 | I16: -3.76901484 | J16: =IFERROR((G16-F16)/F16*100,"-") -> -2.39711464
C17: =Codierung!$I$4 -> Bruttowertschöpfung | D17: =IFERROR(AVERAGE('D.8 BWS'!$D$17:$D$21),"-") -> 0.4034014672 | E17: =IFERROR(AVERAGE('D.8 BWS'!$D$22:$D$26),"-") -> 0.4291210047 | F17: =IFERROR('D.8 BWS'!$D$37,"-") -> 0.3861426885 | G17: =IFERROR('D.8 BWS'!$D$38,"-") -> 0.3701377272 | H17: -8.245815305 | I17: -13.74513874 | J17: -4.144830855
C18: =Codierung!$I$5 -> Produzentenpreisanteil am Konsumentenfranken | D18: =IFERROR(AVERAGE('D.8 BWS'!$E$17:$E$21),"-") -> 0.5162763211 | E18: =IFERROR(AVERAGE('D.8 BWS'!$E$22:$E$26),"-") -> 0.4899054236 | F18: =IFERROR('D.8 BWS'!$E$37,"-") -> 0.5343529065 | G18: =IFERROR('D.8 BWS'!$E$38,"-") -> 0.5427106965 | H18: 5.12019908 | I18: 10.77866673 | J18: 1.564095542
B19: =Codierung!$I$10 -> Bodenhaltung | C19: =Codierung!$I$2 -> Einstandspreis | D19: =IFERROR(AVERAGE('D.8 BWS'!$F$17:$F$21),"-") -> 0.2459532685 | E19: =IFERROR(AVERAGE('D.8 BWS'!$F$22:$F$26),"-") -> 0.2307657881 | F19: =IFERROR('D.8 BWS'!$F$37,"-") -> 0.2097173893 | G19: =IFERROR('D.8 BWS'!$F$38,"-") -> 0.2087108966 | H19: -15.14205206 | I19: -9.557262238 | J19: -0.4799281175
C20: =Codierung!$I$3 -> Nettoeinnahmen | D20: =IFERROR(AVERAGE('D.8 BWS'!$G$17:$G$21),"-") -> 0.5290871318 | E20: =IFERROR(AVERAGE('D.8 BWS'!$G$22:$G$26),"-") -> 0.5145905734 | F20: =IFERROR('D.8 BWS'!$G$37,"-") -> 0.4548835043 | G20: =IFERROR('D.8 BWS'!$G$38,"-") -> 0.4291278655 | H20: -18.8927797 | I20: -16.60790389 | J20: -5.662029625
C21: =Codierung!$I$4 -> Bruttowertschöpfung | D21: =IFERROR(AVERAGE('D.8 BWS'!$H$17:$H$21),"-") -> 0.2831338632 | E21: =IFERROR(AVERAGE('D.8 BWS'!$H$22:$H$26),"-") -> 0.2838247853 | F21: =IFERROR('D.8 BWS'!$H$37,"-") -> 0.245166115 | G21: =IFERROR('D.8 BWS'!$H$38,"-") -> 0.220416969 | H21: -22.150969 | I21: -22.34047893 | J21: -10.09484775
C22: =Codierung!$I$5 -> Produzentenpreisanteil am Konsumentenfranken | D22: =IFERROR(AVERAGE('D.8 BWS'!$I$17:$I$21),"-") -> 0.4875036171 | E22: =IFERROR(AVERAGE('D.8 BWS'!$I$22:$I$26),"-") -> 0.3807516422 | F22: =IFERROR('D.8 BWS'!$I$37,"-") -> 0.3718810521 | G22: =IFERROR('D.8 BWS'!$I$38,"-") -> 0.3926127818 | H22: -19.4646423 | I22: 3.115190665 | J22: 5.574828192
B23: =Codierung!$I$11 -> Freilandhaltung | C23: =Codierung!$I$2 -> Einstandspreis | D23: =IFERROR(AVERAGE('D.8 BWS'!$J$17:$J$21),"-") -> 0.278754856 | E23: =IFERROR(AVERAGE('D.8 BWS'!$J$22:$J$26),"-") -> 0.2481396759 | F23: =IFERROR('D.8 BWS'!$J$37,"-") -> 0.2244397166 | G23: =IFERROR('D.8 BWS'!$J$38,"-") -> 0.2263301251 | H23: -18.80675073 | I23: -8.789223516 | J23: 0.8422789543
C24: =Codierung!$I$3 -> Nettoeinnahmen | D24: =IFERROR(AVERAGE('D.8 BWS'!$K$17:$K$21),"-") -> 0.6073715854 | E24: =IFERROR(AVERAGE('D.8 BWS'!$K$22:$K$26),"-") -> 0.6523077993 | F24: =IFERROR('D.8 BWS'!$K$37,"-") -> 0.6035269478 | G24: =IFERROR('D.8 BWS'!$K$38,"-") -> 0.5768092978 | H24: -5.031892883 | I24: -11.57406084 | J24: -4.426919147
C25: =Codierung!$I$4 -> Bruttowertschöpfung | D25: =IFERROR(AVERAGE('D.8 BWS'!$L$17:$L$21),"-") -> 0.3286167294 | E25: =IFERROR(AVERAGE('D.8 BWS'!$L$22:$L$26),"-") -> 0.4041681235 | F25: =IFERROR('D.8 BWS'!$L$37,"-") -> 0.3790872312 | G25: =IFERROR('D.8 BWS'!$L$38,"-") -> 0.3504791727 | H25: 6.652869858 | I25: -13.28381623 | J25: -7.546563469
C26: =Codierung!$I$5 -> Produzentenpreisanteil am Konsumentenfranken | D26: =IFERROR(AVERAGE('D.8 BWS'!$M$17:$M$21),"-") -> 0.4663925012 | E26: =IFERROR(AVERAGE('D.8 BWS'!$M$22:$M$26),"-") -> 0.4487599879 | F26: =IFERROR('D.8 BWS'!$M$37,"-") -> 0.461197902 | G26: =IFERROR('D.8 BWS'!$M$38,"-") -> 0.4875119997 | H26: 4.52826717 | I26: 8.635353614 | J26: 5.705597876
B27: =Codierung!$I$12 -> Inland und Import | C27: =Codierung!$I$2 -> Einstandspreis | D27: =IFERROR(AVERAGE('D.8 BWS'!$N$17:$N$21),"-") -> 0.2074914779 | E27: =IFERROR(AVERAGE('D.8 BWS'!$N$22:$N$26),"-") -> 0.1989029689 | F27: =IFERROR('D.8 BWS'!$N$37,"-") -> 0.2132841869 | G27: =IFERROR('D.8 BWS'!$N$38,"-") -> 0.2231743347 | H27: 7.558313675 | I27: 12.20261615 | J27: 4.63707501
C28: =Codierung!$I$3 -> Nettoeinnahmen | D28: =IFERROR(AVERAGE('D.8 BWS'!$O$17:$O$21),"-") -> 0.4614014567 | E28: =IFERROR(AVERAGE('D.8 BWS'!$O$22:$O$26),"-") -> 0.433015646 | F28: =IFERROR('D.8 BWS'!$O$37,"-") -> 0.4385658017 | G28: =IFERROR('D.8 BWS'!$O$38,"-") -> 0.4654401815 | H28: 0.8753168779 | I28: 7.488074807 | J28: 6.127787385
C29: =Codierung!$I$4 -> Bruttowertschöpfung | D29: =IFERROR(AVERAGE('D.8 BWS'!$P$17:$P$21),"-") -> 0.2539099788 | E29: =IFERROR(AVERAGE('D.8 BWS'!$P$22:$P$26),"-") -> 0.2341126772 | F29: =IFERROR('D.8 BWS'!$P$37,"-") -> 0.2252816147 | G29: =IFERROR('D.8 BWS'!$P$38,"-") -> 0.2422658469 | H29: -4.585929225 | I29: 3.482583599 | J29: 7.539111506
C30: =Codierung!$I$5 -> Produzentenpreisanteil am Konsumentenfranken | D30: =IFERROR(AVERAGE('D.8 BWS'!$Q$17:$Q$21),"-") -> 0.4500073977 | E30: =IFERROR(AVERAGE('D.8 BWS'!$Q$22:$Q$26),"-") -> 0.4594515417 | F30: =IFERROR('D.8 BWS'!$Q$37,"-") -> 0.4871012736 | G30: =IFERROR('D.8 BWS'!$Q$38,"-") -> 0.4801098314 | H30: 6.689319736 | I30: 4.496293466 | J30: -1.43531594
B31: =Codierung!$I$13 -> Konsumeier Import | C31: =Codierung!$I$2 -> Einstandspreis | D31: =IFERROR(AVERAGE('D.8 BWS'!$R$17:$R$21),"-") -> 0.1530965517 | E31: =IFERROR(AVERAGE('D.8 BWS'!$R$22:$R$26),"-") -> 0.1595236181 | F31: =IFERROR('D.8 BWS'!$R$37,"-") -> 0.1360805497 | G31: =IFERROR('D.8 BWS'!$R$38,"-") -> 0.1474673745 | H31: -3.676880484 | I31: -7.557654312 | J31: 8.367709302
C32: =Codierung!$I$3 -> Nettoeinnahmen | D32: =IFERROR(AVERAGE('D.8 BWS'!$S$17:$S$21),"-") -> 0.2790851923 | E32: =IFERROR(AVERAGE('D.8 BWS'!$S$22:$S$26),"-") -> 0.3345766261 | F32: =IFERROR('D.8 BWS'!$S$37,"-") -> 0.2602799388 | G32: =IFERROR('D.8 BWS'!$S$38,"-") -> 0.2648183171 | H32: -5.112014373 | I32: -20.84972575 | J32: 1.743652751
C33: =Codierung!$I$4 -> Bruttowertschöpfung | D33: =IFERROR(AVERAGE('D.8 BWS'!$T$17:$T$21),"-") -> 0.1259886405 | E33: =IFERROR(AVERAGE('D.8 BWS'!$T$22:$T$26),"-") -> 0.175053008 | F33: =IFERROR('D.8 BWS'!$T$37,"-") -> 0.1241993891 | G33: =IFERROR('D.8 BWS'!$T$38,"-") -> 0.1173509426 | H33: -6.855933893 | I33: -32.96262431 | J33: -5.514074223
C34: =Codierung!$I$5 -> Produzentenpreisanteil am Konsumentenfranken | D34: =IFERROR(AVERAGE('D.8 BWS'!$U$17:$U$21),"-") -> 0.4483288064 | E34: =IFERROR(AVERAGE('D.8 BWS'!$U$22:$U$26),"-") -> 0.4779106385 | F34: =IFERROR('D.8 BWS'!$U$37,"-") -> 0.5232942413 | G34: =IFERROR('D.8 BWS'!$U$38,"-") -> 0.5562896031 | H34: 24.08071824 | I34: 16.40033896 | J34: 6.305317185
A36: =Codierung!$I$15 -> Verarbeitung für Gastronomie / Ausserhausverpflegung | B36: =Codierung!$I$9 -> Bio | C36: =Codierung!$I$2 -> Einstandspreis | D36: =IFERROR(AVERAGE('D.8 BWS'!$V$17:$V$21),"-") -> - | E36: =IFERROR(AVERAGE('D.8 BWS'!$V$22:$V$26),"-") -> - | F36: =IFERROR('D.8 BWS'!$V$37,"-") -> 0.4430500783 | G36: =IFERROR('D.8 BWS'!$V$38,"-") -> 0.4391783384 | H36: =IFERROR((G36-D36)/D36*100,"-") -> - | I36: =IFERROR((G36-E36)/E36*100,"-") -> - | J36: =IFERROR((G36-F36)/F36*100,"-") -> -0.8738831346
C37: =Codierung!$I$3 -> Nettoeinnahmen | D37: =IFERROR(AVERAGE('D.8 BWS'!$W$17:$W$21),"-") -> - | E37: =IFERROR(AVERAGE('D.8 BWS'!$W$22:$W$26),"-") -> - | F37: =IFERROR('D.8 BWS'!$W$37,"-") -> 0.7131974354 | G37: =IFERROR('D.8 BWS'!$W$38,"-") -> 0.7349944198 | H37: - | I37: - | J37: 3.056234266
C38: =Codierung!$I$4 -> Bruttowertschöpfung | D38: =IFERROR(AVERAGE('D.8 BWS'!$X$17:$X$21),"-") -> - | E38: =IFERROR(AVERAGE('D.8 BWS'!$X$22:$X$26),"-") -> - | F38: =IFERROR('D.8 BWS'!$X$37,"-") -> 0.2701473571 | G38: =IFERROR('D.8 BWS'!$X$38,"-") -> 0.2958160814 | H38: - | I38: - | J38: 9.501749191
C39: =Codierung!$I$6 -> Produzentenpreisanteil am Gastronomenfranken | D39: =IFERROR(AVERAGE('D.8 BWS'!$Y$17:$Y$21),"-") -> - | E39: =IFERROR(AVERAGE('D.8 BWS'!$Y$22:$Y$26),"-") -> - | F39: =IFERROR('D.8 BWS'!$Y$37,"-") -> 0.6218997719 | G39: =IFERROR('D.8 BWS'!$Y$38,"-") -> 0.5977717085 | H39: - | I39: - | J39: -3.879735046
B40: =Codierung!$I$10 -> Bodenhaltung | C40: =Codierung!$I$2 -> Einstandspreis | D40: =IFERROR(AVERAGE('D.8 BWS'!$Z$17:$Z$21),"-") -> - | E40: =IFERROR(AVERAGE('D.8 BWS'!$Z$22:$Z$26),"-") -> - | F40: =IFERROR('D.8 BWS'!$Z$37,"-") -> 0.2097173893 | G40: =IFERROR('D.8 BWS'!$Z$38,"-") -> 0.2087108966 | H40: - | I40: - | J40: -0.4799281175
C41: =Codierung!$I$3 -> Nettoeinnahmen | D41: =IFERROR(AVERAGE('D.8 BWS'!$AA$17:$AA$21),"-") -> - | E41: =IFERROR(AVERAGE('D.8 BWS'!$AA$22:$AA$26),"-") -> - | F41: =IFERROR('D.8 BWS'!$AA$37,"-") -> 0.3917848446 | G41: =IFERROR('D.8 BWS'!$AA$38,"-") -> 0.3981282235 | H41: - | I41: - | J41: 1.619097575
C42: =Codierung!$I$4 -> Bruttowertschöpfung | D42: =IFERROR(AVERAGE('D.8 BWS'!$AB$17:$AB$21),"-") -> - | E42: =IFERROR(AVERAGE('D.8 BWS'!$AB$22:$AB$26),"-") -> - | F42: =IFERROR('D.8 BWS'!$AB$37,"-") -> 0.1820674553 | G42: =IFERROR('D.8 BWS'!$AB$38,"-") -> 0.189417327 | H42: - | I42: - | J42: 4.0368948
C43: =Codierung!$I$6 -> Produzentenpreisanteil am Gastronomenfranken | D43: =IFERROR(AVERAGE('D.8 BWS'!$AC$17:$AC$21),"-") -> - | E43: =IFERROR(AVERAGE('D.8 BWS'!$AC$22:$AC$26),"-") -> - | F43: =IFERROR('D.8 BWS'!$AC$37,"-") -> 0.5353929789 | G43: =IFERROR('D.8 BWS'!$AC$38,"-") -> 0.5253399333 | H43: - | I43: - | J43: -1.877694702
B44: =Codierung!$I$11 -> Freilandhaltung | C44: =Codierung!$I$2 -> Einstandspreis | D44: =IFERROR(AVERAGE('D.8 BWS'!$AD$17:$AD$21),"-") -> - | E44: =IFERROR(AVERAGE('D.8 BWS'!$AD$22:$AD$26),"-") -> - | F44: =IFERROR('D.8 BWS'!$AD$37,"-") -> 0.2244397166 | G44: =IFERROR('D.8 BWS'!$AD$38,"-") -> 0.2263301251 | H44: - | I44: - | J44: 0.8422789543
C45: =Codierung!$I$3 -> Nettoeinnahmen | D45: =IFERROR(AVERAGE('D.8 BWS'!$AE$17:$AE$21),"-") -> - | E45: =IFERROR(AVERAGE('D.8 BWS'!$AE$22:$AE$26),"-") -> - | F45: =IFERROR('D.8 BWS'!$AE$37,"-") -> 0.5336549784 | G45: =IFERROR('D.8 BWS'!$AE$38,"-") -> 0.5253485102 | H45: - | I45: - | J45: -1.556524077
C46: =Codierung!$I$4 -> Bruttowertschöpfung | D46: =IFERROR(AVERAGE('D.8 BWS'!$AF$17:$AF$21),"-") -> - | E46: =IFERROR(AVERAGE('D.8 BWS'!$AF$22:$AF$26),"-") -> - | F46: =IFERROR('D.8 BWS'!$AF$37,"-") -> 0.3092152618 | G46: =IFERROR('D.8 BWS'!$AF$38,"-") -> 0.299018385 | H46: - | I46: - | J46: -3.297662821
C47: =Codierung!$I$6 -> Produzentenpreisanteil am Gastronomenfranken | D47: =IFERROR(AVERAGE('D.8 BWS'!$AG$17:$AG$21),"-") -> - | E47: =IFERROR(AVERAGE('D.8 BWS'!$AG$22:$AG$26),"-") -> - | F47: =IFERROR('D.8 BWS'!$AG$37,"-") -> 0.420575216 | G47: =IFERROR('D.8 BWS'!$AG$38,"-") -> 0.4309484292 | H47: - | I47: - | J47: 2.466434724
B48: =Codierung!$I$12 -> Inland und Import | C48: =Codierung!$I$2 -> Einstandspreis | D48: =IFERROR(AVERAGE('D.8 BWS'!$AH$17:$AH$21),"-") -> - | E48: =IFERROR(AVERAGE('D.8 BWS'!$AH$22:$AH$26),"-") -> - | F48: =IFERROR('D.8 BWS'!$AH$37,"-") -> 0.2132841869 | G48: =IFERROR('D.8 BWS'!$AH$38,"-") -> 0.2231743347 | H48: - | I48: - | J48: 4.63707501
C49: =Codierung!$I$3 -> Nettoeinnahmen | D49: =IFERROR(AVERAGE('D.8 BWS'!$AI$17:$AI$21),"-") -> - | E49: =IFERROR(AVERAGE('D.8 BWS'!$AI$22:$AI$26),"-") -> - | F49: =IFERROR('D.8 BWS'!$AI$37,"-") -> 0.4244253353 | G49: =IFERROR('D.8 BWS'!$AI$38,"-") -> 0.4250418557 | H49: - | I49: - | J49: 0.145260041
C50: =Codierung!$I$4 -> Bruttowertschöpfung | D50: =IFERROR(AVERAGE('D.8 BWS'!$AJ$17:$AJ$21),"-") -> - | E50: =IFERROR(AVERAGE('D.8 BWS'!$AJ$22:$AJ$26),"-") -> - | F50: =IFERROR('D.8 BWS'!$AJ$37,"-") -> 0.2111411484 | G50: =IFERROR('D.8 BWS'!$AJ$38,"-") -> 0.2018675211 | H50: - | I50: - | J50: -4.392145912
C51: =Codierung!$I$6 -> Produzentenpreisanteil am Gastronomenfranken | D51: =IFERROR(AVERAGE('D.8 BWS'!$AK$17:$AK$21),"-") -> - | E51: =IFERROR(AVERAGE('D.8 BWS'!$AK$22:$AK$26),"-") -> - | F51: =IFERROR('D.8 BWS'!$AK$37,"-") -> 0.5024344244 | G51: =IFERROR('D.8 BWS'!$AK$38,"-") -> 0.5259948186 | H51: - | I51: - | J51: 4.689247599
B52: =Codierung!$I$13 -> Konsumeier Import | C52: =Codierung!$I$2 -> Einstandspreis | D52: =IFERROR(AVERAGE('D.8 BWS'!$AL$17:$AL$21),"-") -> - | E52: =IFERROR(AVERAGE('D.8 BWS'!$AL$22:$AL$26),"-") -> - | F52: =IFERROR('D.8 BWS'!$AL$37,"-") -> 0.1360805497 | G52: =IFERROR('D.8 BWS'!$AL$38,"-") -> 0.1474673745 | H52: - | I52: - | J52: 8.367709302
C53: =Codierung!$I$3 -> Nettoeinnahmen | D53: =IFERROR(AVERAGE('D.8 BWS'!$AM$17:$AM$21),"-") -> - | E53: =IFERROR(AVERAGE('D.8 BWS'!$AM$22:$AM$26),"-") -> - | F53: =IFERROR('D.8 BWS'!$AM$37,"-") -> 0.3321947166 | G53: =IFERROR('D.8 BWS'!$AM$38,"-") -> 0.3458574912 | H53: - | I53: - | J53: 4.112881381
C54: =Codierung!$I$4 -> Bruttowertschöpfung | D54: =IFERROR(AVERAGE('D.8 BWS'!$AN$17:$AN$21),"-") -> - | E54: =IFERROR(AVERAGE('D.8 BWS'!$AN$22:$AN$26),"-") -> - | F54: =IFERROR('D.8 BWS'!$AN$37,"-") -> 0.1961141669 | G54: =IFERROR('D.8 BWS'!$AN$38,"-") -> 0.1983901167 | H54: - | I54: - | J54: 1.160522907
C55: =Codierung!$I$6 -> Produzentenpreisanteil am Gastronomenfranken | D55: =IFERROR(AVERAGE('D.8 BWS'!$AO$17:$AO$21),"-") -> - | E55: =IFERROR(AVERAGE('D.8 BWS'!$AO$22:$AO$26),"-") -> - | F55: =IFERROR('D.8 BWS'!$AO$37,"-") -> 0.409692795 | G55: =IFERROR('D.8 BWS'!$AO$38,"-") -> 0.428209269 | H55: - | I55: - | J55: 4.519599632

Sheet 9. Int.
E1: =Codierung!I184 -> Eidgenössisches Departement für Wirtschaft, Bildung und Forschung WBF
E2: =Codierung!I185 -> Bundesamt für Landwirtschaft BLW
E3: =Codierung!I186 -> Fachbereich Marktanalysen
E5: =Codierung!I242 -> Anmerkungen:
A6: =Codierung!I179 -> Internationale Marktzahlen | E6: (2) | F6: =Codierung!I254 -> Nur Kleinmengen (Absatz von 1 bis 15 Kartons)
A7: =Codierung!$I$218 -> in Euro / Ei | E7: (3) | F7: =Codierung!I250 -> Produzentenpreise für Eier, welche an Feinkostläden und den Fachhandel geliefert werden (darum nicht repräsentativ für Gesamtmarkt, wo durchschnittlich tiefere Preise ausbezahlt werden)
A8: =Codierung!$I$223 -> in Stück / Kopf | F8: =Codierung!I256 -> Aufbereitete Grafiken unterhalb der Datentabellen
A9: =Codierung!$I$212 -> Quellen Preise: AMA Österreich; GfK Austria MEG Deutschland; AMI Deutschland
A10: =Codierung!$I$214 -> Quellen Pro-Kopf-Verbrauch: BLE; Statistik Austria; EU; USDA; Agri-Food & Veterinary Authority of Singapore
A11: =Codierung!$I$154 -> Zurück zum Inhaltsverzeichnis
A12: =Codierung!$I$253 -> Informationen zur Methodik | E12: =Codierung!$I$252&'D.9 Int.'!$A$18&"-"&'D.9 Int.'!$A$22 -> Ø 2006-2010 | F12: ='D.9 Int.'!$A$33 -> 2021 | G12: ='D.9 Int.'!$A$34 -> 2022 | H12: =Codierung!$J$237&" "&E12 -> %-∆ Ø 2006-2010 | I12: =Codierung!$I$233 -> %-∆ Vorjahr
A14: =Codierung!$I$120 -> Wechselkurs CHF/Euro | E14: =IFERROR(AVERAGE('D.9 Int.'!$B16:$C$22),"-") -> 1.055265776 | F14: =IFERROR('D.9 Int.'!$B$33,"-") -> 1.081 | G14: =IFERROR('D.9 Int.'!$B$34,"-") -> 1.0048 | H14: =IFERROR((G14-E14)/E14*100,"-") -> -4.782281155 | I14: =IFERROR((G14-F14)/F14*100,"-") -> -7.049028677
A16: =Codierung!$I$104 -> Produzentenpreise International | B16: =Codierung!$I$188 -> Deutschland | C16: =Codierung!$I$10 -> Bodenhaltung | D16: L: 63 - 73 g | E16: =IFERROR(AVERAGE('D.9 Int.'!$C18:$C$22),"-") -> 0.08548005051 | F16: =IFERROR('D.9 Int.'!$C$33,"-") -> 0.07614166667 | G16: =IFERROR('D.9 Int.'!$C$34,"-") -> 0.1206333333 | H16: =IFERROR((G16-E16)/E16*100,"-") -> 41.12454616 | I16: =IFERROR((G16-F16)/F16*100,"-") -> 58.43274598
D17: M: 53 - 63 g | E17: =IFERROR(AVERAGE('D.9 Int.'!$D18:$D$22),"-") -> 0.07755151515 | F17: =IFERROR('D.9 Int.'!$D$33,"-") -> 0.06695 | G17: =IFERROR('D.9 Int.'!$D$34,"-") -> 0.108975 | H17: 40.51949828 | I17: 62.77072442
D18: S: < 53 g | E18: =IFERROR(AVERAGE('D.9 Int.'!$E18:$E$22),"-") -> - | F18: =IFERROR('D.9 Int.'!$E$33,"-") -> 0.05333333333 | G18: =IFERROR('D.9 Int.'!$E$34,"-") -> 0.08914166667 | H18: - | I18: 67.140625
C19: =Codierung!$I$77 -> Freilandhaltung (2) | D19: L: 63 - 73 g | E19: =IFERROR(AVERAGE('D.9 Int.'!$E19:$E$22),"-") -> - | F19: =IFERROR('D.9 Int.'!$F$33,"-") -> 0.1787166667 | G19: =IFERROR('D.9 Int.'!$F$34,"-") -> 0.2150666667 | H19: - | I19: =IFERROR((G19-F19)/F19*100,"-") -> 20.33945724
D20: M: 53 - 63 g | E20: =IFERROR(AVERAGE('D.9 Int.'!$E20:$E$22),"-") -> - | F20: =IFERROR('D.9 Int.'!$G$33,"-") -> 0.161725 | G20: =IFERROR('D.9 Int.'!$G$34,"-") -> 0.1990083333 | H20: - | I20: 23.05353738
D21: S: < 53 g | E21: =IFERROR(AVERAGE('D.9 Int.'!$E21:$H$22),"-") -> - | F21: =IFERROR('D.9 Int.'!$H$33,"-") -> 0.119375 | G21: =IFERROR('D.9 Int.'!$H$34,"-") -> 0.1492083333 | H21: - | I21: 24.991274
C22: =Codierung!$I$76 -> Bio (3) | D22: L: 63 - 73 g | E22: =IFERROR(AVERAGE('D.9 Int.'!$I18:$I$22),"-") -> - | F22: =IFERROR('D.9 Int.'!$I$33,"-") -> 0.262 | G22: =IFERROR('D.9 Int.'!$I$34,"-") -> 0.205825 | H22: - | I22: -21.44083969
D23: M: 53 - 63 g | E23: =IFERROR(AVERAGE('D.9 Int.'!$J18:$J$22),"-") -> - | F23: =IFERROR('D.9 Int.'!$J$33,"-") -> 0.2588666667 | G23: =IFERROR('D.9 Int.'!$J$34,"-") -> 0.2022083333 | H23: - | I23: -21.88707185
D24: S: < 53 g | E24: =IFERROR(AVERAGE('D.9 Int.'!$K18:$K$22),"-") -> - | F24: =IFERROR('D.9 Int.'!$K$33,"-") -> 0.2001333333 | G24: =IFERROR('D.9 Int.'!$K$34,"-") -> 0.1662166667 | H24: - | I24: -16.94703531
B25: =Codierung!$I$190 -> Österreich | C25: =Codierung!$I$9 -> Bio | D25: L: 63 - 73 g | E25: =IFERROR(AVERAGE('D.9 Int.'!$L18:$L$22),"-") -> 0.1981282828 | F25: =IFERROR('D.9 Int.'!$L$33,"-") -> 0.2824333333 | G25: =IFERROR('D.9 Int.'!$L$34,"-") -> 0.324075 | H25: 63.56826768 | I25: =IFERROR((G25-F25)/F25*100,"-") -> 14.74389236
D26: M: 53 - 63 g | E26: =IFERROR(AVERAGE('D.9 Int.'!$M18:$M$22),"-") -> 0.1862861111 | F26: =IFERROR('D.9 Int.'!$M$33,"-") -> 0.2704166667 | G26: =IFERROR('D.9 Int.'!$M$34,"-") -> 0.3098833333 | H26: 66.34806078 | I26: 14.59476117
D27: S: < 53 g | E27: =IFERROR(AVERAGE('D.9 Int.'!$N18:$N$22),"-") -> 0.2011143939 | F27: - | G27: - | H27: - | I27: -
C28: =Codierung!$I$10 -> Bodenhaltung | D28: L: 63 - 73 g | E28: =IFERROR(AVERAGE('D.9 Int.'!$O18:$O$22),"-") -> 0.1020766667 | F28: =IFERROR('D.9 Int.'!$O$33,"-") -> 0.1272416667 | G28: =IFERROR('D.9 Int.'!$O$34,"-") -> 0.1663583333 | H28: 62.9739085 | I28: 30.74202633
D29: M: 53 - 63 g | E29: =IFERROR(AVERAGE('D.9 Int.'!$P18:$P$22),"-") -> 0.09039166667 | F29: =IFERROR('D.9 Int.'!$P$33,"-") -> 0.11245 | G29: =IFERROR('D.9 Int.'!$P$34,"-") -> 0.1510916667 | H29: 67.15220798 | I29: 34.36342078
D30: S: < 53 g | E30: =IFERROR(AVERAGE('D.9 Int.'!$Q18:$Q$22),"-") -> 0.1152016667 | F30: =IFERROR('D.9 Int.'!$Q$33,"-") -> - | G30: =IFERROR('D.9 Int.'!$Q$34,"-") -> - | H30: - | I30: -
C31: =Codierung!$I$11 -> Freilandhaltung | D31: L: 63 - 73 g | E31: =IFERROR(AVERAGE('D.9 Int.'!$R18:$R$22),"-") -> 0.1185725 | F31: =IFERROR('D.9 Int.'!$R$33,"-") -> 0.1451416667 | G31: =IFERROR('D.9 Int.'!$R$34,"-") -> 0.1872083333 | H31: 57.88511951 | I31: 28.98317736
D32: M: 53 - 63 g | E32: =IFERROR(AVERAGE('D.9 Int.'!$S18:$S$22),"-") -> 0.13445875 | F32: =IFERROR('D.9 Int.'!$S$33,"-") -> 0.195975 | G32: =IFERROR('D.9 Int.'!$S$34,"-") -> 0.2583916667 | H32: 92.17170074 | I32: 31.84930051
D33: S: < 53 g | E33: =IFERROR(AVERAGE('D.9 Int.'!$T18:$T$22),"-") -> 0 | F33: =IFERROR('D.9 Int.'!$T$33,"-") -> - | G33: =IFERROR('D.9 Int.'!$T$34,"-") -> - | H33: - | I33: -
A35: =Codierung!$I$103 -> Konsumentenpreise International | B35: =Codierung!$I$188 -> Deutschland | C35: =Codierung!$I$9 -> Bio | D35: =Codierung!$I$119 -> M, 10er Packung | E35: =IFERROR(AVERAGE('D.9 Int.'!$U18:$U$22),"-") -> 0.28225 | F35: =IFERROR('D.9 Int.'!$U$33,"-") -> 0.3420833333 | G35: =IFERROR('D.9 Int.'!$U$34,"-") -> 0.3611666667 | H35: =IFERROR((G35-E35)/E35*100,"-") -> 27.95984647 | I35: 5.578562728
C36: =Codierung!$I$10 -> Bodenhaltung | D36: =Codierung!$I$119 -> M, 10er Packung | E36: =IFERROR(AVERAGE('D.9 Int.'!$V18:$V$22),"-") -> 0.1379444444 | F36: =IFERROR('D.9 Int.'!$V$33,"-") -> 0.15575 | G36: =IFERROR('D.9 Int.'!$V$34,"-") -> 0.1946666667 | H36: 41.11961337 | I36: 24.98662386
C37: =Codierung!$I$11 -> Freilandhaltung | D37: =Codierung!$I$119 -> M, 10er Packung | E37: =IFERROR(AVERAGE('D.9 Int.'!$W18:$W$22),"-") -> 0.1711388889 | F37: =IFERROR('D.9 Int.'!$W$33,"-") -> 0.216 | G37: =IFERROR('D.9 Int.'!$W$34,"-") -> 0.2434166667 | H37: 42.23340367 | I37: 12.69290123
B38: =Codierung!$I$190 -> Österreich | C38: =Codierung!$I$9 -> Bio | D38: =Codierung!$I$117 -> M, 6er und 10er Packung | E38: =IFERROR(AVERAGE('D.9 Int.'!$X18:$X$22),"-") -> 0.3873808328 | F38: - | G38: - | H38: - | I38: -
C39: =Codierung!$I$9 -> Bio | D39: =Codierung!$I$118 -> M, 4er und 6er Packung | E39: =IFERROR(AVERAGE('D.9 Int.'!$Y18:$Y$22),"-") -> 0.4026461341 | F39: =IFERROR('D.9 Int.'!$Y$33,"-") -> 0.5176694581 | G39: =IFERROR('D.9 Int.'!$Y$34,"-") -> 0.5580537289 | H39: 38.59656944 | I39: 7.801169291
C40: =Codierung!$I$10 -> Bodenhaltung | D40: =Codierung!$I$117 -> M, 6er und 10er Packung | E40: =IFERROR(AVERAGE('D.9 Int.'!$Z18:$Z$22),"-") -> 0.1979188635 | F40: =IFERROR('D.9 Int.'!$Z$33,"-") -> 0.2107276845 | G40: =IFERROR('D.9 Int.'!$Z$34,"-") -> 0.2638007805 | H40: 33.28733595 | I40: 25.18563051
C41: =Codierung!$I$11 -> Freilandhaltung | D41: =Codierung!$I$117 -> M, 6er und 10er Packung | E41: =IFERROR(AVERAGE('D.9 Int.'!$AA18:$AA$22),"-") -> 0.3367026314 | F41: =IFERROR('D.9 Int.'!$AA$33,"-") -> 0.332120131 | G41: =IFERROR('D.9 Int.'!$AA$34,"-") -> 0.3464831437 | H41: 2.904792374 | I41: 4.324643839
A43: =Codierung!$I$105 -> Pro-Kopf-Verbrauch International | B43: =Codierung!$I$187 -> Schweiz | C43: =Codierung!$I$28 -> Schaleneier | D43: =Codierung!$I$223 -> in Stück / Kopf | E43: ='1. Prod + AH + Verbrauch'!F44 -> 174.9652131 | F43: ='1. Prod + AH + Verbrauch'!G44 -> 195.1646458 | G43: =IF('1. Prod + AH + Verbrauch'!H44=0,"-",'1. Prod + AH + Verbrauch'!H44) -> 185.6365879 | H43: =IFERROR((G43-E43)/E43*100,"-") -> 6.09914085 | I43: =IFERROR((G43-F43)/F43*100,"-") -> -4.882061413
B44: =Codierung!$I$188 -> Deutschland | D44: =Codierung!$I$223 -> in Stück / Kopf | E44: =AVERAGE('D.9 Int.'!$AB$18:$AB$22) -> 210 | F44: ='D.9 Int.'!$AB$33 -> 237.5080077 | G44: =IF('D.9 Int.'!$AB$34=0,"-",'D.9 Int.'!$AB$34) -> - | H44: - | I44: =IFERROR((G44-F44)/F44*100,"-") -> -
B45: =Codierung!$I$190 -> Österreich | D45: =Codierung!$I$223 -> in Stück / Kopf | E45: =AVERAGE('D.9 Int.'!$AC$18:$AC$22) -> 234.89027 | F45: ='D.9 Int.'!$AC$33 -> 233 | G45: =IF('D.9 Int.'!$AC$34=0,"-",'D.9 Int.'!$AC$34) -> - | H45: - | I45: -
B46: =Codierung!$I$195 -> EU-15 | D46: =Codierung!$I$223 -> in Stück / Kopf | E46: =AVERAGE('D.9 Int.'!$AD$18:$AD$22) -> 223.5155684 | F46: ='D.9 Int.'!$AD$33 -> 229.2910428 | G46: =IF('D.9 Int.'!$AD$34=0,"-",'D.9 Int.'!$AD$34) -> - | H46: - | I46: =IFERROR((G46-F46)/F46*100,"-") -> -
B47: =Codierung!$I$196 -> USA | D47: =Codierung!$I$223 -> in Stück / Kopf | E47: =AVERAGE('D.9 Int.'!$AE$18:$AE$22) -> 246.9101496 | F47: ='D.9 Int.'!$AE$33 -> 280.4938 | G47: =IF('D.9 Int.'!$AE$34=0,"-",'D.9 Int.'!$AE$34) -> - | H47: - | I47: -
B48: =Codierung!$I$197 -> Singapur | D48: =Codierung!$I$223 -> in Stück / Kopf | E48: =AVERAGE('D.9 Int.'!$AF$18:$AF$22) -> 299.6 | F48: ='D.9 Int.'!$AF$33 -> 390 | G48: =IF('D.9 Int.'!$AF$34=0,"-",'D.9 Int.'!$AF$34) -> - | H48: - | I48: -

Sheet Dashboard

Sheet D.1 Prod + AH + Verbrauch
H1: =Codierung!I184 -> Eidgenössisches Departement für Wirtschaft, Bildung und Forschung WBF
H2: =Codierung!I185 -> Bundesamt für Landwirtschaft BLW
H3: =Codierung!I186 -> Fachbereich Marktanalysen
F5: =Codierung!I242 -> Anmerkungen:
A6: =Codierung!$I$170 -> Produktion, Aussenhandel und Verbrauch | F6: (1) | G6: =Codierung!$I$243 -> Schätzung PaKo (paritätische Kommission Eier)
A7: =Codierung!$I$222 -> in Mio. Stück | F7: (2) | G7: =Codierung!$I$244 -> Schätzung Agristat (SBV)
A8: =Codierung!$I$224 -> in % | F8: (3) | G8: =Codierung!$I$245 -> Bis 2015: Berechnung/Schätzung Aviforum; ab 2016: Erhebung BLW
A9: =Codierung!$I$223 -> in Stück / Kopf | F9: (4) | G9: =Codierung!$I$246 -> Verbrauch und Importe nun bereinigt (ohne Veredelungsverkehr)
A10: =Codierung!I210 -> Quellen: BLW, Fachbereich Marktanalysen; SBV; EZV; Aviforum | F10: (5) | G10: =Codierung!$I$251 -> Umrechnungsfaktoren: Eiprodukte getrocknet 80 Eier / kg; Eiprodukte flüssig 20.58 Eier / kg; Schaleneier 16.6 Eier / kg
A11: =Codierung!I215 -> Publikationsrecht: Weiterverarbeitung und Publikation unter Quellenangabe gestattet. | F11: (6) | G11: =Codierung!$I$260 -> 2017: Erweiterung Erhebung Kükenstatistik aufgrund angepasster Marktverhältnisse (Erhöhung Inlandproduktion um ca. 17 Mio. Eier bzw. ca. + 2 Eier / Kopf)
F12: (7) | G12: =Codierung!$I$265 -> Erhebung Schweizer Vearbeitungseiermengen seit 2020 (rückwirkend bis 2016) direkt bei den Betrieben und Verarbeitungsunternehmen
A13: =Codierung!$I$154 -> Zurück zum Inhaltsverzeichnis
A14: =Codierung!$I$253 -> Informationen zur Methodik
B15: =Codierung!$I$27 -> Bevölkerung | C15: =Codierung!$I$28 -> Schaleneier | G15: =Codierung!$I$29 -> Eiprodukte (5) | K15: =Codierung!$I$30 -> Verbrauch Inland | X15: =Codierung!$I$31 -> Pro-Kopf-Verbrauch
C16: =Codierung!$I$32 -> Inland | D16: =Codierung!$I$33 -> Import (abzügl. Exporte und Rückwaren) | G16: =Codierung!$I$32 -> Inland | H16: =Codierung!$I$33 -> Import (abzügl. Exporte und Rückwaren) | K16: =Codierung!$I$34 -> Schaleneier (exkl. Verarbeitungseier) | P16: =Codierung!$I$35 -> Eiprodukte (inkl. Verarbeitungseier) | U16: =Codierung!$I$36 -> Total | X16: =Codierung!$I$36 -> Total | AA16: =Codierung!$I$28 -> Schaleneier | AD16: =Codierung!$I$37 -> Eiprodukte
B17: =Codierung!$I$38 -> Ø-Bevölkerung inkl. Tourismus und Grenzgänger (2) | C17: =Codierung!$I$39 -> Produktion Total | D17: =Codierung!$I$40 -> Konsumeier | E17: =Codierung!$I$41 -> Verarbeitungseier | F17: =Codierung!$I$36 -> Total | G17: =Codierung!$I$42 -> Verarbeitung CH-Eier zu Eiprodukten (3) | H17: =Codierung!$I$43 -> Eiprodukte flüssig | I17: =Codierung!$I$44 -> Eiprodukte getrocknet | J17: =Codierung!$I$41 -> Verarbeitungseier | K17: =Codierung!$I$32 -> Inland | L17: =Codierung!$I$45 -> Import | M17: =Codierung!$I$36 -> Total | N17: =Codierung!$I$46 -> Anteil Inland | O17: =Codierung!$I$47 -> Anteil Import | P17: =Codierung!$I$48 -> Inland (3) | Q17: =Codierung!$I$45 -> Import | R17: =Codierung!$I$36 -> Total | S17: =Codierung!$I$46 -> Anteil Inland | T17: =Codierung!$I$47 -> Anteil Import | V17: =Codierung!$I$46 -> Anteil Inland | W17: =Codierung!$I$47 -> Anteil Import | X17: =Codierung!$I$32 -> Inland | Y17: =Codierung!$I$45 -> Import | Z17: =Codierung!$I$36 -> Total | AA17: =Codierung!$I$32 -> Inland | AB17: =Codierung!$I$45 -> Import | AC17: =Codierung!$I$36 -> Total | AD17: =Codierung!$I$32 -> Inland | AE17: =Codierung!$I$45 -> Import | AF17: =Codierung!$I$36 -> Total
B18: =Codierung!$I$225 -> in Anz. Personen | C18: =Codierung!$I$222 -> in Mio. Stück | D18: In Mio. Stück | E18: =Codierung!$I$222 -> in Mio. Stück | F18: =Codierung!$I$222 -> in Mio. Stück | G18: =Codierung!$I$222 -> in Mio. Stück | H18: =Codierung!$I$222 -> in Mio. Stück | I18: =Codierung!$I$222 -> in Mio. Stück | J18: =Codierung!$I$222 -> in Mio. Stück | K18: =Codierung!$I$222 -> in Mio. Stück | L18: =Codierung!$I$222 -> in Mio. Stück | M18: =Codierung!$I$222 -> in Mio. Stück | N18: =Codierung!$I$224 -> in % | O18: =Codierung!$I$224 -> in % | P18: =Codierung!$I$222 -> in Mio. Stück | Q18: =Codierung!$I$222 -> in Mio. Stück | R18: =Codierung!$I$222 -> in Mio. Stück | S18: =Codierung!$I$224 -> in % | T18: =Codierung!$I$224 -> in % | U18: =Codierung!$I$222 -> in Mio. Stück | V18: =Codierung!$I$224 -> in % | W18: =Codierung!$I$224 -> in % | X18: =Codierung!$I$223 -> in Stück / Kopf | Y18: =Codierung!$I$223 -> in Stück / Kopf | Z18: =Codierung!$I$223 -> in Stück / Kopf | AA18: =Codierung!$I$223 -> in Stück / Kopf | AB18: =Codierung!$I$223 -> in Stück / Kopf | AC18: =Codierung!$I$223 -> in Stück / Kopf | AD18: =Codierung!$I$223 -> in Stück / Kopf | AE18: =Codierung!$I$223 -> in Stück / Kopf | AF18: =Codierung!$I$223 -> in Stück / Kopf
A19: 1975 | B19: 6487000 | C19: 719 | D19: 364 | F19: 364 | H19: 188 | K19: 719 | L19: 364 | M19: 1083 | Q19: 188 | R19: 188 | U19: 1271 | X19: 110.8370587 | Y19: 85.09326345 | Z19: 195.9303222 | AA19: 110.8370587 | AB19: 56.11222445 | AC19: 166.9492832 | AE19: 28.981039 | AF19: 28.981039
A20: 1980 | B20: 6329000 | C20: 749 | D20: 422.319 | F20: 422.319 | H20: 203.844 | K20: 749 | L20: 422.319 | M20: 1171.319 | Q20: 203.844 | R20: 203.844 | U20: 1375.163 | X20: 118.3441302 | Y20: 98.93553484 | Z20: 217.279665 | AA20: 118.3441302 | AB20: 66.7276031 | AC20: 185.0717333 | AE20: 32.20793174 | AF20: 32.20793174
A21: 1985 | B21: 6624000 | C21: 761 | D21: 495 | F21: 495 | H21: 201 | K21: 761 | L21: 495 | M21: 1256 | Q21: 201 | R21: 201 | U21: 1457 | X21: 114.8852657 | Y21: 105.0724638 | Z21: 219.9577295 | AA21: 114.8852657 | AB21: 74.72826087 | AC21: 189.6135266 | AE21: 30.3442029 | AF21: 30.3442029
A22: 1990 | B22: 6850000 | C22: 637 | D22: 512 | F22: 512 | H22: 219 | K22: 637 | L22: 512 | M22: 1149 | Q22: 219 | R22: 219 | U22: 1368 | X22: 92.99270073 | Y22: 106.7153285 | Z22: 199.7080292 | AA22: 92.99270073 | AB22: 74.74452555 | AC22: 167.7372263 | AE22: 31.97080292 | AF22: 31.97080292
A23: 1995 | B23: 7161000 | C23: 591.85 | D23: 260.998 | E23: 151.219 | F23: 412.217 | G23: 28.009 | H23: 201.576 | I23: 73.605 | J23: 151.219 | K23: 563.841 | L23: 260.998 | M23: 824.839 | N23: 0.6835770375 | O23: 0.3164229625 | P23: 28.009 | Q23: 426.4 | R23: 454.409 | S23: 0.06163830382 | T23: 0.9383616962 | U23: 1279.248 | V23: 0.4626546221 | W23: 0.5373453779 | X23: 82.64907136 | Y23: 95.99190057 | Z23: 178.6409719 | AA23: 78.73774612 | AB23: 36.44714425 | AC23: 115.1848904 | AD23: 3.911325234 | AE23: 59.54475632 | AF23: 63.45608155
A24: 1996 | B24: 7160000 | C24: 653.87 | D24: 285.097 | E24: 156.556 | F24: 441.653 | G24: 26.368 | H24: 183.708 | I24: 50.511 | J24: 156.556 | K24: 627.502 | L24: 285.097 | M24: 912.599 | N24: 0.6875988249 | O24: 0.3124011751 | P24: 26.368 | Q24: 390.775 | R24: 417.143 | S24: 0.06321093726 | T24: 0.9367890627 | U24: 1329.742 | V24: 0.4917269666 | W24: 0.5082730334 | X24: 91.3226257 | Y24: 94.39553073 | Z24: 185.7181564 | AA24: 87.63994413 | AB24: 39.81801676 | AC24: 127.4579609 | AD24: 3.682681564 | AE24: 54.57751397 | AF24: 58.26019553
A25: 1997 | B25: 7160000 | C25: 663.03 | D25: 249.593 | E25: 127.285 | F25: 376.878 | G25: 25 | H25: 218.488 | I25: 57.208 | J25: 127.285 | K25: 638.03 | L25: 249.593 | M25: 887.623 | N25: 0.7188074216 | O25: 0.2811925784 | P25: 25 | Q25: 402.981 | R25: 427.981 | S25: 0.05841380809 | T25: 0.9415861919 | U25: 1315.604 | V25: 0.5039738402 | W25: 0.4960261598 | X25: 92.60195531 | Y25: 91.14162011 | Z25: 183.7435754 | AA25: 89.1103352 | AB25: 34.85935754 | AC25: 123.9696927 | AD25: 3.491620112 | AE25: 56.28226257 | AF25: 59.77388268
A26: 1998 | B26: 7230000 | C26: 691.39 | D26: 229.366 | E26: 145.8 | F26: 375.166 | G26: 25 | H26: 226.429 | I26: 81.486 | J26: 145.8 | K26: 666.39 | L26: 229.366 | M26: 895.756 | N26: 0.7439414305 | O26: 0.2560585695 | P26: 25 | Q26: 453.715 | R26: 478.715 | S26: 0.05222313903 | T26: 0.947776861 | U26: 1374.471 | V26: 0.5030226174 | W26: 0.4969773826 | X26: 95.62793914 | Y26: 94.47869986 | Z26: 190.106639 | AA26: 92.17012448 | AB26: 31.7242047 | AC26: 123.8943292 | AD26: 3.457814661 | AE26: 62.75449516 | AF26: 66.21230982
A27: 1999 | B27: 7290000 | C27: 680 | D27: 230.194 | E27: 156.331 | F27: 386.525 | G27: 25 | H27: 229.213 | I27: 128.621 | J27: 156.331 | K27: 655 | L27: 230.194 | M27: 885.194 | N27: 0.7399507904 | O27: 0.2600492096 | P27: 25 | Q27: 514.165 | R27: 539.165 | S27: 0.04636799496 | T27: 0.953632005 | U27: 1424.359 | V27: 0.4774077322 | W27: 0.5225922678 | X27: 93.27846365 | Y27: 102.1068587 | Z27: 195.3853224 | AA27: 89.84910837 | AB27: 31.57668038 | AC27: 121.4257888 | AD27: 3.429355281 | AE27: 70.53017833 | AF27: 73.95953361
A28: 2000 | B28: 7350000 | C28: 685 | D28: 219.063 | E28: 172.337 | F28: 391.4 | G28: 25 | H28: 224.494 | I28: 61.607 | J28: 172.337 | K28: 660 | L28: 219.063 | M28: 879.063 | N28: 0.7507994308 | O28: 0.2492005692 | P28: 25 | Q28: 458.438 | R28: 483.438 | S28: 0.0517129394 | T28: 0.9482870606 | U28: 1362.501 | V28: 0.5027519246 | W28: 0.4972480754 | X28: 93.19727891 | Y28: 92.1770068 | Z28: 185.3742857 | AA28: 89.79591837 | AB28: 29.8044898 | AC28: 119.6004082 | AD28: 3.401360544 | AE28: 62.37251701 | AF28: 65.77387755
A29: 2001 | B29: 7400000 | C29: 680 | D29: 233.197 | E29: 188.357 | F29: 421.554 | G29: 15 | H29: 232.297 | I29: 61.245 | J29: 188.357 | K29: 665 | L29: 233.197 | M29: 898.197 | N29: 0.740372101 | O29: 0.259627899 | P29: 15 | Q29: 481.899 | R29: 496.899 | S29: 0.03018722115 | T29: 0.9698127789 | U29: 1395.096 | V29: 0.4874216541 | W29: 0.5125783459 | X29: 91.89189189 | Y29: 96.63459459 | Z29: 188.5264865 | AA29: 89.86486486 | AB29: 31.51310811 | AC29: 121.377973 | AD29: 2.027027027 | AE29: 65.12148649 | AF29: 67.14851351
A30: 2002 | B30: 7460000 | C30: 703 | D30: 224.532679 | E30: 191.2935362 | F30: 415.8262152 | G30: 26 | H30: 185.7518695 | I30: 56.15368 | J30: 191.2935362 | K30: 677 | L30: 224.532679 | M30: 901.532679 | N30: 0.7509433832 | O30: 0.2490566168 | P30: 26 | Q30: 433.1990857 | R30: 459.1990857 | S30: 0.05662032179 | T30: 0.9433796782 | U30: 1360.731765 | V30: 0.5166337835 | W30: 0.4833662165 | X30: 94.23592493 | Y30: 88.16779688 | Z30: 182.4037218 | AA30: 90.75067024 | AB30: 30.09821434 | AC30: 120.8488846 | AD30: 3.485254692 | AE30: 58.06958254 | AF30: 61.55483723
A31: 2003 | B31: 7520000 | C31: 690.56 | D31: 222.500673 | E31: 180.9353022 | F31: 403.4359752 | G31: 24 | H31: 165.0221294 | I31: 52.35576 | J31: 180.9353022 | K31: 666.56 | L31: 222.500673 | M31: 889.060673 | N31: 0.7497351083 | O31: 0.2502648917 | P31: 24 | Q31: 398.3131916 | R31: 422.3131916 | S31: 0.05682986105 | T31: 0.943170139 | U31: 1311.373865 | V31: 0.5265927731 | W31: 0.4734072269 | X31: 91.82978723 | Y31: 82.55503519 | Z31: 174.3848224 | AA31: 88.63829787 | AB31: 29.58785545 | AC31: 118.2261533 | AD31: 3.191489362 | AE31: 52.96717974 | AF31: 56.1586691
A32: 2004 | B32: 7560000 | C32: 651.711 | D32: 230.8766512 | E32: 211.3398622 | F32: 442.2165134 | G32: 20 | H32: 140.7117781 | I32: 52.2184 | J32: 211.3398622 | K32: 631.711 | L32: 230.8766512 | M32: 862.5876512 | N32: 0.7323441266 | O32: 0.2676558734 | P32: 20 | Q32: 404.2700403 | R32: 424.2700403 | S32: 0.04713978858 | T32: 0.9528602114 | U32: 1286.857691 | V32: 0.506435952 | W32: 0.493564048 | X32: 86.20515873 | Y32: 84.01411263 | Z32: 170.2192714 | AA32: 83.55965608 | AB32: 30.53923958 | AC32: 114.0988957 | AD32: 2.645502646 | AE32: 53.47487305 | AF32: 56.1203757
A33: 2005 | B33: 7600000 | C33: 656.925 | D33: 232.977016 | E33: 218.9939396 | F33: 451.9709556 | G33: 30 | H33: 128.6333143 | I33: 66.0648 | J33: 218.9939396 | K33: 626.925 | L33: 232.977016 | M33: 859.902016 | N33: 0.7290656241 | O33: 0.2709343759 | P33: 30 | Q33: 413.6920539 | R33: 443.6920539 | S33: 0.06761446308 | T33: 0.9323855369 | U33: 1303.59407 | V33: 0.5039337131 | W33: 0.4960662869 | X33: 86.4375 | Y33: 85.08803552 | Z33: 171.5255355 | AA33: 82.49013158 | AB33: 30.65487053 | AC33: 113.1450021 | AD33: 3.947368421 | AE33: 54.43316499 | AF33: 58.38053341
A34: 2006 | B34: 7650000 | C34: 666.559 | D34: 225.5677388 | E34: 234.801854 | F34: 460.3695928 | G34: 30 | H34: 101.9394285 | I34: 60.7268 | J34: 234.801854 | K34: 636.559 | L34: 225.5677388 | M34: 862.1267388 | N34: 0.7383589574 | O34: 0.2616410426 | P34: 30 | Q34: 397.4680825 | R34: 427.4680825 | S34: 0.07018067834 | T34: 0.9298193217 | U34: 1289.594821 | V34: 0.5168747493 | W34: 0.4831252507 | X34: 87.13189542 | Y34: 81.44259102 | Z34: 168.5744864 | AA34: 83.2103268 | AB34: 29.48597893 | AC34: 112.6963057 | AD34: 3.921568627 | AE34: 51.95661209 | AF34: 55.87818072
A35: 2007 | B35: 7720000 | C35: 669.227 | D35: 247.4675876 | E35: 259.2210184 | F35: 506.688606 | G35: 30 | H35: 104.4930978 | I35: 58.65048 | J35: 259.2210184 | K35: 639.227 | L35: 247.4675876 | M35: 886.6945876 | N35: 0.7209100055 | O35: 0.2790899945 | P35: 30 | Q35: 422.3645962 | R35: 452.3645962 | S35: 0.06631818726 | T35: 0.9336818127 | U35: 1339.059184 | V35: 0.4997740265 | W35: 0.5002259735 | X35: 86.68743523 | Y35: 86.76582692 | Z35: 173.4532622 | AA35: 82.80142487 | AB35: 32.05538699 | AC35: 114.8568119 | AD35: 3.886010363 | AE35: 54.71043992 | AF35: 58.59645028
A36: 2008 | B36: 7820000 | C36: 685.45 | D36: 250.9277746 | E36: 258.1262982 | F36: 509.0540728 | G36: 30 | H36: 108.1912826 | I36: 61.69016 | J36: 258.1262982 | K36: 655.45 | L36: 250.9277746 | M36: 906.3777746 | N36: 0.7231532131 | O36: 0.2768467869 | P36: 30 | Q36: 428.0077408 | R36: 458.0077408 | S36: 0.06550107635 | T36: 0.9344989237 | U36: 1364.385515 | V36: 0.5023873328 | W36: 0.4976126672 | X36: 87.65345269 | Y36: 86.82039839 | Z36: 174.4738511 | AA36: 83.81713555 | AB36: 32.08795072 | AC36: 115.9050863 | AD36: 3.836317136 | AE36: 54.73244768 | AF36: 58.56876481
A37: 2009 | B37: 7900000 | C37: 721.545 | D37: 257.7309692 | E37: 261.9141858 | F37: 519.645155 | G37: 30 | H37: 107.0398728 | I37: 56.4764 | J37: 261.9141858 | K37: 691.545 | L37: 257.7309692 | M37: 949.2759692 | N37: 0.7284973205 | O37: 0.2715026795 | P37: 30 | Q37: 425.4304586 | R37: 455.4304586 | S37: 0.06587174712 | T37: 0.9341282529 | U37: 1404.706428 | V37: 0.513662489 | W37: 0.486337511 | X37: 91.33481013 | Y37: 86.4761301 | Z37: 177.8109402 | AA37: 87.53734177 | AB37: 32.62417332 | AC37: 120.1615151 | AD37: 3.797468354 | AE37: 53.85195678 | AF37: 57.64942514
A38: 2010 | B38: 7970000 | C38: 751.944 | D38: 255.19097 | E38: 258.0209214 | F38: 513.2118914 | G38: 40 | H38: 111.4225896 | I38: 62.11432 | J38: 258.0209214 | K38: 711.944 | L38: 255.19097 | M38: 967.13497 | N38: 0.7361371702 | O38: 0.2638628298 | P38: 40 | Q38: 431.557831 | R38: 471.557831 | S38: 0.08482522688 | T38: 0.9151747731 | U38: 1438.692801 | V38: 0.5226577901 | W38: 0.4773422099 | X38: 94.3468005 | Y38: 86.16672535 | Z38: 180.5135258 | AA38: 89.32797992 | AB38: 32.01894228 | AC38: 121.3469222 | AD38: 5.018820577 | AE38: 54.14778306 | AF38: 59.16660364
A39: 2011 | B39: 8050000 | C39: 757.473 | D39: 233.2990261 | E39: 251.2474034 | F39: 484.5464296 | G39: 60 | H39: 113.633886 | I39: 54.88296368 | J39: 251.2474034 | K39: 697.473 | L39: 233.2990261 | M39: 930.7720261 | N39: 0.7493489065 | O39: 0.2506510935 | P39: 60 | Q39: 419.7642531 | R39: 479.7642531 | S39: 0.1250614226 | T39: 0.8749385774 | U39: 1410.536279 | V39: 0.537010647 | W39: 0.462989353 | X39: 94.09602484 | Y39: 81.1258732 | Z39: 175.221898 | AA39: 86.6426087 | AB39: 28.98124548 | AC39: 115.6238542 | AD39: 7.453416149 | AE39: 52.14462772 | AF39: 59.59804387
A40: 2012 | B40: 8130000 | C40: 765.432 | D40: 243.2475182 | E40: 240.5198757 | F40: 483.7673939 | G40: 60 | H40: 117.8360206 | I40: 54.8026856 | J40: 240.5198757 | K40: 705.432 | L40: 243.2475182 | M40: 948.6795182 | N40: 0.7435935809 | O40: 0.2564064191 | P40: 60 | Q40: 413.158582 | R40: 473.158582 | S40: 0.1268073798 | T40: 0.8731926202 | U40: 1421.8381 | V40: 0.538339773 | W40: 0.461660227 | X40: 94.14907749 | Y40: 80.7387577 | Z40: 174.8878352 | AA40: 86.76900369 | AB40: 29.91974393 | AC40: 116.6887476 | AD40: 7.380073801 | AE40: 50.81901377 | AF40: 58.19908757
A41: 2013 | B41: 8210000 | C41: 812.19 | D41: 253.065053 | E41: 229.2512423 | F41: 482.3162953 | G41: 60 | H41: 121.120061 | I41: 49.331182 | J41: 229.2512423 | K41: 752.19 | L41: 253.065053 | M41: 1005.255053 | N41: 0.7482578652 | O41: 0.2517421348 | P41: 60 | Q41: 399.7024853 | R41: 459.7024853 | S41: 0.1305191987 | T41: 0.8694808013 | U41: 1464.957538 | V41: 0.5544119736 | W41: 0.4455880264 | X41: 98.92691839 | Y41: 79.50883536 | Z41: 178.4357538 | AA41: 91.61875761 | AB41: 30.82400159 | AC41: 122.4427592 | AD41: 7.30816078 | AE41: 48.68483378 | AF41: 55.99299456
A42: 2014 | B42: 8310000 | C42: 837.131 | D42: 245.2866849 | E42: 221.2968788 | F42: 466.5835638 | G42: 65 | H42: 120.6813021 | I42: 52.8934736 | J42: 221.2968788 | K42: 772.131 | L42: 245.2866849 | M42: 1017.417685 | N42: 0.7589125012 | O42: 0.2410874988 | P42: 65 | Q42: 394.8716546 | R42: 459.8716546 | S42: 0.1413437844 | T42: 0.8586562156 | U42: 1477.289339 | V42: 0.56666692 | W42: 0.43333308 | X42: 100.7377858 | Y42: 77.03469789 | Z42: 177.7724837 | AA42: 92.91588448 | AB42: 29.51704993 | AC42: 122.4329344 | AD42: 7.821901324 | AE42: 47.51764796 | AF42: 55.33954929
A43: 2015 | B43: 8390000 | C43: 888.838 | D43: 236.3480466 | E43: 194.7711027 | F43: 431.1191493 | G43: 70 | H43: 119.476658 | I43: 46.11215672 | J43: 194.7711027 | K43: 818.838 | L43: 236.3480466 | M43: 1055.186047 | N43: 0.7760129151 | O43: 0.2239870849 | P43: 70 | Q43: 360.3599175 | R43: 430.3599175 | S43: 0.162654553 | T43: 0.837345447 | U43: 1485.545964 | V43: 0.5983241323 | W43: 0.4016758677 | X43: 105.9401669 | Y43: 71.12133064 | Z43: 177.0614975 | AA43: 97.59690107 | AB43: 28.17020818 | AC43: 125.7671092 | AD43: 8.343265793 | AE43: 42.95112247 | AF43: 51.29438826
A44: 2016 | B44: 8470000 | C44: 906.608 | D44: 237.6047803 | E44: 176.3608232 | F44: 413.9656035 | G44: 88.35114282 | H44: 126.6998562 | I44: 48.47465584 | J44: 176.3608232 | K44: 818.2568572 | L44: 237.6047803 | M44: 1055.861637 | N44: 0.7749659881 | O44: 0.2250340119 | P44: 88.35114282 | Q44: 351.5353353 | R44: 439.8864781 | S44: 0.200849872 | T44: 0.799150128 | U44: 1495.748116 | V44: 0.6061234445 | W44: 0.3938765555 | X44: 107.0375443 | Y44: 69.55609393 | Z44: 176.5936382 | AA44: 96.60647664 | AB44: 28.05251243 | AC44: 124.6589891 | AD44: 10.43106763 | AE44: 41.5035815 | AF44: 51.93464913
A45: (6) 2017 | B45: 8510000 | C45: 940.169 | D45: 230.0734872 | E45: 187.4109491 | F45: 417.4844363 | G45: 101.3606297 | H45: 123.5916955 | I45: 46.01102784 | J45: 187.4109491 | K45: 838.8083703 | L45: 230.0734872 | M45: 1068.881858 | N45: 0.7847531178 | O45: 0.2152468822 | P45: 101.3606297 | Q45: 357.0136724 | R45: 458.3743021 | S45: 0.2211306987 | T45: 0.7788693013 | U45: 1527.25616 | V45: 0.6155935231 | W45: 0.3844064769 | X45: 110.4781434 | Y45: 68.98791535 | Z45: 179.4660587 | AA45: 98.56737606 | AB45: 27.03566243 | AC45: 125.6030385 | AD45: 11.9107673 | AE45: 41.95225293 | AF45: 53.86302022
A46: 2018 | B46: 8550000 | C46: 973.558 | D46: 241.418958 | E46: 166.4360533 | F46: 407.8550112 | G46: 103.1981632 | H46: 121.7588861 | I46: 41.91692384 | J46: 166.4360533 | K46: 870.3598368 | L46: 241.418958 | M46: 1111.778795 | N46: 0.7828534245 | O46: 0.2171465755 | P46: 103.1981632 | Q46: 330.1118632 | R46: 433.3100264 | S46: 0.238162417 | T46: 0.761837583 | U46: 1545.088821 | V46: 0.6300984038 | W46: 0.3699015962 | X46: 113.8664327 | Y46: 66.84571007 | Z46: 180.7121428 | AA46: 101.7964721 | AB46: 28.23613543 | AC46: 130.0326076 | AD46: 12.06996061 | AE46: 38.60957464 | AF46: 50.67953525
A47: 2019 | B47: 8640000 | C47: 1000.351 | D47: 252.1236099 | E47: 158.5876206 | F47: 410.7112305 | G47: 111.6436628 | H47: 141.5211189 | I47: 34.8496476 | J47: 158.5876206 | K47: 888.7073372 | L47: 252.1236099 | M47: 1140.830947 | N47: 0.7790000257 | O47: 0.2209999743 | P47: 111.6436628 | Q47: 334.9583871 | R47: 446.6020499 | S47: 0.2499846627 | T47: 0.7500153373 | U47: 1587.432997 | V47: 0.6301689595 | W47: 0.3698310405 | X47: 115.7813657 | Y47: 67.94930521 | Z47: 183.730671 | AA47: 102.8596455 | AB47: 29.18097337 | AC47: 132.0406189 | AD47: 12.92172023 | AE47: 38.76833184 | AF47: 51.69005207
A48: 2020 | B48: 8790000 | C48: 1063.733 | D48: 302.7701883 | E48: 136.4750061 | F48: 439.2451944 | G48: 118.1435791 | H48: 121.9757037 | I48: 35.75809712 | J48: 136.4750061 | K48: 945.5894209 | L48: 302.7701883 | M48: 1248.359609 | N48: 0.7574655684 | O48: 0.2425344316 | P48: 118.1435791 | Q48: 294.2088069 | R48: 412.3523861 | S48: 0.2865112053 | T48: 0.7134887947 | U48: 1660.711995 | V48: 0.6405282813 | W48: 0.3594717187 | X48: 121.0162685 | Y48: 67.91569911 | Z48: 188.9319676 | AA48: 107.5755883 | AB48: 34.44484508 | AC48: 142.0204333 | AD48: 13.44068022 | AE48: 33.47085403 | AF48: 46.91153425
A49: 2021 | B49: 8800000 | C49: 1145.384 | D49: 284.6370672 | E49: 126.4489395 | F49: 411.0860067 | G49: 134.7139964 | H49: 124.0530572 | I49: 36.92581912 | J49: 126.4489395 | K49: 1010.670004 | L49: 284.6370672 | M49: 1295.307071 | N49: 0.7802551429 | O49: 0.2197448571 | P49: 134.7139964 | Q49: 287.4278159 | R49: 422.1418122 | S49: 0.3191202398 | T49: 0.6808797602 | U49: 1717.448883 | V49: 0.6669100963 | W49: 0.3330899037 | X49: 130.1572727 | Y49: 65.00737308 | Z49: 195.1646458 | AA49: 114.8488641 | AB49: 32.34512127 | AC49: 147.1939853 | AD49: 15.30840868 | AE49: 32.6622518 | AF49: 47.97066048
A50: 2022 | B50: 8910000 | C50: 1134.735 | D50: 256.2070189 | E50: 94.1639492 | F50: 350.3709681 | G50: 161.8772216 | H50: 129.4145274 | I50: 39.50150304 | J50: 94.1639492 | K50: 972.8577784 | L50: 256.2070189 | M50: 1229.064797 | N50: 0.7915431152 | O50: 0.2084568848 | P50: 161.8772216 | Q50: 263.0799797 | R50: 424.9572013 | S50: 0.3809259406 | T50: 0.6190740594 | U50: 1654.021999 | V50: 0.6860458936 | W50: 0.3139541064 | X50: 127.3552189 | Y50: 58.28136908 | Z50: 185.6365879 | AA50: 109.1871805 | AB50: 28.75499651 | AC50: 137.942177 | AD50: 18.16803834 | AE50: 29.52637258 | AF50: 47.69441092

Sheet D.2.1 Imp.n.H.
F1: =Codierung!I184 -> Eidgenössisches Departement für Wirtschaft, Bildung und Forschung WBF
F2: =Codierung!I185 -> Bundesamt für Landwirtschaft BLW
F3: =Codierung!I186 -> Fachbereich Marktanalysen
F5: =Codierung!I242 -> Anmerkungen:
A6: =Codierung!$I$171 -> Importe nach Herkunft | F6: =Codierung!I251 -> Umrechnungsfaktoren: Eiprodukte getrocknet 80 Eier / kg; Eiprodukte flüssig 20.58 Eier / kg; Schaleneier 16.6 Eier / kg
A7: =Codierung!$I$222 -> in Mio. Stück | F7: =Codierung!I258 -> Importe ohne Veredelungsverkehr, inklusive Rückwaren
A8: =Codierung!$I$206 -> Quellen: BLW, Fachbereich Marktanalysen; EZV
A9: =Codierung!I215 -> Publikationsrecht: Weiterverarbeitung und Publikation unter Quellenangabe gestattet.
A11: =Codierung!$I$154 -> Zurück zum Inhaltsverzeichnis
B14: =Codierung!$I$40 -> Konsumeier | H14: =Codierung!$I$41 -> Verarbeitungseier | N14: =Codierung!$I$37 -> Eiprodukte | T14: =Codierung!$I$49 -> Bruteier
B15: =Codierung!$I$198 -> Niederlande | C15: =Codierung!$I$188 -> Deutschland | D15: =Codierung!$I$189 -> Frankreich | E15: =Codierung!$I$201 -> Bulgarien | F15: =Codierung!$I$191 -> Italien | G15: =Codierung!$I$202 -> Rest | H15: =Codierung!$I$198 -> Niederlande | I15: =Codierung!$I$188 -> Deutschland | J15: =Codierung!$I$201 -> Bulgarien | K15: =Codierung!$I$189 -> Frankreich | L15: =Codierung!$I$200 -> Polen | M15: =Codierung!$I$202 -> Rest | N15: =Codierung!$I$198 -> Niederlande | O15: =Codierung!$I$188 -> Deutschland | P15: =Codierung!$I$191 -> Italien | Q15: =Codierung!$I$199 -> Belgien | R15: =Codierung!$I$189 -> Frankreich | S15: =Codierung!$I$202 -> Rest | T15: =Codierung!$I$189 -> Frankreich | U15: =Codierung!$I$188 -> Deutschland | V15: =Codierung!$I$192 -> Dänemark | W15: =Codierung!$I$198 -> Niederlande | X15: =Codierung!$I$190 -> Österreich | Y15: =Codierung!$I$202 -> Rest
A16: 2002 | B16: 68.7065866 | C16: 93.9596022 | D16: 59.2159516 | E16: 0 | F16: 0.0065736 | G16: 2.643965 | H16: 55.5535102 | I16: 90.3836966 | J16: 0.3042448 | K16: 6.6540436 | M16: 38.398041 | N16: 107.4916596 | O16: 65.05635216 | P16: 18.19018508 | Q16: 5.23671252 | R16: 32.5191859 | S16: 13.84226982 | T16: 0.7740912 | U16: 2.6748244 | W16: 1.183248 | Y16: 0.1889578
A17: 2003 | B17: 34.9028778 | C17: 89.0302322 | D17: 80.4288426 | E17: 1.5025656 | F17: 7.3468114 | G17: 9.9548706 | H17: 22.1511064 | I17: 64.1859252 | J17: 38.2472798 | K17: 9.839567 | L17: 4.429295 | M17: 42.0821288 | N17: 91.76674688 | O17: 66.20881406 | P17: 19.04138538 | Q17: 4.56113364 | R17: 28.06130648 | S17: 8.27905722 | T17: 3.2587294 | U17: 0.9353602 | W17: 0.1317708 | Y17: 0.0077688
A18: 2004 | B18: 43.9039124 | C18: 82.1556908 | D18: 86.5582764 | E18: 2.6214056 | F18: 0.5642008 | G18: 15.0901636 | H18: 30.443487 | I18: 59.440865 | J18: 66.5711128 | K18: 11.308169 | L18: 13.2019468 | M18: 30.3742816 | N18: 87.17777958 | O18: 42.62367342 | P18: 16.4739133 | Q18: 5.4600258 | R18: 27.65222102 | S18: 14.14005244 | T18: 6.0625856 | Y18: 0.0001826
A19: 2005 | B19: 68.2203892 | C19: 70.4226282 | D19: 87.3828814 | E19: 2.5848026 | F19: 0.000166 | G19: 5.539005 | H19: 57.6315978 | I19: 69.440373 | J19: 41.959986 | K19: 12.645216 | L19: 12.480959 | M19: 24.8358078 | N19: 91.41958894 | O19: 42.32021152 | P19: 17.81278374 | Q19: 3.700805 | R19: 19.11626474 | S19: 20.77556038 | T19: 12.1271964 | U19: 0.001162 | W19: 0.0564898
A20: 2006 | B20: 89.2973594 | C20: 61.032224 | D20: 69.2361764 | F20: 6.64e-05 | G20: 0.033117 | H20: 47.5300828 | I20: 105.165233 | J20: 41.7734518 | K20: 24.7221144 | L20: 4.6775314 | M20: 10.9334406 | N20: 88.02929214 | O20: 33.841938 | P20: 13.46496998 | Q20: 2.8169714 | R20: 10.29931036 | S20: 14.62318662 | T20: 10.6902174 | U20: 0.7096832 | W20: 0.0915822 | Y20: 0.074202
A21: 2007 | B21: 117.7595534 | C21: 43.6309918 | D21: 75.3644316 | F21: 1.8072586 | G21: 0.5026314 | H21: 52.4311166 | I21: 142.9680478 | J21: 37.6851208 | K21: 17.8932728 | M21: 8.2434604 | N21: 89.1358434 | O21: 25.77576316 | P21: 11.31526126 | Q21: 4.19107584 | R21: 7.90028578 | S21: 25.76333764 | T21: 13.1958214 | W21: 5.0850946
A22: 2008 | B22: 141.8516646 | C22: 34.9802504 | D22: 70.0903626 | F22: 0.8707364 | G22: 0.6725822 | H22: 106.5975806 | I22: 107.2791766 | J22: 8.4879286 | K22: 26.7412554 | M22: 9.020357 | N22: 98.8038482 | O22: 27.08226368 | P22: 12.16609576 | Q22: 7.12930096 | R22: 9.71232144 | S22: 15.03689456 | T22: 10.8321142 | V22: 1.5457422 | W22: 16.8657162
A23: 2009 | B23: 121.4556928 | C23: 56.3210942 | D23: 78.648725 | F23: 0.0024734 | G23: 1.7527442 | H23: 98.8142224 | I23: 98.6868174 | J23: 9.6977366 | K23: 16.2103814 | L23: 2.0877488 | M23: 36.4172792 | N23: 96.2906784 | O23: 26.29112924 | P23: 16.84152996 | Q23: 9.42480148 | R23: 7.10181948 | S23: 5.9099305 | T23: 16.2819274 | V23: 2.7844508 | W23: 10.0337538 | Y23: 0.0598264
A24: 2010 | B24: 105.2396674 | C24: 36.6662792 | D24: 73.3229636 | E24: 0 | F24: 35.8417406 | G24: 4.314008 | H24: 72.1663586 | I24: 110.9984896 | J24: 7.2687416 | K24: 18.5576048 | L24: 21.925612 | M24: 27.1041148 | N24: 99.68843376 | O24: 25.76020958 | P24: 22.133047 | Q24: 12.3802705 | R24: 8.11654886 | S24: 6.34259414 | T24: 17.0713238 | V24: 2.4028002 | W24: 9.675061 | Y24: 0.1736692
A25: 2011 | B25: 115.7639811 | C25: 40.25535192 | D25: 62.43858496 | F25: 15.49795024 | G25: 0.83001826 | H25: 71.90496902 | I25: 108.4610402 | J25: 1.27825146 | K25: 19.88355968 | L25: 41.4934762 | M25: 8.226106926 | N25: 91.33091582 | O25: 34.01451207 | P25: 14.40486317 | Q25: 13.71686639 | R25: 9.34861163 | S25: 6.288420636 | T25: 16.8204646 | U25: 0.1726898 | V25: 3.263975 | W25: 10.7511394 | X25: 0.182102 | Y25: 0.2124634
A26: 2012 | B26: 140.6762701 | C26: 41.05730273 | D26: 61.48393922 | E26: 0 | F26: 0.34378932 | G26: 0.4654142 | H26: 73.7321453 | I26: 78.6551648 | J26: 1.267161 | K26: 16.17749182 | L26: 57.3782652 | M26: 13.3096476 | N26: 98.02812614 | O26: 36.66699681 | P26: 12.98731248 | Q26: 15.56359436 | R26: 8.238453162 | S26: 3.71261822 | T26: 20.3994246 | U26: 4.092886538 | V26: 2.8327236 | W26: 7.69101572 | X26: 0.7722652 | Y26: 0.163759
A27: 2013 | B27: 171.2621326 | C27: 39.54692866 | D27: 42.59812971 | F27: 0.378800048 | G27: 0.56747764 | H27: 100.1254448 | I27: 54.22877708 | K27: 18.44002368 | L27: 38.2768776 | M27: 18.18011914 | N27: 97.13242956 | O27: 36.39355574 | P27: 12.96372657 | Q27: 14.43774581 | R27: 8.982702122 | S27: 1.439621348 | T27: 18.9290796 | U27: 6.05334604 | V27: 4.7970016 | W27: 9.73358928 | X27: 0.9055466 | Y27: 0.13696411
A28: 2014 | B28: 161.2324641 | C28: 47.51886867 | D28: 34.44593524 | F28: 0.483936148 | G28: 3.887103808 | H28: 164.4001713 | I28: 16.858711 | J28: 0.3375112 | K28: 10.2156898 | L28: 28.3704624 | M28: 1.1143331 | N28: 105.1220654 | O28: 35.92626307 | P28: 10.68465077 | Q28: 12.17287527 | R28: 5.059285043 | S28: 4.440461542 | T28: 18.0034968 | U28: 8.745793 | V28: 7.0625862 | W28: 8.3080344 | X28: 2.868729 | Y28: 0.3213428
A29: 2015 | B29: 155.4952571 | C29: 44.94846408 | D29: 32.22173156 | F29: 0.647760552 | G29: 4.89298778 | H29: 122.6208823 | I29: 21.97464176 | J29: 2.481036 | K29: 9.03025226 | L29: 32.5510064 | M29: 6.113283992 | N29: 100.6963424 | O29: 31.74908885 | P29: 12.8197022 | Q29: 10.16111042 | R29: 5.283639195 | S29: 5.418284924 | T29: 13.323326 | U29: 6.8490272 | V29: 10.235228 | W29: 8.4608706 | X29: 6.41037552 | Y29: 0.14768854
A30: 2016 | B30: 146.167571 | C30: 48.0116914 | D30: 29.56201722 | F30: 9.047848426 | G30: 4.956611264 | H30: 121.9917642 | I30: 21.85786574 | J30: 2.173189 | K30: 7.04016458 | L30: 16.6824024 | M30: 6.615437229 | N30: 104.1485693 | O30: 29.53917857 | P30: 16.42910959 | Q30: 13.28664416 | R30: 5.405594355 | S30: 6.396478583 | T30: 13.06918 | U30: 9.701757718 | V30: 9.1504678 | W30: 6.6049076 | X30: 4.3731206 | Y30: 0.163831376
A31: 2017 | B31: 131.1513146 | C31: 59.32946394 | D31: 25.80756672 | E31: 0.8980766 | F31: 4.066357746 | G31: 11.1336439 | H31: 121.5851758 | I31: 42.79074246 | J31: 5.9366414 | K31: 5.6103352 | L31: 2.8022792 | M31: 8.685775036 | N31: 94.06479227 | O31: 31.81380189 | P31: 14.69800826 | Q31: 12.92074104 | R31: 9.104733475 | S31: 8.09659548 | T31: 12.5595766 | U31: 10.23944274 | V31: 7.0305482 | W31: 7.0251532 | X31: 2.5862966 | Y31: 0.155371352
A32: 2018 | B32: 131.228074 | C32: 37.91743821 | D32: 24.01540381 | E32: 1.36612688 | F32: 32.09004565 | G32: 15.05822769 | H32: 78.40208386 | I32: 64.53417046 | J32: 10.1038058 | K32: 5.00231538 | L32: 0.3271528 | M32: 8.066524984 | N32: 97.8062703 | O32: 31.32003863 | P32: 9.149794967 | Q32: 11.03948418 | R32: 8.775368583 | S32: 5.78409978 | T32: 13.6794458 | U32: 12.58741978 | V32: 9.2427472 | W32: 5.5004266 | X32: 3.6138366 | Y32: 0.1428928
A33: 2019 | B33: 139.2478992 | C33: 43.31488144 | D33: 22.30322047 | E33: 8.92256142 | F33: 27.74672643 | G33: 11.33817996 | H33: 62.7231581 | I33: 60.18818538 | J33: 14.48905768 | K33: 4.2500814 | L33: 0 | M33: 16.93713803 | N33: 99.99443806 | O33: 44.65730523 | P33: 8.210242722 | Q33: 6.14288478 | R33: 11.00208477 | S33: 6.882887534 | T33: 14.8599543 | U33: 10.45212858 | V33: 9.8391852 | W33: 7.9039406 | X33: 1.191382 | Y33: 0.173954056
A34: 2020 | B34: 176.1771778 | C34: 41.53450747 | D34: 19.49414071 | E34: 13.98871243 | F34: 35.84410806 | G34: 16.37599296 | H34: 81.47202362 | I34: 16.46562931 | J34: 22.08478674 | K34: 2.4303562 | L34: 0.6456736 | M34: 13.37653664 | N34: 88.56053309 | O34: 38.99063822 | P34: 8.477475143 | Q34: 6.3412626 | R34: 10.88581302 | S34: 4.754159451 | T34: 15.0670564 | U34: 14.04543679 | V34: 11.5885264 | W34: 4.9398612 | Y34: 0.146524714
A35: 2021 | B35: 173.2358811 | C35: 67.609912 | D35: 21.46993524 | E35: 7.12186148 | F35: 1.665371793 | G35: 15.28606951 | H35: 68.59445194 | I35: 21.2982062 | J35: 20.37773995 | K35: 0.1297456 | L35: 0 | M35: 16.04879584 | N35: 83.42701766 | O35: 44.041593 | P35: 10.05407829 | Q35: 7.093583178 | R35: 12.30479053 | S35: 5.716806133 | T35: 14.34691918 | U35: 13.7313618 | V35: 13.4965968 | W35: 5.0290945 | Y35: 0.12781336
A36: 2022 | B36: 209.7513348 | C36: 17.48590722 | D36: 21.14231872 | E36: 2.520947712 | F36: 1.510184618 | G36: 12.490065 | H36: 52.8228932 | I36: 17.2842266 | J36: 5.781680732 | K36: 0 | L36: 0.3331288 | M36: 17.94201986 | N36: 89.1961055 | O36: 48.63949535 | P36: 6.27988397 | Q36: 8.289448247 | R36: 12.89757237 | S36: 5.352384898 | T36: 14.2677664 | U36: 13.96567678 | V36: 13.6295296 | W36: 6.2320716 | X36: 0.4961906 | Y36: 0.129435678

Sheet D.2.2 Imp.n.Kont.
F1: =Codierung!I184 -> Eidgenössisches Departement für Wirtschaft, Bildung und Forschung WBF
F2: =Codierung!I185 -> Bundesamt für Landwirtschaft BLW
F3: =Codierung!I186 -> Fachbereich Marktanalysen
F5: =Codierung!I242 -> Anmerkungen:
A6: =Codierung!$I$172 -> Auslastung der Importkontingente | F6: =Codierung!I259 -> Die Zollkontingente beziehen sich auf Brutto-Mengen
A7: =Codierung!$I$219 -> in Tonnen | E7: (1) | F7: =Codierung!I264 -> Das BLW hat auf Anträgen der Branche das Kontingent für Konsumeierimporte um insgesamt 3'000 Tonnen erhöht infolge der hohen Nachfrage nach Schaleneiern wegen des vermehrten pandemiebedingten Konsums zu Hause
A8: =Codierung!$I$206 -> Quellen: BLW, Fachbereich Marktanalysen; EZV | E8: (2) | F8: =Codierung!I380 -> Das BLW hat auf Anträgen der Branche das Kontingent für Konsumeierimporte um insgesamt 3'500 Tonnen erhöht infolge der hohen Nachfrage nach Schaleneiern wegen des vermehrten pandemiebedingten Konsums zu Hause
A9: =Codierung!I215 -> Publikationsrecht: Weiterverarbeitung und Publikation unter Quellenangabe gestattet. | E9: (3) | F9: =Codierung!I381 -> Die Überschreitung der Kontingentsmenge ist möglich.
A11: =Codierung!$I$154 -> Zurück zum Inhaltsverzeichnis
B13: =Codierung!$I$40 -> Konsumeier | E13: =Codierung!$I$41 -> Verarbeitungseier | H13: =Codierung!$I$44 -> Eiprodukte getrocknet | K13: =Codierung!$I$43 -> Eiprodukte flüssig
B14: =Codierung!$I$50 -> Kontingentsmenge | C14: =Codierung!$I$51 -> Zugeteilte / Eingeführte Menge | D14: =Codierung!$I$52 -> Auslastung | E14: =Codierung!$I$50 -> Kontingentsmenge | F14: =Codierung!$I$51 -> Zugeteilte / Eingeführte Menge | G14: =Codierung!$I$52 -> Auslastung | H14: =Codierung!$I$50 -> Kontingentsmenge | I14: =Codierung!$I$51 -> Zugeteilte / Eingeführte Menge | J14: =Codierung!$I$52 -> Auslastung | K14: =Codierung!$I$50 -> Kontingentsmenge | L14: =Codierung!$I$51 -> Zugeteilte / Eingeführte Menge | M14: =Codierung!$I$52 -> Auslastung
A16: 2002 | B16: 19428 | C16: 14546.68 | D16: =C16/B16 -> 0.7487481985 | E16: 14307 | F16: 12101.31 | G16: =F16/E16 -> 0.8458314112 | H16: 977 | I16: 728.296 | J16: 0.7454411464 | K16: 6866 | L16: 9562.277 | M16: 1.392699825
A17: 2003 | B17: 19428 | C17: 14360.965 | D17: =C17/B17 -> 0.739189057 | E17: 14307 | F17: 11461.184 | G17: =F17/E17 -> 0.801089257 | H17: 977 | I17: 690.965 | J17: 0.7072313204 | K17: 6866 | L17: 8539.712 | M17: 1.243768133
A18: 2004 | B18: 19428 | C18: 14853.131 | D18: 0.7645218756 | E18: 14307 | F18: 13398.584 | G18: 0.9365054868 | H18: 977 | I18: 676.697 | J18: 0.6926274309 | K18: 6866 | L18: 7200.606 | M18: 1.048733761
A19: 2005 | B19: 16428 | C19: 14988.781 | D19: 0.912392318 | E19: 17307 | F19: 13737.199 | G19: 0.7937365806 | H19: 977 | I19: 859.898 | J19: 0.8801412487 | K19: 6866 | L19: 6540.456 | M19: 0.9525860763
A20: 2006 | B20: 16428 | C20: 15370.53 | D20: 0.9356300219 | E20: 17307 | F20: 14217.052 | G20: 0.8214625296 | H20: 977 | I20: 743.62 | J20: 0.7611258956 | K20: 6866 | L20: 5196.174 | M20: 0.7567978445
A21: 2007 | B21: 16428 | C21: 16004.2 | D21: 0.974202581 | E21: 17307 | F21: 16704.058 | G21: 0.9651619576 | H21: 977 | I21: 751.978 | J21: 0.7696806551 | K21: 6866 | L21: 5392.178 | M21: 0.7853448879
A22: 2008 | B22: 16428 | C22: 16195.68256 | D22: 0.9858584466 | E22: 19307 | F22: 16570.5987 | G22: 0.8582689543 | H22: 977 | I22: 800.069 | J22: 0.8189037871 | K22: 6866 | L22: 5545.387 | M22: 0.8076590446
A23: 2009 | B23: 17428 | C23: 16337.7156 | D23: 0.9374406472 | E23: 18307 | F23: 16946.3012 | G23: 0.9256733053 | H23: 977 | I23: 704.69 | J23: 0.7212794268 | K23: 6866 | L23: 5527.192 | M23: 0.80500903
A24: 2010 | B24: 16428 | C24: 16367.9523 | D24: 0.9963447955 | E24: 17307 | F24: 16627.6231 | G24: 0.9607455423 | H24: 977 | I24: 805.705 | J24: 0.8246724667 | K24: 6866 | L24: 5762.155 | M24: 0.8392302651
A25: 2011 | B25: 16428 | C25: 15130.7379 | D25: 0.9210334733 | E25: 17307 | F25: 16301.8064 | G25: 0.9419198243 | H25: 977 | I25: 708.264 | J25: 0.724937564 | K25: 6866 | L25: 5899.733 | M25: 0.8592678415
A26: 2012 | B26: 16428 | C26: 15952.5167 | D26: 0.9710565315 | E26: 17307 | F26: 15677.9189 | G26: 0.9058715491 | H26: 977 | I26: 752.037 | J26: 0.769741044 | K26: 6866 | L26: 6113.307 | M26: 0.8903738712
A27: 2013 | B27: 17428 | C27: 16795.6861 | D27: 0.9637185047 | E27: 17307 | F27: 15039.8043 | G27: 0.8690012307 | H27: 977 | I27: 663.722 | J27: 0.6793469806 | K27: 6866 | L27: 6389.13 | M27: 0.9305461695
A28: 2014 | B28: 16428 | C28: 16403.2717 | D28: 0.9984947468 | E28: 17307 | F28: 14427.7182 | G28: 0.8336348414 | H28: 977 | I28: 690.744 | J28: 0.7070051177 | K28: 6866 | L28: 6334.331 | M28: 0.9225649578
A29: 2015 | B29: 17428 | C29: 15768.0424 | D29: 0.9047534083 | E29: 17307 | F29: 12777.5478 | G29: 0.7382878488 | H29: 977 | I29: 614.375 | J29: 0.6288382805 | K29: 6866 | L29: 6235.398 | M29: 0.9081558404
A30: 2016 | B30: 17428 | C30: 15863.5899 | D30: 0.9102358217 | E30: 17307 | F30: 11632.9002 | G30: 0.6721500087 | H30: 977 | I30: 641.642 | J30: 0.6567471853 | K30: 6866 | L30: 6540.677 | M30: 0.9526182639
A31: 2017 | B31: 17428 | C31: 15745.9797 | D31: 0.9034874742 | E31: 17307 | F31: 12378.9126 | G31: 0.7152546715 | H31: 977 | I31: 610.861 | J31: 0.6252415558 | K31: 6866 | L31: 6473.874 | M31: 0.9428887271
A32: 2018 | B32: 17428 | C32: 16262.3038 | D32: =C32/B32 -> 0.9331135988 | E32: 16307 | F32: 11046.9392 | G32: =F32/E32 -> 0.6774354081 | H32: 977 | I32: 545.258 | J32: 0.5580941658 | K32: 6866 | L32: 6405.779 | M32: 0.9329710166
A33: 2019 | B33: 17428 | C33: 16913.0702 | D33: =C33/B33 -> 0.9704538788 | E33: 15973.66667 | F33: 10502.3764 | G33: =F33/E33 -> 0.6574806285 | H33: 977 | I33: 616.875 | J33: 0.6313971341 | K33: 6866 | L33: 6467.363 | M33: 0.9419404311
A34: (1) 2020 | B34: 20428 | C34: 20221.614 | D34: 0.9898969062 | E34: 16307 | F34: 9049.626 | G34: 0.5549534556 | H34: 977 | I34: 591.217 | J34: 0.6051351075 | K34: 6866 | L34: 5647.415 | M34: 0.8225189339
A35: (2) 2021 | B35: 20928 | C35: 19057.52 | D35: 0.9106230887 | E35: 16307 | F35: 8906.09 | G35: 0.546151346 | H35: 977 | I35: 481.666 | J35: 0.4930051177 | K35: 6866 | L35: 6625.422 | M35: 0.9649609671
A36: 2022 | B36: 17428 | C36: 17428 | D36: =C36/B36 -> 1 | E36: 16307 | F36: 6345.2159 | G36: =F36/E36 -> 0.3891099466 | H36: 977 | I36: 680.23 | J36: 0.6962436029 | K36: 6866 | L36: 10294.4752 | M36: 1.499340985

Sheet D.2.3 aVV
F1: =Codierung!I184 -> Eidgenössisches Departement für Wirtschaft, Bildung und Forschung WBF
F2: =Codierung!I185 -> Bundesamt für Landwirtschaft BLW
F3: =Codierung!I186 -> Fachbereich Marktanalysen
F5: =Codierung!I242 -> Anmerkungen:
A6: =Codierung!$I$174 -> Aktiver Veredelungsverkehr (ohne Produkte für technische Zwecke) | F6: =Codierung!I251 -> Umrechnungsfaktoren: Eiprodukte getrocknet 80 Eier / kg; Eiprodukte flüssig 20.58 Eier / kg; Schaleneier 16.6 Eier / kg
A7: =Codierung!$I$222 -> in Mio. Stück
A8: =Codierung!$I$206 -> Quellen: BLW, Fachbereich Marktanalysen; EZV
A9: =Codierung!I215 -> Publikationsrecht: Weiterverarbeitung und Publikation unter Quellenangabe gestattet.
A11: =Codierung!$I$154 -> Zurück zum Inhaltsverzeichnis
A12: =Codierung!$I$253 -> Informationen zur Methodik
B13: =Codierung!$I$45 -> Import | I13: =Codierung!$I$54 -> Re-Export
B14: =Codierung!$I$28 -> Schaleneier | E14: =Codierung!$I$37 -> Eiprodukte | H14: =Codierung!$I$36 -> Total | I14: =Codierung!$I$28 -> Schaleneier | L14: =Codierung!$I$37 -> Eiprodukte | O14: =Codierung!$I$36 -> Total
B15: =Codierung!$I$40 -> Konsumeier | C15: =Codierung!$I$41 -> Verarbeitungseier | D15: =Codierung!$I$36 -> Total | E15: =Codierung!$I$43 -> Eiprodukte flüssig | F15: =Codierung!$I$44 -> Eiprodukte getrocknet | G15: =Codierung!$I$36 -> Total | I15: =Codierung!$I$40 -> Konsumeier | J15: =Codierung!$I$41 -> Verarbeitungseier | K15: =Codierung!$I$36 -> Total | L15: =Codierung!$I$43 -> Eiprodukte flüssig | M15: =Codierung!$I$44 -> Eiprodukte getrocknet | N15: =Codierung!$I$36 -> Total
A16: 2002 | B16: - | C16: 2.8424346 | D16: 2.8424346 | E16: 39.1182582 | F16: 51.20184 | G16: 90.3200982 | H16: 93.1625328 | I16: - | J16: - | K16: - | L16: 0.21716016 | M16: - | N16: 0.21716016 | O16: 0.21716016
A17: 2003 | B17: - | C17: 4.0742044 | D17: 4.0742044 | E17: 50.4620571 | F17: 40.044 | G17: 90.5060571 | H17: 94.5802615 | I17: - | J17: - | K17: - | L17: - | M17: - | N17: - | O17: -
A18: 2004 | B18: - | C18: 1.3055568 | D18: 1.3055568 | E18: 63.99283086 | F18: 47.2124 | G18: 111.2052309 | H18: 112.5107877 | I18: - | J18: - | K18: - | L18: - | M18: - | N18: - | O18: -
A19: 2005 | B19: - | C19: 5.1771084 | D19: 5.1771084 | E19: 58.717827 | F19: 41.95528 | G19: 100.673107 | H19: 105.8502154 | I19: - | J19: - | K19: - | L19: - | M19: - | N19: - | O19: -
A20: 2006 | B20: - | C20: 7.7110154 | D20: 7.7110154 | E20: 51.1024038 | F20: 50.3104 | G20: 101.4128038 | H20: 109.1238192 | I20: 0.1772548 | J20: - | K20: 0.1772548 | L20: 0.0975492 | M20: 0.0616 | N20: 0.1591492 | O20: 0.336404
A21: 2007 | B21: - | C21: 11.6560054 | D21: 11.6560054 | E21: 38.67010812 | F21: 63.26472 | G21: 101.9348281 | H21: 113.5908335 | I21: 0.0378148 | J21: - | K21: 0.0378148 | L21: 0.41194986 | M21: 0.3136 | N21: 0.72554986 | O21: 0.76336466
A22: 2008 | B22: - | C22: 32.19487 | D22: 32.19487 | E22: 30.40944018 | F22: 50.2524 | G22: 80.66184018 | H22: 112.8567102 | I22: - | J22: - | K22: - | L22: 2.0516202 | M22: 0.016 | N22: 2.0676202 | O22: 2.0676202
A23: 2009 | B23: - | C23: 7.868815 | D23: 7.868815 | E23: 33.6312186 | F23: 54.48736 | G23: 88.1185786 | H23: 95.9873936 | I23: - | J23: - | K23: - | L23: 2.45480298 | M23: 0.99696 | N23: 3.45176298 | O23: 3.45176298
A24: 2010 | B24: - | C24: 27.254544 | D24: 27.254544 | E24: 19.7511405 | F24: 49.08024 | G24: 68.8313805 | H24: 96.0859245 | I24: - | J24: - | K24: - | L24: 4.24090002 | M24: 0.244 | N24: 4.48490002 | O24: 4.48490002
A25: 2011 | B25: - | C25: 16.2063144 | D25: 16.2063144 | E25: 18.6687354 | F25: 21.766 | G25: 40.4347354 | H25: 56.6410498 | I25: - | J25: - | K25: - | L25: 4.421511129 | M25: - | N25: 4.421511129 | O25: 4.421511129
A26: 2012 | B26: 2.4238656 | C26: 13.76740256 | D26: 16.19126816 | E26: 16.053429 | F26: 21.5982 | G26: 37.651629 | H26: 53.84289716 | I26: - | J26: - | K26: - | L26: 3.83585475 | M26: - | N26: 3.83585475 | O26: 3.83585475
A27: 2013 | B27: 11.4296644 | C27: 3.6238464 | D27: 15.0535108 | E27: 21.9086448 | F27: 20.9004 | G27: 42.8090448 | H27: 57.8625556 | I27: - | J27: - | K27: - | L27: 4.907484162 | M27: 0.01016 | N27: 4.917644162 | O27: 4.917644162
A28: 2014 | B28: 10.8899818 | C28: 3.3454727 | D28: 14.2354545 | E28: 24.004512 | F28: 18.7424 | G28: 42.746912 | H28: 56.9823665 | I28: - | J28: - | K28: - | L28: 7.067640195 | M28: - | N28: 7.067640195 | O28: 7.067640195
A29: 2015 | B29: 10.387035 | C29: 6.77266388 | D29: 17.15969888 | E29: 24.29234388 | F29: 17.59832 | G29: 41.89066388 | H29: 59.05036276 | I29: - | J29: - | K29: - | L29: 6.267008223 | M29: - | N29: 6.267008223 | O29: 6.267008223
A30: 2016 | B30: 14.7972732 | C30: 0.9699546 | D30: 15.7672278 | E30: 26.23869738 | F30: 14.672 | G30: 40.91069738 | H30: 56.67792518 | I30: - | J30: - | K30: - | L30: 6.87344217 | M30: - | N30: 6.87344217 | O30: 6.87344217
A31: 2017 | B31: 14.0624659 | C31: 2.432371108 | D31: 16.49483701 | E31: 30.38103978 | F31: 11.4992 | G31: 41.88023978 | H31: 58.37507679 | I31: 0.00332 | J31: - | K31: 0.00332 | L31: 10.14226647 | M31: 0.222 | N31: 10.36426647 | O31: 10.36758647
A32: 2018 | B32: 15.1344524 | C32: 0.3055894 | D32: 15.4400418 | E32: 32.79257331 | F32: 13.8624 | G32: 46.65497331 | H32: 62.09501511 | I32: 0.0226092 | J32: - | K32: 0.0226092 | L32: 5.36878692 | M32: - | N32: 5.36878692 | O32: 5.39139612
A33: 2019 | B33: 12.53418524 | C33: 0.2984846 | D33: 12.83266984 | E33: 33.39323148 | F33: 11.0604 | G33: 44.45363148 | H33: 57.28630132 | I33: 0.04411284 | J33: - | K33: 0.04411284 | L33: 4.1902938 | M33: - | N33: 4.1902938 | O33: 4.23440664
A34: 2020 | B34: 11.0658588 | C34: 0.32462628 | D34: 11.39048508 | E34: 39.2331975 | F34: 9.154 | G34: 48.3871975 | H34: 59.77768258 | I34: 0.0400226 | J34: - | K34: 0.0400226 | L34: 4.4172912 | M34: 0.016 | N34: 4.4332912 | O34: 4.4733138
A35: 2021 | B35: 8.9673864 | C35: - | D35: 8.9673864 | E35: 42.42593754 | F35: 10.066 | G35: 52.49193754 | H35: 61.45932394 | I35: 0.015189 | J35: - | K35: 0.015189 | L35: 3.64635411 | M35: - | N35: 3.64635411 | O35: 3.66154311
A36: 2022 | B36: 3.261402 | C36: - | D36: 3.261402 | E36: 39.81415032 | F36: 8.256 | G36: 48.07015032 | H36: 51.33155232 | I36: - | J36: - | K36: - | L36: 5.02166406 | M36: - | N36: 5.02166406 | O36: 5.02166406

Sheet D.2.4 Imp.LM (hidden)
F1: =Codierung!I184 -> Eidgenössisches Departement für Wirtschaft, Bildung und Forschung WBF
F2: =Codierung!I185 -> Bundesamt für Landwirtschaft BLW
F3: =Codierung!I186 -> Fachbereich Marktanalysen
A5: =Codierung!$I$157 -> "Versteckte" Eierimporte in Lebensmittelzubereitungen
A6: =Codierung!$I$222 -> in Mio. Stück
A7: =Codierung!$I$224 -> in %
A8: =Codierung!$I$223 -> in Stück / Kopf
A9: =Codierung!$I$210 -> Quellen: BLW, Fachbereich Marktanalysen; SBV; EZV; Aviforum
A10: =Codierung!$I$215 -> Publikationsrecht: Weiterverarbeitung und Publikation unter Quellenangabe gestattet.
A11: =Codierung!$I$154 -> Zurück zum Inhaltsverzeichnis
B13: =Codierung!$I$158 -> Eier in importieren Lebensmittelzubereitungen | D13: =Codierung!$I$27 -> Bevölkerung | E13: =Codierung!$I$31 -> Pro-Kopf-Verbrauch
B14: =Codierung!$I$220 -> in Stück | C14: =Codierung!$I$222 -> in Mio. Stück | D14: =Codierung!$I$225 -> in Anz. Personen | E14: =Codierung!$I$223 -> in Stück / Kopf
E15: =Codierung!$I$159 -> statistisch erfasster Verbrauch | F15: =Codierung!$I$160 -> importierte Lebensmittelzubereitungen | G15: =Codierung!$I$36 -> Total
A16: 2005 | B16: =[1]Pivot_Menge!AR11 -> 62001082.99 | C16: =B16/1000000 -> 62.00108299 | D16: =[2]Vertikal!B19 -> 7600000 | E16: ='D.1 Prod + AH + Verbrauch'!Z33 -> 171.5255355 | F16: =B16/D16 -> 8.158037236 | G16: =SUM(E16:F16) -> 179.6835728
A17: 2006 | B17: =[1]Pivot_Menge!AR12 -> 73548156.62 | C17: 73.54815662 | D17: =[2]Vertikal!B20 -> 7650000 | E17: ='D.1 Prod + AH + Verbrauch'!Z34 -> 168.5744864 | F17: 9.614138121 | G17: 178.1886246
A18: 2007 | B18: =[1]Pivot_Menge!AR13 -> 82793182.07 | C18: 82.79318207 | D18: =[2]Vertikal!B21 -> 7720000 | E18: ='D.1 Prod + AH + Verbrauch'!Z35 -> 173.4532622 | F18: 10.72450545 | G18: 184.1777676
A19: 2008 | B19: =[1]Pivot_Menge!AR14 -> 92015454.77 | C19: 92.01545477 | D19: =[2]Vertikal!B22 -> 7820000 | E19: ='D.1 Prod + AH + Verbrauch'!Z36 -> 174.4738511 | F19: 11.7666822 | G19: 186.2405333
A20: 2009 | B20: =[1]Pivot_Menge!AR15 -> 90752231.87 | C20: 90.75223187 | D20: =[2]Vertikal!B23 -> 7900000 | E20: ='D.1 Prod + AH + Verbrauch'!Z37 -> 177.8109402 | F20: 11.48762429 | G20: 189.2985645
A21: 2010 | B21: =[1]Pivot_Menge!AR16 -> 98168313.3 | C21: 98.1683133 | D21: =[2]Vertikal!B24 -> 7970000 | E21: ='D.1 Prod + AH + Verbrauch'!Z38 -> 180.5135258 | F21: 12.31722877 | G21: 192.8307546
A22: 2011 | B22: =[1]Pivot_Menge!AR17 -> 107572677.9 | C22: 107.5726779 | D22: =[2]Vertikal!B25 -> 8050000 | E22: ='D.1 Prod + AH + Verbrauch'!Z39 -> 175.221898 | F22: 13.36306558 | G22: 188.5849636
A23: 2012 | B23: =[1]Pivot_Menge!AR18 -> 113025257.2 | C23: 113.0252572 | D23: =[2]Vertikal!B26 -> 8130000 | E23: ='D.1 Prod + AH + Verbrauch'!Z40 -> 174.8878352 | F23: 13.90224566 | G23: 188.7900809
A24: 2013 | B24: =[1]Pivot_Menge!AR19 -> 117347202.2 | C24: 117.3472022 | D24: =[2]Vertikal!B27 -> 8210000 | E24: ='D.1 Prod + AH + Verbrauch'!Z41 -> 178.4357538 | F24: 14.29320368 | G24: 192.7289574
A25: 2014 | B25: =[1]Pivot_Menge!AR20 -> 123412103.4 | C25: 123.4121034 | D25: =[2]Vertikal!B28 -> 8310000 | E25: ='D.1 Prod + AH + Verbrauch'!Z42 -> 177.7724837 | F25: 14.85103531 | G25: 192.623519
A26: 2015 | B26: =[1]Pivot_Menge!AR21 -> 144237934.5 | C26: 144.2379345 | D26: =[2]Vertikal!B29 -> 8390000 | E26: ='D.1 Prod + AH + Verbrauch'!Z43 -> 177.0614975 | F26: 17.19164893 | G26: 194.2531464
A27: 2016 | B27: =[1]Pivot_Menge!AR22 -> 153756986.2 | C27: 153.7569862 | D27: =[2]Vertikal!B30 -> 8470000 | E27: ='D.1 Prod + AH + Verbrauch'!Z44 -> 176.5936382 | F27: 18.15312706 | G27: 194.7467653
A28: 2017 | B28: =[1]Pivot_Menge!AR23 -> 150252574 | C28: 150.252574 | D28: =[2]Vertikal!B31 -> 8510000 | E28: ='D.1 Prod + AH + Verbrauch'!Z45 -> 179.4660587 | F28: 17.65600164 | G28: 197.1220604
A29: 2018 | B29: =[1]Pivot_Menge!AR24 -> 144827053 | C29: 144.827053 | D29: =[2]Vertikal!B32 -> 8550000 | E29: ='D.1 Prod + AH + Verbrauch'!Z46 -> 180.7121428 | F29: 16.93883661 | G29: 197.6509794
A30: 2019 | B30: =[1]Pivot_Menge!AR25 -> 150065609.8 | C30: =B30/1000000 -> 150.0656098 | D30: =[2]Vertikal!B33 -> 8640000 | E30: ='D.1 Prod + AH + Verbrauch'!Z47 -> 183.730671 | F30: =B30/D30 -> 17.36870484 | G30: =SUM(E30:F30) -> 201.0993758
A31: 2020 | B31: =[1]Pivot_Menge!AR26 -> 164091024.6 | C31: 164.0910246 | D31: =[2]Vertikal!B34 -> 8790000 | E31: ='D.1 Prod + AH + Verbrauch'!Z48 -> 188.9319676 | F31: 18.66792089 | G31: 207.5998885
A32: 2021 | B32: =[1]Pivot_Menge!AR27 -> 172775109.3 | C32: 172.7751093 | D32: =[2]Vertikal!B35 -> 8800000 | E32: ='D.1 Prod + AH + Verbrauch'!Z49 -> 195.1646458 | F32: 19.63353515 | G32: 214.798181

Sheet D.3 MEM
F1: =Codierung!I184 -> Eidgenössisches Departement für Wirtschaft, Bildung und Forschung WBF
F2: =Codierung!I185 -> Bundesamt für Landwirtschaft BLW
F3: =Codierung!I186 -> Fachbereich Marktanalysen
D5: =Codierung!I242 -> Anmerkungen:
A6: =Codierung!I173 -> Marktentlastungsmassnahmen | D6: (1) | E6: =Codierung!I247 -> Deckelung der ausbezahlten Mittel (rot markiert); Kürzung der Beiträge je Ei
A7: =Codierung!$I$220 -> in Stück
A8: =Codierung!$I$221 -> in CHF
A9: =Codierung!$I$217 -> in CHF / Ei
A10: =Codierung!I205 -> Quellen: BLW, Fachbereich Marktanalysen
A11: =Codierung!I215 -> Publikationsrecht: Weiterverarbeitung und Publikation unter Quellenangabe gestattet.
A13: =Codierung!$I$154 -> Zurück zum Inhaltsverzeichnis
A14: =Codierung!$I$253 -> Informationen zur Methodik
B15: =Codierung!$I$55 -> Aufschlagsaktion | D15: =Codierung!$I$56 -> Verbilligungsaktion | F15: =Codierung!$I$57 -> Eingesetzte Mittel | I15: =Codierung!$I$58 -> Maximal zur Verfügung stehende Bundesmittel | L15: =Codierung!$I$59 -> Auslastung Mittel | M15: =Codierung!$I$61 -> Anteil betroffene Eier an Inlandproduktion
B16: =Codierung!$I$60 -> Beitrag | D16: =Codierung!$I$60 -> Beitrag | F16: =Codierung!$I$55 -> Aufschlagsaktion | G16: =Codierung!$I$56 -> Verbilligungsaktion | H16: =Codierung!$I$36 -> Total | I16: =Codierung!$I$55 -> Aufschlagsaktion | J16: =Codierung!$I$56 -> Verbilligungsaktion | K16: =Codierung!$I$36 -> Total
B17: =Codierung!$I$217 -> in CHF / Ei | C17: =Codierung!$I$220 -> in Stück | D17: =Codierung!$I$217 -> in CHF / Ei | E17: =Codierung!$I$220 -> in Stück | F17: =Codierung!$I$221 -> in CHF | G17: =Codierung!$I$221 -> in CHF | H17: =Codierung!$I$221 -> in CHF | I17: =Codierung!$I$221 -> in CHF | J17: =Codierung!$I$221 -> in CHF | K17: =Codierung!$I$221 -> in CHF
A18: 2001 | B18: 0.085 | C18: 7853044 | D18: 0.05 | E18: 8505950 | F18: 667508.74 | G18: 425297.5 | H18: 1092806.24 | K18: 2500000 | L18: 0.437122496 | M18: =SUM(C18,E18)/1000000/'D.1 Prod + AH + Verbrauch'!C29 -> 0.02405734412
A19: 2002 | B19: 0.09 | C19: 18572484 | D19: 0.05 | E19: 12552369 | F19: 1671523.56 | G19: 627618.45 | H19: 2299142.01 | K19: 3000000 | L19: 0.76638067 | M19: =SUM(C19,E19)/1000000/'D.1 Prod + AH + Verbrauch'!C30 -> 0.04427432859
A20: 2003 | B20: 0.09 | C20: 16945353 | D20: 0.05 | E20: 11864069 | F20: 1525081.77 | G20: 593203.45 | H20: 2118285.22 | K20: 3000000 | L20: 0.7060950733 | M20: =SUM(C20,E20)/1000000/'D.1 Prod + AH + Verbrauch'!C31 -> 0.04171892667
A21: 2004 | B21: 0.09 | C21: 13719539 | D21: 0.05 | E21: 10939028 | F21: 1234758.51 | G21: 546951.4 | H21: 1781709.91 | K21: 3000000 | L21: 0.5939033033 | M21: =SUM(C21,E21)/1000000/'D.1 Prod + AH + Verbrauch'!C32 -> 0.03783665919
A22: 2005 | B22: 0.09 | C22: 20255114 | D22: 0.05 | E22: 13875336 | F22: 1822960.26 | G22: 693766.8 | H22: 2516727.06 | K22: 3000000 | L22: 0.83890902 | M22: =SUM(C22,E22)/1000000/'D.1 Prod + AH + Verbrauch'!C33 -> 0.05195486547
A23: 2006 | B23: 0.09 | C23: 19036256 | D23: 0.05 | E23: 13204506 | F23: 1713263.04 | G23: 660225.3 | H23: 2373488.34 | K23: 3000000 | L23: 0.79116278 | M23: =SUM(C23,E23)/1000000/'D.1 Prod + AH + Verbrauch'!C34 -> 0.04836895459
A24: 2007 | B24: 0.09 | C24: 7436238 | D24: 0.05 | E24: 10316424 | F24: 669261.42 | G24: 515821.2 | H24: 1185082.62 | K24: 2815000 | L24: 0.4209884973 | M24: =SUM(C24,E24)/1000000/'D.1 Prod + AH + Verbrauch'!C35 -> 0.02652711561
A25: 2008 | B25: 0.09 | C25: 8376880 | D25: 0.05 | E25: 14084488 | F25: 753919.2 | G25: 704224.4 | H25: 1458143.6 | K25: 2500000 | L25: 0.58325744 | M25: =SUM(C25,E25)/1000000/'D.1 Prod + AH + Verbrauch'!C36 -> 0.0327687913
A26: 2009 | B26: 0.09 | C26: 7656674 | D26: 0.05 | E26: 20439198 | F26: 689100.66 | G26: 1021959.9 | H26: 1711060.56 | K26: 2000000 | L26: 0.85553028 | M26: =SUM(C26,E26)/1000000/'D.1 Prod + AH + Verbrauch'!C37 -> 0.03893848894
A27: 2010 | B27: 0.08480148256 | C27: 17688370 | D27: 0.04351678268 | E27: 11489820 | F27: 1500000 | G27: 500000 | H27: 2000000 | I27: 1500000 | J27: 500000 | K27: 2000000 | L27: 1 | M27: =SUM(C27,E27)/1000000/'D.1 Prod + AH + Verbrauch'!C38 -> 0.03880367421
A28: 2011 | B28: 0.09 | C28: 15357431 | D28: 0.05 | E28: 9021673 | F28: 1382168.79 | G28: 451083.65 | H28: 1833252.44 | I28: 1500000 | J28: 500000 | K28: 2000000 | L28: 0.91662622 | M28: =SUM(C28,E28)/1000000/'D.1 Prod + AH + Verbrauch'!C39 -> 0.03218478282
A29: 2012 | B29: 0.09 | C29: 13056968 | D29: 0.05 | E29: 8873544 | F29: 1175127.12 | G29: 443677.2 | H29: 1618804.32 | I29: 1500000 | J29: 500000 | K29: 2000000 | L29: 0.80940216 | M29: =SUM(C29,E29)/1000000/'D.1 Prod + AH + Verbrauch'!C40 -> 0.02865115647
A30: 2013 | B30: 0.09 | C30: 13195207 | D30: 0.05 | E30: 7377472 | F30: 1187568.63 | G30: 368873.6 | H30: 1556442.23 | I30: 1500000 | J30: 500000 | K30: 2000000 | L30: 0.778221115 | M30: =SUM(C30,E30)/1000000/'D.1 Prod + AH + Verbrauch'!C41 -> 0.02532988463
A31: 2014 | B31: 0.09 | C31: 11831044 | D31: 0.05 | E31: 5443141 | F31: 1064793.96 | G31: 272157.05 | H31: 1336951.01 | I31: 1500000 | J31: 400000 | K31: 1900000 | L31: 0.7036584263 | M31: =SUM(C31,E31)/1000000/'D.1 Prod + AH + Verbrauch'!C42 -> 0.02063498425
A32: 2015 | B32: 0.09 | C32: 15861791 | D32: 0.05 | E32: 8022976 | F32: 1427561.19 | G32: 401148.8 | H32: 1828709.99 | I32: 1500000 | J32: 400000 | K32: 1900000 | L32: 0.9624789421 | M32: =SUM(C32,E32)/1000000/'D.1 Prod + AH + Verbrauch'!C43 -> 0.02687190129
A33: 2016 | B33: 0.09 | C33: 14459831 | D33: 0.05 | E33: 7876848 | F33: 1301384.79 | G33: 393842.4 | H33: 1695227.19 | I33: 1500000 | J33: 400000 | K33: 1900000 | L33: 0.8922248368 | M33: =SUM(C33,E33)/1000000/'D.1 Prod + AH + Verbrauch'!C44 -> 0.02463763721
A34: 2017 | B34: 0.088888136 | C34: 16875142.93 | D34: 0.041007556 | E34: 9754299.915 | F34: 1500000 | G34: 400000 | H34: 1900000 | I34: 1500000 | J34: 400000 | K34: 1900000 | L34: 1 | M34: =SUM(C34,E34)/1000000/'D.1 Prod + AH + Verbrauch'!C45 -> 0.02832410221
A35: 2018 | B35: 0.09 | C35: 14886979 | D35: 0.05 | E35: 8455344 | F35: 1339828.11 | G35: 422767.2 | H35: 1762595.31 | I35: 1550000 | J35: 450000 | K35: 2000000 | L35: 0.881297655 | M35: =SUM(C35,E35)/1000000/'D.1 Prod + AH + Verbrauch'!C46 -> 0.02397630444
A36: 2019 | B36: 0.07242946384 | C36: 20709804 | D36: 0.0376483125 | E36: 10983228 | F36: 1500000 | G36: 413500 | H36: 1913500 | I36: 1500000 | J36: 413500 | K36: 1913500 | L36: 1 | M36: =SUM(C36,E36)/1000000/'D.1 Prod + AH + Verbrauch'!C47 -> 0.03168191165
A37: 2020 | B37: 0.09 | C37: 18189815 | D37: 0.05 | E37: 6794723 | F37: 1637083.35 | G37: 339736.15 | H37: 1976819.5 | I37: 1500000 | J37: 507500 | K37: 2007500 | L37: 0.984717061 | M37: =SUM(C37,E37)/1000000/'D.1 Prod + AH + Verbrauch'!C48 -> 0.02348760262
A38: (1) 2021 | B38: 0.05395226023 | C38: 27802357 | D38: 0.03975175822 | E38: 12578060 | F38: 1500000 | G38: 500000 | H38: 2000000 | I38: 1500000 | J38: 500000 | K38: 2000000 | L38: 1 | M38: =SUM(C38,E38)/1000000/'D.1 Prod + AH + Verbrauch'!C49 -> 0.03525491626
A39: (1) 2022 | B39: 0.03434353388 | C39: 43676344 | D39: 0.04153124711 | E39: 12039128 | F39: 1500000 | G39: 500000 | H39: 2000000 | I39: 1500000 | J39: 500000 | K39: 2000000 | L39: 1 | M39: =SUM(C39,E39)/1000000/'D.1 Prod + AH + Verbrauch'!C50 -> 0.04909998546

Sheet D.4 PP
G1: =Codierung!I184 -> Eidgenössisches Departement für Wirtschaft, Bildung und Forschung WBF
G2: =Codierung!I185 -> Bundesamt für Landwirtschaft BLW
G3: =Codierung!I186 -> Fachbereich Marktanalysen
A6: =Codierung!I175 -> Produzenten- und Importpreise
A7: =Codierung!I217 -> in CHF / Ei
A8: =Codierung!$I$206 -> Quellen: BLW, Fachbereich Marktanalysen; EZV
A9: =Codierung!I215 -> Publikationsrecht: Weiterverarbeitung und Publikation unter Quellenangabe gestattet.
A11: =Codierung!$I$154 -> Zurück zum Inhaltsverzeichnis
A12: =Codierung!$I$253 -> Informationen zur Methodik
B13: =Codierung!$I$9 -> Bio | G13: =Codierung!$I$10 -> Bodenhaltung | L13: =Codierung!$I$11 -> Freilandhaltung | Q13: =Codierung!$I$66 -> CH gesamt | R13: =Codierung!$I$67 -> Verarbeitungseier Import | S13: =Codierung!$I$68 -> Konsumeier Import | T13: =Codierung!$I$69 -> CH und Import
B14: < 50 g | C14: 50 - 53 g | D14: > 53 g | E14: =Codierung!$I$65 -> 2. Klasse | F14: =Codierung!$I$64 -> Gewichteter Mittelwert | G14: < 50 g | H14: 50 - 53 g | I14: > 53 g | J14: =Codierung!$I$65 -> 2. Klasse | K14: =Codierung!$I$64 -> Gewichteter Mittelwert | L14: < 50 g | M14: 50 - 53 g | N14: > 53 g | O14: =Codierung!$I$65 -> 2. Klasse | P14: =Codierung!$I$64 -> Gewichteter Mittelwert
A15: 2001 | B15: - | C15: - | D15: - | E15: 0.3315535547 | F15: 0.3928126387 | G15: - | H15: - | I15: - | J15: 0.06359484279 | K15: 0.2273167659 | L15: - | M15: - | N15: - | O15: 0.0620140411 | P15: 0.255733168 | Q15: 0.2530305028 | R15: 0.1053112004 | S15: 0.1462899139 | T15: 0.2044001323
A16: 2002 | B16: - | C16: - | D16: - | E16: 0.23110032 | F16: 0.3898647772 | G16: - | H16: - | I16: - | J16: 0.07067465591 | K16: 0.2305119077 | L16: - | M16: - | N16: - | O16: 0.05980353981 | P16: 0.2553297614 | Q16: 0.2567134665 | R16: 0.1125985853 | S16: 0.1423743384 | T16: 0.2063085938
A17: 2003 | B17: - | C17: - | D17: - | E17: 0.2094756782 | F17: 0.3915451795 | G17: - | H17: - | I17: - | J17: 0.1027585487 | K17: 0.2273604196 | L17: - | M17: - | N17: - | O17: 0.07674297767 | P17: 0.2511565023 | Q17: 0.2551968029 | R17: 0.1204764216 | S17: 0.1528946011 | T17: 0.2097185182
A18: 2004 | B18: - | C18: - | D18: - | E18: 0.1107281164 | F18: 0.4054164537 | G18: - | H18: - | I18: - | J18: 0.08919082356 | K18: 0.2248375141 | L18: - | M18: - | N18: - | O18: 0.06543743043 | P18: 0.2500051808 | Q18: 0.2609887385 | R18: 0.1152440007 | S18: 0.1504497196 | T18: 0.2068796514
A19: 2005 | B19: - | C19: - | D19: - | E19: 0.1208987 | F19: 0.4016563246 | G19: - | H19: - | I19: - | J19: 0.09220637155 | K19: 0.2241604539 | L19: - | M19: - | N19: - | O19: 0.06771965837 | P19: 0.2422502385 | Q19: 0.2620417616 | R19: 0.1039519756 | S19: 0.1442284224 | T19: 0.2025013863
A20: 2006 | B20: - | C20: - | D20: - | E20: 0.1174882899 | F20: 0.3934218963 | G20: - | H20: - | I20: - | J20: 0.1072674237 | K20: 0.2209537483 | L20: - | M20: - | N20: - | O20: 0.07655468865 | P20: 0.2346157936 | Q20: 0.2560650062 | R20: 0.09904378192 | S20: 0.1435052314 | T20: 0.1971904926
A21: 2007 | B21: - | C21: - | D21: - | E21: 0.1452661846 | F21: 0.3941373389 | G21: - | H21: - | I21: - | J21: 0.1209230958 | K21: 0.2184543918 | L21: - | M21: - | N21: - | O21: 0.07404494312 | P21: 0.2258213459 | Q21: 0.2510514624 | R21: 0.1180357102 | S21: 0.1531456067 | T21: 0.1997363897
A22: 2008 | B22: - | C22: - | D22: - | E22: 0.1576878844 | F22: 0.39994608 | G22: - | H22: - | I22: - | J22: 0.122294497 | K22: 0.2274750591 | L22: - | M22: - | N22: - | O22: 0.09497015262 | P22: 0.2347514578 | Q22: 0.2585535708 | R22: 0.1271592384 | S22: 0.1709396557 | T22: 0.2107165291
A23: 2009 | B23: - | C23: - | D23: - | E23: 0.1491776114 | F23: 0.4061336551 | G23: - | H23: - | I23: - | J23: 0.1272993477 | K23: 0.2284106226 | L23: - | M23: - | N23: - | O23: 0.09316169713 | P23: 0.23636952 | Q23: 0.262555993 | R23: 0.1332327997 | S23: 0.1762053142 | T23: 0.2159340943
A24: 2010 | B24: - | C24: - | D24: - | E24: 0.1527237735 | F24: 0.3964394582 | G24: - | H24: - | I24: - | J24: 0.1254314958 | K24: 0.2199448063 | L24: - | M24: - | N24: - | O24: 0.1045159715 | P24: 0.2305787498 | Q24: 0.2558433117 | R24: 0.1228659571 | S24: 0.1609428947 | T24: 0.2074395079
A25: 2011 | B25: - | C25: - | D25: - | E25: 0.16761787 | F25: 0.3988828261 | G25: - | H25: - | I25: - | J25: 0.100809391 | K25: 0.2169288315 | L25: - | M25: - | N25: - | O25: 0.109116072 | P25: 0.2302148554 | Q25: 0.2574345549 | R25: 0.1032380545 | S25: 0.1413267293 | T25: 0.2017588236
A26: 2012 | B26: - | C26: - | D26: - | E26: 0.1630997241 | F26: 0.3999601524 | G26: - | H26: - | I26: - | J26: 0.09913476934 | K26: 0.2169599333 | L26: - | M26: - | N26: - | O26: 0.1018893007 | P26: 0.2302548215 | Q26: 0.2600784334 | R26: 0.1190415812 | S26: 0.1525373949 | T26: 0.2098140242
A27: 2013 | B27: - | C27: - | D27: - | E27: 0.1358473719 | F27: 0.4164708808 | G27: - | H27: - | I27: - | J27: 0.09866070207 | K27: 0.2236776446 | L27: - | M27: - | N27: - | O27: 0.08887903763 | P27: 0.2379876343 | Q27: 0.2728161618 | R27: 0.120068811 | S27: 0.1569033199 | T27: 0.2196694917
A28: 2014 | B28: - | C28: - | D28: - | E28: 0.1397448537 | F28: 0.4238171265 | G28: - | H28: - | I28: - | J28: 0.1117616909 | K28: 0.2259426283 | L28: - | M28: - | N28: - | O28: 0.09499479179 | P28: 0.240761868 | Q28: 0.2763020124 | R28: 0.1040625939 | S28: 0.1451700389 | T28: 0.2197294846
A29: 2015 | B29: 0.1015163657 | C29: 0.193866917 | D29: 0.4530469451 | E29: 0.1123448585 | F29: 0.4217575463 | G29: 0.04558250947 | H29: 0.143181731 | I29: 0.2392861529 | J29: 0.03558390057 | K29: 0.2210959922 | L29: 0.05170336657 | M29: 0.1453815909 | N29: 0.2487126305 | O29: 0.06676002897 | P29: 0.2320978022 | Q29: 0.2751844674 | R29: 0.1008474808 | S29: 0.1349087028 | T29: 0.2205508292
A30: 2016 | B30: 0.1015822778 | C30: 0.1898245003 | D30: 0.4538659587 | E30: 0.1129990749 | F30: 0.4225454514 | G30: 0.04542035336 | H30: 0.1455079754 | I30: 0.2366041532 | J30: 0.03305622104 | K30: 0.2168813164 | L30: 0.05100562367 | M30: 0.1359422268 | N30: 0.2415817794 | O30: 0.06299159495 | P30: 0.2214801791 | Q30: 0.2671533324 | R30: 0.1117788037 | S30: 0.1406982398 | T30: 0.2203354052
A31: 2017 | B31: 0.1017121932 | C31: 0.1900068872 | D31: 0.4540057499 | E31: 0.1125457368 | F31: 0.4211736606 | G31: 0.04668281244 | H31: 0.1484360326 | I31: 0.236467771 | J31: 0.03289236503 | K31: 0.2169292939 | L31: 0.05132085749 | M31: 0.1382222542 | N31: 0.2420793277 | O31: 0.06228298467 | P31: 0.2223150345 | Q31: 0.2681036387 | R31: 0.1184862094 | S31: 0.1360541631 | T31: 0.2212281334
A32: 2018 | B32: 0.1018345903 | C32: 0.1887402276 | D32: 0.4582861473 | E32: 0.1138578426 | F32: 0.4246786522 | G32: 0.04802266738 | H32: 0.1490872366 | I32: 0.2372050282 | J32: 0.03491737666 | K32: 0.2167866967 | L32: 0.05029585326 | M32: 0.1428028881 | N32: 0.2422464542 | O32: 0.05895186484 | P32: 0.224122291 | Q32: 0.2700255859 | R32: 0.1192493372 | S32: 0.1382887581 | T32: 0.225279467
A33: 2019 | B33: 0.1027614589 | C33: 0.1936471385 | D33: 0.4667025149 | E33: 0.1137107533 | F33: 0.4328356975 | G33: 0.0508209926 | H33: 0.1502226702 | I33: 0.2376703351 | J33: 0.03605690806 | K33: 0.2157435967 | L33: 0.04743789527 | M33: 0.1400772092 | N33: 0.2445578366 | O33: 0.05492547447 | P33: 0.2268937394 | Q33: 0.2745180706 | R33: 0.1156033512 | S33: 0.1359457462 | T33: 0.2281559045
A34: 2020 | B34: 0.105445868 | C34: 0.1954147911 | D34: 0.4694950964 | E34: 0.1140854099 | F34: 0.4357278017 | G34: 0.04958973819 | H34: 0.1497034075 | I34: 0.2346810873 | J34: 0.03657747474 | K34: 0.2131938632 | L34: 0.0514700946 | M34: 0.1452136254 | N34: 0.2441437984 | O34: 0.05220403523 | P34: 0.2258026162 | Q34: 0.2732461194 | R34: 0.116159369 | S34: 0.1333251389 | T34: 0.2279265197
A35: 2021 | B35: 0.1067586086 | C35: 0.1944471778 | D35: 0.46891314 | E35: 0.0903320627 | F35: 0.4312070782 | G35: 0.05026301711 | H35: 0.1509118372 | I35: 0.23082339 | J35: 0.03741191815 | K35: 0.2059363429 | L35: 0.04999869637 | M35: 0.1478531758 | N35: 0.2408918136 | O35: 0.05012453416 | P35: 0.2206757461 | Q35: 0.2675479368 | R35: 0.1186264753 | S35: 0.1385772466 | T35: 0.2263966045
A36: 2022 | B36: 0.1075676102 | C36: 0.198895671 | D36: 0.4784892938 | E36: 0.1057355878 | F36: 0.4418980808 | G36: 0.05292402268 | H36: 0.1523719887 | I36: 0.2348260017 | J36: 0.03789781167 | K36: 0.2112911647 | L36: 0.04969366209 | M36: 0.1482545996 | N36: 0.2503443363 | O36: 0.05229615017 | P36: 0.2294225659 | Q36: 0.2808430219 | R36: 0.1458239776 | S36: 0.1518492428 | T36: 0.2429991563

Sheet D.5 GHP Gastro
H1: =Codierung!I184 -> Eidgenössisches Departement für Wirtschaft, Bildung und Forschung WBF
H2: =Codierung!I185 -> Bundesamt für Landwirtschaft BLW
H3: =Codierung!I186 -> Fachbereich Marktanalysen
A6: =Codierung!I176 -> Preise im Liefer- und Abholgrosshandel
A7: =Codierung!I217 -> in CHF / Ei | G7: =Codierung!I242 -> Anmerkungen:
A8: =Codierung!$I$207 -> Quellen: BLW, Fachbereich Marktanalysen; Grossopanel AG, Stans | G8: (1) | H8: =Codierung!$I$263 -> Erweiterung des Datenpanels von Grossopanel
A9: =Codierung!I215 -> Publikationsrecht: Weiterverarbeitung und Publikation unter Quellenangabe gestattet.
A11: =Codierung!$I$154 -> Zurück zum Inhaltsverzeichnis
A12: =Codierung!$I$253 -> Informationen zur Methodik
B13: =Codierung!$I$78 -> Eier frisch | G13: =Codierung!$I$79 -> Eier gekocht
B14: =Codierung!$I$9 -> Bio | C14: =Codierung!$I$10 -> Bodenhaltung | D14: =Codierung!$I$11 -> Freilandhaltung | E14: =Codierung!$I$81 -> alle Produktionsformen CH | F14: =Codierung!$I$80 -> Bodenhaltung Import | G14: =Codierung!$I$9 -> Bio | H14: =Codierung!$I$10 -> Bodenhaltung | I14: =Codierung!$I$11 -> Freilandhaltung | J14: =Codierung!$I$81 -> alle Produktionsformen CH | K14: =Codierung!$I$80 -> Bodenhaltung Import
A15: 2013 | B15: 0.6346045421 | C15: 0.4059901111 | D15: 0.4368842071 | E15: 0.4264615477 | F15: 0.3378692967 | G15: - | H15: 0.5045747816 | I15: 0.6436809178 | J15: 0.5160292924 | K15: 0.4258746789
A16: 2014 | B16: 0.5992869534 | C16: 0.4090297949 | D16: 0.4324333042 | E16: 0.4271148149 | F16: 0.3338855491 | G16: - | H16: 0.504255859 | I16: 0.6336670776 | J16: 0.519886154 | K16: 0.4226862531
A17: 2015 | B17: 0.6271081056 | C17: 0.4175860687 | D17: 0.4230607575 | E17: 0.4261767324 | F17: 0.3222407581 | G17: - | H17: 0.4929564415 | I17: 0.631045479 | J17: 0.5093417197 | K17: 0.4145408331
A18: 2016 | B18: 0.6426727442 | C18: 0.4172313248 | D18: 0.4231904013 | E18: 0.4272228474 | F18: 0.3204451325 | G18: - | H18: 0.4864903443 | I18: 0.6276256357 | J18: 0.5089017274 | K18: 0.4158251493
A19: 2017 | B19: 0.6349713599 | C19: 0.4026702192 | D19: 0.4273472568 | E19: 0.425965312 | F19: 0.3189821573 | G19: - | H19: 0.4727074031 | I19: 0.5776188713 | J19: 0.5091941642 | K19: 0.4160125099
A20: 2018 | B20: 0.6678263757 | C20: 0.404261969 | D20: 0.4355548555 | E20: 0.4360062836 | F20: 0.3360982154 | G20: - | H20: 0.4922390773 | I20: 0.538180484 | J20: 0.5156990862 | K20: 0.4560020196
A21: 2019 | B21: 0.7253631687 | C21: 0.3946920455 | D21: 0.563591113 | E21: 0.5092339969 | F21: 0.3394074272 | G21: - | H21: 0.4723466216 | I21: 0.620079131 | J21: 0.5709506008 | K21: 0.4859685905
A22: 2020 | B22: 0.7138324022 | C22: 0.3847064788 | D22: 0.4940306369 | E22: 0.4835109596 | F22: 0.3362693073 | G22: - | H22: 0.4818981032 | I22: 0.6764585546 | J22: 0.6296217841 | K22: 0.5221478985
A23: 2021 | B23: 0.7061907662 | C23: 0.3668494319 | D23: 0.4880375094 | E23: 0.4744224298 | F23: 0.3261765765 | G23: - | H23: 0.4880803308 | I23: 0.6844503723 | J23: 0.6350975154 | K23: 0.5264852183
A24: 2022 | B24: 0.7268873473 | C24: 0.3880767164 | D24: 0.4928715522 | E24: 0.4773465958 | F24: 0.3516271428 | G24: - | H24: 0.5020097253 | I24: 0.6790459091 | J24: 0.6326499644 | K24: 0.5287341928

Sheet D.6 KP
G1: =Codierung!I184 -> Eidgenössisches Departement für Wirtschaft, Bildung und Forschung WBF
G2: =Codierung!I185 -> Bundesamt für Landwirtschaft BLW
G3: =Codierung!I186 -> Fachbereich Marktanalysen
A6: =Codierung!I82 -> Konsumentenpreise
A7: =Codierung!I217 -> in CHF / Ei | G7: =Codierung!$I$242 -> Anmerkungen:
A8: =Codierung!$I$205 -> Quellen: BLW, Fachbereich Marktanalysen | G8: (1) | H8: =Codierung!$I$257 -> Ab 2016 wurde die Konsumentenpreiserhebung erweitert. Der Discountmarkt ist nun mit drei Akteuren in der Erhebung vertreten. Dadurch sind die Preise leicht gesunken.
A9: =Codierung!I215 -> Publikationsrecht: Weiterverarbeitung und Publikation unter Quellenangabe gestattet. | G9: (2) | H9: =Codierung!$I$262 -> Ab 2019 wurde die Konsumentenpreiserhebung erweitert. Der Verbrauchermarkt ist nun mit zwei Akteuren in der Erhebung vertreten. Die Preise blieben konstant.
A11: =Codierung!$I$154 -> Zurück zum Inhaltsverzeichnis
A12: =Codierung!$I$253 -> Informationen zur Methodik
B13: =Codierung!$I$78 -> Eier frisch | G13: =Codierung!$I$79 -> Eier gekocht | L13: =Codierung!$I$83 -> 4er Packung frisch | P13: =Codierung!$I$84 -> 6er Packung frisch | T13: =Codierung!$I$85 -> 10er Packung frisch
B14: =Codierung!$I$9 -> Bio | C14: =Codierung!$I$10 -> Bodenhaltung | D14: =Codierung!$I$11 -> Freilandhaltung | E14: =Codierung!$I$81 -> alle Produktionsformen CH | F14: =Codierung!$I$80 -> Bodenhaltung Import | G14: =Codierung!$I$9 -> Bio | H14: =Codierung!$I$10 -> Bodenhaltung | I14: =Codierung!$I$11 -> Freilandhaltung | J14: =Codierung!$I$81 -> alle Produktionsformen CH | K14: =Codierung!$I$80 -> Bodenhaltung Import | L14: =Codierung!$I$9 -> Bio | M14: =Codierung!$I$10 -> Bodenhaltung | N14: =Codierung!$I$11 -> Freilandhaltung | O14: =Codierung!$I$81 -> alle Produktionsformen CH | P14: =Codierung!$I$9 -> Bio | Q14: =Codierung!$I$10 -> Bodenhaltung | R14: =Codierung!$I$11 -> Freilandhaltung | S14: =Codierung!$I$81 -> alle Produktionsformen CH | T14: =Codierung!$I$9 -> Bio | U14: =Codierung!$I$10 -> Bodenhaltung | V14: =Codierung!$I$11 -> Freilandhaltung | W14: =Codierung!$I$81 -> alle Produktionsformen CH
A15: 2001 | B15: 0.8041227758 | C15: 0.4735022663 | D15: 0.621338941 | E15: 0.5585560531 | F15: 0.3227455992 | G15: 0.908554103 | H15: 0.558586539 | I15: 0.7322686107 | J15: 0.6474188562 | K15: 0.382014868 | L15: 0.8105773762 | M15: 0.6562955608 | N15: 0.6712579762 | O15: 0.7284998859 | P15: 0.7769698439 | Q15: 0.5038274097 | R15: 0.6094860513 | S15: 0.553678023 | T15: - | U15: 0.439831253 | V15: 0.5483253463 | W15: 0.4549069988
A16: 2002 | B16: 0.8095840314 | C16: 0.4854636878 | D16: 0.6334477335 | E16: 0.5698469364 | F16: 0.308462973 | G16: 0.910012382 | H16: 0.5670152113 | I16: 0.7340374563 | J16: 0.6802361258 | K16: 0.3881116797 | L16: 0.8128754227 | M16: 0.6715846589 | N16: 0.688146364 | O16: 0.7460435989 | P16: 0.7947455343 | Q16: 0.5226939847 | R16: 0.6231775589 | S16: 0.5707256806 | T16: - | U16: 0.4459227839 | V16: 0.5650829746 | W16: 0.4660381021
A17: 2003 | B17: 0.8049577696 | C17: 0.474005465 | D17: 0.6156560821 | E17: 0.5609192351 | F17: 0.3044925818 | G17: 0.932311379 | H17: 0.5679248194 | I17: 0.7639064139 | J17: 0.6713428681 | K17: 0.4277384497 | L17: 0.8117097161 | M17: 0.6231508458 | N17: 0.6697392193 | O17: 0.7288561413 | P17: 0.8016192952 | Q17: 0.5099492477 | R17: 0.5984009706 | S17: 0.5648832256 | T17: - | U17: 0.445270064 | V17: 0.5762298862 | W17: 0.4658745312
A18: 2004 | B18: 0.8000724622 | C18: 0.4732667827 | D18: 0.6105575581 | E18: 0.5693751856 | F18: 0.3169421287 | G18: 0.9383568306 | H18: 0.5753217949 | I18: 0.7641536836 | J18: 0.6902241029 | K18: 0.3831513171 | L18: 0.8097389722 | M18: 0.6116804768 | N18: 0.6624968463 | O18: 0.7231444067 | P18: 0.8010144714 | Q18: 0.5116136647 | R18: 0.6082259486 | S18: 0.5845663657 | T18: - | U18: 0.4380271516 | V18: 0.5643742336 | W18: 0.467970269
A19: 2005 | B19: 0.8026365754 | C19: 0.471842508 | D19: 0.6041008799 | E19: 0.5739109969 | F19: 0.3005679854 | G19: 0.9407373536 | H19: 0.6024136248 | I19: 0.7716904596 | J19: 0.7128753153 | K19: 0.3826971972 | L19: 0.8029743915 | M19: 0.6004407122 | N19: 0.6624208931 | O19: 0.7245132149 | P19: 0.8038812212 | Q19: 0.5125026236 | R19: 0.6025806351 | S19: 0.5966633757 | T19: - | U19: 0.4412913346 | V19: 0.5687098553 | W19: 0.4735380749
A20: 2006 | B20: 0.8005511659 | C20: 0.4734026422 | D20: 0.60598812 | E20: 0.5717396542 | F20: 0.3154245564 | G20: 0.9394645288 | H20: 0.6000046428 | I20: 0.7739168064 | J20: 0.712893032 | K20: 0.3384135404 | L20: 0.8042645922 | M20: 0.6143922081 | N20: 0.6738859485 | O20: 0.7226030445 | P20: 0.8020318339 | Q20: 0.5017030649 | R20: 0.6035699688 | S20: 0.5876448333 | T20: - | U20: 0.4394489598 | V20: 0.5583911821 | W20: 0.466373248
A21: 2007 | B21: 0.8061422364 | C21: 0.468030411 | D21: 0.6075111464 | E21: 0.5712993863 | F21: 0.3215352981 | G21: 0.9408749211 | H21: 0.6112339469 | I21: 0.7790029977 | J21: 0.7187337465 | K21: 0.3487194298 | L21: 0.8090813331 | M21: 0.6210529092 | N21: 0.6800883822 | O21: 0.7267706698 | P21: 0.805961926 | Q21: 0.5002082751 | R21: 0.6017670119 | S21: 0.5896073134 | T21: - | U21: 0.4290277805 | V21: 0.5593001295 | W21: 0.4639169234
A22: 2008 | B22: 0.8354271143 | C22: 0.4837278725 | D22: 0.6241964538 | E22: 0.5905621329 | F22: 0.3544003048 | G22: 0.968368734 | H22: 0.6368000066 | I22: 0.8158000254 | J22: 0.7311797853 | K22: 0.3531216449 | L22: 0.8592727841 | M22: 0.63800176 | N22: 0.7054392538 | O22: 0.7621179034 | P22: 0.816731406 | Q22: 0.5207676006 | R22: 0.6274093975 | S22: 0.613207365 | T22: - | U22: 0.4411116331 | V22: 0.5616945515 | W22: 0.4767346804
A23: 2009 | B23: 0.8416159503 | C23: 0.4914278133 | D23: 0.6419070248 | E23: 0.6074225228 | F23: 0.3176651141 | G23: 0.9644167189 | H23: 0.6567389214 | I23: 0.8321482522 | J23: 0.7531315626 | K23: 0.3621341539 | L23: 0.854703012 | M23: 0.6341994873 | N23: 0.7282884818 | O23: 0.7738383682 | P23: 0.8291859587 | Q23: 0.5260850154 | R23: 0.6418797169 | S23: 0.6240774694 | T23: - | U23: 0.457256098 | V23: 0.5832575874 | W23: 0.4963384494
A24: 2010 | B24: 0.8113132814 | C24: 0.4809407812 | D24: 0.6337044263 | E24: 0.5989977759 | F24: 0.3149518368 | G24: 0.9414176269 | H24: 0.6389487676 | I24: 0.8157127551 | J24: 0.7294288203 | K24: 0.3336676557 | L24: 0.8241623804 | M24: 0.6319124324 | N24: 0.7044873076 | O24: 0.7467436471 | P24: 0.8037045153 | Q24: 0.5163218754 | R24: 0.6361440197 | S24: 0.6208808284 | T24: - | U24: 0.4487892145 | V24: 0.5655341318 | W24: 0.4948059341
A25: 2011 | B25: 0.7980544355 | C25: 0.4565265774 | D25: 0.6213438314 | E25: 0.5842568929 | F25: 0.3051025191 | G25: 0.9114576501 | H25: 0.6073941567 | I25: 0.8127397731 | J25: 0.7100663745 | K25: 0.3398061749 | L25: 0.8082988881 | M25: 0.6271329167 | N25: 0.6851631821 | O25: 0.7392670256 | P25: 0.7904919544 | Q25: 0.5014067309 | R25: 0.6265852128 | S25: 0.6104240098 | T25: 0.78 | U25: 0.4231019311 | V25: 0.5728633418 | W25: 0.4772711118
A26: 2012 | B26: 0.7993689058 | C26: 0.4478894533 | D26: 0.6110412558 | E26: 0.5835561542 | F26: 0.2974949747 | G26: 0.908810531 | H26: 0.5880000586 | I26: 0.8088783857 | J26: 0.707249487 | K26: 0.3496492499 | L26: 0.815463981 | M26: 0.6256381367 | N26: 0.6774766634 | O26: 0.7370401688 | P26: 0.7927685756 | Q26: 0.4867767972 | R26: 0.6137569401 | S26: 0.6095907688 | T26: 0.7672131148 | U26: 0.3796589975 | V26: 0.5505064005 | W26: 0.4377656423
A27: 2013 | B27: 0.8113338215 | C27: 0.4504759365 | D27: 0.617723644 | E27: 0.5985023227 | F27: 0.301528662 | G27: 0.9422965063 | H27: 0.6023248526 | I27: 0.8264535343 | J27: 0.7283446028 | K27: 0.3387148956 | L27: 0.8400916116 | M27: 0.6412404065 | N27: 0.6951611847 | O27: 0.7617957337 | P27: 0.8005861366 | Q27: 0.4891547999 | R27: 0.6264382091 | S27: 0.6309220151 | T27: 0.7136225546 | U27: 0.416216722 | V27: 0.5738326396 | W27: 0.4775061396
A28: 2014 | B28: 0.8211859728 | C28: 0.4512813034 | D28: 0.6323749759 | E28: 0.6044193667 | F28: 0.2889314725 | G28: 0.9369355599 | H28: 0.5986508165 | I28: 0.8374337385 | J28: 0.7423185852 | K28: 0.3200171538 | L28: 0.8554429373 | M28: 0.6322392596 | N28: 0.7115683031 | O28: 0.7714573744 | P28: 0.8107748471 | Q28: 0.4889286547 | R28: 0.6358593016 | S28: 0.6339083068 | T28: 0.7757896581 | U28: 0.4268136733 | V28: 0.5803811265 | W28: 0.4991356093
A29: 2015 | B29: 0.8107660368 | C29: 0.4430114738 | D29: 0.6263246663 | E29: 0.6061510062 | F29: 0.274475747 | G29: 0.9592780828 | H29: 0.5944458031 | I29: 0.8137889369 | J29: 0.7398642802 | K29: 0.3277150282 | L29: 0.8389961476 | M29: 0.6242055382 | N29: 0.7073490421 | O29: 0.7645124234 | P29: 0.8120920778 | Q29: 0.4858581012 | R29: 0.6261637729 | S29: 0.6352962468 | T29: 0.7568000316 | U29: 0.4152696061 | V29: 0.5885438094 | W29: 0.5072953081
A30: 2016 | B30: 0.8078206746 | C30: 0.4339318322 | D30: 0.6129217159 | E30: 0.5939785519 | F30: 0.2492701911 | G30: 0.9668737328 | H30: 0.600087948 | I30: 0.7915455507 | J30: 0.7248788 | K30: 0.316074652 | L30: 0.8492612628 | M30: 0.6137203312 | N30: 0.6995547207 | O30: 0.7700621053 | P30: 0.7977064731 | Q30: 0.4877822649 | R30: 0.6200618089 | S30: 0.631693904 | T30: 0.7662221574 | U30: 0.3922266821 | V30: 0.5859810915 | W30: 0.465417667
A31: 2017 | B31: 0.8058120597 | C31: 0.4263859148 | D31: 0.6144820934 | E31: 0.5976543473 | F31: 0.2473871333 | G31: 0.9644224045 | H31: 0.6038903336 | I31: 0.801227938 | J31: 0.736555709 | K31: 0.3139270366 | L31: 0.841232119 | M31: 0.6103977867 | N31: 0.6938021437 | O31: 0.7607870433 | P31: 0.8019302909 | Q31: 0.4832684006 | R31: 0.6210615914 | S31: 0.6345982997 | T31: 0.7735049548 | U31: 0.3819093284 | V31: 0.5923885791 | W31: 0.474978357
A32: 2018 | B32: 0.8132110177 | C32: 0.4282559253 | D32: 0.6146736858 | E32: 0.5980923666 | F32: 0.24238452 | G32: 0.9464284373 | H32: 0.5981029589 | I32: 0.7848676916 | J32: 0.7438039009 | K32: 0.3330498147 | L32: 0.8455430163 | M32: 0.6268453504 | N32: 0.6987569796 | O32: 0.7686731363 | P32: 0.8182199358 | Q32: 0.4927327941 | R32: 0.6267504213 | S32: 0.6438494245 | T32: 0.7588165685 | U32: 0.3760912863 | V32: 0.5806420869 | W32: 0.4642990881
A33: 2019 | B33: 0.8180381167 | C33: 0.4190881332 | D33: 0.5962750638 | E33: 0.6042064952 | F33: 0.2354077808 | G33: 0.9614271045 | H33: 0.6071066793 | I33: 0.7418994767 | J33: 0.7423535651 | K33: 0.3021527809 | L33: 0.8514812307 | M33: 0.6282796999 | N33: 0.6848350436 | O33: 0.7635094409 | P33: 0.822171599 | Q33: 0.5024605188 | R33: 0.6155120135 | S33: 0.654308915 | T33: 0.778631708 | U33: 0.3669985485 | V33: 0.5612105021 | W33: 0.4789242837
A34: 2020 | B34: 0.8222818613 | C34: 0.42286812 | D34: 0.5852022729 | E34: 0.6061393663 | F34: 0.2297880549 | G34: 0.9477486611 | H34: 0.6016094552 | I34: 0.7071257733 | J34: 0.7272500816 | K34: 0.3058382134 | L34: 0.8533853954 | M34: 0.5502035715 | N34: 0.681297155 | O34: 0.753376215 | P34: 0.832406027 | Q34: 0.5290091003 | R34: 0.6059630759 | S34: 0.6634186564 | T34: 0.7799604255 | U34: 0.3633338577 | V34: 0.5453075788 | W34: 0.4925384184
A35: 2021 | B35: 0.8241245561 | C35: 0.4207815037 | D35: 0.5837809006 | E35: 0.6105193963 | F35: 0.2182316036 | G35: 0.9509264922 | H35: 0.6033606336 | I35: 0.6935987746 | J35: 0.7164956433 | K35: 0.3078344262 | L35: 0.8477469232 | M35: 0.495561784 | N35: 0.6930655477 | O35: 0.7535581871 | P35: 0.8360241539 | Q35: 0.544135616 | R35: 0.604263798 | S35: 0.6766341225 | T35: 0.7792541815 | U35: 0.3573635586 | V35: 0.5440876403 | W35: 0.5159619024
A36: 2022 | B36: 0.8308060513 | C36: 0.3932239462 | D36: 0.5811289531 | E36: 0.6181954138 | F36: 0.2267140476 | G36: 0.9229861653 | H36: 0.5937235727 | I36: 0.6728608708 | J36: 0.6955390455 | K36: 0.3121598892 | L36: 0.8679869485 | M36: 0.539188994 | N36: 0.7096980498 | O36: 0.7884054131 | P36: 0.8492281339 | Q36: 0.5548965385 | R36: 0.6169158703 | S36: 0.6974959796 | T36: 0.7741685273 | U36: 0.3647320192 | V36: 0.5540333337 | W36: 0.53151006

Sheet D.7 MS
H1: =Codierung!I184 -> Eidgenössisches Departement für Wirtschaft, Bildung und Forschung WBF
H2: =Codierung!I185 -> Bundesamt für Landwirtschaft BLW
H3: =Codierung!I186 -> Fachbereich Marktanalysen
A6: =Codierung!$I$177 -> Marktstruktur | H6: =Codierung!I242 -> Anmerkungen:
A7: =Codierung!I224 -> in % | H7: (1) | I7: =Codierung!I248 -> Erweiterung der Datenerhebungen bei den Sammelstellen
A8: =Codierung!$I$222 -> in Mio. Stück | H8: (2) | I8: =Codierung!I255 -> Verarbeitungseier (oft aus Bodenhaltung) direkt für die Industrie werden in der Erhebung Sammelstellen tendenziell unterproportional einbezogen
A9: =Codierung!$I$211 -> Quellen: BLW, Fachbereich Marktanalysen; Aviforum; NielsenIQ Switzerland, Total Market Consumer/Retail Panel; Grossopanel AG, Stans | H9: (3) | I9: =Codierung!$I$90 -> Anteile anhand des linearen Angebots im Verkaufsregal. Die Anteile zeigen nicht die effektiven Absatzanteile (z.B. Importeier werden überschätzt). Effektive Absatzanteile lassen sich mit Absatzzahlen von NielsenIQ Switzerland berechnen.
A10: =Codierung!I215 -> Publikationsrecht: Weiterverarbeitung und Publikation unter Quellenangabe gestattet. | H10: (4) | I10: =Codierung!$I$100 -> Absätze anhand NielsenIQ Switzerland, Total Market Consumer/Retail Panel; Kalkulation Fachbereich Marktanalysen BLW
H11: (5) | I11: =Codierung!$I$251 -> Umrechnungsfaktoren: Eiprodukte getrocknet 80 Eier / kg; Eiprodukte flüssig 20.58 Eier / kg; Schaleneier 16.6 Eier / kg
A12: =Codierung!$I$154 -> Zurück zum Inhaltsverzeichnis | H12: (6) | I12: =Codierung!$I$262 -> Ab 2019 wurde die Konsumentenpreiserhebung erweitert. Der Verbrauchermarkt ist nun mit zwei Akteuren in der Erhebung vertreten. Die Preise blieben konstant.
B14: =Codierung!$I$70 -> Produktion Inland | H14: =Codierung!$I$86 -> Liefer- und Abholgrosshandel | V14: =Codierung!$I$88 -> Detailhandel (3) | AB14: =Codierung!$I$89 -> Detailhandel (4)
B15: =Codierung!$I$91 -> Erhebung Sammelstellen | F15: =Codierung!$I$92 -> Produktion Total (aus Kükenstatistik) | H15: =Codierung!$I$28 -> Schaleneier | N15: =Codierung!$I$29 -> Eiprodukte (5) | Q15: =Codierung!$I$36 -> Total | V15: =Codierung!$I$28 -> Schaleneier | AB15: =Codierung!$I$28 -> Schaleneier
B16: =Codierung!I224 -> in % | F16: =Codierung!I224 -> in % | H16: =Codierung!I224 -> in % | N16: =Codierung!I224 -> in % | Q16: =Codierung!I224 -> in % | V16: =Codierung!I224 -> in % | AB16: =Codierung!$I$222 -> in Mio. Stück
B17: =Codierung!$I$9 -> Bio | C17: =Codierung!$I$10 -> Bodenhaltung | D17: =Codierung!$I$11 -> Freilandhaltung | E17: =Codierung!$I$93 -> Abdeckung durch Erhebung (2) | F17: =Codierung!$I$9 -> Bio | G17: =Codierung!$I$94 -> Boden- und Freilandhaltung | H17: =Codierung!$I$9 -> Bio | I17: =Codierung!$I$10 -> Bodenhaltung | J17: =Codierung!$I$11 -> Freilandhaltung | K17: =Codierung!$I$98 -> Anteil Inland | L17: =Codierung!$I$99 -> Anteil Import | M17: =Codierung!$I$95 -> ohne Angabe | N17: =Codierung!$I$98 -> Anteil Inland | O17: =Codierung!$I$99 -> Anteil Import | P17: =Codierung!$I$95 -> ohne Angabe | Q17: =Codierung!$I$98 -> Anteil Inland | R17: =Codierung!$I$99 -> Anteil Import | S17: =Codierung!$I$95 -> ohne Angabe | T17: =Codierung!$I$28 -> Schaleneier | U17: =Codierung!$I$29 -> Eiprodukte (5) | V17: =Codierung!$I$9 -> Bio | W17: =Codierung!$I$10 -> Bodenhaltung | X17: =Codierung!$I$11 -> Freilandhaltung | Y17: =Codierung!$I$45 -> Import | Z17: =Codierung!$I$98 -> Anteil Inland | AA17: =Codierung!$I$99 -> Anteil Import | AB17: =Codierung!$I$36 -> Total | AC17: =Codierung!$I$9 -> Bio | AD17: =Codierung!$I$10 -> Bodenhaltung | AE17: =Codierung!$I$11 -> Freilandhaltung | AF17: =Codierung!$I$45 -> Import
A18: 2001 | B18: 0.1209335353 | C18: 0.4335048759 | D18: 0.4455615888 | E18: 0.3576625414 | V18: 0.09673249599 | W18: 0.5248332408 | X18: 0.3251181281 | Y18: 0.1739051971 | Z18: 0.8260948029 | AA18: 0.1739051971
A19: 2002 | B19: 0.1234417516 | C19: 0.4153426648 | D19: 0.4612155836 | E19: 0.3875434415 | V19: 0.111167665 | W19: 0.5114248289 | X19: 0.3187157942 | Y19: 0.2063088453 | Z19: 0.7936911547 | AA19: 0.2063088453
A20: 2003 | B20: 0.1296004674 | C20: 0.4249754481 | D20: 0.4454240845 | E20: 0.4549127037 | V20: 0.1199223053 | W20: 0.5142540645 | X20: 0.3075065014 | Y20: 0.1992842325 | Z20: 0.8007157675 | AA20: 0.1992842325
A21: 2004 | B21: 0.1541000746 | C21: 0.3916180509 | D21: 0.4542818745 | E21: 0.495687528 | V21: 0.152478379 | W21: 0.4922298383 | X21: 0.3227557493 | Y21: 0.2054402153 | Z21: 0.7945597847 | AA21: 0.2054402153
A22: 2005 | B22: 0.1557197645 | C22: 0.39813672 | D22: 0.4461435155 | E22: 0.5262185309 | V22: 0.179853946 | W22: 0.4847282707 | X22: 0.310515831 | Y22: 0.2093227785 | Z22: 0.7906772215 | AA22: 0.2093227785
A23: 2006 | B23: 0.1599400533 | C23: 0.3509856466 | D23: 0.4890743001 | E23: 0.4981491121 | V23: 0.1786336343 | W23: 0.5036728726 | X23: 0.3031183571 | Y23: 0.1949536797 | Z23: 0.8050463203 | AA23: 0.1949536797
A24: 2007 | B24: 0.1650307296 | C24: 0.3190282416 | D24: 0.5159410288 | E24: 0.4992836773 | V24: 0.1717468802 | W24: 0.5033838837 | X24: 0.3195324042 | Y24: 0.1996836675 | Z24: 0.8003163325 | AA24: 0.1996836675
A25: 2008 | B25: 0.1761661646 | C25: 0.2738845759 | D25: 0.5499492595 | E25: 0.5108183745 | V25: 0.1665415244 | W25: 0.5057173671 | X25: 0.3231515439 | Y25: 0.1802436427 | Z25: 0.8197563573 | AA25: 0.1802436427
A26: 2009 | B26: 0.1872042531 | C26: 0.2619130259 | D26: 0.5508827211 | E26: 0.5132547169 | V26: 0.1771120427 | W26: 0.4832229739 | X26: 0.3349372261 | Y26: 0.2335067079 | Z26: 0.7664932921 | AA26: 0.2335067079
A27: 2010 | B27: 0.1846955247 | C27: 0.2490178896 | D27: 0.5662865857 | E27: 0.5290957955 | V27: 0.1827706627 | W27: 0.4719098137 | X27: 0.3429672301 | Y27: 0.2347030188 | Z27: 0.7652969812 | AA27: 0.2347030188
A28: 2011 | B28: 0.201603475 | C28: 0.251918204 | D28: 0.546478321 | E28: 0.5471113516 | V28: 0.1986358082 | W28: 0.4720682755 | X28: 0.3286685996 | Y28: 0.2167596376 | Z28: 0.7832403624 | AA28: 0.2167596376
A29: 2012 | B29: 0.2085401256 | C29: 0.2412197047 | D29: 0.5502401697 | E29: 0.5492440061 | F29: 0.1376425339 | G29: 0.8623574661 | V29: 0.2104549724 | W29: 0.4406276896 | X29: 0.3464991385 | Y29: 0.2380064632 | Z29: 0.7619935368 | AA29: 0.2380064632
A30: 2013 | B30: 0.223579557 | C30: 0.250266057 | D30: 0.526154386 | E30: 0.5074627515 | F30: 0.1428766668 | G30: 0.8571233332 | H30: 0.007402523751 | I30: 0.806201904 | J30: 0.1863955722 | K30: 0.4274137472 | L30: 0.5708338353 | M30: 0.001752417507 | N30: 0.0378688 | O30: 0.7677716609 | P30: 0.1943595391 | Q30: 0.2396252389 | R30: 0.6657719439 | S30: 0.09460281721 | T30: 0.5179285224 | U30: 0.4820714776 | V30: 0.2287973447 | W30: 0.419271122 | X30: 0.3503522141 | Y30: 0.2233363399 | Z30: 0.7766636601 | AA30: 0.2233363399
A31: 2014 | B31: 0.2395993862 | C31: 0.2437815405 | D31: 0.5166190733 | E31: 0.4924776492 | F31: 0.1486840172 | G31: 0.8513159828 | H31: 0.01170746429 | I31: 0.7950537585 | J31: 0.1932387772 | K31: 0.4359142055 | L31: 0.5625167059 | M31: 0.001569088664 | N31: 0.04556829413 | O31: 0.8539767864 | P31: 0.1004549195 | Q31: 0.2432614522 | R31: 0.7063649834 | S31: 0.05037356443 | T31: 0.506456331 | U31: 0.493543669 | V31: 0.2276953128 | W31: 0.4153119161 | X31: 0.3555969801 | Y31: 0.2323795156 | Z31: 0.7676204844 | AA31: 0.2323795156
A32: 2015 | B32: 0.218288891 | C32: 0.2529698699 | D32: 0.5287412391 | E32: 0.5452152822 | F32: 0.1530706383 | G32: 0.8469293617 | H32: 0.01075035121 | I32: 0.7538212273 | J32: 0.2354284215 | K32: 0.4827948517 | L32: 0.5159477875 | M32: 0.001257360888 | N32: 0.04823434722 | O32: 0.8447275103 | P32: 0.1070381425 | Q32: 0.2616620193 | R32: 0.6832524334 | S32: 0.0550855473 | T32: 0.4911345369 | U32: 0.5088654631 | V32: 0.2497966196 | W32: 0.3902839028 | X32: 0.3594569741 | Y32: 0.2374730933 | Z32: 0.7625269067 | AA32: 0.2374730933 | AB32: 722.7026869 | AC32: 95.0156163 | AD32: 273.6957544 | AE32: 178.4889176 | AF32: 175.5023985
A33: 2016 | B33: 0.208333537 | C33: 0.1941040417 | D33: 0.5975624213 | E33: 0.6287453651 | F33: 0.1570932531 | G33: 0.8429067469 | H33: 0.0115270861 | I33: 0.7404967295 | J33: 0.2479761844 | K33: 0.4783715157 | L33: 0.5207070488 | M33: 0.0009214355386 | N33: 0.07302464489 | O33: 0.63691618 | P33: 0.2900591751 | Q33: 0.2797048867 | R33: 0.5776629007 | S33: 0.1426322126 | T33: 0.509884883 | U33: 0.490115117 | V33: 0.2363579293 | W33: 0.4023208048 | X33: 0.361321266 | Y33: 0.2803440448 | Z33: 0.7196559552 | AA33: 0.2803440448 | AB33: 744.868157 | AC33: 101.120196 | AD33: 270.492141 | AE33: 189.244218 | AF33: 184.011602
A34: 2017 | B34: 0.22005833 | C34: 0.17445078 | D34: 0.60549089 | E34: 0.6360818874 | F34: 0.1685218296 | G34: 0.8314781704 | H34: 0.01172118545 | I34: 0.6728978593 | J34: 0.3153809552 | K34: 0.5137844412 | L34: 0.4862155588 | M34: 0 | N34: 0.1187390174 | O34: 0.5664909338 | P34: 0.3147700488 | Q34: 0.3178265462 | R34: 0.526035267 | S34: 0.1561381868 | T34: 0.5039611061 | U34: 0.4960388939 | V34: 0.2403158456 | W34: 0.3714019762 | X34: 0.3882821782 | Y34: 0.2758269882 | Z34: 0.7241730118 | AA34: 0.2758269882 | AB34: 755.5347395 | AC34: 109.4721031 | AD34: 267.0588022 | AE34: 201.5055235 | AF34: 177.4983107
A35: 2018 | B35: 0.2252745069 | C35: 0.1566160256 | D35: 0.6181094674 | E35: 0.6300026172 | F35: 0.1733353329 | G35: 0.8266646671 | H35: 0.01652207824 | I35: 0.6188580774 | J35: 0.3588311361 | K35: 0.5539583631 | L35: 0.4459065728 | M35: 0.0001350640884 | N35: 0.1825535112 | O35: 0.4693474162 | P35: 0.3480990726 | Q35: 0.3651986401 | R35: 0.4576374413 | S35: 0.1771639186 | T35: 0.4995543334 | U35: 0.5004456666 | V35: 0.2421706051 | W35: 0.3633734774 | X35: 0.3944559176 | Y35: 0.2988710864 | Z35: 0.7011289136 | AA35: 0.2988710864 | AB35: 785.6143499 | AC35: 138.0614327 | AD35: 259.2206633 | AE35: 195.2784385 | AF35: 193.0538154
A36: 2019 | B36: 0.2343024216 | C36: 0.1435478755 | D36: 0.6221497028 | E36: 0.6392970507 | F36: 0.177498698 | G36: 0.822501302 | H36: 0.02447321998 | I36: 0.7274740019 | J36: 0.2477071214 | K36: 0.4092075296 | L36: 0.5889634008 | M36: 0.001829069562 | N36: 0.198407462 | O36: 0.4525574415 | P36: 0.3490350965 | Q36: 0.2845885434 | R36: 0.5083240891 | S36: 0.2070873675 | T36: 0.4088285283 | U36: 0.5911714717 | V36: 0.2468400242 | W36: 0.2879233732 | X36: 0.4652366026 | Y36: 0.3085431716 | Z36: 0.6914568284 | AA36: 0.3085431716 | AB36: 815.0139195 | AC36: 144.628492 | AD36: 217.5267136 | AE36: 246.5736403 | AF36: 206.2850736
A37: 2020 | B37: 0.2475573531 | C37: 0.1224281203 | D37: 0.6300145266 | E37: 0.6295873645 | F37: 0.1854704141 | G37: 0.8145295859 | H37: 0.02878169441 | I37: 0.5987477856 | J37: 0.3723981694 | K37: 0.5082914596 | L37: 0.490297779 | M37: 0.001410761349 | N37: 0.2611645072 | O37: 0.4636558433 | P37: 0.2751796495 | Q37: 0.3774977172 | R37: 0.4761973402 | S37: 0.1463049427 | T37: 0.4707427045 | U37: 0.5292572955 | V37: 0.2401373386 | W37: 0.2353422383 | X37: 0.5245204231 | Y37: 0.3347919697 | Z37: 0.6652080303 | AA37: 0.3347919697 | AB37: 947.5964441 | AC37: 163.0603499 | AD37: 227.2667962 | AE37: 288.2178194 | AF37: 269.0514785
A38: 2021 | B38: 0.2691096361 | C38: 0.102900884 | D38: 0.62798948 | E38: 0.6183558352 | F38: 0.1908067513 | G38: 0.8091932487 | H38: 0.03251292655 | I38: 0.5991878989 | J38: 0.3682991746 | K38: 0.5193037043 | L38: 0.4786053587 | M38: 0.002090936911 | N38: 0.2795828508 | O38: 0.4580817808 | P38: 0.2623353684 | Q38: 0.3835173925 | R38: 0.4669800833 | S38: 0.1495025242 | T38: 0.4335648741 | U38: 0.5664351259 | V38: 0.2371864197 | W38: 0.2078091066 | X38: 0.5550044737 | Y38: 0.3316844255 | Z38: 0.6683155745 | AA38: 0.3316844255 | AB38: 907.4110565 | AC38: 158.5512476 | AD38: 218.5480245 | AE38: 281.1345823 | AF38: 249.1772021
A39: 2022 | B39: 0.2575847808 | C39: 0.09226867037 | D39: 0.6501465488 | E39: 0.6002773414 | F39: 0.1975906269 | G39: 0.8024093731 | H39: 0.02630919528 | I39: 0.617461753 | J39: 0.3562290517 | K39: 0.5145661708 | L39: 0.4823628415 | M39: 0.003070987704 | N39: 0.2826623436 | O39: 0.4422195777 | P39: 0.2751180787 | Q39: 0.3818179962 | R39: 0.4593837253 | S39: 0.1587982785 | T39: 0.4275722994 | U39: 0.5724277006 | V39: 0.2574894313 | W39: 0.1814390115 | X39: 0.5610715572 | Y39: 0.2916744521 | Z39: 0.7083255479 | AA39: 0.2916744521 | AB39: 856.8204956 | AC39: 156.2940847 | AD39: 201.6625352 | AE39: 271.1315093 | AF39: 227.7323664

Sheet D.8 BWS
G1: =Codierung!I184 -> Eidgenössisches Departement für Wirtschaft, Bildung und Forschung WBF
G2: =Codierung!I185 -> Bundesamt für Landwirtschaft BLW
G3: =Codierung!I186 -> Fachbereich Marktanalysen
A6: =Codierung!I180 -> Bruttowertschöpfung
A7: =Codierung!I217 -> in CHF / Ei
A8: =Codierung!I224 -> in %
A9: =Codierung!I207 -> Quellen: BLW, Fachbereich Marktanalysen; Grossopanel AG, Stans
A10: =Codierung!I215 -> Publikationsrecht: Weiterverarbeitung und Publikation unter Quellenangabe gestattet.
A12: =Codierung!$I$154 -> Zurück zum Inhaltsverzeichnis
A13: =Codierung!$I$253 -> Informationen zur Methodik
B14: =Codierung!$I$14 -> Verarbeitung und Verteilung | V14: =Codierung!$I$15 -> Verarbeitung für Gastronomie / Ausserhausverpflegung
B15: =Codierung!$I$9 -> Bio | F15: =Codierung!$I$10 -> Bodenhaltung | J15: =Codierung!$I$11 -> Freilandhaltung | N15: =Codierung!$I$12 -> Inland und Import | R15: =Codierung!$I$13 -> Konsumeier Import | V15: =Codierung!$I$9 -> Bio | Z15: =Codierung!$I$10 -> Bodenhaltung | AD15: =Codierung!$I$11 -> Freilandhaltung | AH15: =Codierung!$I$12 -> Inland und Import | AL15: =Codierung!$I$13 -> Konsumeier Import
B16: =Codierung!$I$2 -> Einstandspreis | C16: =Codierung!$I$3 -> Nettoeinnahmen | D16: =Codierung!$I$4 -> Bruttowertschöpfung | E16: =Codierung!$I$5 -> Produzentenpreisanteil am Konsumentenfranken | F16: =Codierung!$I$2 -> Einstandspreis | G16: =Codierung!$I$3 -> Nettoeinnahmen | H16: =Codierung!$I$4 -> Bruttowertschöpfung | I16: =Codierung!$I$5 -> Produzentenpreisanteil am Konsumentenfranken | J16: =Codierung!$I$2 -> Einstandspreis | K16: =Codierung!$I$3 -> Nettoeinnahmen | L16: =Codierung!$I$4 -> Bruttowertschöpfung | M16: =Codierung!$I$5 -> Produzentenpreisanteil am Konsumentenfranken | N16: =Codierung!$I$2 -> Einstandspreis | O16: =Codierung!$I$3 -> Nettoeinnahmen | P16: =Codierung!$I$4 -> Bruttowertschöpfung | Q16: =Codierung!$I$5 -> Produzentenpreisanteil am Konsumentenfranken | R16: =Codierung!$I$2 -> Einstandspreis | S16: =Codierung!$I$3 -> Nettoeinnahmen | T16: =Codierung!$I$4 -> Bruttowertschöpfung | U16: =Codierung!$I$5 -> Produzentenpreisanteil am Konsumentenfranken | V16: =Codierung!$I$2 -> Einstandspreis | W16: =Codierung!$I$3 -> Nettoeinnahmen | X16: =Codierung!$I$4 -> Bruttowertschöpfung | Y16: =Codierung!$I$6 -> Produzentenpreisanteil am Gastronomenfranken | Z16: =Codierung!$I$2 -> Einstandspreis | AA16: =Codierung!$I$3 -> Nettoeinnahmen | AB16: =Codierung!$I$4 -> Bruttowertschöpfung | AC16: =Codierung!$I$6 -> Produzentenpreisanteil am Gastronomenfranken | AD16: =Codierung!$I$2 -> Einstandspreis | AE16: =Codierung!$I$3 -> Nettoeinnahmen | AF16: =Codierung!$I$4 -> Bruttowertschöpfung | AG16: =Codierung!$I$6 -> Produzentenpreisanteil am Gastronomenfranken | AH16: =Codierung!$I$2 -> Einstandspreis | AI16: =Codierung!$I$3 -> Nettoeinnahmen | AJ16: =Codierung!$I$4 -> Bruttowertschöpfung | AK16: =Codierung!$I$6 -> Produzentenpreisanteil am Gastronomenfranken | AL16: =Codierung!$I$2 -> Einstandspreis | AM16: =Codierung!$I$3 -> Nettoeinnahmen | AN16: =Codierung!$I$4 -> Bruttowertschöpfung | AO16: =Codierung!$I$6 -> Produzentenpreisanteil am Gastronomenfranken
A17: 2001 | B17: 0.4195967629 | C17: 0.6885175516 | D17: 0.2689207887 | E17: 0.6127766072 | F17: 0.2470976763 | G17: 0.5835462344 | H17: 0.3364485581 | I17: 0.763271227 | J17: 0.2844033987 | K17: 0.3847058828 | L17: 0.1003024841 | M17: 0.4246840138 | N17: 0.2115045103 | O17: 0.4746795043 | P17: 0.263174994 | Q17: 0.4456848703 | R17: 0.154257127 | S17: 0.02859993011 | T17: -0.1256571968
A18: 2002 | B18: 0.416706751 | C18: 0.86948659 | D18: 0.452779839 | E18: 0.4792904174 | F18: 0.2505882484 | G18: 0.5248518792 | H18: 0.2742636308 | I18: 0.4156694966 | J18: 0.2838836416 | K18: 0.683214141 | L18: 0.3993304994 | M18: 0.4777149716 | N18: 0.2086396129 | O18: 0.4735908725 | P18: 0.2649512596 | Q18: 0.4410312184 | R18: 0.1489390588 | S18: 0.3477924236 | T18: 0.1988533648 | U18: 0.4286183095
A19: 2003 | B19: 0.4145443554 | C19: 0.8604875973 | D19: 0.4459432419 | E19: 0.4818230323 | F19: 0.2480323604 | G19: 0.5144185911 | H19: 0.2663862306 | I19: 0.4216684761 | J19: 0.2812394455 | K19: 0.6679668433 | L19: 0.3867273978 | M19: 0.482585435 | N19: 0.2109123359 | O19: 0.4644591386 | P19: 0.2535468027 | Q19: 0.4548366624 | R19: 0.1594149004 | S19: 0.3447437808 | T19: 0.1853288804 | U19: 0.463267627
A20: 2004 | B20: 0.4349177612 | C20: 0.8607213023 | D20: 0.4258035411 | E20: 0.5053536721 | F20: 0.2447401364 | G20: 0.5118536542 | H20: 0.2671135177 | I20: 0.4249892664 | J20: 0.2789642022 | K20: 0.6564679079 | L20: 0.3775037058 | M20: 0.4782026318 | N20: 0.2074559945 | O20: 0.4507498582 | P20: 0.2432938637 | Q20: 0.4601293503 | R20: 0.1553267277 | S20: 0.3467333912 | T20: 0.1914066634 | U20: 0.4485422337
A21: 2005 | B21: 0.4271212317 | C21: 0.8506811568 | D21: 0.423559925 | E21: 0.5021378765 | F21: 0.2393079211 | G21: 0.5107653001 | H21: 0.271457379 | I21: 0.4119196196 | J21: 0.2652835921 | K21: 0.6445031519 | L21: 0.3792195598 | M21: 0.4687754539 | N21: 0.198944936 | O21: 0.4435279101 | P21: 0.244582974 | Q21: 0.4483548871 | R21: 0.1475449448 | S21: 0.3275564358 | T21: 0.180011491 | U21: 0.4528870555
A22: 2006 | B22: 0.4133377191 | C22: 0.8441822354 | D22: 0.4308445163 | E22: 0.489778588 | F22: 0.2332835314 | G22: 0.5058899997 | H22: 0.2726064684 | I22: 0.3984154016 | J22: 0.2542191914 | K22: 0.6385595766 | L22: 0.3843403853 | M22: 0.4612715951 | N22: 0.1919421659 | O22: 0.4332171661 | P22: 0.2412750002 | Q22: 0.4430703011 | R22: 0.1453996902 | S22: 0.3321844946 | T22: 0.1867848044 | U22: 0.4386295681
A23: 2007 | B23: 0.4122144805 | C23: 0.8358080955 | D23: 0.423593615 | E23: 0.4931978248 | F23: 0.2276820482 | G23: 0.5007188751 | H23: 0.2730368268 | I23: 0.3826409745 | J23: 0.2458010512 | K23: 0.6425053312 | L23: 0.39670428 | M23: 0.4547778039 | N23: 0.1967084525 | O23: 0.424444375 | P23: 0.2277359224 | Q23: 0.4636550285 | R23: 0.1537045601 | S23: 0.3335929974 | T23: 0.1798884373 | U23: 0.4615327999
A24: 2008 | B24: 0.4089409178 | C24: 0.8493204206 | D24: 0.4403795028 | E24: 0.4816614417 | F24: 0.2316626542 | G24: 0.5146187537 | H24: 0.2829560995 | I24: 0.3814401643 | J24: 0.2485124529 | K24: 0.6523702472 | L24: 0.4038577943 | M24: 0.4503664003 | N24: 0.2020133863 | O24: 0.4420563602 | P24: 0.2400429739 | Q24: 0.4573647671 | R24: 0.1677547489 | S24: 0.3603905694 | T24: 0.1926358205 | U24: 0.466094228
A25: 2009 | B25: 0.4185268676 | C25: 0.8560305272 | D25: 0.4375036596 | E25: 0.4889438818 | F25: 0.2346875295 | G25: 0.5320323578 | H25: 0.2973448283 | I25: 0.3730894025 | J25: 0.2512431873 | K25: 0.673678655 | L25: 0.4224354678 | M25: 0.4412373654 | N25: 0.2068627307 | O25: 0.438023888 | P25: 0.2311611572 | Q25: 0.4722854066 | R25: 0.1735398462 | S25: 0.3284129209 | T25: 0.1548730748 | U25: 0.529605396
A26: 2010 | B26: 0.4064450337 | C26: 0.8197287633 | D26: 0.4132837296 | E26: 0.4959453818 | F26: 0.2265131771 | G26: 0.5196928808 | H26: 0.2931797036 | I26: 0.3681722682 | J26: 0.2409224966 | K26: 0.6544251867 | L26: 0.4135026901 | M26: 0.4361467749 | N26: 0.1969881088 | O26: 0.4273364409 | P26: 0.2303483321 | Q26: 0.4608822053 | R26: 0.1572192452 | S26: 0.3183021483 | T26: 0.1610829031 | U26: 0.4936912003
A27: 2011 | B27: 0.4075479752 | C27: 0.8019836082 | D27: 0.394435633 | E27: 0.5082380594 | F27: 0.2256052209 | G27: 0.4943979068 | H27: 0.2687926859 | I27: 0.36839629 | J27: 0.2380400928 | K27: 0.6461788041 | L27: 0.4081387113 | M27: 0.4563471505 | N27: 0.1915664559 | O27: 0.4148998236 | P27: 0.2233333678 | Q27: 0.4619807274 | R27: 0.1376241253 | S27: 0.3051356745 | T27: 0.1675115492 | U27: 0.4523106443
A28: 2012 | B28: 0.4103972848 | C28: 0.8103096483 | D28: 0.3999123635 | E28: 0.5064957268 | F28: 0.226645191 | G28: 0.4878630005 | H28: 0.2612178095 | I28: 0.3676354966 | J28: 0.238708184 | K28: 0.6493799255 | L28: 0.4106717415 | M28: 0.4646409399 | N28: 0.2011505037 | O28: 0.4210878844 | P28: 0.2199373807 | Q28: 0.4778123254 | R28: 0.1497641049 | S28: 0.3047671624 | T28: 0.1550030575 | U28: 0.4924326701
A29: 2013 | B29: 0.4235984236 | C29: 0.8249065928 | D29: 0.4013081692 | E29: 0.5135320814 | F29: 0.2331514393 | G29: 0.4993870907 | H29: 0.2662356514 | I29: 0.3745247024 | J29: 0.2462770507 | K29: 0.657720081 | L29: 0.4114430304 | M29: 0.4669203277 | N29: 0.2117764306 | O29: 0.4437749138 | P29: 0.2319984832 | Q29: 0.4771696489 | R29: 0.1545088216 | S29: 0.3038028798 | T29: 0.1492940582 | U29: 0.5089670129 | V29: 0.4235984236 | W29: 0.631228514 | X29: 0.2076300904 | Y29: 0.672011373 | Z29: 0.2331514393 | AA29: 0.4260761536 | AB29: 0.1929247142 | AC29: 0.5477017845 | AD29: 0.2462770507 | AE29: 0.4373975955 | AF29: 0.1911205448 | AG29: 0.563586012 | AH29: 0.2117764306 | AI29: 0.3763355866 | AJ29: 0.164559156 | AK29: 0.5626866975 | AL29: 0.1545088216 | AM29: 0.3335440729 | AN29: 0.1790352513 | AO29: 0.4631838911
A30: 2014 | B30: 0.432232675 | C30: 0.8318151364 | D30: 0.3995824614 | E30: 0.5196309316 | F30: 0.2346517664 | G30: 0.4983765447 | H30: 0.2637247783 | I30: 0.3670885496 | J30: 0.2476876187 | K30: 0.6748811099 | L30: 0.4271934912 | M30: 0.4709100657 | N30: 0.2123902048 | O30: 0.4394627774 | P30: 0.2270725726 | Q30: 0.4834300146 | R30: 0.1428993273 | S30: 0.2917889574 | T30: 0.1488896302 | U30: 0.4901294072 | V30: 0.432232675 | W30: 0.5927008591 | X30: 0.1604681841 | Y30: 0.730627393 | Z30: 0.2346517664 | AA30: 0.4281397282 | AB30: 0.1934879618 | AC30: 0.5485612751 | AD30: 0.2476876187 | AE30: 0.4356844979 | AF30: 0.1879968792 | AG30: 0.5688136704 | AH30: 0.2123902048 | AI30: 0.3754362177 | AJ30: 0.1630460129 | AK30: 0.5656714736 | AL30: 0.1428993273 | AM30: 0.3289593349 | AN30: 0.1860600076 | AO30: 0.4344949167
A31: 2015 | B31: 0.433723798 | C31: 0.8391795374 | D31: 0.4054557393 | E31: 0.5168645924 | F31: 0.2272542795 | G31: 0.4979073214 | H31: 0.2706530419 | I31: 0.3545501766 | J31: 0.2391331067 | K31: 0.6745378142 | L31: 0.4354047075 | M31: 0.4564448406 | N31: 0.2144058114 | O31: 0.4582946325 | P31: 0.2438888211 | Q31: 0.4682278551 | R31: 0.1344412247 | S31: 0.2823133775 | T31: 0.1478721528 | U31: 0.4772898987 | V31: 0.433723798 | W31: 0.6252052448 | X31: 0.1914814468 | Y31: 0.6941818435 | Z31: 0.2272542795 | AA31: 0.4368699534 | AB31: 0.209615674 | AC31: 0.5203548155 | AD31: 0.2391331067 | AE31: 0.4301931902 | AF31: 0.1910600835 | AG31: 0.5561065585 | AH31: 0.2144058114 | AI31: 0.3772415557 | AJ31: 0.1628357443 | AK31: 0.5685654796 | AL31: 0.1344412247 | AM31: 0.3213197442 | AN31: 0.1868785195 | AO31: 0.4189814137
A32: 2016 | B32: 0.4374792815 | C32: 0.8375656322 | D32: 0.4000863507 | E32: 0.5223237869 | F32: 0.2238286844 | G32: 0.4917619724 | H32: 0.267933288 | I32: 0.352668277 | J32: 0.2309406115 | K32: 0.6549669017 | L32: 0.4240262902 | M32: 0.4552552214 | N32: 0.2153927368 | O32: 0.4394296582 | P32: 0.2240369214 | Q32: 0.4901538748 | R32: 0.1406576703 | S32: 0.2611100748 | T32: 0.1204524044 | U32: 0.5387032189 | V32: 0.4374792815 | W32: 0.6430477097 | X32: 0.2055684282 | Y32: 0.6806589137 | Z32: 0.2238286844 | AA32: 0.4378872995 | AB32: 0.2140586151 | AC32: 0.5113102107 | AD32: 0.2309406115 | AE32: 0.4339667143 | AF32: 0.2030261028 | AG32: 0.5323667103 | AH32: 0.2153927368 | AI32: 0.3780998038 | AJ32: 0.162707067 | AK32: 0.5697710081 | AL32: 0.1406576703 | AM32: 0.3209857661 | AN32: 0.1803280958 | AO32: 0.4385173131
A33: 2017 | B33: 0.4348076123 | C33: 0.8332813709 | D33: 0.3984737586 | E33: 0.5218050367 | F33: 0.2231181262 | G33: 0.4893701466 | H33: 0.2662520204 | I33: 0.351317299 | J33: 0.2305613495 | K33: 0.6563887148 | L33: 0.4258273653 | M33: 0.4559633748 | N33: 0.21461578 | O33: 0.4418938177 | P33: 0.2272780377 | Q33: 0.4859902299 | R33: 0.1353936937 | S33: 0.2584781191 | T33: 0.1230844254 | U33: 0.5241406332 | V33: 0.4348076123 | W33: 0.6320174335 | X33: 0.1972098212 | Y33: 0.688123148 | Z33: 0.2231181262 | AA33: 0.4246254221 | AB33: 0.2015072959 | AC33: 0.526098137 | AD33: 0.2305613495 | AE33: 0.4418258143 | AF33: 0.2112644648 | AG33: 0.5219336329 | AH33: 0.21461578 | AI33: 0.3803072929 | AJ33: 0.1656915129 | AK33: 0.564416054 | AL33: 0.1353936937 | AM33: 0.3174813341 | AN33: 0.1820876404 | AO33: 0.4268801915
A34: 2018 | B34: 0.4337244197 | C34: 0.8278913628 | D34: 0.3941669432 | E34: 0.5238927562 | F34: 0.2204714678 | G34: 0.4725618026 | H34: 0.2520903347 | I34: 0.3485222074 | J34: 0.2280309652 | K34: 0.6543705389 | L34: 0.4263395737 | M34: 0.4667320308 | N34: 0.2172819676 | O34: 0.444851561 | P34: 0.2275695934 | Q34: 0.4884580182 | R34: 0.1362807224 | S34: 0.2596576358 | T34: 0.1233769134 | U34: 0.5251469422 | V34: 0.4337244197 | W34: 0.6571393866 | X34: 0.2234149669 | Y34: 0.6616844093 | Z34: 0.2204714678 | AA34: 0.4261643806 | AB34: 0.2056929128 | AC34: 0.5176713496 | AD34: 0.2280309652 | AE34: 0.4457100873 | AF34: 0.217679122 | AG34: 0.5120116131 | AH34: 0.2172819676 | AI34: 0.3976302363 | AJ34: 0.1803482687 | AK34: 0.5467955068 | AL34: 0.1362807224 | AM34: 0.3342836929 | AN34: 0.1980029705 | AO34: 0.4083153569
A35: 2019 | B35: 0.4400365274 | C35: 0.828380691 | D35: 0.3883441635 | E35: 0.5312196994 | F35: 0.2184093875 | G35: 0.4649315313 | H35: 0.2465221438 | I35: 0.3659186995 | J35: 0.2299991917 | K35: 0.6286322615 | L35: 0.3986330698 | M35: 0.470008287 | N35: 0.2179866887 | O35: 0.4432982111 | P35: 0.2253115224 | Q35: 0.492160337 | R35: 0.1336614218 | S35: 0.2496019719 | T35: 0.1159405501 | U35: 0.5355418495 | V35: 0.4400365274 | W35: 0.7334901741 | X35: 0.2934536467 | Y35: 0.6004531769 | Z35: 0.2184093875 | AA35: 0.411750906 | AB35: 0.1933415185 | AC35: 0.5307953298 | AD35: 0.2299991917 | AE35: 0.5727047179 | AF35: 0.3427055262 | AG35: 0.4023237397 | AH35: 0.2179866887 | AI35: 0.4182159696 | AJ35: 0.200229281 | AK35: 0.52193253 | AL35: 0.1336614218 | AM35: 0.3455754894 | AN35: 0.2119140676 | AO35: 0.3873689657
A36: 2020 | B36: 0.4452853238 | C36: 0.8342433336 | D36: 0.3889580098 | E36: 0.5337701707 | F36: 0.2170426924 | G36: 0.465493066 | H36: 0.2484503736 | I36: 0.3783678976 | J36: 0.2305482101 | K36: 0.6093554699 | L36: 0.3788072598 | M36: 0.4663544463 | N36: 0.2205125647 | O36: 0.4472581412 | P36: 0.2267455765 | Q36: 0.4935132693 | R36: 0.1322898 | S36: 0.2605840571 | T36: 0.1282942571 | U36: 0.5081116565 | V36: 0.4452853238 | W36: 0.7240552557 | X36: 0.278769932 | Y36: 0.6064878077 | Z36: 0.2170426924 | AA36: 0.4058975268 | AB36: 0.1888548344 | AC36: 0.5331595107 | AD36: 0.2305482101 | AE36: 0.5395473372 | AF36: 0.3089991271 | AG36: 0.4136283105 | AH36: 0.2205125647 | AI36: 0.4368050652 | AJ36: 0.2162925005 | AK36: 0.5095737502 | AL36: 0.1322898 | AM36: 0.3518912561 | AN36: 0.2196014561 | AO36: 0.3800110279
A37: 2021 | B37: 0.4430500783 | C37: 0.8291927668 | D37: 0.3861426885 | E37: 0.5343529065 | F37: 0.2097173893 | G37: 0.4548835043 | H37: 0.245166115 | I37: 0.3718810521 | J37: 0.2244397166 | K37: 0.6035269478 | L37: 0.3790872312 | M37: 0.461197902 | N37: 0.2132841869 | O37: 0.4385658017 | P37: 0.2252816147 | Q37: 0.4871012736 | R37: 0.1360805497 | S37: 0.2602799388 | T37: 0.1241993891 | U37: 0.5232942413 | V37: 0.4430500783 | W37: 0.7131974354 | X37: 0.2701473571 | Y37: 0.6218997719 | Z37: 0.2097173893 | AA37: 0.3917848446 | AB37: 0.1820674553 | AC37: 0.5353929789 | AD37: 0.2244397166 | AE37: 0.5336549784 | AF37: 0.3092152618 | AG37: 0.420575216 | AH37: 0.2132841869 | AI37: 0.4244253353 | AJ37: 0.2111411484 | AK37: 0.5024344244 | AL37: 0.1360805497 | AM37: 0.3321947166 | AN37: 0.1961141669 | AO37: 0.409692795
A38: 2022 | B38: 0.4391783384 | C38: 0.8093160656 | D38: 0.3701377272 | E38: 0.5427106965 | F38: 0.2087108966 | G38: 0.4291278655 | H38: 0.220416969 | I38: 0.3926127818 | J38: 0.2263301251 | K38: 0.5768092978 | L38: 0.3504791727 | M38: 0.4875119997 | N38: 0.2231743347 | O38: 0.4654401815 | P38: 0.2422658469 | Q38: 0.4801098314 | R38: 0.1474673745 | S38: 0.2648183171 | T38: 0.1173509426 | U38: 0.5562896031 | V38: 0.4391783384 | W38: 0.7349944198 | X38: 0.2958160814 | Y38: 0.5977717085 | Z38: 0.2087108966 | AA38: 0.3981282235 | AB38: 0.189417327 | AC38: 0.5253399333 | AD38: 0.2263301251 | AE38: 0.5253485102 | AF38: 0.299018385 | AG38: 0.4309484292 | AH38: 0.2231743347 | AI38: 0.4250418557 | AJ38: 0.2018675211 | AK38: 0.5259948186 | AL38: 0.1474673745 | AM38: 0.3458574912 | AN38: 0.1983901167 | AO38: 0.428209269

Sheet D.9 Int.
G1: =Codierung!I184 -> Eidgenössisches Departement für Wirtschaft, Bildung und Forschung WBF
G2: =Codierung!I185 -> Bundesamt für Landwirtschaft BLW
G3: =Codierung!I186 -> Fachbereich Marktanalysen
F5: =Codierung!I242 -> Anmerkungen:
A6: =Codierung!I179 -> Internationale Marktzahlen | F6: (1) | G6: =Codierung!I249 -> Aufgrund der zu kleinen Stichprobe können diese Preise aus datenschutzrechtlichen Gründen nicht mehr publiziert werden
A7: =Codierung!$I$218 -> in Euro / Ei | F7: (2) | G7: =Codierung!I254 -> Nur Kleinmengen (Absatz von 1 bis 15 Kartons)
A8: =Codierung!$I$223 -> in Stück / Kopf | F8: (3) | G8: =Codierung!I250 -> Produzentenpreise für Eier, welche an Feinkostläden und den Fachhandel geliefert werden (darum nicht repräsentativ für Gesamtmarkt, wo durchschnittlich tiefere Preise ausbezahlt werden)
A9: =Codierung!$I$212 -> Quellen Preise: AMA Österreich; GfK Austria MEG Deutschland; AMI Deutschland
A10: =Codierung!$I$214 -> Quellen Pro-Kopf-Verbrauch: BLE; Statistik Austria; EU; USDA; Agri-Food & Veterinary Authority of Singapore
A11: =Codierung!$I$154 -> Zurück zum Inhaltsverzeichnis
A12: =Codierung!$I$253 -> Informationen zur Methodik
B13: =Codierung!I120 -> Wechselkurs CHF/Euro | C13: =Codierung!$I$104 -> Produzentenpreise International | U13: =Codierung!$I$103 -> Konsumentenpreise International | AB13: =Codierung!$I$31 -> Pro-Kopf-Verbrauch
C14: =Codierung!$I$188 -> Deutschland | L14: =Codierung!$I$190 -> Österreich | U14: =Codierung!$I$188 -> Deutschland | X14: =Codierung!$I$190 -> Österreich | AB14: =Codierung!$I$188 -> Deutschland | AC14: =Codierung!$I$190 -> Österreich | AD14: =Codierung!$I$195 -> EU-15 | AE14: =Codierung!$I$196 -> USA | AF14: =Codierung!$I$197 -> Singapur
C15: =Codierung!$I$10 -> Bodenhaltung | F15: =Codierung!$I$77 -> Freilandhaltung (2) | I15: =Codierung!$I$76 -> Bio (3) | L15: =Codierung!$I$9 -> Bio | O15: =Codierung!$I$10 -> Bodenhaltung | R15: =Codierung!$I$11 -> Freilandhaltung | U15: =Codierung!$I$9 -> Bio | V15: =Codierung!$I$10 -> Bodenhaltung | W15: =Codierung!$I$11 -> Freilandhaltung | X15: =Codierung!$I$9 -> Bio | Y15: =Codierung!$I$9 -> Bio | Z15: =Codierung!$I$10 -> Bodenhaltung | AA15: =Codierung!$I$11 -> Freilandhaltung | AB15: =Codierung!$I$28 -> Schaleneier
C16: L: 63 - 73 g | D16: M: 53 - 63 g | E16: S: < 53 g | F16: L: 63 - 73 g | G16: M: 53 - 63 g | H16: S: < 53 g | I16: L: 63 - 73 g | J16: M: 53 - 63 g | K16: S: < 53 g | L16: L: 63 - 73 g | M16: M: 53 - 63 g | N16: S: < 53 g | O16: L: 63 - 73 g | P16: M: 53 - 63 g | Q16: S: < 53 g | R16: L: 63 - 73 g | S16: M: 53 - 63 g | T16: S: < 53 g | U16: =Codierung!$I$119 -> M, 10er Packung | V16: =Codierung!$I$119 -> M, 10er Packung | W16: =Codierung!$I$119 -> M, 10er Packung | X16: =Codierung!$I$117 -> M, 6er und 10er Packung | Y16: =Codierung!$I$118 -> M, 4er und 6er Packung | Z16: =Codierung!$I$117 -> M, 6er und 10er Packung | AA16: =Codierung!$I$117 -> M, 6er und 10er Packung | AB16: =Codierung!$I$223 -> in Stück / Kopf | AC16: =Codierung!$I$223 -> in Stück / Kopf | AD16: =Codierung!$I$223 -> in Stück / Kopf | AE16: =Codierung!$I$223 -> in Stück / Kopf | AF16: =Codierung!$I$223 -> in Stück / Kopf
A17: 2005 | B17: 1.548087008 | O17: 0.081675 | P17: 0.071975 | Q17: 0.09154166667
A18: 2006 | B18: 1.572933068 | O18: 0.08319166667 | P18: 0.0728 | Q18: 0.091275 | AB18: 209 | AD18: 231.6677051 | AE18: 254.1303662 | AF18: 291
A19: 2007 | B19: 1.642664542 | O19: 0.09865833333 | P19: 0.08870833333 | Q19: 0.1105833333 | R19: 0.10599 | S19: 0.12136 | T19: 0 | X19: 0.3576966152 | Y19: 0.3602451205 | Z19: 0.1899655382 | AA19: 0.3263988142 | AB19: 209 | AC19: 236 | AD19: 228.7540476 | AE19: 247.8884786 | AF19: 302
A20: 2008 | B20: 1.586664822 | C20: 0.07268181818 | D20: 0.06535454545 | L20: 0.1969181818 | M20: 0.1823 | N20: 0.2002181818 | O20: 0.1143833333 | P20: 0.1031333333 | Q20: 0.1282166667 | R20: 0.11815 | S20: 0.136825 | T20: 0 | U20: 0.2744166667 | V20: 0.14 | W20: 0.1663333333 | X20: 0.4000589759 | Y20: 0.4208896927 | Z20: 0.2047869582 | AA20: 0.3534578818 | AB20: 208 | AC20: 239 | AD20: 226.0544615 | AE20: 241.7626547 | AF20: 302
A21: 2009 | B21: 1.510071146 | C21: 0.09651666667 | D21: 0.08988333333 | L21: 0.1998 | M21: 0.18905 | N21: 0.2012916667 | O21: 0.1093333333 | P21: 0.095225 | Q21: 0.1216666667 | R21: 0.1240333333 | S21: 0.1413916667 | T21: 0 | U21: 0.2865833333 | V21: 0.1388333333 | W21: 0.17275 | X21: 0.3978815132 | Y21: 0.4181997063 | Z21: 0.1984948971 | AA21: 0.3404108559 | AB21: 210 | AC21: 232 | AD21: 217.7788853 | AE21: 242.8551483 | AF21: 300
A22: 2010 | B22: 1.38053125 | C22: 0.08724166667 | D22: 0.07741666667 | L22: 0.1976666667 | M22: 0.1875083333 | N22: 0.2018333333 | O22: 0.1048166667 | P22: 0.09209166667 | Q22: 0.1242666667 | R22: 0.1261166667 | S22: 0.1382583333 | T22: 0 | U22: 0.28575 | V22: 0.135 | W22: 0.1743333333 | X22: 0.3938862271 | Y22: 0.411250017 | Z22: 0.1984280604 | AA22: 0.3265429736 | AB22: 214 | AC22: 232.56108 | AD22: 213.3227426 | AE22: 247.9141 | AF22: 303
A23: 2011 | B23: 1.233554628 | C23: 0.0649606685 | D23: 0.05889942244 | L23: 0.1974583333 | M23: 0.1867583333 | N23: 0.20225 | O23: 0.1020333333 | P23: 0.08406666667 | Q23: 0.1250583333 | R23: 0.1174416667 | S23: 0.1375 | T23: 0 | U23: 0.2855 | V23: 0.1355 | W23: 0.1750833333 | X23: 0.4061181872 | Y23: 0.4499171733 | Z23: 0.1954902308 | AA23: 0.3166045554 | AB23: 213 | AC23: 231.8822745 | AD23: 210.3624202 | AE23: 248.9328 | AF23: 307
A24: 2012 | B24: 1.205307931 | C24: 0.101125 | D24: 0.09269166667 | I24: 0.264038 | J24: 0.254677 | K24: 0.141763 | L24: 0.1996916667 | M24: 0.1881833333 | N24: 0.20255 | O24: 0.110525 | P24: 0.0898 | Q24: 0.1354583333 | R24: 0.1205583333 | S24: 0.14375 | T24: 0 | U24: 0.2869166667 | V24: 0.1204166667 | W24: 0.162 | X24: 0.3621878467 | Y24: 0.4572564337 | Z24: 0.1939246192 | AA24: 0.3209689102 | AB24: 216.6741544 | AC24: 234.4653849 | AD24: 205.0934467 | AE24: 253.3051 | AF24: 308
A25: 2013 | B25: 1.230793027 | C25: 0.07608333333 | D25: 0.06948333333 | E25: 0.046675 | I25: 0.25571375 | J25: 0.2483120833 | K25: 0.1824904167 | L25: 0.2025583333 | M25: 0.1925333333 | N25: 0.2054166667 | O25: 0.1145666667 | P25: 0.090925 | Q25: 0.1369416667 | R25: 0.1268583333 | S25: 0.15415 | T25: 0 | U25: 0.2931666667 | V25: 0.1374166667 | W25: 0.1788333333 | X25: 0.3776102113 | Y25: 0.4652022614 | Z25: 0.2260332108 | AA25: 0.333760175 | AB25: 221.3372231 | AC25: 236.2817134 | AD25: 211.9255779 | AE25: 260.1335 | AF25: 312
A26: 2014 | B26: 1.214629004 | C26: 0.07246666667 | D26: 0.06796666667 | E26: 0.049375 | F26: 0.1502 | G26: 0.13545 | H26: 0.1007083333 | I26: 0.2556083333 | J26: 0.249125 | K26: 0.1884916667 | L26: 0.20315 | M26: 0.193425 | N26: (1) | O26: 0.1137583333 | P26: 0.1005833333 | Q26: 0.1385583333 | R26: 0.132525 | S26: 0.1618833333 | T26: 0 | U26: 0.2824166667 | V26: 0.1104166667 | W26: 0.1675833333 | X26: 0.3955939264 | Y26: 0.4859175094 | Z26: 0.2325246106 | AA26: 0.3337264388 | AB26: 228.0079878 | AC26: 235.4181761 | AD26: 210.4113882 | AE26: 269.2336 | AF26: 313
A27: 2015 | B27: 1.068114636 | C27: 0.07733333333 | D27: 0.07169166667 | E27: 0.05448333333 | F27: 0.1532416667 | G27: 0.13845 | H27: 0.09975 | I27: 0.265075 | J27: 0.25805 | K27: 0.2412083333 | L27: 0.2037583333 | M27: 0.191725 | O27: 0.1093333333 | P27: 0.09225 | Q27: 0.1285916667 | R27: 0.1240833333 | S27: 0.1568166667 | T27: 0 | U27: 0.2840833333 | V27: 0.1083333333 | W27: 0.1656666667 | Y27: 0.4804888803 | Z27: 0.2543248625 | AA27: 0.3297298708 | AB27: 228.4937769 | AC27: 235.7008144 | AD27: 213.6194866 | AE27: 259.1672 | AF27: 323
A28: 2016 | B28: 1.090089923 | C28: 0.07036666667 | D28: 0.06428333333 | E28: 0.04395 | F28: 0.1571416667 | G28: 0.14165 | H28: 0.09585833333 | I28: 0.2687416667 | J28: 0.2637666667 | K28: 0.2429583333 | L28: 0.2078166667 | M28: 0.1918 | O28: 0.1131833333 | P28: 0.09716666667 | Q28: 0.129225 | R28: 0.1216083333 | S28: 0.1528416667 | T28: 0 | U28: 0.3076666667 | V28: 0.1275833333 | W28: 0.1838333333 | Y28: 0.4953712017 | Z28: 0.222638444 | AA28: 0.3386686218 | AB28: 230.5569054 | AC28: 235.8374423 | AD28: 215.9028327 | AE28: 278.0261 | AF28: 338
A29: 2017 | B29: 1.1116 | C29: 0.09921666667 | D29: 0.09211666667 | E29: 0.06635833333 | F29: 0.1525916667 | G29: 0.1353 | H29: 0.101275 | I29: 0.2718333333 | J29: 0.2648833333 | K29: 0.2419666667 | L29: 0.2133166667 | M29: 0.1940666667 | O29: 0.11695 | P29: 0.1014666667 | Q29: 0.1308583333 | R29: 0.1234333333 | S29: 0.1539916667 | T29: 0 | U29: 0.316 | V29: 0.12 | W29: 0.1878333333 | Y29: 0.4793716748 | Z29: 0.2090441853 | AA29: 0.3409436185 | AB29: 229.5214076 | AC29: 239.4621902 | AD29: 219.5159937 | AE29: 280.26 | AF29: 349
A30: 2018 | B30: 1.1549 | C30: 0.09289166667 | D30: 0.08179166667 | E30: 0.06116666667 | F30: 0.1631416667 | G30: 0.1420083333 | H30: 0.1106083333 | I30: 0.2734666667 | J30: 0.268125 | K30: 0.2332333333 | L30: 0.215575 | M30: 0.1979333333 | O30: 0.1290666667 | P30: 0.1154083333 | Q30: 0.1411333333 | R30: 0.132475 | S30: 0.155325 | T30: - | U30: 0.3295833333 | V30: 0.13725 | W30: 0.1945 | Y30: 0.477867449 | Z30: 0.205943576 | AA30: 0.3365387572 | AB30: 233.6691759 | AC30: 240.0808362 | AD30: 226.0505234 | AE30: 287.4941 | AF30: 358
A31: 2019 | B31: 1.1125 | C31: 0.08305 | D31: 0.07245833333 | E31: 0.0532 | F31: 0.18975 | G31: 0.1681666667 | H31: 0.098625 | I31: 0.277525 | J31: 0.2723916667 | K31: 0.2214666667 | L31: 0.2487166667 | M31: 0.233475 | O31: 0.128275 | P31: 0.1158666667 | Q31: - | R31: 0.13625 | S31: 0.1566666667 | T31: - | U31: 0.3299166667 | V31: 0.12725 | W31: 0.1884166667 | Y31: 0.4904802118 | Z31: 0.2079333464 | AA31: 0.3371304633 | AB31: 235.1362552 | AC31: 242.3098775 | AD31: 225.7276988 | AE31: 293.3992 | AF31: 360
A32: 2020 | B32: 1.0705 | C32: 0.0784 | D32: 0.0692 | E32: 0.053275 | F32: 0.154725 | G32: 0.1300416667 | H32: 0.1005083333 | I32: 0.28095 | J32: 0.2761583333 | K32: 0.2158583333 | L32: 0.2666333333 | M32: 0.2497916667 | O32: 0.1243166667 | P32: 0.1105583333 | Q32: - | R32: 0.1408416667 | S32: 0.1666416667 | T32: - | U32: 0.3280833333 | V32: 0.1356666667 | W32: 0.1943333333 | Y32: 0.4931151884 | Z32: 0.206771083 | AA32: 0.3234249738 | AB32: 242.2526302 | AC32: 235.7269092 | AD32: 224.9279882 | AE32: 286.5389 | AF32: 388
A33: 2021 | B33: 1.081 | C33: 0.07614166667 | D33: 0.06695 | E33: 0.05333333333 | F33: 0.1787166667 | G33: 0.161725 | H33: 0.119375 | I33: 0.262 | J33: 0.2588666667 | K33: 0.2001333333 | L33: 0.2824333333 | M33: 0.2704166667 | O33: 0.1272416667 | P33: 0.11245 | Q33: - | R33: 0.1451416667 | S33: 0.195975 | T33: - | U33: 0.3420833333 | V33: 0.15575 | W33: 0.216 | Y33: 0.5176694581 | Z33: 0.2107276845 | AA33: 0.332120131 | AB33: 237.5080077 | AC33: 233 | AD33: 229.2910428 | AE33: 280.4938 | AF33: 390
A34: 2022 | B34: 1.0048 | C34: 0.1206333333 | D34: 0.108975 | E34: 0.08914166667 | F34: 0.2150666667 | G34: 0.1990083333 | H34: 0.1492083333 | I34: 0.205825 | J34: 0.2022083333 | K34: 0.1662166667 | L34: 0.324075 | M34: 0.3098833333 | O34: 0.1663583333 | P34: 0.1510916667 | Q34: - | R34: 0.1872083333 | S34: 0.2583916667 | T34: - | U34: 0.3611666667 | V34: 0.1946666667 | W34: 0.2434166667 | Y34: 0.5580537289 | Z34: 0.2638007805 | AA34: 0.3464831437

Sheet 10. Methoden
E1: =Codierung!I184 -> Eidgenössisches Departement für Wirtschaft, Bildung und Forschung WBF
E2: =Codierung!I185 -> Bundesamt für Landwirtschaft BLW
E3: =Codierung!I186 -> Fachbereich Marktanalysen
A6: =Codierung!I181 -> Methoden
A8: =Codierung!$I$154 -> Zurück zum Inhaltsverzeichnis
B10: =Codierung!I267 -> Produktion, Aussenhandel und Verbrauch
B11: =Codierung!I268 -> ■ Die Bevölkerungsschätzung stammt vom SBV und dient zur Berechnung des Pro-Kopf-Verbrauchs in der Schweiz. In der Schätzung enthalten sind ebenfalls Touristen und Grenzgänger.
B12: =Codierung!I269 -> ■ Die Inlandproduktion wird anhand der „Kükenstatistik“ geschätzt und stammt vom Aviforum.
B13: =Codierung!I270 -> ■ Die Aussenhandelszahlen stammen vom BAZG.
B14: =Codierung!I271 -> o Importe werden jeweils abzüglich der Exporte (in vernachlässigbarer Grössenordnung) sowie ohne Rückwaren und Importe von Produkten zu technischen Zwecken (etwa der Forschung) dargestellt.
B15: =Codierung!I272 -> o Der Veredelungsverkehr fliesst nicht in die Aussenhandelsstatistik ein (siehe dazu unten Abschnitt "Aktiver Veredelungsverkehr (aVV)").
B16: =Codierung!I273 -> ■ Die Menge der Schweizer Verarbeitungseier basiert auf einer Datenerhebung des Fachbereichs Marktanalysen bei Unternehmen und Geflügelbetrieben mit eigener Eierverarbeitung.
B17: =Codierung!I274 -> ■ Der Eier-Verbrauch entspricht der Summe der im Inland produzierten Eier und der importierten Eier und Eiprodukte abzüglich der Exporte von Ei- und Eiprodukten. Nicht berücksichtigt im Verbrauch werden Eier, welche in verarbeiteter Form, welche über den Verarbeitungsgrad von Eiprodukten hinausgeht, importiert werden (z.B. als Back- und Teigwaren, Süssigkeiten etc.) sowie die Ei-Verluste, welche im Lauf durch die Wertschöpfungskette entstehen (Food Waste). Der Einkaufstourismus ist ebenfalls nicht in der Rechnung enthalten.
B18: =Codierung!I275 -> ■ Der Pro-Kopf-Verbrauch entspricht den konsumierten Eiern (unter „Verbrauch Inland“) pro Kopf (unter „Bevölkerung“).
B19: =Codierung!I276 -> Aktiver Veredelungsverkehr (aVV)
B20: =Codierung!I277 -> ■ Der aktive Veredelungsverkehr ist umfasst die vorübergehende Einfuhr von Waren zur Bearbeitung, Verarbeitung und Ausbesserung.
B21: =Codierung!I278 -> ■ Erfasst werden die Importe und Re-Exporte in den Zolltarifnummern 0407, 0408 und 3502. Die Re-Exporte von im aktiven Veredelungsverkehr importierten Eiern, welche unter anderen als die genannten Zolltarifnummern wieder re-exportiert werden, werden nicht erfasst.
B22: =Codierung!I279 -> ■ Die Eier-Statistik zum passiven Veredelungsverkehr wird aus Datenschutzgründen und aufgrund der geringen Relevanz nicht veröffentlicht.
B23: =Codierung!I280 -> Marktentlastungsmassnahmen des Bundes (MEM)
B24: =Codierung!I281 -> ■ Die Marktentlastungsmassnahmen des Bundes dienen zur Angebotsstabilisierung während der Eier-Nebensaison (etwa nach Ostern). Die Erhebung der von den Massnahmen betroffenen Eier erfolgt durch das BLW.
B26: =Codierung!I282 -> Produzentenpreise
B27: =Codierung!I283 -> ■ Der Produzentenpreis ist der Nettopreis pro Ei ab Hof, mit Hofdatierung und Mengenzuschläge. Direktzahlungen für tierfreundliche Haltungsformen und Futter- sowie Junghennenverträge sind nicht inbegriffen. Es handelt sich um einen gemischten Preis über alle Gewichtsklassen inklusive den Eiern der zweiten Klasse (Bruch, Blut, Schmutz, Kaliber). Die Produzentenpreise werden nach den drei Haltungs- bzw. Produktionsformen Bio, Bodenhaltung und Freilandhaltung differenziert. Die Erhebung erfolgt monatlich bei fünf wichtigen schweizerischen Pack- und Sammelstellen. Die Produzentenpreise sind nach Stückzahl der umgesetzten Eier gewichtet.
B28: =Codierung!I284 -> Preise im Liefer- und Abholgrosshandel
B29: =Codierung!I285 -> ■ Preise im Liefer- und Abholgrosshandel sind nach Absatz gewichtete Abverkaufspreise. Rund 80 % des nationalen Liefer- und Abholgrosshandels in der Schweiz werden damit erfasst (Prodega/Growa, Transgourmet, Pistor, Scana und CCA Angehrn bilden die Grundgesamtheit der Auswertung). Die Roh-Daten werden von der Grossopanel AG gesammelt und dem BLW in definierter Form zur Verfügung gestellt.
B30: =Codierung!I286 -> Konsumentenpreise
B31: =Codierung!I287 -> Erhebungsdaten
B32: =Codierung!I288 -> ■ Die Daten stammen aus monatlichen, regionalen Erhebungen bei zwei schweizerischen Grossverteilern, zwei Verbrauchermärkten, einem Warenhaus und drei Discountern. Die Erhebungen decken knapp 90 % des inländischen Eiermarktes ab. Die restlichen Eier werden über Direktvermarktung der Produzenten und anderer Verkaufsstellen abgesetzt.
B33: =Codierung!I289 -> Folgende Kriterien werden bei der Erhebung berücksichtigt:
B34: =Codierung!I290 -> ■ Anzahl Schachteln linear
B35: =Codierung!I291 -> Die Anzahl der Schachteln in der vordersten Regalreihe dienen als Gewichtungsfaktor für die Verkaufsmenge.
B36: =Codierung!I292 -> ■ Art der Tierhaltung
B37: =Codierung!I293 -> Die Erhebungen basieren auf den Produktionsformen Bodenhaltung, Freilandhaltung, Bio, 5-Getreide (pflanzliches Futter), Vital Omega 3 und AGRI-NATURA. Bei der Berechnung werden Auslaufhaltung, Freilandhaltung, und AGRI-NATURA zu Freiland- und Auslaufhaltung zusammengefasst. Die Gruppen 5-Getreide und Vital Omega 3 bilden die Gruppe Spezial (Omega 3, 5-Getreide etc.).
B38: =Codierung!I294 -> ■ Frisch / Gekocht
B39: =Codierung!I295 -> Die Erhebung differenziert zwischen rohen Eiern und gekochten Eiern.
B40: =Codierung!I296 -> ■ Anzahl Eier pro Schachtel
B41: =Codierung!I297 -> Das Angebot beinhaltet die Schachtelgrössen 2er, 4er, 6er, 8er, 9er,10er, 12er, 15er,18er, 20er, 30er und einzelne Eier.
B42: =Codierung!I298 -> ■ Gewichtsklasse
B43: =Codierung!I299 -> Das Gewicht der Eier wird in die drei Gewichtsklassen <50 g, 50-53 g und >53 g aufgeteilt.
B44: =Codierung!I300 -> ■ Herkunft (Inland / Import)
B45: =Codierung!I301 -> ■ Preis in Fr./Schachtel
B46: =Codierung!I302 -> ■ Aktionen
B47: =Codierung!I303 -> Aktionen fliessen mit dem Faktor 1.5 in die Berechnung ein. Die nationalen Aktionen werden ab 09.2006 wöchentlich berücksichtigt.
B48: =Codierung!I304 -> Methodik Berechnung
B49: =Codierung!I305 -> Gewichtungsdaten
B50: =Codierung!I306 -> ■ Gewichtung nach Kanal (Quelle GfK AG)
B51: =Codierung!I307 -> ■ Gewichtung nach Region (Quelle BfS)
B52: =Codierung!I308 -> Die Regionen werden wie folgt abgegrenzt:
B53: =Codierung!I309 -> Region I: Genf, Waadt, Freiburg, Neuenburg, Jura und Teile des französischsprachigen Gebiets des Kantons Bern (Verwaltungskreis Berner Jura).
B54: =Codierung!I310 -> Region II: Bern (ausser Verwaltungskreis Berner Jura), Luzern, Unterwalden (Obwalden, Nidwalden), Uri, Zug und ein Teil des Kantons Schwyz (Bezirke Schwyz, Gersau und Küssnacht).
B55: =Codierung!I311 -> Region III: Baselland und Basel-Stadt, Aargau und Solothurn.
B56: =Codierung!I312 -> Region IV: Zürich, Schaffhausen, Thurgau, Appenzell (Innerrhoden und Ausserrhoden), St. Gallen, ein Teil des Kantons Schwyz (Bezirke Einsiedeln, March und Höfe), Glarus, Graubünden.
B57: =Codierung!I313 -> Region V: Wallis und Tessin.
B58: =Codierung!I314 -> Berechnung
B59: =Codierung!I315 -> Anzahl Eier linear inkl. Aktionen:
B60: =Codierung!I316 -> = SL * ES * GA
B61: =Codierung!I317 -> Anzahl Eier linear pro Geschäft:
B62: =Codierung!I318 -> = Summe (SL*ES*GA)
B63: =Codierung!I319 -> Angebot in % vom Gesamtangebot (pro Laden):
B64: =Codierung!I320 -> = (SL*ES*GA) / (Summe(SL*ES*GA))
B65: =Codierung!I321 -> Gewichtungsschlüssel:
B66: =Codierung!I322 -> = (SL*ES*GA) / (Summe (SL*ES*GA)) * GR * GK
B67: =Codierung!I323 -> Preis pro Ei:
B68: =Codierung!I324 -> = PS / ES
B69: =Codierung!I325 -> Gewichteter Preis:
B70: =Codierung!I326 -> = (PS/ES)*(SL*ES*GA)/(SUMME(SL*ES *GA))*GR*GK
B71: =Codierung!I327 -> Legende:
B72: =Codierung!I328 -> SL: Anzahl Schachteln linear
B73: =Codierung!I329 -> ES: Anzahl Eier pro Schachtel
B74: =Codierung!I330 -> GA: Gewichtung Aktionen
B75: =Codierung!I331 -> GR: Gewichtung Regionen
B76: =Codierung!I332 -> GK: Gewichtung Kanäle
B77: =Codierung!I333 -> PS: Preis pro Schachtel
B78: =Codierung!I334 -> Bruttowertschöpfung
B79: =Codierung!I335 -> Definition Einstandspreis
B80: =Codierung!I336 -> Der Einstandspreis errechnet sich aus dem Wert der Produzentenpreise für Schweizer Konsumeier inklusive der für die Verarbeitung bestimmten Eier (2. Klasse) und der importierten Konsum- und Verarbeitungseier (inkl. Zoll). Der Einstandspreis wird ohne Mehrwertsteuer (o.MwSt.) als Realwert (Festpreise von Dezember 2010) ausgedrückt. Zur Berechnung der Bruttowertschöpfung für Schweizer Eier der Produktionsformen Bio, Bodenhaltung und Freilandhaltung wird der vereinfachte Einstandspreis ohne Importe und ohne Verarbeitungseier herangezogen. Die Berechnung basiert auf einem dynamischen Mengengerüst. Als Grundlage dienen die Mengenverhältnisse der erhobenen Konsumentenpreise und die Produktion an Schweizer Schaleneiern (Quelle: Aviforum). Bei den Importeiern und den staatlichen Marktentlastungen handelt es sich um absolute Mengen. Interne Deklassierungen von Label- oder Freilandeiern zu Bodenhaltungseiern werden nicht in die Berechnung miteinbezogen.
B81: =Codierung!I337 -> Definition Nettoeinnahmen im Liefer- und Abholgrosshandel und im Detailhandel
B82: =Codierung!I338 -> Die Nettoeinnahmen bestehen aus den beobachteten, gewichteten Preisen im Liefer- und Abholgrosshandel bzw. den Konsumentenpreisen für frische und gekochte Konsumeier, den Werten der aufgeschlagenen inländischen und importierten Verarbeitungseiern zu Grosshandelspreisen und den Eiern der durchgeführten Marktentlastungsmassnahmen. Die Nettoeinnahmen verstehen sich ohne Mehrwertsteuer (o.MwSt.) zu Realwerten (Festpreise von Dezember 2010). Zur Berechnung der Bruttowertschöpfung für Schweizer Eier der Produktionsformen Bio, Bodenhaltung und Freilandhaltung werden die vereinfachten Nettoeinnahmen ohne Importeier, Verarbeitungseier und ohne staatliche Marktentlastungen herangezogen.
B83: =Codierung!I339 -> Definition Bruttowertschöpfung
B84: =Codierung!I340 -> Die Bruttowertschöpfung ist die Differenz aus den definierten Nettoeinnahmen und den definierten Einstandspreisen ohne Mehrwertsteuer (o.MwSt.) zu Realwerten (Festpreis von Dezember 2010). Die Bruttowertschöpfung wird jeweils separat auf den Stufen Liefer- und Abholgrosshandel sowie Detailhandel berechnet. Sie verkörpert einen Schätzwert der effektiven Wertschöpfung auf den Konsumeiern im Ladenverkauf und dient nur als Indikator für die wirkliche Wertschöpfung der Pack- / Sammelstellen und der Verteiler. Bei der Bruttowertschöpfung gesamt fliessen die Importe, die Verarbeitungseier und die Marktentlastungsmassnahmen in die Berechnung mit ein. Die Verkäufe der Pack- und Sammelstellen direkt an Gewerbebetriebe (Restaurants, Bäckereien etc.) und an Kollektivhaushalte sowie die Direktvermarktung ab Hof wird in der Berechnung nicht berücksichtigt. Die Berechnung der Bruttowertschöpfung gesamt beruht auf der Annahme, dass sämtliche Konsumeier über den jeweiligen Kanal (Liefer- und Abholgrosshandel bzw. Detailhandel) abgesetzt werden.
B85: =Codierung!I341 -> Produzentenpreisanteil am Konsumenten- bzw. Gastronomenfranken
B86: =Codierung!I342 -> Der Anteil des Produzentenpreises am Konsumenten- bzw. Gastronomenfranken entspricht dem Erlösanteil am Rohertrag, welcher der Landwirt durch den Verkauf der Eier im Verhältnis zu den Einnahmen im Detailhandel bzw. im Liefer- und Abholgrosshandel erwirtschaftet.
B87: =Codierung!I343 -> International
B88: =Codierung!I344 -> Internationale Preise werden sowohl auf Produzenten- als auch auf Konsumentenstufe erhoben. Erfasst werden die Preise in Deutschland und Österreich. Die Datenquellen sind vorwiegend privatrechtliche Institutionen und Bundesämter.

Sheet Codierung (hidden)
E1: Monate | G1: 1 | I1: =IF(Codierung!G1=1,"d",IF(Codierung!G1=2,"f","i")) -> d | J1: d (Deutsch) | K1: f (Französisch) | L1: i (Italienisch)
E2: 01 | F2: 1 | G2: Deutsch | H2: Bruttowertschöpfung | I2: =IF($I$1="d",J2,IF($I$1="f",K2,IF($I$1="i",L2))) -> Einstandspreis | J2: Einstandspreis | K2: Prix de revient | L2: Prezzo di costo
E3: 02 | F3: 2 | G3: Français | I3: =IF($I$1="d",J3,IF($I$1="f",K3,IF($I$1="i",L3))) -> Nettoeinnahmen | J3: Nettoeinnahmen | K3: Recettes nettes | L3: Entrate (vendite) nette
E4: 03 | F4: 3 | G4: Italiano | I4: =IF($I$1="d",J4,IF($I$1="f",K4,IF($I$1="i",L4))) -> Bruttowertschöpfung | J4: Bruttowertschöpfung | K4: Valeur ajoutée brute | L4: Valore aggiunto lordo
E5: 04 | I5: =IF($I$1="d",J5,IF($I$1="f",K5,IF($I$1="i",L5))) -> Produzentenpreisanteil am Konsumentenfranken | J5: Produzentenpreisanteil am Konsumentenfranken | K5: Part des prix au producteur au franc dépensé par le consommateur | L5: Quota del prezzo alla produzione per ogni franco speso dal consumatore
E6: 05 | I6: =IF($I$1="d",J6,IF($I$1="f",K6,IF($I$1="i",L6))) -> Produzentenpreisanteil am Gastronomenfranken | J6: Produzentenpreisanteil am Gastronomenfranken | K6: Part des prix au producteur au franc dépensé par le restaurateur | L6: Quota del prezzo alla produzione per ogni franco speso dal ristoratore
E7: 06 | I7: Bruttowertschöpfung auf Stufe Verarbeitung und Verteilung | J7: Bruttowertschöpfung auf Stufe Verarbeitung und Verteilung | K7: Valeur ajoutée brute de la transformation et de la distribution | L7: Valore aggiunto lordo a livello di trasformazione e distribuzione
E8: 07 | I8: Bruttowertschöpfung auf Stufe Verarbeitung für Gastronomie / Ausserhausverpflegung | J8: Bruttowertschöpfung auf Stufe Verarbeitung für Gastronomie / Ausserhausverpflegung | K8: Valeur ajoutée brute de la transformation opérant p. la restauration / rest. hors domicile | L8: Valore aggiunto lordo a livello di trasformazione per ristorazione / consumo fuori casa
E9: 08 | I9: Bio | J9: Bio | K9: bio | L9: biologico
E10: 09 | I10: Bodenhaltung | J10: Bodenhaltung | K10: au sol | L10: allevamento al suolo
E11: 10 | I11: Freilandhaltung | J11: Freilandhaltung | K11: plein air | L11: allevamento all'aperto
A12: =Codierung!$I$154 -> Zurück zum Inhaltsverzeichnis | E12: 11 | I12: Inland und Import | J12: Inland und Import | K12: Suisse et importations | L12: indigene i importante
E13: 12 | I13: Konsumeier Import | J13: Konsumeier Import | K13: Œufs de consommation importés | L13: uova di consumo importante
A14: Dashboard: | I14: =IF($I$1="d",J14,IF($I$1="f",K14,IF($I$1="i",L14))) -> Verarbeitung und Verteilung | J14: Verarbeitung und Verteilung | K14: secteurs de la transformation et de la distribution | L14: Trasformazione e distribuzione
I15: Verarbeitung für Gastronomie / Ausserhausverpflegung | J15: Verarbeitung für Gastronomie / Ausserhausverpflegung | K15: Secteur de la transformation opérant pour la restauration / rest. hors domicile | L15: Trasformazione per ristorazione / consumo fuori casa
H16: Produktion und Import | I16: =IF($I$1="d",J16,IF($I$1="f",K16,IF($I$1="i",L16))) -> Inlandproduktion Schaleneier | J16: Inlandproduktion Schaleneier | K16: Production indigène d'oeufs en coquille | L16: Produzione di uova indigene
A17: =Codierung!$I$252&'D.6 KP'!$A$15&"-"&'D.6 KP'!$A$19 -> Ø 2001-2005 | B17: =Codierung!$I$252&'D.6 KP'!$A$20&"-"&'D.6 KP'!$A$24 -> Ø 2006-2010 | C17: ='6. KP'!E12 -> 2021 | D17: ='6. KP'!F12 -> 2022 | I17: Import Konsumeier | J17: Import Konsumeier | K17: Œufs de consommation importés | L17: Importazione uova di consumo
A18: ='5. GHP'!C12 -> 2019 | B18: ='5. GHP'!D12 -> 2020 | C18: ='5. GHP'!E12 -> 2021 | D18: ='5. GHP'!F12 -> 2022 | I18: Import Verarbeitungseier in Schale | J18: Import Verarbeitungseier in Schale | K18: Importation d'oeufs de fabrication en coquille | L18: Importazione uova di transformazione in guscio
I19: Import Eiprodukte getrocknet | J19: Import Eiprodukte getrocknet | K19: Importation de produits à base d'oeufs séchés | L19: Importazione Prodotti di uova esseccati
A20: Entwicklung Preise | I20: Import Eiprodukte andere als getrocknet | J20: Import Eiprodukte andere als getrocknet | K20: Importation de produits à base d'oeufs autres que séchés | L20: Importazione Prodotti di uova non esseccati
A21: ='4. PP'!$E$12&"/"&'4. PP'!$F$12 -> 2021/2022 | B21: Produktion | C21: Grosshandel | D21: Detailhandel | I21: Import Schaleneier | J21: Import Schaleneier | K21: Importation d'oeufs en coquille | L21: Importazione uova in guscio
A22: Bio | B22: =IF('4. PP'!I18>0,IF(LEN("+"&ROUND('4. PP'!I18,1)&" %")<6,"+"&ROUND('4. PP'!I18,1)&".0 %","+"&ROUND('4. PP'!I18,1)&" %"),IF(LEN(ROUND('4. PP'!I18,1)&" %")<6,ROUND('4. PP'!I18,1)&".0 %",ROUND('4. PP'!I18,1)&" %")) -> +2.5 % | C22: =IF('5. GHP'!I14>0,IF(LEN("+"&ROUND('5. GHP'!I14,1)&" %")<6,"+"&ROUND('5. GHP'!I14,1)&".0 %","+"&ROUND('5. GHP'!I14,1)&" %"),IF(LEN(ROUND('5. GHP'!I14,1)&" %")<6,ROUND('5. GHP'!I14,1)&".0 %",ROUND('5. GHP'!I14,1)&" %")) -> +2.9 % | D22: =IF('6. KP'!I14>0,IF(LEN("+"&ROUND('6. KP'!I14,1)&" %")<6,"+"&ROUND('6. KP'!I14,1)&".0 %","+"&ROUND('6. KP'!I14,1)&" %"),IF(LEN(ROUND('6. KP'!I14,1)&" %")<6,ROUND('6. KP'!I14,1)&".0 %",ROUND('6. KP'!I14,1)&" %")) -> +0.8 % | I22: für Konsum | J22: für Konsum | K22: de consommation | L22: di consumo
A23: Bodenhaltung | B23: =IF('4. PP'!I24>0,IF(LEN("+"&ROUND('4. PP'!I24,1)&" %")<6,"+"&ROUND('4. PP'!I24,1)&".0 %","+"&ROUND('4. PP'!I24,1)&" %"),IF(LEN(ROUND('4. PP'!I24,1)&" %")<6,ROUND('4. PP'!I24,1)&".0 %",ROUND('4. PP'!I24,1)&" %")) -> +2.6 % | C23: =IF('5. GHP'!I15>0,IF(LEN("+"&ROUND('5. GHP'!I15,1)&" %")<6,"+"&ROUND('5. GHP'!I15,1)&".0 %","+"&ROUND('5. GHP'!I15,1)&" %"),IF(LEN(ROUND('5. GHP'!I15,1)&" %")<6,ROUND('5. GHP'!I15,1)&".0 %",ROUND('5. GHP'!I15,1)&" %")) -> +5.8 % | D23: =IF('6. KP'!I15>0,IF(LEN("+"&ROUND('6. KP'!I15,1)&" %")<6,"+"&ROUND('6. KP'!I15,1)&".0 %","+"&ROUND('6. KP'!I15,1)&" %"),IF(LEN(ROUND('6. KP'!I15,1)&" %")<6,ROUND('6. KP'!I15,1)&".0 %",ROUND('6. KP'!I15,1)&" %")) -> -6.5 % | I23: für Verarbeitung | J23: für Verarbeitung | K23: de fabrication | L23: di trasformazione
A24: Freilandhaltung | B24: =IF('4. PP'!I30>0,IF(LEN("+"&ROUND('4. PP'!I30,1)&" %")<6,"+"&ROUND('4. PP'!I30,1)&".0 %","+"&ROUND('4. PP'!I30,1)&" %"),IF(LEN(ROUND('4. PP'!I30,1)&" %")<6,ROUND('4. PP'!I30,1)&".0 %",ROUND('4. PP'!I30,1)&" %")) -> +4.0 % | C24: =IF('5. GHP'!I16>0,IF(LEN("+"&ROUND('5. GHP'!I16,1)&" %")<6,"+"&ROUND('5. GHP'!I16,1)&".0 %","+"&ROUND('5. GHP'!I16,1)&" %"),IF(LEN(ROUND('5. GHP'!I16,1)&" %")<6,ROUND('5. GHP'!I16,1)&".0 %",ROUND('5. GHP'!I16,1)&" %")) -> +1.0 % | D24: =IF('6. KP'!I16>0,IF(LEN("+"&ROUND('6. KP'!I16,1)&" %")<6,"+"&ROUND('6. KP'!I16,1)&".0 %","+"&ROUND('6. KP'!I16,1)&" %"),IF(LEN(ROUND('6. KP'!I16,1)&" %")<6,ROUND('6. KP'!I16,1)&".0 %",ROUND('6. KP'!I16,1)&" %")) -> -0.5 % | I24: Import Eiprodukte | J24: Import Eiprodukte | K24: Importation de produits à base d'oeufs | L24: Importazione Prodotti di uova
A25: CH gesamt | B25: =IF('4. PP'!I32>0,IF(LEN("+"&ROUND('4. PP'!I32,1)&" %")<6,"+"&ROUND('4. PP'!I32,1)&".0 %","+"&ROUND('4. PP'!I32,1)&" %"),IF(LEN(ROUND('4. PP'!I32,1)&" %")<6,ROUND('4. PP'!I32,1)&".0 %",ROUND('4. PP'!I32,1)&" %")) -> +5.0 % | C25: =IF('5. GHP'!I17>0,IF(LEN("+"&ROUND('5. GHP'!I17,1)&" %")<6,"+"&ROUND('5. GHP'!I17,1)&".0 %","+"&ROUND('5. GHP'!I17,1)&" %"),IF(LEN(ROUND('5. GHP'!I17,1)&" %")<6,ROUND('5. GHP'!I17,1)&".0 %",ROUND('5. GHP'!I17,1)&" %")) -> +0.6 % | D25: =IF('6. KP'!I17>0,IF(LEN("+"&ROUND('6. KP'!I17,1)&" %")<6,"+"&ROUND('6. KP'!I17,1)&".0 %","+"&ROUND('6. KP'!I17,1)&" %"),IF(LEN(ROUND('6. KP'!I17,1)&" %")<6,ROUND('6. KP'!I17,1)&".0 %",ROUND('6. KP'!I17,1)&" %")) -> +1.3 % | I25: getrocknet | J25: getrocknet | K25: séchés | L25: esseccati
A26: Konsumeier Import | B26: =IF('4. PP'!I34>0,IF(LEN("+"&ROUND('4. PP'!I34,1)&" %")<6,"+"&ROUND('4. PP'!I34,1)&".0 %","+"&ROUND('4. PP'!I34,1)&" %"),IF(LEN(ROUND('4. PP'!I34,1)&" %")<6,ROUND('4. PP'!I34,1)&".0 %",ROUND('4. PP'!I34,1)&" %")) -> +9.6 % | C26: =IF('5. GHP'!I18>0,IF(LEN("+"&ROUND('5. GHP'!I18,1)&" %")<6,"+"&ROUND('5. GHP'!I18,1)&".0 %","+"&ROUND('5. GHP'!I18,1)&" %"),IF(LEN(ROUND('5. GHP'!I18,1)&" %")<6,ROUND('5. GHP'!I18,1)&".0 %",ROUND('5. GHP'!I18,1)&" %")) -> +7.8 % | D26: =IF('6. KP'!I18>0,IF(LEN("+"&ROUND('6. KP'!I18,1)&" %")<6,"+"&ROUND('6. KP'!I18,1)&".0 %","+"&ROUND('6. KP'!I18,1)&" %"),IF(LEN(ROUND('6. KP'!I18,1)&" %")<6,ROUND('6. KP'!I18,1)&".0 %",ROUND('6. KP'!I18,1)&" %")) -> +3.9 % | I26: andere als getrocknet | J26: andere als getrocknet | K26: autres que séchés | L26: non esseccati
I27: Bevölkerung | J27: Bevölkerung | K27: Population | L27: Popolazione
A28: Mengen | I28: Schaleneier | J28: Schaleneier | K28: Œufs en coquille | L28: Uova in guscio
A29: Import Total | I29: Eiprodukte (5) | J29: Eiprodukte (5) | K29: Ovoproduits (5) | L29: Prodotti di uova (5)
A30: =SUM('1. Prod + AH + Verbrauch'!E21,'1. Prod + AH + Verbrauch'!E24:E25) -> 655.0914781 | B30: =SUM('1. Prod + AH + Verbrauch'!F21,'1. Prod + AH + Verbrauch'!F24:F25) -> 668.3427499 | C30: =SUM('1. Prod + AH + Verbrauch'!G21,'1. Prod + AH + Verbrauch'!G24:G25) -> 572.0648831 | D30: =SUM('1. Prod + AH + Verbrauch'!H21,'1. Prod + AH + Verbrauch'!H24:H25) -> 519.2869985 | E30: =IFERROR((D30-C30)/C30*100,"-") -> -9.225856385 | I30: Verbrauch Inland | J30: Verbrauch Inland | K30: Consommation indigène | L30: Consumo CH
I31: Pro-Kopf-Verbrauch | J31: Pro-Kopf-Verbrauch | K31: Consommation par habitant | L31: Consumo pro capite
A32: Anteile Angebot | B32: ='1. Prod + AH + Verbrauch'!H14 -> 2022 | E32: Imp.LM: | I32: Inland | J32: Inland | K32: Suisse | L32: Svizzera
A33: ='1. Prod + AH + Verbrauch'!C28 -> Inland | B33: ='1. Prod + AH + Verbrauch'!H39 -> 0.6860458936 | E33: 2005 | I33: Import (abzügl. Exporte und Rückwaren) | J33: Import (abzügl. Exporte und Rückwaren) | K33: Importations (moins les exportations et marchandises en retour) | L33: Importazione (al netto di esportazioni e merce resa)
A34: ='1. Prod + AH + Verbrauch'!C29 -> Import | B34: ='1. Prod + AH + Verbrauch'!H40 -> 0.3139541064 | E34: =E33&".."&B32 -> 2005..2022 | I34: Schaleneier (exkl. Verarbeitungseier) | J34: Schaleneier (exkl. Verarbeitungseier) | K34: Œufs en coquille (sauf les œufs destinés à la transformation) | L34: Uova in guscio (escl. uova di trasformazione)
I35: Eiprodukte (inkl. Verarbeitungseier) | J35: Eiprodukte (inkl. Verarbeitungseier) | K35: Ovoproduits (y compris les œufs destinés à la transformation) | L35: Prodotti di uova (incl. uova di trasformazione)
A36: Entwicklung Mengen | I36: Total | J36: Total | K36: Total | L36: Totale
A37: ='4. PP'!$E$12&"/"&'4. PP'!$F$12 -> 2021/2022 | D37: Pro-Kopf-Verbrauch | I37: Eiprodukte | J37: Eiprodukte | K37: Ovoproduits | L37: Prodotti di uova
A38: Inland | B38: =IF('1. Prod + AH + Verbrauch'!K18>0,IF(LEN("+"&ROUND('1. Prod + AH + Verbrauch'!K18,1)&" %")<6,"+"&ROUND('1. Prod + AH + Verbrauch'!K18,1)&".0 %","+"&ROUND('1. Prod + AH + Verbrauch'!K18,1)&" %"),IF(LEN(ROUND('1. Prod + AH + Verbrauch'!K18,1)&" %")<6,ROUND('1. Prod + AH + Verbrauch'!K18,1)&".0 %",ROUND('1. Prod + AH + Verbrauch'!K18,1)&" %")) -> -0.9 % | D38: =IF('1. Prod + AH + Verbrauch'!K42>0,IF(LEN("+"&ROUND('1. Prod + AH + Verbrauch'!K42,1)&" %")<6,"+"&ROUND('1. Prod + AH + Verbrauch'!K42,1)&".0 %","+"&ROUND('1. Prod + AH + Verbrauch'!K42,1)&" %"),IF(LEN(ROUND('1. Prod + AH + Verbrauch'!K42,1)&" %")<6,ROUND('1. Prod + AH + Verbrauch'!K42,1)&".0 %",ROUND('1. Prod + AH + Verbrauch'!K42,1)&" %")) -> -2.2 % | I38: Ø-Bevölkerung inkl. Tourismus und Grenzgänger (2) | J38: Ø-Bevölkerung inkl. Tourismus und Grenzgänger (2) | K38: Ø de la population, y c. les touristes et les frontaliers (2) | L38: Ø popolazione incl. turismo e frontalieri (2)
A39: Import | B39: =IF(Codierung!E30>0,IF(LEN("+"&ROUND(Codierung!E30,1)&" %")<6,"+"&ROUND(Codierung!E30,1)&".0 %","+"&ROUND(Codierung!E30,1)&" %"),IF(LEN(ROUND(Codierung!E30,1)&" %")<6,ROUND(Codierung!E30,1)&".0 %",ROUND(Codierung!E30,1)&" %")) -> -9.2 % | D39: =IF('1. Prod + AH + Verbrauch'!K43>0,IF(LEN("+"&ROUND('1. Prod + AH + Verbrauch'!K43,1)&" %")<6,"+"&ROUND('1. Prod + AH + Verbrauch'!K43,1)&".0 %","+"&ROUND('1. Prod + AH + Verbrauch'!K43,1)&" %"),IF(LEN(ROUND('1. Prod + AH + Verbrauch'!K43,1)&" %")<6,ROUND('1. Prod + AH + Verbrauch'!K43,1)&".0 %",ROUND('1. Prod + AH + Verbrauch'!K43,1)&" %")) -> -10.3 % | I39: Produktion Total | J39: Produktion Total | K39: Total de la production | L39: Produzione totale
A40: Total | B40: =IF('1. Prod + AH + Verbrauch'!K38>0,IF(LEN("+"&ROUND('1. Prod + AH + Verbrauch'!K38,1)&" %")<6,"+"&ROUND('1. Prod + AH + Verbrauch'!K38,1)&".0 %","+"&ROUND('1. Prod + AH + Verbrauch'!K38,1)&" %"),IF(LEN(ROUND('1. Prod + AH + Verbrauch'!K38,1)&" %")<6,ROUND('1. Prod + AH + Verbrauch'!K38,1)&".0 %",ROUND('1. Prod + AH + Verbrauch'!K38,1)&" %")) -> -3.7 % | D40: =IF('1. Prod + AH + Verbrauch'!K44>0,IF(LEN("+"&ROUND('1. Prod + AH + Verbrauch'!K44,1)&" %")<6,"+"&ROUND('1. Prod + AH + Verbrauch'!K44,1)&".0 %","+"&ROUND('1. Prod + AH + Verbrauch'!K44,1)&" %"),IF(LEN(ROUND('1. Prod + AH + Verbrauch'!K44,1)&" %")<6,ROUND('1. Prod + AH + Verbrauch'!K44,1)&".0 %",ROUND('1. Prod + AH + Verbrauch'!K44,1)&" %")) -> -4.9 % | I40: Konsumeier | J40: Konsumeier | K40: Œufs de consommation | L40: Uova di consumo
I41: Verarbeitungseier | J41: Verarbeitungseier | K41: Œufs destinés à la transformation | L41: Uova di trasformazione
I42: Verarbeitung CH-Eier zu Eiprodukten (3) | J42: Verarbeitung CH-Eier zu Eiprodukten (3) | K42: Transformation œufs CH en ovoproduits (3) | L42: Trasformazione uova CH in prodotti di uova (3)
A43: MEM | I43: Eiprodukte flüssig | J43: Eiprodukte flüssig | K43: Ovoproduits liquides | L43: Prodotti di uova liquidi
A44: ='3. MEM'!D24/1000 -> 1961.734088 | B44: ='3. MEM'!E24/1000 -> 1745.555024 | C44: ='3. MEM'!F24/1000 -> 2000 | D44: ='3. MEM'!G24/1000 -> 2000 | I44: Eiprodukte getrocknet | J44: Eiprodukte getrocknet | K44: Ovoproduits séchés | L44: Prodotti di uova essiccati
I45: Import | J45: Import | K45: Importations | L45: Importazione
I46: Anteil Inland | J46: Anteil Inland | K46: Part suisse | L46: Quota CH
A47: Eingesetzte Mittel | B47: =IF('3. MEM'!J24>0,IF(LEN("+"&ROUND('3. MEM'!J24,1)&" %")<6,"+"&ROUND('3. MEM'!J24,1)&".0 %","+"&ROUND('3. MEM'!J24,1)&" %"),IF(LEN(ROUND('3. MEM'!J24,1)&" %")<6,ROUND('3. MEM'!J24,1)&".0 %",ROUND('3. MEM'!J24,1)&" %")) -> 0.0 % | I47: Anteil Import | J47: Anteil Import | K47: Part importée | L47: Quota import
A48: Auslastung Mittel | B48: =IF('3. MEM'!J30>0,IF(LEN("+"&ROUND('3. MEM'!J30,1)&" %")<6,"+"&ROUND('3. MEM'!J30,1)&".0 %","+"&ROUND('3. MEM'!J30,1)&" %"),IF(LEN(ROUND('3. MEM'!J30,1)&" %")<6,ROUND('3. MEM'!J30,1)&".0 %",ROUND('3. MEM'!J30,1)&" %")) -> 0.0 % | I48: Inland (3) | J48: Inland (3) | K48: Suisse (3) | L48: Svizzera (3)
A49: Anteil betroffene Eier an Inlandproduktion | B49: =IF('3. MEM'!J32>0,IF(LEN("+"&ROUND('3. MEM'!J32,1)&" %")<6,"+"&ROUND('3. MEM'!J32,1)&".0 %","+"&ROUND('3. MEM'!J32,1)&" %"),IF(LEN(ROUND('3. MEM'!J32,1)&" %")<6,ROUND('3. MEM'!J32,1)&".0 %",ROUND('3. MEM'!J32,1)&" %")) -> +39.3 % | I49: Bruteier | J49: Bruteier | K49: Œufs à couver | L49: Uova da cova
I50: Kontingentsmenge | J50: Kontingentsmenge | K50: Volume du contingent tarifaire | L50: Quantitativo di contingente
I51: Zugeteilte / Eingeführte Menge | J51: Zugeteilte / Eingeführte Menge | K51: Quantité attribuée / importée | L51: Quantitativo assegnato / importato
A52: Marktstruktur | I52: Auslastung | J52: Auslastung | K52: Utilisation | L52: Grado di utilizzo
I53: 0
A54: LAGH | B54: 35 | C54: 36 | D54: 37 | E54: 38 | H54: Marktentlastungsmassnahmen | I54: Re-Export | J54: Re-Export | K54: Réexportation | L54: Riesportazione
A55: =Codierung!$I$9 -> Bio | B55: ='D.7 MS'!$H$35 -> 0.01652207824 | C55: ='D.7 MS'!$H$36 -> 0.02447321998 | D55: ='D.7 MS'!$H$37 -> 0.02878169441 | E55: ='D.7 MS'!$H$38 -> 0.03251292655 | I55: Aufschlagsaktion | J55: Aufschlagsaktion | K55: Campagne d’œufs cassés | L55: Azioni di spezzatura
A56: =Codierung!$I$10 -> Bodenhaltung | B56: ='D.7 MS'!$I$35 -> 0.6188580774 | C56: ='D.7 MS'!$I$36 -> 0.7274740019 | D56: ='D.7 MS'!$I$37 -> 0.5987477856 | E56: ='D.7 MS'!$I$38 -> 0.5991878989 | I56: Verbilligungsaktion | J56: Verbilligungsaktion | K56: Campagne de ventes à prix réduits | L56: Azioni di vendita a prezzo ridotto
A57: =Codierung!$I$11 -> Freilandhaltung | B57: ='D.7 MS'!$J$35 -> 0.3588311361 | C57: ='D.7 MS'!$J$36 -> 0.2477071214 | D57: ='D.7 MS'!$J$37 -> 0.3723981694 | E57: ='D.7 MS'!$J$38 -> 0.3682991746 | I57: Eingesetzte Mittel | J57: Eingesetzte Mittel | K57: Moyens engagés | L57: Fondi impiegati
A58: =Codierung!$I$32 -> Inland | B58: ='D.7 MS'!$K$35 -> 0.5539583631 | C58: ='D.7 MS'!$K$36 -> 0.4092075296 | D58: ='D.7 MS'!$K$37 -> 0.5082914596 | E58: ='D.7 MS'!$K$38 -> 0.5193037043 | I58: Maximal zur Verfügung stehende Bundesmittel | J58: Maximal zur Verfügung stehende Bundesmittel | K58: Fonds fédéraux maximums à disposition | L58: Disponibilità massima di fondi federali
A59: =Codierung!$I$45 -> Import | B59: ='D.7 MS'!$L$35 -> 0.4459065728 | C59: ='D.7 MS'!$L$36 -> 0.5889634008 | D59: ='D.7 MS'!$L$37 -> 0.490297779 | E59: ='D.7 MS'!$L$38 -> 0.4786053587 | I59: Auslastung Mittel | J59: Auslastung Mittel | K59: Charge financière | L59: Utilizzo fondi
A60: =Codierung!$I$95 -> ohne Angabe | B60: ='D.7 MS'!$M$35 -> 0.0001350640884 | C60: ='D.7 MS'!$M$36 -> 0.001829069562 | D60: ='D.7 MS'!$M$37 -> 0.001410761349 | E60: ='D.7 MS'!$M$38 -> 0.002090936911 | I60: Beitrag | J60: Beitrag | K60: Contribution | L60: Contributo
I61: Anteil betroffene Eier an Inlandproduktion | J61: Anteil betroffene Eier an Inlandproduktion | K61: Part d’œufs concernés par rapport à la production indigène | L61: Quota delle uova interessate rispetto alla produzione indigena
I62: 0
A63: Detailhandel | I63: 0
A64: =Codierung!$I$9 -> Bio | B64: =B69*B$73 -> 0.1057763046 | C64: =C69*C$73 -> 0.1387774733 | D64: 0.1585153784 | E64: 0.1823863425 | H64: Produzenten- und Importpreise | I64: Gewichteter Mittelwert | J64: Gewichteter Mittelwert | K64: Moyenne pondérée | L64: Media ponderata
A65: Bodenhaltung (CH+Import) | B65: =B70*B$73+B72 -> 0.6038276716 | C65: =C70*C$73+C72 -> 0.599229494 | D65: 0.4705664879 | E65: 0.4201923393 | I65: 2. Klasse | J65: 2. Klasse | K65: 2e classe | L65: II classe
A66: =Codierung!$I$11 -> Freilandhaltung | B66: =B71*B$73 -> 0.2539016671 | C66: 0.2569944143 | D66: 0.3709181337 | E66: 0.3974213181 | I66: CH gesamt | J66: CH gesamt | K66: CH total | L66: Totale Svizzera
I67: Verarbeitungseier Import | J67: Verarbeitungseier Import | K67: Œufs de fabrication importés | L67: Uova di trasformazione importimportate
A68: Detailhandel | B68: falsche Darstellung, darum umgerechnet, damit 100% | I68: Konsumeier Import | J68: Konsumeier Import | K68: Œufs de consommation importés | L68: Uova di consumo im-porimportate
A69: =#REF! ->  | B69: ='7. MS'!E40 -> 0.1320309582 | C69: ='7. MS'!F40 -> 0.1753609489 | D69: ='7. MS'!G40 -> 0.2371864197 | E69: ='7. MS'!H40 -> 0.2574894313 | I69: CH und Import | J69: CH und Import | K69: CH et importations | L69: CH e estero
A70: Bodenhaltung (CH+Import) | B70: ='7. MS'!E41 -> 0.5054940486 | C70: ='7. MS'!F41 -> 0.4935813822 | D70: ='7. MS'!G41 -> 0.2078091066 | E70: ='7. MS'!H41 -> 0.1814390115 | I70: Produktion Inland | J70: Produktion Inland | K70: Production nationale | L70: Produzione nazionale
A71: =#REF! ->  | B71: ='7. MS'!E42 -> 0.3169224008 | C71: ='7. MS'!F42 -> 0.3247413523 | D71: ='7. MS'!G42 -> 0.5550044737 | E71: ='7. MS'!H42 -> 0.5610715572 | I71: Import | J71: Import | K71: Importation | L71: Importazione
A72: Import | B72: ='7. MS'!E43 -> 0.1988522537 | C72: ='7. MS'!F43 -> 0.2086181433 | D72: ='7. MS'!G43 -> 0.3316844255 | E72: ='7. MS'!H43 -> 0.2916744521 | I72: franko Zoll | J72: franko Zoll | K72: franco frontière douanière | L72: franco confine doganale
B73: =1-B72 -> 0.8011477463 | C73: =1-C72 -> 0.7913818567 | D73: 0.6683155745 | E73: 0.7083255479 | I73: franko Hof | J73: franko Hof | K73: franco départ de l'exploitation | L73: franco l’azienda
I74: für Konsum | J74: für Konsum | K74: de consommation | L74: di consumo
A75: Bruttowertschöpfung | I75: für Verarbeitung | J75: für Verarbeitung | K75: de fabrication | L75: di trasformazione
B76: Grosshandel | C76: Detailhandel | I76: Bio (3) | J76: Bio (3) | K76: bio (3) | L76: biologico (3)
A77: =Codierung!$I$9 -> Bio | B77: =IF('8. BWS'!J38>0,IF(LEN("+"&ROUND('8. BWS'!J38,1)&" %")<6,"+"&ROUND('8. BWS'!J38,1)&".0 %","+"&ROUND('8. BWS'!J38,1)&" %"),IF(LEN(ROUND('8. BWS'!J38,1)&" %")<6,ROUND('8. BWS'!J38,1)&".0 %",ROUND('8. BWS'!J38,1)&" %")) -> +9.5 % | C77: =IF('8. BWS'!J17>0,IF(LEN("+"&ROUND('8. BWS'!J17,1)&" %")<6,"+"&ROUND('8. BWS'!J17,1)&".0 %","+"&ROUND('8. BWS'!J17,1)&" %"),IF(LEN(ROUND('8. BWS'!J17,1)&" %")<6,ROUND('8. BWS'!J17,1)&".0 %",ROUND('8. BWS'!J17,1)&" %")) -> -4.1 % | I77: =IF($I$1="d",J77,IF($I$1="f",K77,IF($I$1="i",L77))) -> Freilandhaltung (2) | J77: Freilandhaltung (2) | K77: Élevage en plein air (2) | L77: allevamento all'aperto (2)
A78: =Codierung!$I$10 -> Bodenhaltung | B78: =IF('8. BWS'!J42>0,IF(LEN("+"&ROUND('8. BWS'!J42,1)&" %")<6,"+"&ROUND('8. BWS'!J42,1)&".0 %","+"&ROUND('8. BWS'!J42,1)&" %"),IF(LEN(ROUND('8. BWS'!J42,1)&" %")<6,ROUND('8. BWS'!J42,1)&".0 %",ROUND('8. BWS'!J42,1)&" %")) -> +4.0 % | C78: =IF('8. BWS'!J21>0,IF(LEN("+"&ROUND('8. BWS'!J21,1)&" %")<6,"+"&ROUND('8. BWS'!J21,1)&".0 %","+"&ROUND('8. BWS'!J21,1)&" %"),IF(LEN(ROUND('8. BWS'!J21,1)&" %")<6,ROUND('8. BWS'!J21,1)&".0 %",ROUND('8. BWS'!J21,1)&" %")) -> -10.1 % | H78: Preise im Liefer- und Abholgrosshandel | I78: Eier frisch | J78: Eier frisch | K78: Œufs frais | L78: uova crude
A79: =Codierung!$I$11 -> Freilandhaltung | B79: =IF('8. BWS'!J46>0,IF(LEN("+"&ROUND('8. BWS'!J46,1)&" %")<6,"+"&ROUND('8. BWS'!J46,1)&".0 %","+"&ROUND('8. BWS'!J46,1)&" %"),IF(LEN(ROUND('8. BWS'!J46,1)&" %")<6,ROUND('8. BWS'!J46,1)&".0 %",ROUND('8. BWS'!J46,1)&" %")) -> -3.3 % | C79: =IF('8. BWS'!J25>0,IF(LEN("+"&ROUND('8. BWS'!J25,1)&" %")<6,"+"&ROUND('8. BWS'!J25,1)&".0 %","+"&ROUND('8. BWS'!J25,1)&" %"),IF(LEN(ROUND('8. BWS'!J25,1)&" %")<6,ROUND('8. BWS'!J25,1)&".0 %",ROUND('8. BWS'!J25,1)&" %")) -> -7.5 % | I79: Eier gekocht | J79: Eier gekocht | K79: Œufs cuits | L79: uova sode
A80: =Codierung!$I$12 -> Inland und Import | B80: =IF('8. BWS'!J50>0,IF(LEN("+"&ROUND('8. BWS'!J50,1)&" %")<6,"+"&ROUND('8. BWS'!J50,1)&".0 %","+"&ROUND('8. BWS'!J50,1)&" %"),IF(LEN(ROUND('8. BWS'!J50,1)&" %")<6,ROUND('8. BWS'!J50,1)&".0 %",ROUND('8. BWS'!J50,1)&" %")) -> -4.4 % | C80: =IF('8. BWS'!J29>0,IF(LEN("+"&ROUND('8. BWS'!J29,1)&" %")<6,"+"&ROUND('8. BWS'!J29,1)&".0 %","+"&ROUND('8. BWS'!J29,1)&" %"),IF(LEN(ROUND('8. BWS'!J29,1)&" %")<6,ROUND('8. BWS'!J29,1)&".0 %",ROUND('8. BWS'!J29,1)&" %")) -> +7.5 % | I80: Bodenhaltung Import | J80: Bodenhaltung Import | K80: au sol, étrangers | L80: allevamento al suolo importate
A81: =Codierung!$I$13 -> Konsumeier Import | B81: =IF('8. BWS'!J54>0,IF(LEN("+"&ROUND('8. BWS'!J54,1)&" %")<6,"+"&ROUND('8. BWS'!J54,1)&".0 %","+"&ROUND('8. BWS'!J54,1)&" %"),IF(LEN(ROUND('8. BWS'!J54,1)&" %")<6,ROUND('8. BWS'!J54,1)&".0 %",ROUND('8. BWS'!J54,1)&" %")) -> +1.2 % | C81: =IF('8. BWS'!J33>0,IF(LEN("+"&ROUND('8. BWS'!J33,1)&" %")<6,"+"&ROUND('8. BWS'!J33,1)&".0 %","+"&ROUND('8. BWS'!J33,1)&" %"),IF(LEN(ROUND('8. BWS'!J33,1)&" %")<6,ROUND('8. BWS'!J33,1)&".0 %",ROUND('8. BWS'!J33,1)&" %")) -> -5.5 % | I81: alle Produktionsformen CH | J81: alle Produktionsformen CH | K81: Tous modes de production CH | L81: Tutti i metodi di produzione CH
H82: Konsumentenpreise | I82: =IF($I$1="d",J82,IF($I$1="f",K82,IF($I$1="i",L82))) -> Konsumentenpreise | J82: Konsumentenpreise | K82: Prix à la consommation | L82: Prezzi al consumo
A83: LAGH | B83: 34 | C83: 35 | D83: 36 | E83: 37 | I83: 4er Packung frisch | J83: 4er Packung frisch | K83: Emballages de 4, frais | L83: Uova crude in imballaggi da 4
A84: =Codierung!$I$9 -> Bio | B84: ='D.8 BWS'!$X$34 -> 0.2234149669 | C84: ='D.8 BWS'!$X$35 -> 0.2934536467 | D84: ='D.8 BWS'!$X$36 -> 0.278769932 | E84: ='D.8 BWS'!$X$37 -> 0.2701473571 | I84: 6er Packung frisch | J84: 6er Packung frisch | K84: Emballages de 6, frais | L84: Uova crude in imballaggi da 6
A85: =Codierung!$I$10 -> Bodenhaltung | B85: ='D.8 BWS'!$AB$34 -> 0.2056929128 | C85: ='D.8 BWS'!$AB$35 -> 0.1933415185 | D85: ='D.8 BWS'!$AB$36 -> 0.1888548344 | E85: ='D.8 BWS'!$AB$37 -> 0.1820674553 | I85: 10er Packung frisch | J85: 10er Packung frisch | K85: Emballages de 10, frais | L85: Uova crude in imballaggi da 10
A86: =Codierung!$I$11 -> Freilandhaltung | B86: ='D.8 BWS'!$AF$34 -> 0.217679122 | C86: ='D.8 BWS'!$AF$35 -> 0.3427055262 | D86: ='D.8 BWS'!$AF$36 -> 0.3089991271 | E86: ='D.8 BWS'!$AF$37 -> 0.3092152618 | H86: Marktstruktur | I86: =IF($I$1="d",J86,IF($I$1="f",K86,IF($I$1="i",L86))) -> Liefer- und Abholgrosshandel | J86: Liefer- und Abholgrosshandel | K86: Libre-service de gros | L86: Fornitura e nell’acquisto all’ingrosso
A87: =Codierung!$I$12 -> Inland und Import | B87: ='D.8 BWS'!$AJ$34 -> 0.1803482687 | C87: ='D.8 BWS'!$AJ$35 -> 0.200229281 | D87: ='D.8 BWS'!$AJ$36 -> 0.2162925005 | E87: ='D.8 BWS'!$AJ$37 -> 0.2111411484 | I87: Detailhandel | J87: Detailhandel | K87: Commerce de détail | L87: Commercio al dettaglio
A88: =Codierung!$I$13 -> Konsumeier Import | B88: ='D.8 BWS'!$AN$34 -> 0.1980029705 | C88: ='D.8 BWS'!$AN$35 -> 0.2119140676 | D88: ='D.8 BWS'!$AN$36 -> 0.2196014561 | E88: ='D.8 BWS'!$AN$37 -> 0.1961141669 | I88: Detailhandel (3) | J88: Detailhandel (3) | K88: Commerce de détail (3) | L88: Commercio al dettaglio (3)
I89: =IF($I$1="d",J89,IF($I$1="f",K89,IF($I$1="i",L89))) -> Detailhandel (4) | J89: Detailhandel (4) | K89: Commerce de détail (4) | L89: Commercio al dettaglio (4)
I90: Anteile anhand des linearen Angebots im Verkaufsregal. Die Anteile zeigen nicht die effektiven Absatzanteile (z.B. Importeier werden überschätzt). Effektive Absatzanteile lassen sich mit Absatzzahlen von NielsenIQ Switzerland berechnen. | J90: Anteile anhand des linearen Angebots im Verkaufsregal. Die Anteile zeigen nicht die effektiven Absatzanteile (z.B. Importeier werden überschätzt). Effektive Absatzanteile lassen sich mit Absatzzahlen von NielsenIQ Switzerland berechnen. | K90: Parts sur la base de l’offre linéaire dans les rayons. Les parts n'indiquent pas les parts de ventes effectives (par exemple, les œufs importés sont surestimés). Les parts de ventes effectives peuvent être calculées à l'aide des chiffres de vente de NielsenIQ Switzerland. | L90: Quote sulla base dell'offerta lineare sullo scaffale. Le azioni non mostrano le quote di vendita effettive (ad esempio, le uova importate sono sopravvalutate). Le quote di vendita effettive possono essere calcolate utilizzando i dati di vendita NielsenIQ Switzerland.
A91: Internationale Marktzahlen | I91: Erhebung Sammelstellen | J91: Erhebung Sammelstellen | K91: Relevé dans les centres de collecte | L91: Rilevazione centri di raccolta
A92: M/L (Mittelwert) | B92: =Codierung!$I$252&'D.9 Int.'!$A$18&"-"&'D.9 Int.'!$A$22 -> Ø 2006-2010 | C92: ='9. Int.'!F12 -> 2021 | D92: ='9. Int.'!G12 -> 2022 | I92: Produktion Total (aus Kükenstatistik) | J92: Produktion Total (aus Kükenstatistik) | K92: Total de la production (à partir de la statistique des poussins) | L92: Produzione totale (dalla statistica sui pulcini)
A93: Österreich | C93: ='9. Int.'!F12 -> 2021 | D93: ='9. Int.'!G12 -> 2022 | I93: Abdeckung durch Erhebung (2) | J93: Abdeckung durch Erhebung (2) | K93: Couverture par les relevés (2) | L93: Copertura tramite rilevazione (2)
A94: =Codierung!$I$9 -> Bio | B94: =AVERAGE('9. Int.'!E24:E26) -> 0.192207197 | C94: =AVERAGE('9. Int.'!F25:F26) -> 0.276425 | D94: =AVERAGE('9. Int.'!G25:G26) -> 0.3169791667 | E94: =IFERROR((D94-C94)/C94*100,"-") -> 14.67094751 | F94: =IF(Codierung!E94>0,IF(LEN("+"&ROUND(Codierung!E94,1)&" %")<6,"+"&ROUND(Codierung!E94,1)&".0 %","+"&ROUND(Codierung!E94,1)&" %"),IF(LEN(ROUND(Codierung!E94,1)&" %")<6,ROUND(Codierung!E94,1)&".0 %",ROUND(Codierung!E94,1)&" %")) -> +14.7 % | I94: Boden- und Freilandhaltung | J94: Boden- und Freilandhaltung | K94: Élevage au sol et en plein air | L94: Allevamento al suolo e all'aperto estensivo
A95: =Codierung!$I$10 -> Bodenhaltung | B95: =AVERAGE('9. Int.'!E28:E29) -> 0.09623416667 | C95: =AVERAGE('9. Int.'!F28:F29) -> 0.1198458333 | D95: =AVERAGE('9. Int.'!G28:G29) -> 0.158725 | E95: =IFERROR((D95-C95)/C95*100,"-") -> 32.44098321 | F95: =IF(Codierung!E95>0,IF(LEN("+"&ROUND(Codierung!E95,1)&" %")<6,"+"&ROUND(Codierung!E95,1)&".0 %","+"&ROUND(Codierung!E95,1)&" %"),IF(LEN(ROUND(Codierung!E95,1)&" %")<6,ROUND(Codierung!E95,1)&".0 %",ROUND(Codierung!E95,1)&" %")) -> +32.4 % | I95: ohne Angabe | J95: ohne Angabe | K95: sans indication | L95: senza indicazione
A96: =Codierung!$I$11 -> Freilandhaltung | B96: =AVERAGE('9. Int.'!E31:E32) -> 0.126515625 | C96: =AVERAGE('9. Int.'!F31:F32) -> 0.1705583333 | D96: =AVERAGE('9. Int.'!G31:G32) -> 0.2228 | E96: 30.6297943 | F96: =IF(Codierung!E96>0,IF(LEN("+"&ROUND(Codierung!E96,1)&" %")<6,"+"&ROUND(Codierung!E96,1)&".0 %","+"&ROUND(Codierung!E96,1)&" %"),IF(LEN(ROUND(Codierung!E96,1)&" %")<6,ROUND(Codierung!E96,1)&".0 %",ROUND(Codierung!E96,1)&" %")) -> +30.6 % | I96: Anteil nach Produktionsform | J96: Anteil nach Produktionsform | K96: Part selon le mode de production | L96: Quota secondo il metodo di produzione
I97: Anteil nach Herkunft | J97: Anteil nach Herkunft | K97: Part selon la provenance | L97: Quota secondo la provenienza
A98: Deutschland | I98: Anteil Inland | J98: Anteil Inland | K98: Suisse | L98: CH
A99: =Codierung!$I$10 -> Bodenhaltung | B99: =AVERAGE('9. Int.'!E16:E17) -> 0.08151578283 | C99: =AVERAGE('9. Int.'!F16:F17) -> 0.07154583333 | D99: =AVERAGE('9. Int.'!G16:G17) -> 0.1148041667 | E99: =IFERROR((D99-C99)/C99*100,"-") -> 60.46240755 | F99: =IF(Codierung!E99>0,IF(LEN("+"&ROUND(Codierung!E99,1)&" %")<6,"+"&ROUND(Codierung!E99,1)&".0 %","+"&ROUND(Codierung!E99,1)&" %"),IF(LEN(ROUND(Codierung!E99,1)&" %")<6,ROUND(Codierung!E99,1)&".0 %",ROUND(Codierung!E99,1)&" %")) -> +60.5 % | I99: Anteil Import | J99: Anteil Import | K99: Importation | L99: Estero
I100: Absätze anhand NielsenIQ Switzerland, Total Market Consumer/Retail Panel; Kalkulation Fachbereich Marktanalysen BLW | J100: Absätze anhand NielsenIQ Switzerland, Total Market Consumer/Retail Panel; Kalkulation Fachbereich Marktanalysen BLW | K100: Ventes sur la base des données communiquées par NielsenIQ Switzerland, Total Market Consumer/Retail Panel; Calcul par le secteur Analyses du marché OFAG | L100: Vendite sulla base dei dati di NielsenIQ Switzerland, Total Market Consumer/Retail Panel; calcolo Settore Analisi del mercato UFAG
A101: =Codierung!$I$113 -> Bio (M) 10er Packung | D101: =IF('9. Int.'!I35>0,IF(LEN("+"&ROUND('9. Int.'!I35,1)&" %")<6,"+"&ROUND('9. Int.'!I35,1)&".0 %","+"&ROUND('9. Int.'!I35,1)&" %"),IF(LEN(ROUND('9. Int.'!I35,1)&" %")<6,ROUND('9. Int.'!I35,1)&".0 %",ROUND('9. Int.'!I35,1)&" %")) -> +5.6 % | I101: Importeier | J101: Importeier | K101: Oeufs importés | L101: Uova importate
A102: =Codierung!$I$114 -> Bodenhaltung (M) 10er Packung | D102: =IF('9. Int.'!I36>0,IF(LEN("+"&ROUND('9. Int.'!I36,1)&" %")<6,"+"&ROUND('9. Int.'!I36,1)&".0 %","+"&ROUND('9. Int.'!I36,1)&" %"),IF(LEN(ROUND('9. Int.'!I36,1)&" %")<6,ROUND('9. Int.'!I36,1)&".0 %",ROUND('9. Int.'!I36,1)&" %")) -> +25.0 %
A103: =Codierung!$I$115 -> Freilandhaltung (M) 10er Packung | D103: =IF('9. Int.'!I37>0,IF(LEN("+"&ROUND('9. Int.'!I37,1)&" %")<6,"+"&ROUND('9. Int.'!I37,1)&".0 %","+"&ROUND('9. Int.'!I37,1)&" %"),IF(LEN(ROUND('9. Int.'!I37,1)&" %")<6,ROUND('9. Int.'!I37,1)&".0 %",ROUND('9. Int.'!I37,1)&" %")) -> +12.7 % | H103: International | I103: =IF($I$1="d",J103,IF($I$1="f",K103,IF($I$1="i",L103))) -> Konsumentenpreise International | J103: Konsumentenpreise International | K103: Prix à la consommation internationales | L103: Prezzi consumo internazionali
A104: =Codierung!$I$110 -> Bio (M) 4er und 6er Packung | D104: =IF('9. Int.'!I39>0,IF(LEN("+"&ROUND('9. Int.'!I39,1)&" %")<6,"+"&ROUND('9. Int.'!I39,1)&".0 %","+"&ROUND('9. Int.'!I39,1)&" %"),IF(LEN(ROUND('9. Int.'!I39,1)&" %")<6,ROUND('9. Int.'!I39,1)&".0 %",ROUND('9. Int.'!I39,1)&" %")) -> +7.8 % | I104: Produzentenpreise International | J104: Produzentenpreise International | K104: Prix à la production internationales | L104: Prezzi alla produzione internazionali
A105: =Codierung!$I$111 -> Bodenhaltung (M) 6er und 10er Pack. | D105: =IF('9. Int.'!I40>0,IF(LEN("+"&ROUND('9. Int.'!I40,1)&" %")<6,"+"&ROUND('9. Int.'!I40,1)&".0 %","+"&ROUND('9. Int.'!I40,1)&" %"),IF(LEN(ROUND('9. Int.'!I40,1)&" %")<6,ROUND('9. Int.'!I40,1)&".0 %",ROUND('9. Int.'!I40,1)&" %")) -> +25.2 % | I105: Pro-Kopf-Verbrauch International | J105: Pro-Kopf-Verbrauch International | K105: Consommation par habitant internationales | L105: Consumo pro capite internazionale
A106: =Codierung!$I$112 -> Freilandhaltung (M) 6er und 10er Pack. | D106: =IF('9. Int.'!I41>0,IF(LEN("+"&ROUND('9. Int.'!I41,1)&" %")<6,"+"&ROUND('9. Int.'!I41,1)&".0 %","+"&ROUND('9. Int.'!I41,1)&" %"),IF(LEN(ROUND('9. Int.'!I41,1)&" %")<6,ROUND('9. Int.'!I41,1)&".0 %",ROUND('9. Int.'!I41,1)&" %")) -> +4.3 % | I106: 10er Packungen | J106: 10er Packungen | K106: Emballage de 10 | L106: Imballaggi da 10
I107: 6er und 10er Packungen | J107: 6er und 10er Packungen | K107: Emballage de 6 et de 10 | L107: Imballaggi da 6 e da 10
I108: Preise lose ab Station | J108: Preise lose ab Station | K108: Prix au départ du centre d'emballage | L108: Prezzi a partire da centro di imballaggio
A109: Pro-Kopf-Verbrauch | B109: =Codierung!$I$252&'D.9 Int.'!$A$18&"-"&'D.9 Int.'!$A$22 -> Ø 2006-2010 | C109: ='9. Int.'!F12 -> 2021 | I109: Bio (M) 6er und 10er Packung | J109: Bio (M) 6er und 10er Packung | K109: Bio (M), par 6 et 10 | L109: Biologiche (M) imballaggi da 6 e da 10
A110: =Codierung!$I$187 -> Schweiz | B110: ='1. Prod + AH + Verbrauch'!F44 -> 174.9652131 | C110: ='9. Int.'!F43 -> 195.1646458 | D110: =(C110/B110-1)*100 -> 11.54482785 | E110: =IFERROR(IF(Codierung!D110>0,IF(LEN("+"&ROUND(Codierung!D110,1)&" %")<6,"+"&ROUND(Codierung!D110,1)&".0 %","+"&ROUND(Codierung!D110,1)&" %"),IF(LEN(ROUND(Codierung!D110,1)&" %")<6,ROUND(Codierung!D110,1)&".0 %",ROUND(Codierung!D110,1)&" %")),"-") -> +11.5 % | I110: Bio (M) 4er und 6er Packung | J110: Bio (M) 4er und 6er Packung | K110: Bio (M), par 4 et 6 | L110: Biologiche (M) imballaggi da 4 e da 6
A111: =Codierung!$I$188 -> Deutschland | B111: =AVERAGE('D.9 Int.'!$AB$18:$AB$22) -> 210 | C111: ='9. Int.'!F44 -> 237.5080077 | D111: 13.09905129 | E111: =IFERROR(IF(Codierung!D111>0,IF(LEN("+"&ROUND(Codierung!D111,1)&" %")<6,"+"&ROUND(Codierung!D111,1)&".0 %","+"&ROUND(Codierung!D111,1)&" %"),IF(LEN(ROUND(Codierung!D111,1)&" %")<6,ROUND(Codierung!D111,1)&".0 %",ROUND(Codierung!D111,1)&" %")),"-") -> +13.1 % | I111: Bodenhaltung (M) 6er und 10er Pack. | J111: Bodenhaltung (M) 6er und 10er Pack. | K111: Elevage au sol (M), par 6 et 10 | L111: Allevamento al suolo (M) imballaggi da 6 e da 10
A112: =Codierung!$I$190 -> Österreich | B112: =AVERAGE('D.9 Int.'!$AC$18:$AC$22) -> 234.89027 | C112: ='9. Int.'!F45 -> 233 | D112: -0.80474598 | E112: =IFERROR(IF(Codierung!D112>0,IF(LEN("+"&ROUND(Codierung!D112,1)&" %")<6,"+"&ROUND(Codierung!D112,1)&".0 %","+"&ROUND(Codierung!D112,1)&" %"),IF(LEN(ROUND(Codierung!D112,1)&" %")<6,ROUND(Codierung!D112,1)&".0 %",ROUND(Codierung!D112,1)&" %")),"-") -> -0.8 % | I112: Freilandhaltung (M) 6er und 10er Pack. | J112: Freilandhaltung (M) 6er und 10er Pack. | K112: Plein air (M), par 6 et 10 | L112: Allevamento all'aperto estensivo (M) imballaggi da 6 e da 10
A113: =Codierung!$I$195 -> EU-15 | B113: =AVERAGE('D.9 Int.'!$AD$18:$AD$22) -> 223.5155684 | C113: ='9. Int.'!F46 -> 229.2910428 | D113: 2.583924852 | E113: =IFERROR(IF(Codierung!D113>0,IF(LEN("+"&ROUND(Codierung!D113,1)&" %")<6,"+"&ROUND(Codierung!D113,1)&".0 %","+"&ROUND(Codierung!D113,1)&" %"),IF(LEN(ROUND(Codierung!D113,1)&" %")<6,ROUND(Codierung!D113,1)&".0 %",ROUND(Codierung!D113,1)&" %")),"-") -> +2.6 % | I113: Bio (M) 10er Packung | J113: Bio (M) 10er Packung | K113: Bio (M), par 10 | L113: Biologiche (M) imballaggi da 10
A114: =Codierung!$I$196 -> USA | B114: =AVERAGE('D.9 Int.'!$AE$18:$AE$22) -> 246.9101496 | C114: ='9. Int.'!F47 -> 280.4938 | D114: 13.60156742 | E114: =IFERROR(IF(Codierung!D114>0,IF(LEN("+"&ROUND(Codierung!D114,1)&" %")<6,"+"&ROUND(Codierung!D114,1)&".0 %","+"&ROUND(Codierung!D114,1)&" %"),IF(LEN(ROUND(Codierung!D114,1)&" %")<6,ROUND(Codierung!D114,1)&".0 %",ROUND(Codierung!D114,1)&" %")),"-") -> +13.6 % | I114: Bodenhaltung (M) 10er Packung | J114: Bodenhaltung (M) 10er Packung | K114: Elevage au sol (M), par 10 | L114: Allevamento al suolo (M) imballaggi da 10
A115: =Codierung!$I$197 -> Singapur | B115: =AVERAGE('D.9 Int.'!$AF$18:$AF$22) -> 299.6 | C115: ='9. Int.'!F48 -> 390 | D115: 30.17356475 | E115: =IFERROR(IF(Codierung!D115>0,IF(LEN("+"&ROUND(Codierung!D115,1)&" %")<6,"+"&ROUND(Codierung!D115,1)&".0 %","+"&ROUND(Codierung!D115,1)&" %"),IF(LEN(ROUND(Codierung!D115,1)&" %")<6,ROUND(Codierung!D115,1)&".0 %",ROUND(Codierung!D115,1)&" %")),"-") -> +30.2 % | I115: Freilandhaltung (M) 10er Packung | J115: Freilandhaltung (M) 10er Packung | K115: Plein air (M), par 10 | L115: Allevamento all'aperto estensivo (M) imballaggi da 10
I116: =IF($I$1="d",J116,IF($I$1="f",K116,IF($I$1="i",L116))) -> Produzentenpreise | J116: Produzentenpreise | K116: Prix à la production | L116: Prezzi alla produzione
I117: M, 6er und 10er Packung | J117: M, 6er und 10er Packung | K117: M, par 6 et 10 | L117: M, imballaggi da 6 e da 10
I118: M, 4er und 6er Packung | J118: M, 4er und 6er Packung | K118: M, par 4 et 6 | L118: M, imballaggi da 4 e da 6
A119: =Codierung!$I$171&" - "&Codierung!$I$40 -> Importe nach Herkunft - Konsumeier | B119: ='2.1 Imp.n.H.'!E13 -> 2021 | C119: ='2.1 Imp.n.H.'!F13 -> 2022 | I119: M, 10er Packung | J119: M, 10er Packung | K119: M, par 10 | L119: M, imballaggi da 10
A120: ='2.1 Imp.n.H.'!B18 -> Polen | B120: ='2.1 Imp.n.H.'!E18 -> 7.12186148 | C120: ='2.1 Imp.n.H.'!F18 -> 2.520947712 | D120: =(C120/B120-1)*100 -> -64.60268542 | E120: =IFERROR(IF(Codierung!D120>0,IF(LEN("+"&ROUND(Codierung!D120,1)&" %")<6,"+"&ROUND(Codierung!D120,1)&".0 %","+"&ROUND(Codierung!D120,1)&" %"),IF(LEN(ROUND(Codierung!D120,1)&" %")<6,ROUND(Codierung!D120,1)&".0 %",ROUND(Codierung!D120,1)&" %")),"-") -> -64.6 % | I120: Wechselkurs CHF/Euro | J120: Wechselkurs CHF/Euro | K120: Taux de change CHF/euro | L120: Corso del cambio CHF/euro
A121: ='2.1 Imp.n.H.'!B20 -> Rest | B121: ='2.1 Imp.n.H.'!E20 -> 15.28606951 | C121: ='2.1 Imp.n.H.'!F20 -> 12.490065 | D121: =(C121/B121-1)*100 -> -18.29119326 | E121: =IFERROR(IF(Codierung!D121>0,IF(LEN("+"&ROUND(Codierung!D121,1)&" %")<6,"+"&ROUND(Codierung!D121,1)&".0 %","+"&ROUND(Codierung!D121,1)&" %"),IF(LEN(ROUND(Codierung!D121,1)&" %")<6,ROUND(Codierung!D121,1)&".0 %",ROUND(Codierung!D121,1)&" %")),"-") -> -18.3 %
A122: ='2.1 Imp.n.H.'!B17 -> Frankreich | B122: ='2.1 Imp.n.H.'!E17 -> 21.46993524 | C122: ='2.1 Imp.n.H.'!F17 -> 21.14231872 | D122: =(C122/B122-1)*100 -> -1.525931575 | E122: =IFERROR(IF(Codierung!D122>0,IF(LEN("+"&ROUND(Codierung!D122,1)&" %")<6,"+"&ROUND(Codierung!D122,1)&".0 %","+"&ROUND(Codierung!D122,1)&" %"),IF(LEN(ROUND(Codierung!D122,1)&" %")<6,ROUND(Codierung!D122,1)&".0 %",ROUND(Codierung!D122,1)&" %")),"-") -> -1.5 %
A123: ='2.1 Imp.n.H.'!B19 -> Italien | B123: ='2.1 Imp.n.H.'!E19 -> 1.665371793 | C123: ='2.1 Imp.n.H.'!F19 -> 1.510184618 | D123: =(C123/B123-1)*100 -> -9.318470244 | E123: =IFERROR(IF(Codierung!D123>0,IF(LEN("+"&ROUND(Codierung!D123,1)&" %")<6,"+"&ROUND(Codierung!D123,1)&".0 %","+"&ROUND(Codierung!D123,1)&" %"),IF(LEN(ROUND(Codierung!D123,1)&" %")<6,ROUND(Codierung!D123,1)&".0 %",ROUND(Codierung!D123,1)&" %")),"-") -> -9.3 %
A124: ='2.1 Imp.n.H.'!B16 -> Deutschland | B124: ='2.1 Imp.n.H.'!E16 -> 67.609912 | C124: ='2.1 Imp.n.H.'!F16 -> 17.48590722 | D124: -74.13706555 | E124: =IFERROR(IF(Codierung!D124>0,IF(LEN("+"&ROUND(Codierung!D124,1)&" %")<6,"+"&ROUND(Codierung!D124,1)&".0 %","+"&ROUND(Codierung!D124,1)&" %"),IF(LEN(ROUND(Codierung!D124,1)&" %")<6,ROUND(Codierung!D124,1)&".0 %",ROUND(Codierung!D124,1)&" %")),"-") -> -74.1 % | H124: Inhaltsverzeichnis | I124: =IF($I$1="d",J124,IF($I$1="f",K124,IF($I$1="i",L124))) -> Marktbericht: | J124: Marktbericht: | K124: Bulletin du marché: | L124: Rapporto sul mercato:
A125: ='2.1 Imp.n.H.'!B15 -> Niederlande | B125: ='2.1 Imp.n.H.'!E15 -> 173.2358811 | C125: ='2.1 Imp.n.H.'!F15 -> 209.7513348 | D125: 21.07845877 | E125: =IFERROR(IF(Codierung!D125>0,IF(LEN("+"&ROUND(Codierung!D125,1)&" %")<6,"+"&ROUND(Codierung!D125,1)&".0 %","+"&ROUND(Codierung!D125,1)&" %"),IF(LEN(ROUND(Codierung!D125,1)&" %")<6,ROUND(Codierung!D125,1)&".0 %",ROUND(Codierung!D125,1)&" %")),"-") -> +21.1 % | I125: Inhaltsverzeichnis | J125: Inhaltsverzeichnis | K125: Table des matières | L125: Contenuto
I126: Inhalt + Front Story | J126: Inhalt + Front Story | K126: Contenu + Front Story | L126: Indice + Front Story
A127: =Codierung!$I$171&" - "&Codierung!$I$41 -> Importe nach Herkunft - Verarbeitungseier | B127: ='2.1 Imp.n.H.'!E13 -> 2021 | C127: ='2.1 Imp.n.H.'!F13 -> 2022 | I127: 1. Produktion, Aussenhandel und Verbrauch (Prod + AH + Verbrauch) | J127: 1. Produktion, Aussenhandel und Verbrauch (Prod + AH + Verbrauch) | K127: 1. Production, commerce extérieur et consommation (Prod + AH + Verbrauch) | L127: 1. Produzione, commercio estero e consumo (Prod + AH + Verbrauch)
A128: ='2.1 Imp.n.H.'!B26 -> Polen | B128: ='2.1 Imp.n.H.'!E26 -> 0 | C128: ='2.1 Imp.n.H.'!F26 -> 0.3331288 | D128: =(C128/B128-1)*100 ->  | E128: =IFERROR(IF(Codierung!D128>0,IF(LEN("+"&ROUND(Codierung!D128,1)&" %")<6,"+"&ROUND(Codierung!D128,1)&".0 %","+"&ROUND(Codierung!D128,1)&" %"),IF(LEN(ROUND(Codierung!D128,1)&" %")<6,ROUND(Codierung!D128,1)&".0 %",ROUND(Codierung!D128,1)&" %")),"-") -> - | I128: 2.1 Import nach Herkunft (Imp.n.H.) | J128: 2.1 Import nach Herkunft (Imp.n.H.) | K128: 2.1 Importation par origine (imp.p.o.) | L128: 2.1 Importazioni per provenienza (Imp.n.H.)
A129: ='2.1 Imp.n.H.'!B25 -> Frankreich | B129: ='2.1 Imp.n.H.'!E25 -> 0.1297456 | C129: ='2.1 Imp.n.H.'!F25 -> 0 | D129: =(C129/B129-1)*100 -> -100 | E129: =IFERROR(IF(Codierung!D129>0,IF(LEN("+"&ROUND(Codierung!D129,1)&" %")<6,"+"&ROUND(Codierung!D129,1)&".0 %","+"&ROUND(Codierung!D129,1)&" %"),IF(LEN(ROUND(Codierung!D129,1)&" %")<6,ROUND(Codierung!D129,1)&".0 %",ROUND(Codierung!D129,1)&" %")),"-") -> -100 % | I129: 2.2 Auslastung der Importkontingente (Imp.n.Kont.) | J129: 2.2 Auslastung der Importkontingente (Imp.n.Kont.) | K129: 2.2. Utilisation des contingents d'importation (imp.p.c.) | L129: 2.2 Grado di utilizzo dei contingenti d'importazione (Imp.n.Kont.)
A130: ='2.1 Imp.n.H.'!B24 -> Bulgarien | B130: ='2.1 Imp.n.H.'!E24 -> 20.37773995 | C130: ='2.1 Imp.n.H.'!F24 -> 5.781680732 | D130: =(C130/B130-1)*100 -> -71.62746828 | E130: =IFERROR(IF(Codierung!D130>0,IF(LEN("+"&ROUND(Codierung!D130,1)&" %")<6,"+"&ROUND(Codierung!D130,1)&".0 %","+"&ROUND(Codierung!D130,1)&" %"),IF(LEN(ROUND(Codierung!D130,1)&" %")<6,ROUND(Codierung!D130,1)&".0 %",ROUND(Codierung!D130,1)&" %")),"-") -> -71.6 % | I130: 2.3 Aktiver Veredelungsverkehr (aVV) | J130: 2.3 Aktiver Veredelungsverkehr (aVV) | K130: 2. Trafic de perfectionnement actif (aVV) | L130: 2. Traffico di perfezionamento attivo (aVV)
A131: ='2.1 Imp.n.H.'!B27 -> Rest | B131: ='2.1 Imp.n.H.'!E27 -> 16.04879584 | C131: ='2.1 Imp.n.H.'!F27 -> 17.94201986 | D131: 11.79667336 | E131: =IFERROR(IF(Codierung!D131>0,IF(LEN("+"&ROUND(Codierung!D131,1)&" %")<6,"+"&ROUND(Codierung!D131,1)&".0 %","+"&ROUND(Codierung!D131,1)&" %"),IF(LEN(ROUND(Codierung!D131,1)&" %")<6,ROUND(Codierung!D131,1)&".0 %",ROUND(Codierung!D131,1)&" %")),"-") -> +11.8 % | I131: 2.4 "Versteckte" Eierimporte in Lebensmittelzubereitungen (Imp. LM): Inoffizielle Schätzung | J131: ="2.4 "&J157&" (Imp. LM): "&J261 -> 2.4 "Versteckte" Eierimporte in Lebensmittelzubereitungen (Imp. LM): Inoffizielle Schätzung | K131: ="2.4 "&K157&" (Imp. LM): "&K261 -> 2.4 Importations d'œufs "cachées" dans les préparations alimentaires (Imp. LM): Estimation non officielle | L131: 2.4 Importazioni di uova «nascoste» nelle preparazioni alimentari (Imp. LM): Stima non ufficiale
A132: ='2.1 Imp.n.H.'!B23 -> Deutschland | B132: ='2.1 Imp.n.H.'!E23 -> 21.2982062 | C132: ='2.1 Imp.n.H.'!F23 -> 17.2842266 | D132: -18.84656183 | E132: =IFERROR(IF(Codierung!D132>0,IF(LEN("+"&ROUND(Codierung!D132,1)&" %")<6,"+"&ROUND(Codierung!D132,1)&".0 %","+"&ROUND(Codierung!D132,1)&" %"),IF(LEN(ROUND(Codierung!D132,1)&" %")<6,ROUND(Codierung!D132,1)&".0 %",ROUND(Codierung!D132,1)&" %")),"-") -> -18.8 % | I132: 3. Marktentlastungsmassnahmen (MEM) | J132: 3. Marktentlastungsmassnahmen (MEM) | K132: 3. Mesures d’allégement du marché (MEM) | L132: 3. Provvedimenti di sgravio del mercato (MEM)
A133: ='2.1 Imp.n.H.'!B22 -> Niederlande | B133: ='2.1 Imp.n.H.'!E22 -> 68.59445194 | C133: ='2.1 Imp.n.H.'!F22 -> 52.8228932 | D133: -22.99246994 | E133: =IFERROR(IF(Codierung!D133>0,IF(LEN("+"&ROUND(Codierung!D133,1)&" %")<6,"+"&ROUND(Codierung!D133,1)&".0 %","+"&ROUND(Codierung!D133,1)&" %"),IF(LEN(ROUND(Codierung!D133,1)&" %")<6,ROUND(Codierung!D133,1)&".0 %",ROUND(Codierung!D133,1)&" %")),"-") -> -23.0 % | I133: 4. Produzenten- und Importpreise (PP) | J133: 4. Produzenten- und Importpreise (PP) | K133: 4. Prix à la production et à l'importation (PP) | L133: 4. Prezzi alla produzione e all'importazione (PP)
I134: 5. Preise im Liefer- und Abholgrosshandel (GHP) | J134: 5. Preise im Liefer- und Abholgrosshandel (GHP) | K134: 5. Prix dans le libre-service de gros (GHP) | L134: 5. Prezzi nella fornitura e nell’acquisto all’ingrosso (GHP)
I135: 6. Konsumentenpreise (KP) | J135: 6. Konsumentenpreise (KP) | K135: 6. Prix de consommation actuels (KP) | L135: 6. Prezzi al consumo attuali (KP)
A136: =Codierung!$I$171&" - "&Codierung!$I$37 -> Importe nach Herkunft - Eiprodukte | B136: ='2.1 Imp.n.H.'!E13 -> 2021 | C136: ='2.1 Imp.n.H.'!F13 -> 2022 | I136: 7. Marktstruktur (MS) | J136: 7. Marktstruktur (MS) | K136: 7. Structure du marché (MS) | L136: 7. Struttura del mercato (MS)
A137: ='2.1 Imp.n.H.'!B32 -> Belgien | B137: ='2.1 Imp.n.H.'!E32 -> 7.093583178 | C137: ='2.1 Imp.n.H.'!F32 -> 8.289448247 | D137: =(C137/B137-1)*100 -> 16.85840623 | E137: =IFERROR(IF(Codierung!D137>0,IF(LEN("+"&ROUND(Codierung!D137,1)&" %")<6,"+"&ROUND(Codierung!D137,1)&".0 %","+"&ROUND(Codierung!D137,1)&" %"),IF(LEN(ROUND(Codierung!D137,1)&" %")<6,ROUND(Codierung!D137,1)&".0 %",ROUND(Codierung!D137,1)&" %")),"-") -> +16.9 % | I137: 8. Bruttowertschöpfung (BWS) | J137: 8. Bruttowertschöpfung (BWS) | K137: 8. Valeurs ajoutées brutes (Bruttowertschöpfung (BWS)) | L137: 8. Valori aggiunti lordi (Bruttowertschöpfung (BWS))
A138: ='2.1 Imp.n.H.'!B34 -> Rest | B138: ='2.1 Imp.n.H.'!E34 -> 5.716806133 | C138: ='2.1 Imp.n.H.'!F34 -> 5.352384898 | D138: =(C138/B138-1)*100 -> -6.374559967 | E138: =IFERROR(IF(Codierung!D138>0,IF(LEN("+"&ROUND(Codierung!D138,1)&" %")<6,"+"&ROUND(Codierung!D138,1)&".0 %","+"&ROUND(Codierung!D138,1)&" %"),IF(LEN(ROUND(Codierung!D138,1)&" %")<6,ROUND(Codierung!D138,1)&".0 %",ROUND(Codierung!D138,1)&" %")),"-") -> -6.4 % | I138: 9. International (Int.) | J138: 9. International (Int.) | K138: 9. International (Int.) | L138: 9. Internazionale (Int.)
A139: ='2.1 Imp.n.H.'!B31 -> Italien | B139: ='2.1 Imp.n.H.'!E31 -> 10.05407829 | C139: ='2.1 Imp.n.H.'!F31 -> 6.27988397 | D139: =(C139/B139-1)*100 -> -37.53893903 | E139: =IFERROR(IF(Codierung!D139>0,IF(LEN("+"&ROUND(Codierung!D139,1)&" %")<6,"+"&ROUND(Codierung!D139,1)&".0 %","+"&ROUND(Codierung!D139,1)&" %"),IF(LEN(ROUND(Codierung!D139,1)&" %")<6,ROUND(Codierung!D139,1)&".0 %",ROUND(Codierung!D139,1)&" %")),"-") -> -37.5 % | I139: Datenreihen: | J139: Datenreihen: | K139: Séries de données: | L139: Serie di dati:
A140: ='2.1 Imp.n.H.'!B33 -> Frankreich | B140: ='2.1 Imp.n.H.'!E33 -> 12.30479053 | C140: ='2.1 Imp.n.H.'!F33 -> 12.89757237 | D140: =(C140/B140-1)*100 -> 4.817488302 | E140: =IFERROR(IF(Codierung!D140>0,IF(LEN("+"&ROUND(Codierung!D140,1)&" %")<6,"+"&ROUND(Codierung!D140,1)&".0 %","+"&ROUND(Codierung!D140,1)&" %"),IF(LEN(ROUND(Codierung!D140,1)&" %")<6,ROUND(Codierung!D140,1)&".0 %",ROUND(Codierung!D140,1)&" %")),"-") -> +4.8 % | I140: D.1 Prod + AH + Verbrauch | J140: D.1 Prod + AH + Verbrauch | K140: D.1 Prod + AH + Verbrauch | L140: D.1 Prod + AH + Verbrauch
A141: ='2.1 Imp.n.H.'!B30 -> Deutschland | B141: ='2.1 Imp.n.H.'!E30 -> 44.041593 | C141: ='2.1 Imp.n.H.'!F30 -> 48.63949535 | D141: 10.43990927 | E141: =IFERROR(IF(Codierung!D141>0,IF(LEN("+"&ROUND(Codierung!D141,1)&" %")<6,"+"&ROUND(Codierung!D141,1)&".0 %","+"&ROUND(Codierung!D141,1)&" %"),IF(LEN(ROUND(Codierung!D141,1)&" %")<6,ROUND(Codierung!D141,1)&".0 %",ROUND(Codierung!D141,1)&" %")),"-") -> +10.4 % | I141: D.2.1 Imp.n.H. | J141: D.2.1 Imp.n.H. | K141: =J141 -> D.2.1 Imp.n.H. | L141: =J141 -> D.2.1 Imp.n.H.
A142: ='2.1 Imp.n.H.'!B29 -> Niederlande | B142: ='2.1 Imp.n.H.'!E29 -> 83.42701766 | C142: ='2.1 Imp.n.H.'!F29 -> 89.1961055 | D142: 6.915131333 | E142: =IFERROR(IF(Codierung!D142>0,IF(LEN("+"&ROUND(Codierung!D142,1)&" %")<6,"+"&ROUND(Codierung!D142,1)&".0 %","+"&ROUND(Codierung!D142,1)&" %"),IF(LEN(ROUND(Codierung!D142,1)&" %")<6,ROUND(Codierung!D142,1)&".0 %",ROUND(Codierung!D142,1)&" %")),"-") -> +6.9 % | I142: D.2.2 Imp.n.Kont. | J142: D.2.2 Imp.n.Kont. | K142: D.2.2 Imp.n.Kont. | L142: D.2.2 Imp.n.Kont.
I143: D.2.3 aVV | J143: D.2.3 aVV | K143: =J143 -> D.2.3 aVV | L143: =J143 -> D.2.3 aVV
A144: =Codierung!$I$172&" - "&Codierung!$I$40 -> Auslastung der Importkontingente - Konsumeier | E144: =IF('2.2 Imp.n.Kont.'!I17>0,IF(LEN("+"&ROUND('2.2 Imp.n.Kont.'!I17,1)&" %")<6,"+"&ROUND('2.2 Imp.n.Kont.'!I17,1)&".0 %","+"&ROUND('2.2 Imp.n.Kont.'!I17,1)&" %"),IF(LEN(ROUND('2.2 Imp.n.Kont.'!I17,1)&" %")<6,ROUND('2.2 Imp.n.Kont.'!I17,1)&".0 %",ROUND('2.2 Imp.n.Kont.'!I17,1)&" %")) -> -8.6 % | I144: D.2.4 Imp. LM | J144: D.2.4 Imp. LM | K144: =J144 -> D.2.4 Imp. LM | L144: =J144 -> D.2.4 Imp. LM
A145: =Codierung!$I$172&" - "&Codierung!$I$41 -> Auslastung der Importkontingente - Verarbeitungseier | E145: =IF('2.2 Imp.n.Kont.'!I21>0,IF(LEN("+"&ROUND('2.2 Imp.n.Kont.'!I21,1)&" %")<6,"+"&ROUND('2.2 Imp.n.Kont.'!I21,1)&".0 %","+"&ROUND('2.2 Imp.n.Kont.'!I21,1)&" %"),IF(LEN(ROUND('2.2 Imp.n.Kont.'!I21,1)&" %")<6,ROUND('2.2 Imp.n.Kont.'!I21,1)&".0 %",ROUND('2.2 Imp.n.Kont.'!I21,1)&" %")) -> -28.8 % | I145: D.3 MEM | J145: D.3 MEM | K145: D.3 MEM | L145: D.3 MEM
I146: D.4 PP | J146: D.4 PP | K146: D.4 PP | L146: D.4 PP
I147: D.5 GHP Gastro | J147: D.5 GHP Gastro | K147: D.5 GHP Gastro | L147: D.5 GHP Gastro
I148: D.6 KP | J148: D.6 KP | K148: D.6 KP | L148: D.6 KP
I149: D.7 MS | J149: D.7 MS | K149: D.7 MS | L149: D.7 MS
I150: D.8 BWS | J150: D.8 BWS | K150: D.8 BWS | L150: D.8 BWS
I151: D.9 Int. | J151: D.9 Int. | K151: D.9 Int. | L151: D.9 int.
I152: 10. Methoden | J152: 10. Methoden | K152: 10. Méthode | L152: 10. Metodo
I153: Codierung | J153: Codierung | K153: Codage | L153: Codifica
I154: Zurück zum Inhaltsverzeichnis | J154: Zurück zum Inhaltsverzeichnis | K154: Retour à la table des matières | L154: Torna al contenuto
I155: Markt aktuell | J155: Markt aktuell | K155: Actualités du marché | L155: Situazione del mercato
I156: Bestellformular für Abonnemente: | J156: Bestellformular für Abonnemente: | K156: Formulaire de commande d’abonnements: | L156: Modulo per la sottoscrizione di un abbonamento:
I157: "Versteckte" Eierimporte in Lebensmittelzubereitungen | J157: "Versteckte" Eierimporte in Lebensmittelzubereitungen | K157: Importations d'œufs "cachées" dans les préparations alimentaires | L157: Importazioni di uova «nascoste» nelle preparazioni alimentari
I158: Eier in importieren Lebensmittelzubereitungen | J158: Eier in importieren Lebensmittelzubereitungen | K158: Œufs dans des préparations alimentaires importées | L158: Uova nelle preparazioni alimentari importate
I159: statistisch erfasster Verbrauch | J159: statistisch erfasster Verbrauch | K159: Consommation recensée statistiquement | L159: consumo registrato statisticamente
I160: importierte Lebensmittelzubereitungen | J160: importierte Lebensmittelzubereitungen | K160: Préparations alimentaires importées | L160: preparazioni alimentari importate
I161: Geschätzte Handelsbilanz (Importüberschuss) von Eiern aus Lebensmittelzubereitungen | J161: Geschätzte Handelsbilanz (Importüberschuss) von Eiern aus Lebensmittelzubereitungen | K161: Estimation de la balance commerciale (excédent d'importation) des oeufs dans les préparations alimentaires | L161: Bilancia commerciale stimata (eccedenza di importazioni) di uova derivanti da preparazioni alimentari
I162: Zusätzlicher geschätzter Pro-Kopf-Verbrauch von Eiern aus importierten Lebensmittelzubereitungen | J162: Zusätzlicher geschätzter Pro-Kopf-Verbrauch von Eiern aus importierten Lebensmittelzubereitungen | K162: Estimation de la consommation supplémentaire d'oeufs par personne via les préparations alimentaires importées | L162: Consumo di uova pro capite supplementare stimato derivante da preparazioni alimentari importate
I163: 0
I164: 0
I165: 0
I166: 0
I167: 0
H168: Titel Arbeitsblätter | I168: Marktbericht Eier | J168: Marktbericht Eier | K168: Bulletin du marché des oeufs | L168: Rapporto sul mercato delle uova
I169: Inhaltsverzeichnis + Front Story | J169: Inhaltsverzeichnis + Front Story | K169: Table des matières + Front Story | L169: Contenuto + Front Story
I170: Produktion, Aussenhandel und Verbrauch | J170: Produktion, Aussenhandel und Verbrauch | K170: Production, commerce extérieur et consommation | L170: Produzione, commercio estero e consumo
I171: Importe nach Herkunft | J171: Importe nach Herkunft | K171: Importations par origine | L171: Importazioni per provenienza
I172: Auslastung der Importkontingente | J172: Auslastung der Importkontingente | K172: Utilisation des contingents d'importation | L172: Grado di utilizzo dei contingenti d'importazione
I173: Marktentlastungsmassnahmen | J173: Marktentlastungsmassnahmen | K173: Mesures d’allégement du marché | L173: Provvedimenti di sgravio del mercato
I174: Aktiver Veredelungsverkehr (ohne Produkte für technische Zwecke) | J174: Aktiver Veredelungsverkehr (ohne Produkte für technische Zwecke) | K174: Trafic de perfectionnement actif (sans les produits destinés à des fins techniques) | L174: Traffico di perfezionamento attivo (senza prodotti per scopi tecnici)
I175: Produzenten- und Importpreise | J175: Produzenten- und Importpreise | K175: Prix à la production et à l'importation | L175: Prezzi alla produzione e all'importazione
I176: Preise im Liefer- und Abholgrosshandel | J176: Preise im Liefer- und Abholgrosshandel | K176: Prix dans le libre-service de gros | L176: Prezzi nella fornitura e nell’acquisto all’ingrosso
I177: Marktstruktur | J177: Marktstruktur | K177: Structure du marché | L177: Struttura del mercato
I178: Bruttowertschöpfung | J178: Bruttowertschöpfung | K178: Valeurs ajoutées brutes | L178: Valori aggiunti lordi
I179: Internationale Marktzahlen | J179: Internationale Marktzahlen | K179: Chiffres sur les marchés internationaux | L179: Dati sul mercato internazionale
I180: Bruttowertschöpfung | J180: Bruttowertschöpfung | K180: Valeurs ajoutées brutes | L180: Valori aggiunti lordi
I181: Methoden | J181: Methoden | K181: Méthode | L181: Considerazioni di natura metodologica
I182: monatlich | J182: monatlich | K182: mensuel | L182: mensile
I183: Haftung | J183: Haftung | K183: Responsabilité | L183: Responsabilità
I184: =IF($I$1="d",J184,IF($I$1="f",K184,IF($I$1="i",L184))) -> Eidgenössisches Departement für Wirtschaft, Bildung und Forschung WBF | J184: Eidgenössisches Departement für Wirtschaft, Bildung und Forschung WBF | K184: Département fédéral de l’économie,de la formation et de la recherche DEFR | L184: Dipartimento federale dell'economia, della formazione e della ricerca DEFR
I185: Bundesamt für Landwirtschaft BLW | J185: Bundesamt für Landwirtschaft BLW | K185: Office fédéral de l’agriculture OFAG | L185: Ufficio federale dell’agricoltura UFAG
I186: Fachbereich Marktanalysen | J186: Fachbereich Marktanalysen | K186: Secteur Analyses du marché | L186: Settore Analisi del mercato
H187: Länder | I187: Schweiz | J187: Schweiz | K187: Suisse | L187: Svizzera
I188: Deutschland | J188: Deutschland | K188: Allemagne | L188: Germania
I189: Frankreich | J189: Frankreich | K189: France | L189: Francia
I190: Österreich | J190: Österreich | K190: Autriche | L190: Austria
I191: Italien | J191: Italien | K191: Italie | L191: Italia
